Workbook

Sheet COVER
C2: Cover
C4: NAVIGATION
C6: COMMENTS
C9: Bonneville Power Administration
C10: 6P Energy Conservation Standards Savings Model
C11: Room AC
C13: Product Description
C14: Most consumers would identify a room AC as either a window unit or a 'through the wall' unit. DOE defines “room air conditioner” under EPCA as “a consumer product, other than a “packaged terminal air conditioner”, which is powered by a single phase electric current and which is an encased assembly designed as a unit for mounting in a window or through the wall for the purpose of providing delivery of conditioned air to an enclosed space. It includes a prime source of refrigeration and may include a means for ventilating and heating.” (10 CFR 430.2)
C16: Standard Compliance Year
C17: 2014 per the DOE 2011 Direct Final Rule
C19: Major changes from previous rulemaking (2009 effective standard)
C20: Subdivision of two existing product classes based on product capacity and more stringent standards.
C22: 6P Baseline
C23: Existing standards (Compliance Year 2000) are included in the 6P baseline.
C25: Prepared By:
C26: Navigant Consulting | D26: Cadeo Group
C27: One Market Street | Spear Street Tower, Suite 1200 | D27: 840 First Street, Suite 300
C28: San Francisco, CA 94105 | D28: Washington, DC 20002

Sheet Definitions
C2: Definitions
C4: NAVIGATION
C6: COMMENTS
C9: Average Megawatt (aMW) | D9: The average number of megawatts over a specified time period
C10: Adjustment to 6P Baseline | D10: Adjustment to reconcile the 6P projected energy consumption and the modeled consumption calculated using best available data.
C11: Department of Energy Aggregate Lifecycle Savings | D11: Sum of 'Total First Year Savings'. This accounts for the cumulative savings in accordance with DOE Carbon Accounting Practices.
C12: Department of Energy Notice of Proposed Rulemaking (DOE NOPR) | D12: Federal Register notice detailing analyses conducted by the DOE to establish proposed energy conservation standards.
C13: Efficiency Level (EL) | D13: The discrete efficiency ratings of a product. Each efficiency level is associated with a different UEC.
C14: Efficiency Level Distribution | D14: The mix of various equipment efficiencies shipped in a given year.
C15: Incremental Savings | D15: Savings due to the higher standards for units installed in a particular year. First year savings are highest following the standards compliance year while the stock turns over, after which first year savings are only attributed to shipments associated wit
C16: Governmental Regulatory Impact Model (GRIM) | D16: The industry cash flow model used by DOE to assess impacts on manufacturers due to proposed energy conservation standards
C17: Installed Unit Energy Consumption (Installed UEC) | D17: The average annual unit energy consumption of all installed units in a given year.
C18: Market Unit Energy Consumption (Market UEC) | D18: The average annual unit energy consumption of units shipped in a given year.
C19: National Impact Analysis (NIA) | D19: The energy impact analysis used by DOE to calculate energy savings associated with each standard.
C20: Pre-case | D20: The case representing 6P baseline assumptions where energy consumption due to the product accounts for shipment and shipment UEC by year, without the affect of standards announced following the development of the 6P.
C21: Post-case | D21: The case in which standards are implemented. If the 6P already captured the analyzed standard, the post-case will be the same as the pre-case.
C22: Product Class | D22: Product classificiation determined by product configuration, size, application, location, and other attributes that contribute to consumer utility. DOE is allowed to establish different standards for each product class.
C23: Product Class Distribution | D23: Market share/mix of each product class shipped in a given year.
C24: Product Lifetime | D24: The average time a given class of products stays in the field as part of the installed stock. Some products will last longer (delaying replacement) whereas others will fail and be retired earlier (accelerating replacement), but the lifetime represents th
C25: Shipments | D25: Sales of products. This may be presented by product class, efficiency distribution, or delineated by other metrics. Shipments may be attributed to new construction and/or replacements and retrofits.
C26: Sixth Power Plan (6P) | D26: The Pacific Northwest Resource Plan published by the Northwest Power Conservation Council. The 6P timeframe is from 2010-2015.
C27: Sixth Power Plan Baseline (6P Baseline) | D27: The 6P assumes equipment efficiency and shipment units in the region. When available, the 6P assumptions are the baseline for each standard impact analysis.
C28: Standard Compliance Year | D28: The year when the appliance standard goes into effect.
C29: Stock | D29: All units installed in previous years which remain in operation.
C30: Technical Support Document (TSD) | D30: TSDs are published by the DOE as companion documents to Federal Register notices (e.g., ANOPRs/preliminary analyses and NOPRs). The TSDs include technical detail that supports the notices. The final rule TSD includes the discussion of the Manufacturer I
C31: Cumulative Savings through 2034 | D31: The sum of incremental savings from 2010 through 2034
C32: Trial Standard Level (TSL) | D32: A proposed efficiency standard evaluated by DOE during the NOPR and Final Rule phase analyses. A TSL may specify different standard efficiency levels for each product class included in the rulemaking.

Sheet Comments
C2: Comments
C4: NAVIGATION
C7: Tab | D7: Comment
C8: Example | D8: Please use this space to document your comments as you review the model. We look forward to receiving your feedback. Thank you.

Sheet Navigation
C2: NAVIGATION
C4: COMMENTS
C7: INFORMATION TABS | E7: INPUT TABS | G7: UEC CALCULATIONS | I7: RESULTS | K7: CHARTS
C9: COVER | E9: PRODUCT CLASSES
C11: DEFINITIONS | E11: EFFICIENCY LEVELS | G11: UEC DEVELOPMENT
C13: COMMENTS | E13: LIFETIME AND USAGE DATA
C15: NAVIGATION | E15: NATIONAL SHIPMENTS | G15: PRODUCT CLASS DISTRIBUTION
C17: CENTRAL RESIDENTIAL MODEL (EXTERNAL) | E17: SHIPMENTS AND STOCK - SF | G17: UEC - SF | I17: RESULTS - SF | K17: CHARTS - SF
E19: EFFICIENCY DISTRIBUTION - SF
E21: SHIPMENTS AND STOCK - MF | G21: UEC - MF | I21: RESULTS - MF | K21: CHARTS - MF
E23: EFFICIENCY DISTRIBUTION - MF
E25: SHIPMENTS AND STOCK - MH | G25: UEC - MH | I25: RESULTS - MH | K25: CHARTS - MH
E27: EFFICIENCY DISTRIBUTION - MH
E29: 6P UEC DEVELOPMENT | I29: RESULTS - TH | K29: CHARTS - ALL
E31: CONSTANTS
I33: SUMMARY RESULTS

Sheet Product Classes
C2: Selection of Product Classes for Model
C4: NAVIGATION
C6: COMMENTS
C9: All Product Classes | D9: 1997 Final Rule Product Classes 1 | E9: 2011 Direct Final Rule Product Classes 2 | F9: Representative PCs 3 | G9: 6P PCs 4 | I9: Model PCs | J9: Rationale
C10: PC1 | D10: PC1. Without reverse cycle, with louvered sides, and less than 6,000 Btu/h | E10: PC1. Without reverse cycle, with louvered sides, and less than 6,000 Btu/h | F10: 2014-DOE-PC1 | G10: Included | I10: PC1 | J10: Efficiency distributions (GRIM shipments) available for each representative product class
C11: PC2 | D11: PC2. Without reverse cycle, with louvered sides, and 6,000 to 7,999 Btu/h | E11: PC2. Without reverse cycle, with louvered sides, and 6,000 to 7,999 Btu/h | G11: Included
C12: PC3 | D12: PC3. Without reverse cycle, with louvered sides, and 8,000 to 13,999 Btu/h | E12: PC3. Without reverse cycle, with louvered sides, and 8,000 to 13,999 Btu/h | F12: 2014-DOE-PC3 | G12: Included | I12: PC2
C13: PC4 | D13: PC4. Without reverse cycle, with louvered sides, and 14,000 to 19,999 Btu/h | E13: PC4. Without reverse cycle, with louvered sides, and 14,000 to 19,999 Btu/h | G13: Included
C14: PC5a | D14: PC5. Without reverse cycle, with louvered sides, and 20,000 Btu/h or more | E14: PC5a. Without reverse cycle, with louvered sides, and 20,000 to 24,999 Btu/h | F14: 2014-DOE-PC5a | G14: Included | I14: PC3
C15: PC5b | E15: PC5b. Without reverse cycle, with louvered sides, and 25,000 Btu/h or more | F15: 2014-DOE-PC5b | G15: Included | I15: PC4
C16: PC6 | D16: PC6. Without reverse cycle, without louvered sides, and less than 6,000 Btu/h | E16: PC6. Without reverse cycle, without louvered sides, and less than 6,000 Btu/h | G16: Included
C17: PC7 | D17: PC7. Without reverse cycle, without louvered sides, and 6,000 to 7,999 Btu/h | E17: PC7. Without reverse cycle, without louvered sides, and 6,000 to 7,999 Btu/h | G17: Included
C18: PC8a | D18: PC8. Without reverse cycle, without louvered sides, and 8,000 to 13,999 Btu/h | E18: PC8a. Without reverse cycle, without louvered sides, and 8,000 to 10,999 Btu/h | F18: 2014-DOE-PC8a | G18: Included | I18: PC5
C19: PC8b | E19: PC8b. Without reverse cycle, without louvered sides, and 11,000 to 13,999 Btu/h | F19: 2014-DOE-PC8b | G19: Included | I19: PC6
C20: PC9 | D20: PC9. Without reverse cycle, without louvered sides, and 14,000 to 19,999 Btu/h | E20: PC9. Without reverse cycle, without louvered sides, and 14,000 to 19,999 Btu/h | G20: Included
C21: PC10 | D21: PC10. Without reverse cycle, without louvered sides, and 20,000 Btu/h or more | E21: PC10. Without reverse cycle, without louvered sides, and 20,000 Btu/h or more | G21: Included
C22: PC11 | D22: PC11. With reverse cycle, with louvered sides, and less than 20,000 Btu/h | E22: PC11. With reverse cycle, with louvered sides, and less than 20,000 Btu/h | G22: Included
C23: PC12 | D23: PC12. With reverse cycle, without louvered sides, and less than 14,000 Btu/h | E23: PC12. With reverse cycle, without louvered sides, and less than 14,000 Btu/h | G23: Included
C24: PC13 | D24: PC13. With reverse cycle, with louvered sides, and 20,000 Btu/h or more | E24: PC13. With reverse cycle, with louvered sides, and 20,000 Btu/h or more | G24: Included
C25: PC14 | D25: PC14. With reverse cycle, without louvered sides, and 14,000 Btu/h or more | E25: PC14. With reverse cycle, without louvered sides, and 14,000 Btu/h or more | G25: Included
C26: PC15 | D26: PC15. Casement-Only | E26: PC15. Casement-Only
C27: PC16 | D27: PC16. Casement-Slider | E27: PC16. Casement-Slider
C29: Sources | D29: 1. DOE Residential Room Air Conditioners 1997 Final Rule: TABLE 1–1.—PROPOSED STANDARDS LEVELS FOR ROOM AIR CONDITIONERS
D30: 2. DOE Residential Room Air Conditioners 2011 Direct Final Rule: Table I-1—Amended Energy Conservation Standards for Residential Clothes Dryers and Room Air Conditioners
D31: 3. DOE Residential Room Air Conditioners 2011 Direct Final Rule Technical Support Document CHAPTER 10. NATIONAL IMPACT ANALYSIS, Section 10.1 Introduction
D32: 4. 6P Conservation Supply Curve Files - Window AC Upgrades *Note: 6P Breaks out Measures by Capacity alone ranging from <5,000 Btu/h to >20,000 Btu/h

Sheet Efficiency Levels
C2: Efficiency Levels and Standards
C4: NAVIGATION
C6: COMMENTS
D9: PC1 | E9: PC2 | F9: PC3 | G9: PC4 | H9: PC5 | I9: PC6
D10: Without reverse cycle, with louvered sides, and less than 6,000 Btu/h | E10: Without reverse cycle, with louvered sides, and 8,000 to 13,999 Btu/h | F10: Without reverse cycle, with louvered sides, and 20,000 to 24,999 Btu/h | G10: Without reverse cycle, with louvered sides, and 25,000 Btu/h or more | H10: Without reverse cycle, without louvered sides, and 8,000 to 10,999 Btu/h | I10: Without reverse cycle, without louvered sides, and 11,000 to 13,999 Btu/h
C11: Representative Capacity | D11: 6000 | E11: 8000 | F11: 20000 | G11: 25000 | H11: 8000 | I11: 11000
C13: Model ELs | D13: CEER | E13: CEER | F13: CEER | G13: CEER | H13: CEER | I13: CEER
C14: EL0 | D14: 9.523593338 | E14: 9.686701434 | F14: 8.471353412 | G14: 8.475433955 | H14: 8.414635625 | I14: 8.442899265
C15: EL1 | D15: 10.1 | E15: 10.2 | F15: 9 | G15: 9 | H15: 9.3 | I15: 9.3
C16: EL2 | D16: 10.6 | E16: 10.7 | F16: 9.4 | G16: 9.4 | H16: 9.6 | I16: 9.5
C17: EL3 | D17: 11.1 | E17: 10.9 | F17: 9.8 | G17: 9.8 | H17: 10 | I17: 9.8
C18: EL4 | D18: 11.384883 | E18: 11.5 | F18: 10.15444763 | H18: 10.35461976 | I18: 10.02089037
C19: EL5 | D19: 11.66560128 | E19: 11.9619975
C21: Standard Level | D21: EL3 | E21: EL3 | F21: EL2 | G21: EL1 | H21: EL2 | I21: EL2
C23: Compliance Year | D23: 2014
C25: Sources | D25: 2011 DOE Residential Room Air Conditioners Direct Final Rule Government Regulatory Impact Model 'Assumptions (INPUT)' tab, Range C9:H14.
D26: DOE Residential Room Air Conditioners 2011 Final Rule (Amending Compliance Dates), Federal Register, 76 FR 52852, (Aug. 24, 2011)
D27: DOE Residential Room Air Conditioners 2011 Final Rule Government Regulatory Impact Model ('Assumptions (INPUT)' tab, Range G23:G28).

Sheet Lifetime and Usage Data
C2: Lifetime and Usage Data
C4: NAVIGATION
C6: COMMENTS
C9: =MODEL_NAME -> Room AC | D9: Single Family | E9: Multi-Family | F9: Manufactured Homes | G9: Total Homes | H9: Source
C10: Lifetime (years) | D10: =ROUND(INDEX([1]!LIFETIMES_TABLE, MATCH($C$9,[1]!APPLIANCES,0), MATCH(D9,[1]!LIFETIMES_HOUSING_TYPE,0)),0) -> 11 | E10: =ROUND(INDEX([1]!LIFETIMES_TABLE, MATCH($C$9,[1]!APPLIANCES,0), MATCH(E9,[1]!LIFETIMES_HOUSING_TYPE,0)),0) -> 11 | F10: =ROUND(INDEX([1]!LIFETIMES_TABLE, MATCH($C$9,[1]!APPLIANCES,0), MATCH(F9,[1]!LIFETIMES_HOUSING_TYPE,0)),0) -> 11 | G10: =ROUND(INDEX([1]!LIFETIMES_TABLE, MATCH($C$9,[1]!APPLIANCES,0), MATCH(G9,[1]!LIFETIMES_HOUSING_TYPE,0)),0) -> 11 | H10: DOE Room Air Conditioners 2011 Direct Final Rule, Technical Support Document Chapter 8: Lifecycle Cost Analysis, Table 8.2.39 Lifetime Parameters (page 8-41)
C14: Usage Data | D14: Single Family | E14: Multi-Family | F14: Manufactured Homes | G14: All Segments (AVERAGE) | H14: Source
C15: 6P - Cooling Degree Hours per Year | D15: =$G15 -> 486 | E15: 486 | F15: =$G15 -> 486 | G15: 486 | H15: 6P Conservation Supply Curve Files - Window AC Upgrades - 'Window AC' tab, cell G8 (computed from hourly temperatures using SUNCODE & TMY2 Weather Files)

Sheet National Shipments
C2: National Shipments
C4: NAVIGATION
C6: COMMENTS
D9: PC1 - Room ACs without reverse cycle, with louvered sides, and less than 6,000 Btu/h
D11: PRE-Case
D12: Efficiency Level | E12: CEER | F12: 2009 | G12: 2010 | H12: 2011 | I12: 2012 | J12: 2013 | K12: 2014 | L12: 2015 | M12: 2016 | N12: 2017 | O12: 2018 | P12: 2019 | Q12: 2020 | R12: 2021 | S12: 2022 | T12: 2023 | U12: 2024 | V12: 2025 | W12: 2026 | X12: 2027 | Y12: 2028 | Z12: 2029 | AA12: 2030 | AB12: 2031 | AC12: 2032 | AD12: 2033 | AE12: 2034
D13: EL0 | E13: =INDEX(EFFICIENCY_LEVELS,RIGHT(D13,1)+1,MID($D$9,3,1)) -> 9.523593338 | F13: 1.230788426 | G13: 1.296891091 | H13: 1.380711192 | I13: 2.057460332 | J13: 2.022973397 | K13: 1.939567554 | L13: 1.752766249 | M13: 1.651449028 | N13: 1.542206779 | O13: 1.422129857 | P13: 1.295759808 | Q13: 1.172354904 | R13: 1.051229771 | S13: 0.9311410435 | T13: 0.8111999781 | U13: 0.6916161812 | V13: 0.5724996843 | W13: 0.4542428932 | X13: 0.3367942497 | Y13: 0.2203274932 | Z13: 0.1046923645 | AA13: 0 | AB13: 0 | AC13: 0 | AD13: 0 | AE13: 0
D14: EL1 | E14: 10.1 | F14: 0 | G14: 0 | H14: 0 | I14: 0 | J14: 0 | K14: 0 | L14: 0.1152176568 | M14: 0.2327228037 | N14: 0.3512415701 | O14: 0.4681145297 | P14: 0.5820086184 | Q14: 0.6956481714 | R14: 0.8093976031 | S14: 0.922912845 | T14: 1.035398014 | U14: 1.146750467 | V14: 1.256732738 | W14: 1.365823932 | X14: 1.473746844 | Y14: 1.581155652 | Z14: 1.687097565 | AA14: 1.769306326 | AB14: 1.627372253 | AC14: 1.487424656 | AD14: 1.348363103 | AE14: 1.209501525
D15: EL2 | E15: 10.6 | F15: 0.5238795104 | G15: 0.55201581 | H15: 0.5876934557 | I15: 0.875748657 | J15: 0.8610694496 | K15: 0.8255681308 | L15: 0.7950988756 | M15: 0.801989193 | N15: 0.8059377004 | O15: 0.8045739485 | P15: 0.7992636128 | Q15: 0.7951070354 | R15: 0.7919676016 | S15: 0.7891696272 | T15: 0.7859960585 | U15: 0.7824924245 | V15: 0.7786044825 | W15: 0.7747031878 | X15: 0.7706486034 | Y15: 0.7667931288 | Z15: 0.7626672553 | AA15: 0.7695024129 | AB15: 0.8957048795 | AC15: 1.021065363 | AD15: 1.144970818 | AE15: 1.26651008
D16: EL3 | E16: 11.1 | F16: 0.02059302718 | G16: 0.02169902879 | H16: 0.02310147098 | I16: 0.03442454904 | J16: 0.03384752835 | K16: 0.03245201734 | L16: 0.03125431026 | M16: 0.03152515974 | N16: 0.03168037047 | O16: 0.03162676314 | P16: 0.0314180207 | Q16: 0.03125463101 | R16: 0.03113122392 | S16: 0.03102123916 | T16: 0.03089649027 | U16: 0.03075876694 | V16: 0.03060593696 | W16: 0.0304525821 | X16: 0.03029320162 | Y16: 0.0301416479 | Z16: 0.02997946513 | AA16: 0.0297958128 | AB16: 0.02961118447 | AC16: 0.02943998808 | AD16: 0.02926211401 | AE16: 0.02905881689
D17: EL4 | E17: 11.384883 | F17: 0 | G17: 0 | H17: 0 | I17: 0 | J17: 0 | K17: 0 | L17: 0 | M17: 0 | N17: 0 | O17: 0 | P17: 0 | Q17: 0 | R17: 0 | S17: 0 | T17: 0 | U17: 0 | V17: 0 | W17: 0 | X17: 0 | Y17: 0 | Z17: 0 | AA17: 0 | AB17: 0 | AC17: 0 | AD17: 0 | AE17: 0
D18: EL5 | E18: 11.66560128 | F18: 0 | G18: 0 | H18: 0 | I18: 0 | J18: 0 | K18: 0 | L18: 0 | M18: 0 | N18: 0 | O18: 0 | P18: 0 | Q18: 0 | R18: 0 | S18: 0 | T18: 0 | U18: 0 | V18: 0 | W18: 0 | X18: 0 | Y18: 0 | Z18: 0 | AA18: 0 | AB18: 0 | AC18: 0 | AD18: 0 | AE18: 0
D19: TOTAL | F19: =SUM(F13:F18) -> 1.775260964 | G19: 1.87060593 | H19: 1.991506119 | I19: 2.967633538 | J19: 2.917890375 | K19: 2.797587702 | L19: 2.694337091 | M19: 2.717686184 | N19: 2.73106642 | O19: 2.726445098 | P19: 2.70845006 | Q19: 2.694364742 | R19: 2.6837262 | S19: 2.674244755 | T19: 2.663490541 | U19: 2.65161784 | V19: 2.638442841 | W19: 2.625222595 | X19: 2.611482899 | Y19: 2.598417922 | Z19: 2.584436649 | AA19: 2.568604552 | AB19: 2.552688317 | AC19: 2.537930007 | AD19: 2.522596035 | AE19: 2.505070421
D21: POST-Case
D22: Efficiency Level | E22: CEER | F22: 2009 | G22: 2010 | H22: 2011 | I22: 2012 | J22: 2013 | K22: 2014 | L22: 2015 | M22: 2016 | N22: 2017 | O22: 2018 | P22: 2019 | Q22: 2020 | R22: 2021 | S22: 2022 | T22: 2023 | U22: 2024 | V22: 2025 | W22: 2026 | X22: 2027 | Y22: 2028 | Z22: 2029 | AA22: 2030 | AB22: 2031 | AC22: 2032 | AD22: 2033 | AE22: 2034
D23: EL0 | E23: =INDEX(EFFICIENCY_LEVELS,RIGHT(D23,1)+1,MID($D$9,3,1)) -> 9.523593338 | F23: 1.230788426 | G23: 1.296891091 | H23: 1.380711192 | I23: 2.057460332 | J23: 2.022973397 | K23: 0 | L23: 0 | M23: 0 | N23: 0 | O23: 0 | P23: 0 | Q23: 0 | R23: 0 | S23: 0 | T23: 0 | U23: 0 | V23: 0 | W23: 0 | X23: 0 | Y23: 0 | Z23: 0 | AA23: 0 | AB23: 0 | AC23: 0 | AD23: 0 | AE23: 0
D24: EL1 | E24: 10.1 | F24: 0 | G24: 0 | H24: 0 | I24: 0 | J24: 0 | K24: 0 | L24: 0 | M24: 0 | N24: 0 | O24: 0 | P24: 0 | Q24: 0 | R24: 0 | S24: 0 | T24: 0 | U24: 0 | V24: 0 | W24: 0 | X24: 0 | Y24: 0 | Z24: 0 | AA24: 0 | AB24: 0 | AC24: 0 | AD24: 0 | AE24: 0
D25: EL2 | E25: 10.6 | F25: 0.5238795104 | G25: 0.55201581 | H25: 0.5876934557 | I25: 0.875748657 | J25: 0.8610694496 | K25: 0 | L25: 0 | M25: 0 | N25: 0 | O25: 0 | P25: 0 | Q25: 0 | R25: 0 | S25: 0 | T25: 0 | U25: 0 | V25: 0 | W25: 0 | X25: 0 | Y25: 0 | Z25: 0 | AA25: 0 | AB25: 0 | AC25: 0 | AD25: 0 | AE25: 0
D26: EL3 | E26: 11.1 | F26: 0.02059302718 | G26: 0.02169902879 | H26: 0.02310147098 | I26: 0.03442454904 | J26: 0.03384752835 | K26: 2.706642385 | L26: 2.543392063 | M26: 2.498160136 | N26: 2.445903887 | O26: 2.377152046 | P26: 2.297109872 | Q26: 2.220980367 | R26: 2.148115752 | S26: 2.07649273 | T26: 2.004201114 | U26: 1.931446527 | V26: 1.858182073 | W26: 1.785358963 | X26: 1.712671549 | Y26: 1.640913917 | Z26: 1.569072946 | AA26: 1.493972847 | AB26: 1.391416215 | AC26: 1.2903684 | AD26: 1.189888032 | AE26: 1.089339677
D27: EL4 | E27: 11.384883 | F27: 0 | G27: 0 | H27: 0 | I27: 0 | J27: 0 | K27: 0 | L27: 0.06346219941 | M27: 0.1313370422 | N27: 0.196646753 | O27: 0.2610342953 | P27: 0.3237704962 | Q27: 0.3863760836 | R27: 0.4490512851 | S27: 0.5116038847 | T27: 0.5735925194 | U27: 0.6349607396 | V27: 0.6955773995 | W27: 0.7557078844 | X27: 0.815198819 | Y27: 0.8744120366 | Z27: 0.9328205385 | AA27: 0.9926996283 | AB27: 1.07999745 | AC27: 1.166905537 | AD27: 1.25268687 | AE27: 1.336411974
D28: EL5 | E28: 11.66560128 | F28: 0 | G28: 0 | H28: 0 | I28: 0 | J28: 0 | K28: 0 | L28: 0 | M28: 0 | N28: 0 | O28: 0 | P28: 0 | Q28: 0 | R28: 0 | S28: 0 | T28: 0 | U28: 0 | V28: 0 | W28: 0 | X28: 0 | Y28: 0 | Z28: 0 | AA28: 0 | AB28: 0 | AC28: 0 | AD28: 0 | AE28: 0
D29: TOTAL | F29: =SUM(F23:F28) -> 1.775260964 | G29: 1.87060593 | H29: 1.991506119 | I29: 2.967633538 | J29: 2.917890375 | K29: 2.706642385 | L29: 2.606854262 | M29: 2.629497178 | N29: 2.64255064 | O29: 2.638186341 | P29: 2.620880368 | Q29: 2.607356451 | R29: 2.597167037 | S29: 2.588096614 | T29: 2.577793633 | U29: 2.566407267 | V29: 2.553759472 | W29: 2.541066847 | X29: 2.527870368 | Y29: 2.515325954 | Z29: 2.501893484 | AA29: 2.486672476 | AB29: 2.471413665 | AC29: 2.457273937 | AD29: 2.442574902 | AE29: 2.425751651
D31: Sources | E31: 2011 DOE Residential Room Air Conditioners Direct Final Rule Government Regulatory Impact Model 'Product Shipments (CALC)' tab.
D35: PC2 - Room ACs without reverse cycle, with louvered sides, and 8,000 to 13,999 Btu/h
D37: PRE-Case
D38: Efficiency Level | E38: CEER | F38: 2009 | G38: 2010 | H38: 2011 | I38: 2012 | J38: 2013 | K38: 2014 | L38: 2015 | M38: 2016 | N38: 2017 | O38: 2018 | P38: 2019 | Q38: 2020 | R38: 2021 | S38: 2022 | T38: 2023 | U38: 2024 | V38: 2025 | W38: 2026 | X38: 2027 | Y38: 2028 | Z38: 2029 | AA38: 2030 | AB38: 2031 | AC38: 2032 | AD38: 2033 | AE38: 2034
D39: EL0 | E39: =INDEX(EFFICIENCY_LEVELS,RIGHT(D39,1)+1,MID($D$35,3,1)) -> 9.686701434 | F39: 1.221544647 | G39: 1.287150851 | H39: 1.370341425 | I39: 2.042007872 | J39: 2.00777995 | K39: 1.925000522 | L39: 1.602358639 | M39: 1.361834033 | N39: 1.112236527 | O39: 0.8538461548 | P39: 0.5927582539 | Q39: 0.3349164225 | R39: 0.07920635625 | S39: 0 | T39: 0 | U39: 0 | V39: 0 | W39: 0 | X39: 0 | Y39: 0 | Z39: 0 | AA39: 0 | AB39: 0 | AC39: 0 | AD39: 0 | AE39: 0
D40: EL1 | E40: 10.2 | F40: 0.08110660815 | G40: 0.08546264762 | H40: 0.09098623229 | I40: 0.1355827089 | J40: 0.1333100857 | K40: 0.1278137998 | L40: 0.3746924342 | M40: 0.6323501417 | N40: 0.891765798 | O40: 1.146765137 | P40: 1.394648636 | Q40: 1.64215494 | R40: 1.890058656 | S40: 1.782451872 | T40: 1.514801857 | U40: 1.248080274 | V40: 0.9825547444 | W40: 0.7189616076 | X40: 0.4572393528 | Y40: 0.1976412972 | Z40: 0 | AA40: 0 | AB40: 0 | AC40: 0 | AD40: 0 | AE40: 0
D41: EL2 | E41: 10.7 | F41: 1.922160673 | G41: 2.025395267 | H41: 2.156299733 | I41: 3.213199971 | J41: 3.159340649 | K41: 3.029083143 | L41: 2.917288727 | M41: 2.942569916 | N41: 2.957057342 | O41: 2.952053614 | P41: 2.932569519 | Q41: 2.917318665 | R41: 2.905799803 | S41: 3.075389629 | T41: 3.323504309 | U41: 3.568658793 | V41: 3.810251564 | W41: 4.049829748 | X41: 4.286593455 | Y41: 4.52245861 | Z41: 4.54473255 | AA41: 3.877812748 | AB41: 3.217077239 | AC41: 2.563869493 | AD41: 1.916027828 | AE41: 1.273188682
D42: EL3 | E42: 10.9 | F42: 0.0468176356 | G42: 0.04933209741 | H42: 0.05252050807 | I42: 0.07826318969 | J42: 0.07695135029 | K42: 0.07377869747 | L42: 0.071055746 | M42: 0.07167151425 | N42: 0.07202438122 | O42: 0.07190250656 | P42: 0.07142793682 | Q42: 0.07105647521 | R42: 0.07077591286 | S42: 0.07052586577 | T42: 0.07024225288 | U42: 0.06992914299 | V42: 0.06958168857 | W42: 0.06923304085 | X42: 0.06887069407 | Y42: 0.06852614117 | Z42: 0.2181274014 | AA42: 0.8558702202 | AB42: 1.48727369 | AC42: 2.113283338 | AD42: 2.732866016 | AE42: 3.343407197
D43: EL4 | E43: 11.5 | F43: 0.01022075143 | G43: 0.01076968324 | H43: 0.01146574472 | I43: 0.01708562592 | J43: 0.01679923844 | K43: 0.01610661705 | L43: 0.0155121699 | M43: 0.01564659818 | N43: 0.01572363252 | O43: 0.01569702608 | P43: 0.01559342283 | Q43: 0.0155123291 | R43: 0.01545107957 | S43: 0.01539649182 | T43: 0.01533457633 | U43: 0.01526622136 | V43: 0.01519036863 | W43: 0.0151142554 | X43: 0.01503515152 | Y43: 0.01495993223 | Z43: 0.01487943752 | AA43: 0.01478828701 | AB43: 0.0146966521 | AC43: 0.01461168374 | AD43: 0.0145234011 | AE43: 0.01442250048
D44: EL5 | E44: 11.9619975 | F44: 0.01516627632 | G44: 0.01598082029 | H44: 0.01701368571 | I44: 0.02535286427 | J44: 0.02492790221 | K44: 0.02390014144 | L44: 0.02301805856 | M44: 0.02321753278 | N44: 0.02333184181 | O44: 0.02329236128 | P44: 0.02313862742 | Q44: 0.02301829479 | R44: 0.02292740839 | S44: 0.02284640722 | T44: 0.02275453262 | U44: 0.02265310266 | V44: 0.022540547 | W44: 0.02242760478 | X44: 0.02231022484 | Y44: 0.02219860911 | Z44: 0.02207916535 | AA44: 0.02194390976 | AB44: 0.02180793537 | AC44: 0.02168185329 | AD44: 0.02155085325 | AE44: 0.02140112974
D45: TOTAL | F45: =SUM(F39:F44) -> 3.297016592 | G45: 3.474091367 | H45: 3.698627329 | I45: 5.511492232 | J45: 5.419109175 | K45: 5.195682921 | L45: 5.003925775 | M45: 5.047289736 | N45: 5.072139523 | O45: 5.0635568 | P45: 5.030136396 | Q45: 5.003977127 | R45: 4.984219215 | S45: 4.966610265 | T45: 4.946637527 | U45: 4.924587534 | V45: 4.900118913 | W45: 4.875566257 | X45: 4.850048878 | Y45: 4.825784589 | Z45: 4.799818555 | AA45: 4.770415165 | AB45: 4.740855516 | AC45: 4.713446368 | AD45: 4.684968098 | AE45: 4.652419509
D47: POST-Case
D48: Efficiency Level | E48: CEER | F48: 2009 | G48: 2010 | H48: 2011 | I48: 2012 | J48: 2013 | K48: 2014 | L48: 2015 | M48: 2016 | N48: 2017 | O48: 2018 | P48: 2019 | Q48: 2020 | R48: 2021 | S48: 2022 | T48: 2023 | U48: 2024 | V48: 2025 | W48: 2026 | X48: 2027 | Y48: 2028 | Z48: 2029 | AA48: 2030 | AB48: 2031 | AC48: 2032 | AD48: 2033 | AE48: 2034
D49: EL0 | E49: =INDEX(EFFICIENCY_LEVELS,RIGHT(D49,1)+1,MID($D$35,3,1)) -> 9.686701434 | F49: 1.221544647 | G49: 1.287150851 | H49: 1.370341425 | I49: 2.042007872 | J49: 2.00777995 | K49: 0 | L49: 0 | M49: 0 | N49: 0 | O49: 0 | P49: 0 | Q49: 0 | R49: 0 | S49: 0 | T49: 0 | U49: 0 | V49: 0 | W49: 0 | X49: 0 | Y49: 0 | Z49: 0 | AA49: 0 | AB49: 0 | AC49: 0 | AD49: 0 | AE49: 0
D50: EL1 | E50: 10.2 | F50: 0.08110660815 | G50: 0.08546264762 | H50: 0.09098623229 | I50: 0.1355827089 | J50: 0.1333100857 | K50: 0 | L50: 0 | M50: 0 | N50: 0 | O50: 0 | P50: 0 | Q50: 0 | R50: 0 | S50: 0 | T50: 0 | U50: 0 | V50: 0 | W50: 0 | X50: 0 | Y50: 0 | Z50: 0 | AA50: 0 | AB50: 0 | AC50: 0 | AD50: 0 | AE50: 0
D51: EL2 | E51: 10.7 | F51: 1.922160673 | G51: 2.025395267 | H51: 2.156299733 | I51: 3.213199971 | J51: 3.159340649 | K51: 0 | L51: 0 | M51: 0 | N51: 0 | O51: 0 | P51: 0 | Q51: 0 | R51: 0 | S51: 0 | T51: 0 | U51: 0 | V51: 0 | W51: 0 | X51: 0 | Y51: 0 | Z51: 0 | AA51: 0 | AB51: 0 | AC51: 0 | AD51: 0 | AE51: 0
D52: EL3 | E52: 10.9 | F52: 0.0468176356 | G52: 0.04933209741 | H52: 0.05252050807 | I52: 0.07826318969 | J52: 0.07695135029 | K52: 5.117969092 | L52: 4.833929083 | M52: 4.826673651 | N52: 4.800925155 | O52: 4.743249006 | P52: 4.662593865 | Q52: 4.589130625 | R52: 4.521866641 | S52: 4.426815802 | T52: 4.316571759 | U52: 4.205068657 | V52: 4.092140696 | W52: 3.979832726 | X52: 3.867450136 | Y52: 3.756777137 | Z52: 3.644374455 | AA52: 3.526515568 | AB52: 3.409482863 | AC52: 3.294902154 | AD52: 3.180461462 | AE52: 3.064252547
D53: EL4 | E53: 11.5 | F53: 0.01022075143 | G53: 0.01076968324 | H53: 0.01146574472 | I53: 0.01708562592 | J53: 0.01679923844 | K53: 0.01598881809 | L53: 0.1096440664 | M53: 0.1597624542 | N53: 0.2100832779 | O53: 0.259302285 | P53: 0.3069616912 | Q53: 0.3546026498 | R53: 0.4023684689 | S53: 0.4800574276 | T53: 0.570609963 | U53: 0.6603689331 | V53: 0.7491628095 | W53: 0.8372532725 | X53: 0.9244647985 | Y53: 1.011204401 | Z53: 1.097992409 | AA53: 1.186841559 | AB53: 1.274709625 | AC53: 1.36225 | AD53: 1.448593521 | AE53: 1.532682996
D54: EL5 | E54: 11.9619975 | F54: 0.01516627632 | G54: 0.01598082029 | H54: 0.01701368571 | I54: 0.02535286427 | J54: 0.02492790221 | K54: 0.02372534297 | L54: 0.02284552591 | M54: 0.02304360667 | N54: 0.02315716174 | O54: 0.0231180791 | P54: 0.0229655973 | Q54: 0.02284626589 | R54: 0.02275615984 | S54: 0.02267592612 | T54: 0.02258492658 | U54: 0.02248444135 | V54: 0.02237291152 | W54: 0.02226099617 | X54: 0.0221446742 | Y54: 0.0220340718 | Z54: 0.02191569979 | AA54: 0.02178163832 | AB54: 0.02164686101 | AC54: 0.02152190065 | AD54: 0.02139205639 | AE54: 0.02124362417
D55: TOTAL | F55: =SUM(F49:F54) -> 3.297016592 | G55: 3.474091367 | H55: 3.698627329 | I55: 5.511492232 | J55: 5.419109175 | K55: 5.157683253 | L55: 4.966418676 | M55: 5.009479712 | N55: 5.034165595 | O55: 5.02566937 | P55: 4.992521153 | Q55: 4.966579541 | R55: 4.94699127 | S55: 4.929549156 | T55: 4.909766649 | U55: 4.887922032 | V55: 4.863676417 | W55: 4.839346994 | X55: 4.814059609 | Y55: 4.79001561 | Z55: 4.764282564 | AA55: 4.735138765 | AB55: 4.705839349 | AC55: 4.678674055 | AD55: 4.65044704 | AE55: 4.618179167
D57: Sources | E57: 2011 DOE Residential Room Air Conditioners Direct Final Rule Government Regulatory Impact Model 'Product Shipments (CALC)' tab.
D61: PC3 - Rooms ACs without reverse cycle, with louvered sides, and 20,000 to 24,999 Btu/h
D63: PRE-Case
D64: Efficiency Level | E64: CEER | F64: 2009 | G64: 2010 | H64: 2011 | I64: 2012 | J64: 2013 | K64: 2014 | L64: 2015 | M64: 2016 | N64: 2017 | O64: 2018 | P64: 2019 | Q64: 2020 | R64: 2021 | S64: 2022 | T64: 2023 | U64: 2024 | V64: 2025 | W64: 2026 | X64: 2027 | Y64: 2028 | Z64: 2029 | AA64: 2030 | AB64: 2031 | AC64: 2032 | AD64: 2033 | AE64: 2034
D65: EL0 | E65: =INDEX(EFFICIENCY_LEVELS,RIGHT(D65,1)+1,MID($D$61,3,1)) -> 8.471353412 | F65: 0.01565743437 | G65: 0.01649835725 | H65: 0.0175646719 | I65: 0.02617391375 | J65: 0.02573518935 | K65: 0.02467414467 | L65: 0.01585626067 | M65: 0.007997972461 | N65: 0 | O65: 0 | P65: 0 | Q65: 0 | R65: 0 | S65: 0 | T65: 0 | U65: 0 | V65: 0 | W65: 0 | X65: 0 | Y65: 0 | Z65: 0 | AA65: 0 | AB65: 0 | AC65: 0 | AD65: 0 | AE65: 0
D66: EL1 | E66: =INDEX(EFFICIENCY_LEVELS,RIGHT(D66,1)+1,MID($D$61,3,1)) -> 9 | F66: 0.001777907007 | G66: 0.001873394086 | H66: 0.001994474477 | I66: 0.002972056823 | J66: 0.002922239517 | K66: 0.002801757532 | L66: 0.010605588 | M66: 0.01869319428 | N66: 0.0267990499 | O66: 0.01609932547 | P66: 0.00538255074 | Q66: 0 | R66: 0 | S66: 0 | T66: 0 | U66: 0 | V66: 0 | W66: 0 | X66: 0 | Y66: 0 | Z66: 0 | AA66: 0 | AB66: 0 | AC66: 0 | AD66: 0 | AE66: 0
D67: EL2 | E67: =INDEX(EFFICIENCY_LEVELS,RIGHT(D67,1)+1,MID($D$61,3,1)) -> 9.4 | F67: 0.09631514891 | G67: 0.1014880023 | H67: 0.1080473307 | I67: 0.161006225 | J67: 0.1583074555 | K67: 0.1517805447 | L67: 0.1461787779 | M67: 0.1474455615 | N67: 0.1481950217 | O67: 0.1585986333 | P67: 0.1681623694 | Q67: 0.1674152326 | R67: 0.1561879102 | S67: 0.1450808223 | T67: 0.1339582735 | U67: 0.122842773 | V67: 0.1117401337 | W67: 0.1007144445 | X67: 0.08975027901 | Y67: 0.07889046741 | Z67: 0.06808531251 | AA67: 0.05732535476 | AB67: 0.04666566171 | AC67: 0.03612534888 | AD67: 0.0256730985 | AE67: 0.01530644491
D68: EL3 | E68: =INDEX(EFFICIENCY_LEVELS,RIGHT(D68,1)+1,MID($D$61,3,1)) -> 9.8 | F68: 0.002299426395 | G68: 0.002422923017 | H68: 0.002579520324 | I68: 0.003843860158 | J68: 0.003779429776 | K68: 0.003623606408 | L68: 0.003489869913 | M68: 0.003520113084 | N68: 0.003537443982 | O68: 0.003531458164 | P68: 0.003508149892 | Q68: 0.00871707148 | R68: 0.01924894566 | S68: 0.02973622562 | T68: 0.04015576469 | U68: 0.05049513934 | V68: 0.06073652083 | W68: 0.07089799421 | X68: 0.08096398723 | Y68: 0.09096973316 | Z68: 0.1008609235 | AA68: 0.1105859272 | AB68: 0.120205166 | AC68: 0.129780719 | AD68: 0.139230578 | AE68: 0.1484515713
D69: EL4 | E69: =INDEX(EFFICIENCY_LEVELS,RIGHT(D69,1)+1,MID($D$61,3,1)) -> 10.15444763 | F69: 0.002477217096 | G69: 0.002610262426 | H69: 0.002778967772 | I69: 0.00414106584 | J69: 0.004071653727 | K69: 0.003903782162 | L69: 0.003759705216 | M69: 0.003792286776 | N69: 0.003810957692 | O69: 0.003804509053 | P69: 0.003779398595 | Q69: 0.0037597438 | R69: 0.003744898671 | S69: 0.003731668166 | T69: 0.003716661627 | U69: 0.00370009434 | V69: 0.003681709815 | W69: 0.003663262149 | X69: 0.003644089638 | Y69: 0.003625858638 | Z69: 0.003606349028 | AA69: 0.003584256759 | AB69: 0.003562047083 | AC69: 0.003541453189 | AD69: 0.00352005601 | AE69: 0.003495600591
D70: TOTAL | F70: =SUM(F65:F69) -> 0.1185271338 | G70: =SUM(G65:G69) -> 0.124892939 | H70: 0.1329649652 | I70: 0.1981371215 | J70: 0.1948159678 | K70: 0.1867838355 | L70: 0.1798902017 | M70: 0.1814491281 | N70: 0.1823424733 | O70: 0.182033926 | P70: 0.1808324687 | Q70: 0.1798920478 | R70: 0.1791817546 | S70: 0.1785487161 | T70: 0.1778306999 | U70: 0.1770380067 | V70: 0.1761583643 | W70: 0.1752757009 | X70: 0.1743583559 | Y70: 0.1734860592 | Z70: 0.1725525851 | AA70: 0.1714955387 | AB70: 0.1704328748 | AC70: 0.169447521 | AD70: 0.1684237325 | AE70: 0.1672536168
D72: POST-Case
D73: Efficiency Level | E73: CEER | F73: 2009 | G73: 2010 | H73: 2011 | I73: 2012 | J73: 2013 | K73: 2014 | L73: 2015 | M73: 2016 | N73: 2017 | O73: 2018 | P73: 2019 | Q73: 2020 | R73: 2021 | S73: 2022 | T73: 2023 | U73: 2024 | V73: 2025 | W73: 2026 | X73: 2027 | Y73: 2028 | Z73: 2029 | AA73: 2030 | AB73: 2031 | AC73: 2032 | AD73: 2033 | AE73: 2034
D74: =D65 -> EL0 | E74: =E65 -> 8.471353412 | F74: 0.01565743437 | G74: 0.01649835725 | H74: 0.0175646719 | I74: 0.02617391375 | J74: 0.02573518935 | K74: 0 | L74: 0 | M74: 0 | N74: 0 | O74: 0 | P74: 0 | Q74: 0 | R74: 0 | S74: 0 | T74: 0 | U74: 0 | V74: 0 | W74: 0 | X74: 0 | Y74: 0 | Z74: 0 | AA74: 0 | AB74: 0 | AC74: 0 | AD74: 0 | AE74: 0
D75: =D66 -> EL1 | E75: 9 | F75: 0.001777907007 | G75: 0.001873394086 | H75: 0.001994474477 | I75: 0.002972056823 | J75: 0.002922239517 | K75: 0 | L75: 0 | M75: 0 | N75: 0 | O75: 0 | P75: 0 | Q75: 0 | R75: 0 | S75: 0 | T75: 0 | U75: 0 | V75: 0 | W75: 0 | X75: 0 | Y75: 0 | Z75: 0 | AA75: 0 | AB75: 0 | AC75: 0 | AD75: 0 | AE75: 0
D76: EL2 | E76: 9.4 | F76: 0.09631514891 | G76: 0.1014880023 | H76: 0.1080473307 | I76: 0.161006225 | J76: 0.1583074555 | K76: 0.1789533164 | L76: 0.1540677616 | M76: 0.1527855582 | N76: 0.1508992264 | O76: 0.1472233571 | P76: 0.1428451848 | Q76: 0.1351739078 | R76: 0.1241097562 | S76: 0.1131515999 | T76: 0.1021927715 | U76: 0.0912538937 | V76: 0.08034292504 | W76: 0.06950896355 | X76: 0.0587422141 | Y76: 0.04807132569 | Z76: 0.03746548006 | AA76: 0.02692624484 | AB76: 0.01648773314 | AC76: 0.006154392438 | AD76: 0.001835602925 | AE76: 2.179655746e-05
D77: EL3 | E77: 9.8 | F77: 0.002299426395 | G77: 0.002422923017 | H77: 0.002579520324 | I77: 0.003843860158 | J77: 0.003779429776 | K77: 0.003617478731 | L77: 0.02148325247 | M77: 0.02428724168 | N77: 0.02704583809 | O77: 0.03042120393 | P77: 0.03362748852 | Q77: 0.04038223233 | R77: 0.05075504696 | S77: 0.06109723881 | T77: 0.07135715067 | U77: 0.08152421022 | V77: 0.09157847973 | W77: 0.101552769 | X77: 0.1114259736 | Y77: 0.1212472583 | Z77: 0.1309437677 | AA77: 0.1404530352 | AB77: 0.1498560691 | AC77: 0.1592293606 | AD77: 0.1626537786 | AE77: 0.1634713645
D78: EL4 | E78: 10.15444763 | F78: 0.002477217096 | G78: 0.002610262426 | H78: 0.002778967772 | I78: 0.00414106584 | J78: 0.004071653727 | K78: 0.003897180694 | L78: 0.003747335506 | M78: 0.00377981975 | N78: 0.003798439228 | O78: 0.003792024639 | P78: 0.003767009368 | Q78: 0.003747444928 | R78: 0.003732687555 | S78: 0.003719539096 | T78: 0.003704619929 | U78: 0.003688144594 | V78: 0.003669857379 | W78: 0.003651506701 | X78: 0.003632432973 | Y78: 0.003614297217 | Z78: 0.003594886403 | AA78: 0.003572900576 | AB78: 0.003550797127 | AC78: 0.003530303788 | AD78: 0.003511212414 | AE78: 0.003489946957
D79: TOTAL | F79: =SUM(F74:F78) -> 0.1185271338 | G79: 0.124892939 | H79: 0.1329649652 | I79: 0.1981371215 | J79: 0.1948159678 | K79: 0.1864679758 | L79: 0.1792983496 | M79: 0.1808526196 | N79: 0.1817435038 | O79: 0.1814365856 | P79: 0.1802396827 | Q79: 0.1793035851 | R79: 0.1785974907 | S79: 0.1779683778 | T79: 0.1772545421 | U79: 0.1764662485 | V79: 0.1755912621 | W79: 0.1747132393 | X79: 0.1738006207 | Y79: 0.1729328812 | Z79: 0.1720041341 | AA79: 0.1709521806 | AB79: 0.1698945994 | AC79: 0.1689140568 | AD79: 0.168000594 | AE79: 0.166983108
D81: Sources | E81: 2011 DOE Residential Room Air Conditioners Direct Final Rule Government Regulatory Impact Model 'Product Shipments (CALC)' tab.
D85: PC4 - Rooms ACs without reverse cycle, with louvered sides, and 25,000 Btu/h or more
D87: PRE-Case
D88: Efficiency Level | E88: CEER | F88: 2009 | G88: 2010 | H88: 2011 | I88: 2012 | J88: 2013 | K88: 2014 | L88: 2015 | M88: 2016 | N88: 2017 | O88: 2018 | P88: 2019 | Q88: 2020 | R88: 2021 | S88: 2022 | T88: 2023 | U88: 2024 | V88: 2025 | W88: 2026 | X88: 2027 | Y88: 2028 | Z88: 2029 | AA88: 2030 | AB88: 2031 | AC88: 2032 | AD88: 2033 | AE88: 2034
D89: EL0 | E89: =INDEX(EFFICIENCY_LEVELS,RIGHT(D89,1)+1,MID($D$85,3,1)) -> 8.475433955 | F89: 0.009657145529 | G89: 0.01017580742 | H89: 0.01083348578 | I89: 0.01614346822 | J89: 0.01587287309 | K89: 0.01521844513 | L89: 0.009454993527 | M89: 0.004276950407 | N89: 0 | O89: 0 | P89: 0 | Q89: 0 | R89: 0 | S89: 0 | T89: 0 | U89: 0 | V89: 0 | W89: 0 | X89: 0 | Y89: 0 | Z89: 0 | AA89: 0 | AB89: 0 | AC89: 0 | AD89: 0 | AE89: 0
D90: EL1 | E90: =INDEX(EFFICIENCY_LEVELS,RIGHT(D90,1)+1,MID($D$85,3,1)) -> 9 | F90: 0.001753024008 | G90: 0.001847174681 | H90: 0.001966560472 | I90: 0.002930460898 | J90: 0.002881340819 | K90: 0.00276254506 | L90: 0.007862371992 | M90: 0.01319048719 | N90: 0.016235044 | O90: 0.00922153245 | P90: 0.002203388231 | Q90: 0 | R90: 0 | S90: 0 | T90: 0 | U90: 0 | V90: 0 | W90: 0 | X90: 0 | Y90: 0 | Z90: 0 | AA90: 0 | AB90: 0 | AC90: 0 | AD90: 0 | AE90: 0
D91: EL2 | E91: =INDEX(EFFICIENCY_LEVELS,RIGHT(D91,1)+1,MID($D$85,3,1)) -> 9.4 | F91: 0.06615726443 | G91: 0.06971041086 | H91: 0.07421590381 | I91: 0.1105924823 | J91: 0.1087387427 | K91: 0.1042555169 | L91: 0.100407757 | M91: 0.1012778894 | N91: 0.1030949128 | O91: 0.1099065025 | P91: 0.1161383798 | Q91: 0.1130013648 | R91: 0.1056556421 | S91: 0.09839001146 | T91: 0.09111254539 | U91: 0.08383815274 | V91: 0.07657037791 | W91: 0.06935278793 | X91: 0.06217466136 | Y91: 0.0550655978 | Z91: 0.04799097124 | AA91: 0.04094332735 | AB91: 0.03396103896 | AC91: 0.02705828592 | AD91: 0.0202122487 | AE91: 0.01341910828
D92: EL3 | E92: =INDEX(EFFICIENCY_LEVELS,RIGHT(D92,1)+1,MID($D$85,3,1)) -> 9.8 | F92: 0 | G92: 0 | H92: 0 | I92: 0 | J92: 0 | K92: 0 | L92: 0 | M92: 0 | N92: 0 | O92: 0 | P92: 0 | Q92: 0.004724965883 | R92: 0.01160585296 | S92: 0.01845720575 | T92: 0.02526478214 | U92: 0.03202041448 | V92: 0.038712527 | W92: 0.04535247763 | X92: 0.05193026825 | Y92: 0.05846847674 | Z92: 0.06493221202 | AA92: 0.07128809554 | AB92: 0.07757494728 | AC92: 0.08383285755 | AD92: 0.09000889927 | AE92: 0.0960362836
D93: TOTAL | F93: =SUM(F89:F92) -> 0.07756743397 | G93: 0.08173339296 | H93: 0.08701595007 | I93: 0.1296664114 | J93: 0.1274929566 | K93: 0.1222365071 | L93: 0.1177251225 | M93: 0.118745327 | N93: 0.1193299568 | O93: 0.1191280349 | P93: 0.118341768 | Q93: 0.1177263306 | R93: 0.1172614951 | S93: 0.1168472172 | T93: 0.1163773275 | U93: 0.1158585672 | V93: 0.1152829049 | W93: 0.1147052656 | X93: 0.1141049296 | Y93: 0.1135340745 | Z93: 0.1129231833 | AA93: 0.1122314229 | AB93: 0.1115359862 | AC93: 0.1108911435 | AD93: 0.110221148 | AE93: 0.1094553919
D95: POST-Case
D96: Efficiency Level | E96: CEER | F96: 2009 | G96: 2010 | H96: 2011 | I96: 2012 | J96: 2013 | K96: 2014 | L96: 2015 | M96: 2016 | N96: 2017 | O96: 2018 | P96: 2019 | Q96: 2020 | R96: 2021 | S96: 2022 | T96: 2023 | U96: 2024 | V96: 2025 | W96: 2026 | X96: 2027 | Y96: 2028 | Z96: 2029 | AA96: 2030 | AB96: 2031 | AC96: 2032 | AD96: 2033 | AE96: 2034
D97: =D89 -> EL0 | E97: =E89 -> 8.475433955 | F97: 0.009657145529 | G97: 0.01017580742 | H97: 0.01083348578 | I97: 0.01614346822 | J97: 0.01587287309 | K97: 0 | L97: 0 | M97: 0 | N97: 0 | O97: 0 | P97: 0 | Q97: 0 | R97: 0 | S97: 0 | T97: 0 | U97: 0 | V97: 0 | W97: 0 | X97: 0 | Y97: 0 | Z97: 0 | AA97: 0 | AB97: 0 | AC97: 0 | AD97: 0 | AE97: 0
D98: =D90 -> EL1 | E98: 9 | F98: 0.001753024008 | G98: 0.001847174681 | H98: 0.001966560472 | I98: 0.002930460898 | J98: 0.002881340819 | K98: 0.01796245598 | L98: 0.01415140072 | M98: 0.01109069484 | N98: 0.007227102266 | O98: 0.0002360099386 | P98: 0 | Q98: 0 | R98: 0 | S98: 0 | T98: 0 | U98: 0 | V98: 0 | W98: 0 | X98: 0 | Y98: 0 | Z98: 0 | AA98: 0 | AB98: 0 | AC98: 0 | AD98: 0 | AE98: 0
D99: EL2 | E99: 9.4 | F99: 0.06615726443 | G99: 0.06971041086 | H99: 0.07421590381 | I99: 0.1105924823 | J99: 0.1087387427 | K99: 0.1041480538 | L99: 0.1034525051 | M99: 0.1075324966 | N99: 0.1119802793 | O99: 0.1187699439 | P99: 0.1172083693 | Q99: 0.111549873 | R99: 0.1042184542 | S99: 0.09696620896 | T99: 0.08970251887 | U99: 0.08244221164 | V99: 0.07518892937 | W99: 0.06798558421 | X99: 0.06082171047 | Y99: 0.05372629804 | Z99: 0.04666555162 | AA99: 0.03963249577 | AB99: 0.03266460114 | AC99: 0.02577542768 | AD99: 0.01894304442 | AE99: 0.01216444536
D100: EL3 | E100: 9.8 | F100: 0 | G100: 0 | H100: 0 | I100: 0 | J100: 0 | K100: 0 | L100: 0 | M100: 0 | N100: 0 | O100: 0 | P100: 0.001012407653 | Q100: 0.006057447286 | R100: 0.01292629654 | S100: 0.01976641708 | T100: 0.02656236502 | U100: 0.03330604746 | V100: 0.03998579879 | W100: 0.04661358094 | X100: 0.05317916106 | Y100: 0.05970568105 | Z100: 0.06615748385 | AA100: 0.07250074813 | AB100: 0.07877512845 | AC100: 0.08502129043 | AD100: 0.09118548551 | AE100: 0.09720017118
D101: TOTAL | F101: =SUM(F97:F100) -> 0.07756743397 | G101: 0.08173339296 | H101: 0.08701595007 | I101: 0.1296664114 | J101: 0.1274929566 | K101: 0.1221105097 | L101: 0.1176039058 | M101: 0.1186231914 | N101: 0.1192073815 | O101: 0.1190059538 | P101: 0.1182207769 | Q101: 0.1176073202 | R101: 0.1171447508 | S101: 0.116732626 | T101: 0.1162648839 | U101: 0.1157482591 | V101: 0.1151747282 | W101: 0.1145991651 | X101: 0.1140008715 | Y101: 0.1134319791 | Z101: 0.1128230355 | AA101: 0.1121332439 | AB101: 0.1114397296 | AC101: 0.1107967181 | AD101: 0.1101285299 | AE101: 0.1093646165
D103: Sources | E103: 2011 DOE Residential Room Air Conditioners Direct Final Rule Government Regulatory Impact Model 'Product Shipments (CALC)' tab.
D107: PC5 - Room ACs without reverse cycle, without louvered sides, and 8,000 to 10,999 Btu/h
D109: PRE-Case
D110: Efficiency Level | E110: CEER | F110: 2009 | G110: 2010 | H110: 2011 | I110: 2012 | J110: 2013 | K110: 2014 | L110: 2015 | M110: 2016 | N110: 2017 | O110: 2018 | P110: 2019 | Q110: 2020 | R110: 2021 | S110: 2022 | T110: 2023 | U110: 2024 | V110: 2025 | W110: 2026 | X110: 2027 | Y110: 2028 | Z110: 2029 | AA110: 2030 | AB110: 2031 | AC110: 2032 | AD110: 2033 | AE110: 2034
D111: EL0 | E111: =INDEX(EFFICIENCY_LEVELS,RIGHT(D111,1)+1,MID($D$107,3,1)) -> 8.414635625 | F111: 0.02765712013 | G111: 0.02914251706 | H111: 0.03102604355 | I111: 0.04623331382 | J111: 0.04545835585 | K111: 0.04358413818 | L111: 0.0310326933 | M111: 0.0202363126 | N111: 0.00918835593 | O111: 0 | P111: 0 | Q111: 0 | R111: 0 | S111: 0 | T111: 0 | U111: 0 | V111: 0 | W111: 0 | X111: 0 | Y111: 0 | Z111: 0 | AA111: 0 | AB111: 0 | AC111: 0 | AD111: 0 | AE111: 0
D112: EL1 | E112: =INDEX(EFFICIENCY_LEVELS,RIGHT(D112,1)+1,MID($D$107,3,1)) -> 9.3 | F112: 0.1774825102 | G112: 0.187014666 | H112: 0.1991017165 | I112: 0.2966904926 | J112: 0.2917173975 | K112: 0.2796900839 | L112: 0.2803104423 | M112: 0.2938049189 | N112: 0.3063990238 | O112: 0.3091989264 | P112: 0.274368337 | Q112: 0.2402406378 | R112: 0.2066389055 | S112: 0.1732897235 | T112: 0.1400236716 | U112: 0.1068944412 | V112: 0.07393890176 | W112: 0.04122581648 | X112: 0.008756285654 | Y112: 0 | Z112: 0 | AA112: 0 | AB112: 0 | AC112: 0 | AD112: 0 | AE112: 0
D113: EL2 | E113: =INDEX(EFFICIENCY_LEVELS,RIGHT(D113,1)+1,MID($D$107,3,1)) -> 9.6 | F113: 0.05353256255 | G113: 0.05640766682 | H113: 0.06005338261 | I113: 0.08948826748 | J113: 0.0879882745 | K113: 0.08436057667 | L113: 0.08124707962 | M113: 0.08195116584 | N113: 0.08235464358 | O113: 0.08806972699 | P113: 0.1202782704 | Q113: 0.1523536064 | R113: 0.1844052032 | S113: 0.2163728496 | T113: 0.2480719116 | U113: 0.2794711779 | V113: 0.3105069964 | W113: 0.3412937676 | X113: 0.3717612957 | Y113: 0.3610187745 | Z113: 0.3350166034 | AA113: 0.3089922776 | AB113: 0.2831945696 | AC113: 0.2577529515 | AD113: 0.2324759659 | AE113: 0.2072470918
D114: EL3 | E114: =INDEX(EFFICIENCY_LEVELS,RIGHT(D114,1)+1,MID($D$107,3,1)) -> 10 | F114: 0.0101144473 | G114: 0.01065766977 | H114: 0.01134649164 | I114: 0.01690792151 | J114: 0.01662451269 | K114: 0.01593909513 | L114: 0.01535083071 | M114: 0.01548386083 | N114: 0.01556009395 | O114: 0.01553376424 | P114: 0.01543123854 | Q114: 0.01535098825 | R114: 0.01529037577 | S114: 0.01523635578 | T114: 0.01517508426 | U114: 0.01510744023 | V114: 0.01503237644 | W114: 0.01495705484 | X114: 0.01487877371 | Y114: 0.03239945384 | Z114: 0.05628476471 | AA114: 0.07991200271 | AB114: 0.1032998839 | AC114: 0.1265069932 | AD114: 0.1494623106 | AE114: 0.172037687
D115: EL4 | E115: =INDEX(EFFICIENCY_LEVELS,RIGHT(D115,1)+1,MID($D$107,3,1)) -> 10.35461976 | F115: 0.005317622701 | G115: 0.005603219336 | H115: 0.005965364171 | I115: 0.008889259545 | J115: 0.008740258706 | K115: 0.008379903673 | L115: 0.008070626445 | M115: 0.008140566397 | N115: 0.008180645599 | O115: 0.008166802877 | P115: 0.008112900479 | Q115: 0.008070709269 | R115: 0.008038842544 | S115: 0.008010441792 | T115: 0.007978228582 | U115: 0.007942665054 | V115: 0.007903200619 | W115: 0.007863600648 | X115: 0.007822444716 | Y115: 0.007783309841 | Z115: 0.007741430289 | AA115: 0.00769400677 | AB115: 0.007646331225 | AC115: 0.007602124135 | AD115: 0.007556192703 | AE115: 0.00750369642
D116: TOTAL | F116: =SUM(F111:F115) -> 0.2741042629 | G116: 0.288825739 | H116: 0.3074929985 | I116: 0.4582092549 | J116: 0.4505287993 | K116: 0.4319537976 | L116: 0.4160116724 | M116: 0.4196168246 | N116: 0.4216827628 | O116: 0.4209692205 | P116: 0.4181907464 | Q116: 0.4160159417 | R116: 0.414373327 | S116: 0.4129093707 | T116: 0.411248896 | U116: 0.4094157244 | V116: 0.4073814752 | W116: 0.4053402396 | X116: 0.4032187998 | Y116: 0.4012015382 | Z116: 0.3990427984 | AA116: 0.3965982871 | AB116: 0.3941407848 | AC116: 0.3918620688 | AD116: 0.3894944692 | AE116: 0.3867884753
D118: POST-Case
D119: Efficiency Level | E119: CEER | F119: 2009 | G119: 2010 | H119: 2011 | I119: 2012 | J119: 2013 | K119: 2014 | L119: 2015 | M119: 2016 | N119: 2017 | O119: 2018 | P119: 2019 | Q119: 2020 | R119: 2021 | S119: 2022 | T119: 2023 | U119: 2024 | V119: 2025 | W119: 2026 | X119: 2027 | Y119: 2028 | Z119: 2029 | AA119: 2030 | AB119: 2031 | AC119: 2032 | AD119: 2033 | AE119: 2034
D120: EL0 | E120: =INDEX(EFFICIENCY_LEVELS,RIGHT(D120,1)+1,MID($D$107,3,1)) -> 8.414635625 | F120: 0.02765712013 | G120: 0.02914251706 | H120: 0.03102604355 | I120: 0.04623331382 | J120: 0.04545835585 | K120: 0 | L120: 0 | M120: 0 | N120: 0 | O120: 0 | P120: 0 | Q120: 0 | R120: 0 | S120: 0 | T120: 0 | U120: 0 | V120: 0 | W120: 0 | X120: 0 | Y120: 0 | Z120: 0 | AA120: 0 | AB120: 0 | AC120: 0 | AD120: 0 | AE120: 0
D121: EL1 | E121: =INDEX(EFFICIENCY_LEVELS,RIGHT(D121,1)+1,MID($D$107,3,1)) -> 9.3 | F121: 0.1774825102 | G121: 0.187014666 | H121: 0.1991017165 | I121: 0.2966904926 | J121: 0.2917173975 | K121: 0 | L121: 0 | M121: 0 | N121: 0 | O121: 0 | P121: 0 | Q121: 0 | R121: 0 | S121: 0 | T121: 0 | U121: 0 | V121: 0 | W121: 0 | X121: 0 | Y121: 0 | Z121: 0 | AA121: 0 | AB121: 0 | AC121: 0 | AD121: 0 | AE121: 0
D122: EL2 | E122: =INDEX(EFFICIENCY_LEVELS,RIGHT(D122,1)+1,MID($D$107,3,1)) -> 9.6 | F122: 0.05353256255 | G122: 0.05640766682 | H122: 0.06005338261 | I122: 0.08948826748 | J122: 0.0879882745 | K122: 0.4067961414 | L122: 0.3353281507 | M122: 0.3331296842 | N122: 0.3296274283 | O122: 0.3236226519 | P122: 0.3146784104 | Q122: 0.3062521018 | R122: 0.2982629419 | S122: 0.290436296 | T122: 0.2825057842 | U122: 0.2744972349 | V122: 0.2664008141 | W122: 0.2583504083 | X122: 0.2503011258 | Y122: 0.2297034951 | Z122: 0.204488009 | AA122: 0.1793428355 | AB122: 0.1544274583 | AC122: 0.129808727 | AD122: 0.1053826349 | AE122: 0.08111397519
D123: EL3 | E123: =INDEX(EFFICIENCY_LEVELS,RIGHT(D123,1)+1,MID($D$107,3,1)) -> 10 | F123: 0.0101144473 | G123: 0.01065766977 | H123: 0.01134649164 | I123: 0.01690792151 | J123: 0.01662451269 | K123: 0.01590630245 | L123: 0.07126544902 | M123: 0.07698794594 | N123: 0.08250987014 | O123: 0.08781778389 | P123: 0.09404710175 | Q123: 0.100348486 | R123: 0.106732862 | S123: 0.1131293351 | T123: 0.1194375989 | U123: 0.1256551065 | V123: 0.1317639523 | W123: 0.1378199493 | X123: 0.1437964275 | Y123: 0.1624242828 | Z123: 0.1855321422 | AA123: 0.2082903502 | AB123: 0.2308060341 | AC123: 0.2531997884 | AD123: 0.275313999 | AE123: 0.2969399951
D124: EL4 | E124: =INDEX(EFFICIENCY_LEVELS,RIGHT(D124,1)+1,MID($D$107,3,1)) -> 10.35461976 | F124: 0.005317622701 | G124: 0.005603219336 | H124: 0.005965364171 | I124: 0.008889259545 | J124: 0.008740258706 | K124: 0.008362663074 | L124: 0.00804396883 | M124: 0.008113687562 | N124: 0.008153644289 | O124: 0.008139857693 | P124: 0.008086146171 | Q124: 0.008044107081 | R124: 0.008012358346 | S124: 0.007984064088 | T124: 0.007951969847 | U124: 0.007916536226 | V124: 0.007877214429 | W124: 0.007837757431 | X124: 0.007796749474 | Y124: 0.007757779819 | Z124: 0.007716082944 | AA124: 0.007668859682 | AB124: 0.007621384614 | AC124: 0.0075773661 | AD124: 0.007531628286 | AE124: 0.007479346342
D125: TOTAL | F125: =SUM(F120:F124) -> 0.2741042629 | G125: 0.288825739 | H125: 0.3074929985 | I125: 0.4582092549 | J125: 0.4505287993 | K125: 0.4310651069 | L125: 0.4146375686 | M125: 0.4182313177 | N125: 0.4202909427 | O125: 0.4195802935 | P125: 0.4168116583 | Q125: 0.4146446949 | R125: 0.4130081622 | S125: 0.4115496952 | T125: 0.409895353 | U125: 0.4080688776 | V125: 0.4060419809 | W125: 0.404008115 | X125: 0.4018943028 | Y125: 0.3998855577 | Z125: 0.3977362342 | AA125: 0.3953020454 | AB125: 0.392854877 | AC125: 0.3905858814 | AD125: 0.3882282622 | AE125: 0.3855333166
D127: Sources | E127: 2011 DOE Residential Room Air Conditioners Direct Final Rule Government Regulatory Impact Model 'Product Shipments (CALC)' tab.
D131: PC6 - Room ACs without reverse cycle, without louvered sides, and 11,000 to 13,999 Btu/h
D133: PRE-Case
D134: Efficiency Level | E134: CEER | F134: 2009 | G134: 2010 | H134: 2011 | I134: 2012 | J134: 2013 | K134: 2014 | L134: 2015 | M134: 2016 | N134: 2017 | O134: 2018 | P134: 2019 | Q134: 2020 | R134: 2021 | S134: 2022 | T134: 2023 | U134: 2024 | V134: 2025 | W134: 2026 | X134: 2027 | Y134: 2028 | Z134: 2029 | AA134: 2030 | AB134: 2031 | AC134: 2032 | AD134: 2033 | AE134: 2034
D135: EL0 | E135: =INDEX(EFFICIENCY_LEVELS,RIGHT(D135,1)+1,MID($D$131,3,1)) -> 8.442899265 | F135: 0.02457153264 | G135: 0.02589121014 | H135: 0.02756459957 | I135: 0.04107525925 | J135: 0.04038676005 | K135: 0.03872164089 | L135: 0.003159625526 | M135: 0.01730732192 | N135: 0.007150060158 | O135: 0 | P135: 0 | Q135: 0 | R135: 0 | S135: 0 | T135: 0 | U135: 0 | V135: 0 | W135: 0 | X135: 0 | Y135: 0 | Z135: 0 | AA135: 0 | AB135: 0 | AC135: 0 | AD135: 0 | AE135: 0
D136: EL1 | E136: =INDEX(EFFICIENCY_LEVELS,RIGHT(D136,1)+1,MID($D$131,3,1)) -> 9.3 | F136: 0.1444825601 | G136: 0.1522423684 | H136: 0.162082031 | I136: 0.2415257811 | J136: 0.2374773512 | K136: 0.2276863185 | L136: 0.2534160114 | M136: 0.2414917964 | N136: 0.2529232278 | O136: 0.2462935408 | P136: 0.2009193733 | Q136: 0.1562446175 | R136: 0.112061448 | S136: 0.06814468096 | T136: 0.02441643342 | U136: 0 | V136: 0 | W136: 0 | X136: 0 | Y136: 0 | Z136: 0 | AA136: 0 | AB136: 0 | AC136: 0 | AD136: 0 | AE136: 0
D137: EL2 | E137: =INDEX(EFFICIENCY_LEVELS,RIGHT(D137,1)+1,MID($D$131,3,1)) -> 9.5 | F137: 0.03243734537 | G137: 0.03417947662 | H137: 0.03638854968 | I137: 0.05422422728 | J137: 0.05331532645 | K137: 0.05111717113 | L137: 0.04923058894 | M137: 0.04965722063 | N137: 0.04990170261 | O137: 0.06315693151 | P137: 0.1064886692 | Q137: 0.1495647467 | R137: 0.1925404458 | S137: 0.2353810724 | T137: 0.2778887208 | U137: 0.2882502299 | V137: 0.2579773047 | W137: 0.2279167401 | X137: 0.1980349691 | Y137: 0.1684274679 | Z137: 0.1389872804 | AA137: 0.1097058201 | AB137: 0.08070153108 | AC137: 0.05200381044 | AD137: 0.02355887987 | AE137: 0
D138: EL3 | E138: =INDEX(EFFICIENCY_LEVELS,RIGHT(D138,1)+1,MID($D$131,3,1)) -> 9.8 | F138: 0.04203217575 | G138: 0.0442896221 | H138: 0.04715212969 | I138: 0.07026352574 | J138: 0.06908577587 | K138: 0.06623741544 | L138: 0.06379279017 | M138: 0.06434561773 | N138: 0.06466241644 | O138: 0.06455299919 | P138: 0.06412693754 | Q138: 0.06379344484 | R138: 0.06354156015 | S138: 0.06331707159 | T138: 0.06306244817 | U138: 0.07548872007 | V138: 0.1039543486 | W138: 0.1322014096 | X138: 0.1601984208 | Y138: 0.1880137177 | Z138: 0.2155360069 | AA138: 0.2426456796 | AB138: 0.2694666395 | AC138: 0.2961398708 | AD138: 0.3224813448 | AE138: 0.3373752068
D139: EL4 | E139: =INDEX(EFFICIENCY_LEVELS,RIGHT(D139,1)+1,MID($D$131,3,1)) -> 10.02089037 | F139: 0 | G139: 0 | H139: 0 | I139: 0 | J139: 0 | K139: 0 | L139: 0 | M139: 0 | N139: 0 | O139: 0 | P139: 0 | Q139: 0 | R139: 0 | S139: 0 | T139: 0 | U139: 0 | V139: 0 | W139: 0 | X139: 0 | Y139: 0 | Z139: 0 | AA139: 0 | AB139: 0 | AC139: 0 | AD139: 0 | AE139: 0.006260920217
D140: TOTAL | F140: =SUM(F135:F139) -> 0.2435236139 | G140: 0.2566026773 | H140: 0.2731873099 | I140: 0.4070887934 | J140: 0.4002652136 | K140: 0.383762546 | L140: 0.369599016 | M140: 0.3728019567 | N140: 0.374637407 | O140: 0.3740034715 | P140: 0.37153498 | Q140: 0.3696028091 | R140: 0.3681434539 | S140: 0.366842825 | T140: 0.3653676024 | U140: 0.36373895 | V140: 0.3619316533 | W140: 0.3601181497 | X140: 0.3582333899 | Y140: 0.3564411856 | Z140: 0.3545232873 | AA140: 0.3523514997 | AB140: 0.3501681705 | AC140: 0.3481436812 | AD140: 0.3460402247 | AE140: 0.343636127
D142: POST-Case
D143: Efficiency Level | E143: CEER | F143: 2009 | G143: 2010 | H143: 2011 | I143: 2012 | J143: 2013 | K143: 2014 | L143: 2015 | M143: 2016 | N143: 2017 | O143: 2018 | P143: 2019 | Q143: 2020 | R143: 2021 | S143: 2022 | T143: 2023 | U143: 2024 | V143: 2025 | W143: 2026 | X143: 2027 | Y143: 2028 | Z143: 2029 | AA143: 2030 | AB143: 2031 | AC143: 2032 | AD143: 2033 | AE143: 2034
D144: =D135 -> EL0 | E144: =E135 -> 8.442899265 | F144: 0.02457153264 | G144: 0.02589121014 | H144: 0.02756459957 | I144: 0.04107525925 | J144: 0.04038676005 | K144: 0 | L144: 0 | M144: 0 | N144: 0 | O144: 0 | P144: 0 | Q144: 0 | R144: 0 | S144: 0 | T144: 0 | U144: 0 | V144: 0 | W144: 0 | X144: 0 | Y144: 0 | Z144: 0 | AA144: 0 | AB144: 0 | AC144: 0 | AD144: 0 | AE144: 0
D145: =D136 -> EL1 | E145: 9.3 | F145: 0.1444825601 | G145: 0.1522423684 | H145: 0.162082031 | I145: 0.2415257811 | J145: 0.2374773512 | K145: 0 | L145: 0 | M145: 0 | N145: 0 | O145: 0 | P145: 0 | Q145: 0 | R145: 0 | S145: 0 | T145: 0 | U145: 0 | V145: 0 | W145: 0 | X145: 0 | Y145: 0 | Z145: 0 | AA145: 0 | AB145: 0 | AC145: 0 | AD145: 0 | AE145: 0
D146: EL2 | E146: 9.5 | F146: 0.03243734537 | G146: 0.03417947662 | H146: 0.03638854968 | I146: 0.05422422728 | J146: 0.05331532645 | K146: 0.3166667336 | L146: 0.2875974761 | M146: 0.2972805202 | N146: 0.2935282096 | O146: 0.2848197439 | P146: 0.2679298404 | Q146: 0.2515670665 | R146: 0.2356261051 | S146: 0.2198614696 | T146: 0.2040679128 | U146: 0.1821453105 | V146: 0.1524777486 | W146: 0.1230234328 | X146: 0.09376772776 | Y146: 0.06475842197 | Z146: 0.03595205133 | AA146: 0.007377180919 | AB146: 0 | AC146: 0 | AD146: 0 | AE146: 0
D147: EL3 | E147: 9.8 | F147: 0.04203217575 | G147: 0.0442896221 | H147: 0.04715212969 | I147: 0.07026352574 | J147: 0.06908577587 | K147: 0.06605834931 | L147: 0.08100365528 | M147: 0.07451437148 | N147: 0.08009756059 | O147: 0.08817441053 | P147: 0.1026035933 | Q147: 0.1170405085 | R147: 0.131527144 | S147: 0.145995745 | T147: 0.1603191346 | U147: 0.1806189902 | V147: 0.2084861912 | W147: 0.2361339308 | X147: 0.2635119687 | Y147: 0.2907358914 | Z147: 0.3176314937 | AA147: 0.3440423525 | AB147: 0.3459281379 | AC147: 0.3394668698 | AD147: 0.3329703551 | AE147: 0.3207179547
D148: EL4 | E148: 10.02089037 | F148: 0 | G148: 0 | H148: 0 | I148: 0 | J148: 0 | K148: 0 | L148: 0 | M148: 0 | N148: 0 | O148: 0 | P148: 0 | Q148: 0 | R148: 0 | S148: 0 | T148: 0 | U148: 0 | V148: 0 | W148: 0 | X148: 0 | Y148: 0 | Z148: 0 | AA148: 0 | AB148: 0.003315844002 | AC148: 0.007759953652 | AD148: 0.01216052343 | AE148: 0.02201952179
D149: TOTAL | F149: =SUM(F144:F148) -> 0.2435236139 | G149: 0.2566026773 | H149: 0.2731873099 | I149: 0.4070887934 | J149: 0.4002652136 | K149: 0.3827250829 | L149: 0.3686011313 | M149: 0.3717948916 | N149: 0.3736257702 | O149: 0.3729941544 | P149: 0.3705334337 | Q149: 0.368607575 | R149: 0.3671532491 | S149: 0.3658572145 | T149: 0.3643870474 | U149: 0.3627643007 | V149: 0.3609639398 | W149: 0.3591573637 | X149: 0.3572796964 | Y149: 0.3554943134 | Z149: 0.3535835451 | AA149: 0.3514195334 | AB149: 0.3492439819 | AC149: 0.3472268234 | AD149: 0.3451308785 | AE149: 0.3427374765
D151: Sources | E151: 2011 DOE Residential Room Air Conditioners Direct Final Rule Government Regulatory Impact Model 'Product Shipments (CALC)' tab.

Sheet Efficiency Dist - SF
C2: Efficiency Distributions by Product Class - Single Family
C4: NAVIGATION
C6: COMMENTS
D9: PC1 Without reverse cycle, with louvered sides, and less than 6,000 Btu/h
D11: PRE-Case
D12: Efficiency Level | E12: CEER | G12: 1981 | H12: 1982 | I12: 1983 | J12: 1984 | K12: 1985 | L12: 1986 | M12: 1987 | N12: 1988 | O12: 1989 | P12: 1990 | Q12: 1991 | R12: 1992 | S12: 1993 | T12: 1994 | U12: 1995 | V12: 1996 | W12: 1997 | X12: 1998 | Y12: 1999 | Z12: 2000 | AA12: 2001 | AB12: 2002 | AC12: 2003 | AD12: 2004 | AE12: 2005 | AF12: 2006 | AG12: 2007 | AH12: 2008 | AI12: 2009 | AJ12: 2010 | AK12: 2011 | AL12: 2012 | AM12: 2013 | AN12: 2014 | AO12: 2015 | AP12: 2016 | AQ12: 2017 | AR12: 2018 | AS12: 2019 | AT12: 2020 | AU12: 2021 | AV12: 2022 | AW12: 2023 | AX12: 2024 | AY12: 2025 | AZ12: 2026 | BA12: 2027 | BB12: 2028 | BC12: 2029 | BD12: 2030 | BE12: 2031 | BF12: 2032 | BG12: 2033 | BH12: 2034
D13: EL0 | E13: =INDEX(EFFICIENCY_LEVELS,RIGHT(D13,1)+1,MID($D$9,3,1)) -> 9.523593338 | G13: =H13 -> 0.6933 | H13: 0.6933 | I13: 0.6933 | J13: 0.6933 | K13: 0.6933 | L13: 0.6933 | M13: 0.6933 | N13: 0.6933 | O13: 0.6933 | P13: 0.6933 | Q13: 0.6933 | R13: 0.6933 | S13: 0.6933 | T13: 0.6933 | U13: 0.6933 | V13: 0.6933 | W13: 0.6933 | X13: 0.6933 | Y13: 0.6933 | Z13: 0.6933 | AA13: 0.6933 | AB13: 0.6933 | AC13: 0.6933 | AD13: 0.6933 | AE13: 0.6933 | AF13: 0.6933 | AG13: 0.6933 | AH13: =AI13 -> 0.6933 | AI13: ='National Shipments'!F13/'National Shipments'!F$19 -> 0.6933 | AJ13: ='National Shipments'!G13/'National Shipments'!G$19 -> 0.6933 | AK13: ='National Shipments'!H13/'National Shipments'!H$19 -> 0.6933 | AL13: ='National Shipments'!I13/'National Shipments'!I$19 -> 0.6933 | AM13: ='National Shipments'!J13/'National Shipments'!J$19 -> 0.6933 | AN13: ='National Shipments'!K13/'National Shipments'!K$19 -> 0.6933 | AO13: ='National Shipments'!L13/'National Shipments'!L$19 -> 0.650537104 | AP13: ='National Shipments'!M13/'National Shipments'!M$19 -> 0.6076673008 | AQ13: ='National Shipments'!N13/'National Shipments'!N$19 -> 0.564690323 | AR13: ='National Shipments'!O13/'National Shipments'!O$19 -> 0.5216059028 | AS13: ='National Shipments'!P13/'National Shipments'!P$19 -> 0.4784137716 | AT13: ='National Shipments'!Q13/'National Shipments'!Q$19 -> 0.43511366 | AU13: ='National Shipments'!R13/'National Shipments'!R$19 -> 0.3917052981 | AV13: ='National Shipments'!S13/'National Shipments'!S$19 -> 0.3481884154 | AW13: ='National Shipments'!T13/'National Shipments'!T$19 -> 0.3045627404 | AX13: ='National Shipments'!U13/'National Shipments'!U$19 -> 0.2608280013 | AY13: ='National Shipments'!V13/'National Shipments'!V$19 -> 0.2169839253 | AZ13: ='National Shipments'!W13/'National Shipments'!W$19 -> 0.1730302391 | BA13: ='National Shipments'!X13/'National Shipments'!X$19 -> 0.1289666687 | BB13: ='National Shipments'!Y13/'National Shipments'!Y$19 -> 0.08479293932 | BC13: ='National Shipments'!Z13/'National Shipments'!Z$19 -> 0.04050877567 | BD13: ='National Shipments'!AA13/'National Shipments'!AA$19 -> 0 | BE13: ='National Shipments'!AB13/'National Shipments'!AB$19 -> 0 | BF13: ='National Shipments'!AC13/'National Shipments'!AC$19 -> 0 | BG13: ='National Shipments'!AD13/'National Shipments'!AD$19 -> 0 | BH13: ='National Shipments'!AE13/'National Shipments'!AE$19 -> 0
D14: EL1 | E14: 10.1 | G14: 0 | H14: 0 | I14: 0 | J14: 0 | K14: 0 | L14: 0 | M14: 0 | N14: 0 | O14: 0 | P14: 0 | Q14: 0 | R14: 0 | S14: 0 | T14: 0 | U14: 0 | V14: 0 | W14: 0 | X14: 0 | Y14: 0 | Z14: 0 | AA14: 0 | AB14: 0 | AC14: 0 | AD14: 0 | AE14: 0 | AF14: 0 | AG14: 0 | AH14: =AI14 -> 0 | AI14: ='National Shipments'!F14/'National Shipments'!F$19 -> 0 | AJ14: ='National Shipments'!G14/'National Shipments'!G$19 -> 0 | AK14: ='National Shipments'!H14/'National Shipments'!H$19 -> 0 | AL14: ='National Shipments'!I14/'National Shipments'!I$19 -> 0 | AM14: ='National Shipments'!J14/'National Shipments'!J$19 -> 0 | AN14: ='National Shipments'!K14/'National Shipments'!K$19 -> 0 | AO14: ='National Shipments'!L14/'National Shipments'!L$19 -> 0.042762896 | AP14: ='National Shipments'!M14/'National Shipments'!M$19 -> 0.08563269925 | AQ14: ='National Shipments'!N14/'National Shipments'!N$19 -> 0.128609677 | AR14: ='National Shipments'!O14/'National Shipments'!O$19 -> 0.1716940972 | AS14: ='National Shipments'!P14/'National Shipments'!P$19 -> 0.2148862284 | AT14: ='National Shipments'!Q14/'National Shipments'!Q$19 -> 0.25818634 | AU14: ='National Shipments'!R14/'National Shipments'!R$19 -> 0.3015947019 | AV14: ='National Shipments'!S14/'National Shipments'!S$19 -> 0.3451115846 | AW14: ='National Shipments'!T14/'National Shipments'!T$19 -> 0.3887372596 | AX14: ='National Shipments'!U14/'National Shipments'!U$19 -> 0.4324719987 | AY14: ='National Shipments'!V14/'National Shipments'!V$19 -> 0.4763160747 | AZ14: ='National Shipments'!W14/'National Shipments'!W$19 -> 0.5202697609 | BA14: ='National Shipments'!X14/'National Shipments'!X$19 -> 0.5643333313 | BB14: ='National Shipments'!Y14/'National Shipments'!Y$19 -> 0.6085070607 | BC14: ='National Shipments'!Z14/'National Shipments'!Z$19 -> 0.6527912243 | BD14: ='National Shipments'!AA14/'National Shipments'!AA$19 -> 0.688820054 | BE14: ='National Shipments'!AB14/'National Shipments'!AB$19 -> 0.6375131041 | BF14: ='National Shipments'!AC14/'National Shipments'!AC$19 -> 0.5860778869 | BG14: ='National Shipments'!AD14/'National Shipments'!AD$19 -> 0.5345140816 | BH14: ='National Shipments'!AE14/'National Shipments'!AE$19 -> 0.4828213668
D15: EL2 | E15: 10.6 | G15: 0.2951 | H15: 0.2951 | I15: 0.2951 | J15: 0.2951 | K15: 0.2951 | L15: 0.2951 | M15: 0.2951 | N15: 0.2951 | O15: 0.2951 | P15: 0.2951 | Q15: 0.2951 | R15: 0.2951 | S15: 0.2951 | T15: 0.2951 | U15: 0.2951 | V15: 0.2951 | W15: 0.2951 | X15: 0.2951 | Y15: 0.2951 | Z15: 0.2951 | AA15: 0.2951 | AB15: 0.2951 | AC15: 0.2951 | AD15: 0.2951 | AE15: 0.2951 | AF15: 0.2951 | AG15: 0.2951 | AH15: 0.2951 | AI15: ='National Shipments'!F15/'National Shipments'!F$19 -> 0.2951 | AJ15: ='National Shipments'!G15/'National Shipments'!G$19 -> 0.2951 | AK15: ='National Shipments'!H15/'National Shipments'!H$19 -> 0.2951 | AL15: ='National Shipments'!I15/'National Shipments'!I$19 -> 0.2951 | AM15: ='National Shipments'!J15/'National Shipments'!J$19 -> 0.2951 | AN15: ='National Shipments'!K15/'National Shipments'!K$19 -> 0.2951 | AO15: ='National Shipments'!L15/'National Shipments'!L$19 -> 0.2951 | AP15: ='National Shipments'!M15/'National Shipments'!M$19 -> 0.2951 | AQ15: ='National Shipments'!N15/'National Shipments'!N$19 -> 0.2951 | AR15: ='National Shipments'!O15/'National Shipments'!O$19 -> 0.2951 | AS15: ='National Shipments'!P15/'National Shipments'!P$19 -> 0.2951 | AT15: ='National Shipments'!Q15/'National Shipments'!Q$19 -> 0.2951 | AU15: ='National Shipments'!R15/'National Shipments'!R$19 -> 0.2951 | AV15: ='National Shipments'!S15/'National Shipments'!S$19 -> 0.2951 | AW15: ='National Shipments'!T15/'National Shipments'!T$19 -> 0.2951 | AX15: ='National Shipments'!U15/'National Shipments'!U$19 -> 0.2951 | AY15: ='National Shipments'!V15/'National Shipments'!V$19 -> 0.2951 | AZ15: ='National Shipments'!W15/'National Shipments'!W$19 -> 0.2951 | BA15: ='National Shipments'!X15/'National Shipments'!X$19 -> 0.2951 | BB15: ='National Shipments'!Y15/'National Shipments'!Y$19 -> 0.2951 | BC15: ='National Shipments'!Z15/'National Shipments'!Z$19 -> 0.2951 | BD15: ='National Shipments'!AA15/'National Shipments'!AA$19 -> 0.299579946 | BE15: ='National Shipments'!AB15/'National Shipments'!AB$19 -> 0.3508868959 | BF15: ='National Shipments'!AC15/'National Shipments'!AC$19 -> 0.4023221131 | BG15: ='National Shipments'!AD15/'National Shipments'!AD$19 -> 0.4538859184 | BH15: ='National Shipments'!AE15/'National Shipments'!AE$19 -> 0.5055786332
D16: EL3 | E16: 11.1 | G16: 0.0116 | H16: 0.0116 | I16: 0.0116 | J16: 0.0116 | K16: 0.0116 | L16: 0.0116 | M16: 0.0116 | N16: 0.0116 | O16: 0.0116 | P16: 0.0116 | Q16: 0.0116 | R16: 0.0116 | S16: 0.0116 | T16: 0.0116 | U16: 0.0116 | V16: 0.0116 | W16: 0.0116 | X16: 0.0116 | Y16: 0.0116 | Z16: 0.0116 | AA16: 0.0116 | AB16: 0.0116 | AC16: 0.0116 | AD16: 0.0116 | AE16: 0.0116 | AF16: 0.0116 | AG16: 0.0116 | AH16: 0.0116 | AI16: ='National Shipments'!F16/'National Shipments'!F$19 -> 0.0116 | AJ16: ='National Shipments'!G16/'National Shipments'!G$19 -> 0.0116 | AK16: ='National Shipments'!H16/'National Shipments'!H$19 -> 0.0116 | AL16: ='National Shipments'!I16/'National Shipments'!I$19 -> 0.0116 | AM16: ='National Shipments'!J16/'National Shipments'!J$19 -> 0.0116 | AN16: ='National Shipments'!K16/'National Shipments'!K$19 -> 0.0116 | AO16: ='National Shipments'!L16/'National Shipments'!L$19 -> 0.0116 | AP16: ='National Shipments'!M16/'National Shipments'!M$19 -> 0.0116 | AQ16: ='National Shipments'!N16/'National Shipments'!N$19 -> 0.0116 | AR16: ='National Shipments'!O16/'National Shipments'!O$19 -> 0.0116 | AS16: ='National Shipments'!P16/'National Shipments'!P$19 -> 0.0116 | AT16: ='National Shipments'!Q16/'National Shipments'!Q$19 -> 0.0116 | AU16: ='National Shipments'!R16/'National Shipments'!R$19 -> 0.0116 | AV16: ='National Shipments'!S16/'National Shipments'!S$19 -> 0.0116 | AW16: ='National Shipments'!T16/'National Shipments'!T$19 -> 0.0116 | AX16: ='National Shipments'!U16/'National Shipments'!U$19 -> 0.0116 | AY16: ='National Shipments'!V16/'National Shipments'!V$19 -> 0.0116 | AZ16: ='National Shipments'!W16/'National Shipments'!W$19 -> 0.0116 | BA16: ='National Shipments'!X16/'National Shipments'!X$19 -> 0.0116 | BB16: ='National Shipments'!Y16/'National Shipments'!Y$19 -> 0.0116 | BC16: ='National Shipments'!Z16/'National Shipments'!Z$19 -> 0.0116 | BD16: ='National Shipments'!AA16/'National Shipments'!AA$19 -> 0.0116 | BE16: ='National Shipments'!AB16/'National Shipments'!AB$19 -> 0.0116 | BF16: ='National Shipments'!AC16/'National Shipments'!AC$19 -> 0.0116 | BG16: ='National Shipments'!AD16/'National Shipments'!AD$19 -> 0.0116 | BH16: ='National Shipments'!AE16/'National Shipments'!AE$19 -> 0.0116
D17: EL4 | E17: 11.384883 | G17: 0 | H17: 0 | I17: 0 | J17: 0 | K17: 0 | L17: 0 | M17: 0 | N17: 0 | O17: 0 | P17: 0 | Q17: 0 | R17: 0 | S17: 0 | T17: 0 | U17: 0 | V17: 0 | W17: 0 | X17: 0 | Y17: 0 | Z17: 0 | AA17: 0 | AB17: 0 | AC17: 0 | AD17: 0 | AE17: 0 | AF17: 0 | AG17: 0 | AH17: 0 | AI17: ='National Shipments'!F17/'National Shipments'!F$19 -> 0 | AJ17: ='National Shipments'!G17/'National Shipments'!G$19 -> 0 | AK17: ='National Shipments'!H17/'National Shipments'!H$19 -> 0 | AL17: ='National Shipments'!I17/'National Shipments'!I$19 -> 0 | AM17: ='National Shipments'!J17/'National Shipments'!J$19 -> 0 | AN17: ='National Shipments'!K17/'National Shipments'!K$19 -> 0 | AO17: ='National Shipments'!L17/'National Shipments'!L$19 -> 0 | AP17: ='National Shipments'!M17/'National Shipments'!M$19 -> 0 | AQ17: ='National Shipments'!N17/'National Shipments'!N$19 -> 0 | AR17: ='National Shipments'!O17/'National Shipments'!O$19 -> 0 | AS17: ='National Shipments'!P17/'National Shipments'!P$19 -> 0 | AT17: ='National Shipments'!Q17/'National Shipments'!Q$19 -> 0 | AU17: ='National Shipments'!R17/'National Shipments'!R$19 -> 0 | AV17: ='National Shipments'!S17/'National Shipments'!S$19 -> 0 | AW17: ='National Shipments'!T17/'National Shipments'!T$19 -> 0 | AX17: ='National Shipments'!U17/'National Shipments'!U$19 -> 0 | AY17: ='National Shipments'!V17/'National Shipments'!V$19 -> 0 | AZ17: ='National Shipments'!W17/'National Shipments'!W$19 -> 0 | BA17: ='National Shipments'!X17/'National Shipments'!X$19 -> 0 | BB17: ='National Shipments'!Y17/'National Shipments'!Y$19 -> 0 | BC17: ='National Shipments'!Z17/'National Shipments'!Z$19 -> 0 | BD17: ='National Shipments'!AA17/'National Shipments'!AA$19 -> 0 | BE17: ='National Shipments'!AB17/'National Shipments'!AB$19 -> 0 | BF17: ='National Shipments'!AC17/'National Shipments'!AC$19 -> 0 | BG17: ='National Shipments'!AD17/'National Shipments'!AD$19 -> 0 | BH17: ='National Shipments'!AE17/'National Shipments'!AE$19 -> 0
D18: EL5 | E18: 11.66560128 | G18: 0 | H18: 0 | I18: 0 | J18: 0 | K18: 0 | L18: 0 | M18: 0 | N18: 0 | O18: 0 | P18: 0 | Q18: 0 | R18: 0 | S18: 0 | T18: 0 | U18: 0 | V18: 0 | W18: 0 | X18: 0 | Y18: 0 | Z18: 0 | AA18: 0 | AB18: 0 | AC18: 0 | AD18: 0 | AE18: 0 | AF18: 0 | AG18: 0 | AH18: 0 | AI18: ='National Shipments'!F18/'National Shipments'!F$19 -> 0 | AJ18: ='National Shipments'!G18/'National Shipments'!G$19 -> 0 | AK18: ='National Shipments'!H18/'National Shipments'!H$19 -> 0 | AL18: ='National Shipments'!I18/'National Shipments'!I$19 -> 0 | AM18: ='National Shipments'!J18/'National Shipments'!J$19 -> 0 | AN18: ='National Shipments'!K18/'National Shipments'!K$19 -> 0 | AO18: ='National Shipments'!L18/'National Shipments'!L$19 -> 0 | AP18: ='National Shipments'!M18/'National Shipments'!M$19 -> 0 | AQ18: ='National Shipments'!N18/'National Shipments'!N$19 -> 0 | AR18: ='National Shipments'!O18/'National Shipments'!O$19 -> 0 | AS18: ='National Shipments'!P18/'National Shipments'!P$19 -> 0 | AT18: ='National Shipments'!Q18/'National Shipments'!Q$19 -> 0 | AU18: ='National Shipments'!R18/'National Shipments'!R$19 -> 0 | AV18: ='National Shipments'!S18/'National Shipments'!S$19 -> 0 | AW18: ='National Shipments'!T18/'National Shipments'!T$19 -> 0 | AX18: ='National Shipments'!U18/'National Shipments'!U$19 -> 0 | AY18: ='National Shipments'!V18/'National Shipments'!V$19 -> 0 | AZ18: ='National Shipments'!W18/'National Shipments'!W$19 -> 0 | BA18: ='National Shipments'!X18/'National Shipments'!X$19 -> 0 | BB18: ='National Shipments'!Y18/'National Shipments'!Y$19 -> 0 | BC18: ='National Shipments'!Z18/'National Shipments'!Z$19 -> 0 | BD18: ='National Shipments'!AA18/'National Shipments'!AA$19 -> 0 | BE18: ='National Shipments'!AB18/'National Shipments'!AB$19 -> 0 | BF18: ='National Shipments'!AC18/'National Shipments'!AC$19 -> 0 | BG18: ='National Shipments'!AD18/'National Shipments'!AD$19 -> 0 | BH18: ='National Shipments'!AE18/'National Shipments'!AE$19 -> 0
D19: TOTAL | G19: 1 | H19: 1 | I19: 1 | J19: 1 | K19: 1 | L19: 1 | M19: 1 | N19: 1 | O19: 1 | P19: 1 | Q19: 1 | R19: 1 | S19: 1 | T19: 1 | U19: 1 | V19: 1 | W19: 1 | X19: 1 | Y19: 1 | Z19: 1 | AA19: 1 | AB19: 1 | AC19: 1 | AD19: 1 | AE19: 1 | AF19: 1 | AG19: 1 | AH19: 1 | AI19: ='National Shipments'!F19/'National Shipments'!F$19 -> 1 | AJ19: ='National Shipments'!G19/'National Shipments'!G$19 -> 1 | AK19: ='National Shipments'!H19/'National Shipments'!H$19 -> 1 | AL19: ='National Shipments'!I19/'National Shipments'!I$19 -> 1 | AM19: ='National Shipments'!J19/'National Shipments'!J$19 -> 1 | AN19: ='National Shipments'!K19/'National Shipments'!K$19 -> 1 | AO19: ='National Shipments'!L19/'National Shipments'!L$19 -> 1 | AP19: ='National Shipments'!M19/'National Shipments'!M$19 -> 1 | AQ19: ='National Shipments'!N19/'National Shipments'!N$19 -> 1 | AR19: ='National Shipments'!O19/'National Shipments'!O$19 -> 1 | AS19: ='National Shipments'!P19/'National Shipments'!P$19 -> 1 | AT19: ='National Shipments'!Q19/'National Shipments'!Q$19 -> 1 | AU19: ='National Shipments'!R19/'National Shipments'!R$19 -> 1 | AV19: ='National Shipments'!S19/'National Shipments'!S$19 -> 1 | AW19: ='National Shipments'!T19/'National Shipments'!T$19 -> 1 | AX19: ='National Shipments'!U19/'National Shipments'!U$19 -> 1 | AY19: ='National Shipments'!V19/'National Shipments'!V$19 -> 1 | AZ19: ='National Shipments'!W19/'National Shipments'!W$19 -> 1 | BA19: ='National Shipments'!X19/'National Shipments'!X$19 -> 1 | BB19: ='National Shipments'!Y19/'National Shipments'!Y$19 -> 1 | BC19: ='National Shipments'!Z19/'National Shipments'!Z$19 -> 1 | BD19: ='National Shipments'!AA19/'National Shipments'!AA$19 -> 1 | BE19: ='National Shipments'!AB19/'National Shipments'!AB$19 -> 1 | BF19: ='National Shipments'!AC19/'National Shipments'!AC$19 -> 1 | BG19: ='National Shipments'!AD19/'National Shipments'!AD$19 -> 1 | BH19: ='National Shipments'!AE19/'National Shipments'!AE$19 -> 1
D21: POST-Case
D22: Efficiency Level | E22: CEER | G22: 1981 | H22: 1982 | I22: 1983 | J22: 1984 | K22: 1985 | L22: 1986 | M22: 1987 | N22: 1988 | O22: 1989 | P22: 1990 | Q22: 1991 | R22: 1992 | S22: 1993 | T22: 1994 | U22: 1995 | V22: 1996 | W22: 1997 | X22: 1998 | Y22: 1999 | Z22: 2000 | AA22: 2001 | AB22: 2002 | AC22: 2003 | AD22: 2004 | AE22: 2005 | AF22: 2006 | AG22: 2007 | AH22: 2008 | AI22: 2009 | AJ22: 2010 | AK22: 2011 | AL22: 2012 | AM22: 2013 | AN22: 2014 | AO22: 2015 | AP22: 2016 | AQ22: 2017 | AR22: 2018 | AS22: 2019 | AT22: 2020 | AU22: 2021 | AV22: 2022 | AW22: 2023 | AX22: 2024 | AY22: 2025 | AZ22: 2026 | BA22: 2027 | BB22: 2028 | BC22: 2029 | BD22: 2030 | BE22: 2031 | BF22: 2032 | BG22: 2033 | BH22: 2034
D23: EL0 | E23: =INDEX(EFFICIENCY_LEVELS,RIGHT(D23,1)+1,MID($D$9,3,1)) -> 9.523593338 | G23: =H23 -> 0.6933 | H23: 0.6933 | I23: 0.6933 | J23: 0.6933 | K23: 0.6933 | L23: 0.6933 | M23: 0.6933 | N23: 0.6933 | O23: 0.6933 | P23: 0.6933 | Q23: 0.6933 | R23: 0.6933 | S23: 0.6933 | T23: 0.6933 | U23: 0.6933 | V23: 0.6933 | W23: 0.6933 | X23: 0.6933 | Y23: 0.6933 | Z23: 0.6933 | AA23: 0.6933 | AB23: 0.6933 | AC23: 0.6933 | AD23: 0.6933 | AE23: 0.6933 | AF23: 0.6933 | AG23: 0.6933 | AH23: =AI23 -> 0.6933 | AI23: ='National Shipments'!F23/'National Shipments'!F$29 -> 0.6933 | AJ23: ='National Shipments'!G23/'National Shipments'!G$29 -> 0.6933 | AK23: ='National Shipments'!H23/'National Shipments'!H$29 -> 0.6933 | AL23: ='National Shipments'!I23/'National Shipments'!I$29 -> 0.6933 | AM23: ='National Shipments'!J23/'National Shipments'!J$29 -> 0.6933 | AN23: ='National Shipments'!K23/'National Shipments'!K$29 -> 0 | AO23: ='National Shipments'!L23/'National Shipments'!L$29 -> 0 | AP23: ='National Shipments'!M23/'National Shipments'!M$29 -> 0 | AQ23: ='National Shipments'!N23/'National Shipments'!N$29 -> 0 | AR23: ='National Shipments'!O23/'National Shipments'!O$29 -> 0 | AS23: ='National Shipments'!P23/'National Shipments'!P$29 -> 0 | AT23: ='National Shipments'!Q23/'National Shipments'!Q$29 -> 0 | AU23: ='National Shipments'!R23/'National Shipments'!R$29 -> 0 | AV23: ='National Shipments'!S23/'National Shipments'!S$29 -> 0 | AW23: ='National Shipments'!T23/'National Shipments'!T$29 -> 0 | AX23: ='National Shipments'!U23/'National Shipments'!U$29 -> 0 | AY23: ='National Shipments'!V23/'National Shipments'!V$29 -> 0 | AZ23: ='National Shipments'!W23/'National Shipments'!W$29 -> 0 | BA23: ='National Shipments'!X23/'National Shipments'!X$29 -> 0 | BB23: ='National Shipments'!Y23/'National Shipments'!Y$29 -> 0 | BC23: ='National Shipments'!Z23/'National Shipments'!Z$29 -> 0 | BD23: ='National Shipments'!AA23/'National Shipments'!AA$29 -> 0 | BE23: ='National Shipments'!AB23/'National Shipments'!AB$29 -> 0 | BF23: ='National Shipments'!AC23/'National Shipments'!AC$29 -> 0 | BG23: ='National Shipments'!AD23/'National Shipments'!AD$29 -> 0 | BH23: ='National Shipments'!AE23/'National Shipments'!AE$29 -> 0
D24: EL1 | E24: 10.1 | G24: =H24 -> 0 | H24: 0 | I24: 0 | J24: 0 | K24: 0 | L24: 0 | M24: 0 | N24: 0 | O24: 0 | P24: 0 | Q24: 0 | R24: 0 | S24: 0 | T24: 0 | U24: 0 | V24: 0 | W24: 0 | X24: 0 | Y24: 0 | Z24: 0 | AA24: 0 | AB24: 0 | AC24: 0 | AD24: 0 | AE24: 0 | AF24: 0 | AG24: 0 | AH24: 0 | AI24: ='National Shipments'!F24/'National Shipments'!F$29 -> 0 | AJ24: ='National Shipments'!G24/'National Shipments'!G$29 -> 0 | AK24: ='National Shipments'!H24/'National Shipments'!H$29 -> 0 | AL24: ='National Shipments'!I24/'National Shipments'!I$29 -> 0 | AM24: ='National Shipments'!J24/'National Shipments'!J$29 -> 0 | AN24: ='National Shipments'!K24/'National Shipments'!K$29 -> 0 | AO24: ='National Shipments'!L24/'National Shipments'!L$29 -> 0 | AP24: ='National Shipments'!M24/'National Shipments'!M$29 -> 0 | AQ24: ='National Shipments'!N24/'National Shipments'!N$29 -> 0 | AR24: ='National Shipments'!O24/'National Shipments'!O$29 -> 0 | AS24: ='National Shipments'!P24/'National Shipments'!P$29 -> 0 | AT24: ='National Shipments'!Q24/'National Shipments'!Q$29 -> 0 | AU24: ='National Shipments'!R24/'National Shipments'!R$29 -> 0 | AV24: ='National Shipments'!S24/'National Shipments'!S$29 -> 0 | AW24: ='National Shipments'!T24/'National Shipments'!T$29 -> 0 | AX24: ='National Shipments'!U24/'National Shipments'!U$29 -> 0 | AY24: ='National Shipments'!V24/'National Shipments'!V$29 -> 0 | AZ24: ='National Shipments'!W24/'National Shipments'!W$29 -> 0 | BA24: ='National Shipments'!X24/'National Shipments'!X$29 -> 0 | BB24: ='National Shipments'!Y24/'National Shipments'!Y$29 -> 0 | BC24: ='National Shipments'!Z24/'National Shipments'!Z$29 -> 0 | BD24: ='National Shipments'!AA24/'National Shipments'!AA$29 -> 0 | BE24: ='National Shipments'!AB24/'National Shipments'!AB$29 -> 0 | BF24: ='National Shipments'!AC24/'National Shipments'!AC$29 -> 0 | BG24: ='National Shipments'!AD24/'National Shipments'!AD$29 -> 0 | BH24: ='National Shipments'!AE24/'National Shipments'!AE$29 -> 0
D25: EL2 | E25: 10.6 | G25: =H25 -> 0.2951 | H25: 0.2951 | I25: 0.2951 | J25: 0.2951 | K25: 0.2951 | L25: 0.2951 | M25: 0.2951 | N25: 0.2951 | O25: 0.2951 | P25: 0.2951 | Q25: 0.2951 | R25: 0.2951 | S25: 0.2951 | T25: 0.2951 | U25: 0.2951 | V25: 0.2951 | W25: 0.2951 | X25: 0.2951 | Y25: 0.2951 | Z25: 0.2951 | AA25: 0.2951 | AB25: 0.2951 | AC25: 0.2951 | AD25: 0.2951 | AE25: 0.2951 | AF25: 0.2951 | AG25: 0.2951 | AH25: 0.2951 | AI25: ='National Shipments'!F25/'National Shipments'!F$29 -> 0.2951 | AJ25: ='National Shipments'!G25/'National Shipments'!G$29 -> 0.2951 | AK25: ='National Shipments'!H25/'National Shipments'!H$29 -> 0.2951 | AL25: ='National Shipments'!I25/'National Shipments'!I$29 -> 0.2951 | AM25: ='National Shipments'!J25/'National Shipments'!J$29 -> 0.2951 | AN25: ='National Shipments'!K25/'National Shipments'!K$29 -> 0 | AO25: ='National Shipments'!L25/'National Shipments'!L$29 -> 0 | AP25: ='National Shipments'!M25/'National Shipments'!M$29 -> 0 | AQ25: ='National Shipments'!N25/'National Shipments'!N$29 -> 0 | AR25: ='National Shipments'!O25/'National Shipments'!O$29 -> 0 | AS25: ='National Shipments'!P25/'National Shipments'!P$29 -> 0 | AT25: ='National Shipments'!Q25/'National Shipments'!Q$29 -> 0 | AU25: ='National Shipments'!R25/'National Shipments'!R$29 -> 0 | AV25: ='National Shipments'!S25/'National Shipments'!S$29 -> 0 | AW25: ='National Shipments'!T25/'National Shipments'!T$29 -> 0 | AX25: ='National Shipments'!U25/'National Shipments'!U$29 -> 0 | AY25: ='National Shipments'!V25/'National Shipments'!V$29 -> 0 | AZ25: ='National Shipments'!W25/'National Shipments'!W$29 -> 0 | BA25: ='National Shipments'!X25/'National Shipments'!X$29 -> 0 | BB25: ='National Shipments'!Y25/'National Shipments'!Y$29 -> 0 | BC25: ='National Shipments'!Z25/'National Shipments'!Z$29 -> 0 | BD25: ='National Shipments'!AA25/'National Shipments'!AA$29 -> 0 | BE25: ='National Shipments'!AB25/'National Shipments'!AB$29 -> 0 | BF25: ='National Shipments'!AC25/'National Shipments'!AC$29 -> 0 | BG25: ='National Shipments'!AD25/'National Shipments'!AD$29 -> 0 | BH25: ='National Shipments'!AE25/'National Shipments'!AE$29 -> 0
D26: EL3 | E26: 11.1 | G26: =H26 -> 0.0116 | H26: 0.0116 | I26: 0.0116 | J26: 0.0116 | K26: 0.0116 | L26: 0.0116 | M26: 0.0116 | N26: 0.0116 | O26: 0.0116 | P26: 0.0116 | Q26: 0.0116 | R26: 0.0116 | S26: 0.0116 | T26: 0.0116 | U26: 0.0116 | V26: 0.0116 | W26: 0.0116 | X26: 0.0116 | Y26: 0.0116 | Z26: 0.0116 | AA26: 0.0116 | AB26: 0.0116 | AC26: 0.0116 | AD26: 0.0116 | AE26: 0.0116 | AF26: 0.0116 | AG26: 0.0116 | AH26: 0.0116 | AI26: ='National Shipments'!F26/'National Shipments'!F$29 -> 0.0116 | AJ26: ='National Shipments'!G26/'National Shipments'!G$29 -> 0.0116 | AK26: ='National Shipments'!H26/'National Shipments'!H$29 -> 0.0116 | AL26: ='National Shipments'!I26/'National Shipments'!I$29 -> 0.0116 | AM26: ='National Shipments'!J26/'National Shipments'!J$29 -> 0.0116 | AN26: ='National Shipments'!K26/'National Shipments'!K$29 -> 1 | AO26: ='National Shipments'!L26/'National Shipments'!L$29 -> 0.9756556397 | AP26: ='National Shipments'!M26/'National Shipments'!M$29 -> 0.9500524118 | AQ26: ='National Shipments'!N26/'National Shipments'!N$29 -> 0.9255844902 | AR26: ='National Shipments'!O26/'National Shipments'!O$29 -> 0.9010553989 | AS26: ='National Shipments'!P26/'National Shipments'!P$29 -> 0.8764649848 | AT26: ='National Shipments'!Q26/'National Shipments'!Q$29 -> 0.8518130946 | AU26: ='National Shipments'!R26/'National Shipments'!R$29 -> 0.8270995748 | AV26: ='National Shipments'!S26/'National Shipments'!S$29 -> 0.8023242711 | AW26: ='National Shipments'!T26/'National Shipments'!T$29 -> 0.7774870292 | AX26: ='National Shipments'!U26/'National Shipments'!U$29 -> 0.7525876942 | AY26: ='National Shipments'!V26/'National Shipments'!V$29 -> 0.7276261108 | AZ26: ='National Shipments'!W26/'National Shipments'!W$29 -> 0.7026021235 | BA26: ='National Shipments'!X26/'National Shipments'!X$29 -> 0.6775155762 | BB26: ='National Shipments'!Y26/'National Shipments'!Y$29 -> 0.6523663125 | BC26: ='National Shipments'!Z26/'National Shipments'!Z$29 -> 0.6271541757 | BD26: ='National Shipments'!AA26/'National Shipments'!AA$29 -> 0.6007919668 | BE26: ='National Shipments'!AB26/'National Shipments'!AB$29 -> 0.5630041765 | BF26: ='National Shipments'!AC26/'National Shipments'!AC$29 -> 0.5251219168 | BG26: ='National Shipments'!AD26/'National Shipments'!AD$29 -> 0.4871449514 | BH26: ='National Shipments'!AE26/'National Shipments'!AE$29 -> 0.4490730436
D27: EL4 | E27: 11.384883 | G27: =H27 -> 0 | H27: 0 | I27: 0 | J27: 0 | K27: 0 | L27: 0 | M27: 0 | N27: 0 | O27: 0 | P27: 0 | Q27: 0 | R27: 0 | S27: 0 | T27: 0 | U27: 0 | V27: 0 | W27: 0 | X27: 0 | Y27: 0 | Z27: 0 | AA27: 0 | AB27: 0 | AC27: 0 | AD27: 0 | AE27: 0 | AF27: 0 | AG27: 0 | AH27: 0 | AI27: ='National Shipments'!F27/'National Shipments'!F$29 -> 0 | AJ27: ='National Shipments'!G27/'National Shipments'!G$29 -> 0 | AK27: ='National Shipments'!H27/'National Shipments'!H$29 -> 0 | AL27: ='National Shipments'!I27/'National Shipments'!I$29 -> 0 | AM27: ='National Shipments'!J27/'National Shipments'!J$29 -> 0 | AN27: ='National Shipments'!K27/'National Shipments'!K$29 -> 0 | AO27: ='National Shipments'!L27/'National Shipments'!L$29 -> 0.0243443603 | AP27: ='National Shipments'!M27/'National Shipments'!M$29 -> 0.04994758819 | AQ27: ='National Shipments'!N27/'National Shipments'!N$29 -> 0.07441550976 | AR27: ='National Shipments'!O27/'National Shipments'!O$29 -> 0.09894460113 | AS27: ='National Shipments'!P27/'National Shipments'!P$29 -> 0.1235350152 | AT27: ='National Shipments'!Q27/'National Shipments'!Q$29 -> 0.1481869054 | AU27: ='National Shipments'!R27/'National Shipments'!R$29 -> 0.1729004252 | AV27: ='National Shipments'!S27/'National Shipments'!S$29 -> 0.1976757289 | AW27: ='National Shipments'!T27/'National Shipments'!T$29 -> 0.2225129708 | AX27: ='National Shipments'!U27/'National Shipments'!U$29 -> 0.2474123058 | AY27: ='National Shipments'!V27/'National Shipments'!V$29 -> 0.2723738892 | AZ27: ='National Shipments'!W27/'National Shipments'!W$29 -> 0.2973978765 | BA27: ='National Shipments'!X27/'National Shipments'!X$29 -> 0.3224844238 | BB27: ='National Shipments'!Y27/'National Shipments'!Y$29 -> 0.3476336875 | BC27: ='National Shipments'!Z27/'National Shipments'!Z$29 -> 0.3728458243 | BD27: ='National Shipments'!AA27/'National Shipments'!AA$29 -> 0.3992080332 | BE27: ='National Shipments'!AB27/'National Shipments'!AB$29 -> 0.4369958235 | BF27: ='National Shipments'!AC27/'National Shipments'!AC$29 -> 0.4748780832 | BG27: ='National Shipments'!AD27/'National Shipments'!AD$29 -> 0.5128550486 | BH27: ='National Shipments'!AE27/'National Shipments'!AE$29 -> 0.5509269564
D28: EL5 | E28: 11.66560128 | G28: =H28 -> 0 | H28: 0 | I28: 0 | J28: 0 | K28: 0 | L28: 0 | M28: 0 | N28: 0 | O28: 0 | P28: 0 | Q28: 0 | R28: 0 | S28: 0 | T28: 0 | U28: 0 | V28: 0 | W28: 0 | X28: 0 | Y28: 0 | Z28: 0 | AA28: 0 | AB28: 0 | AC28: 0 | AD28: 0 | AE28: 0 | AF28: 0 | AG28: 0 | AH28: 0 | AI28: ='National Shipments'!F28/'National Shipments'!F$29 -> 0 | AJ28: ='National Shipments'!G28/'National Shipments'!G$29 -> 0 | AK28: ='National Shipments'!H28/'National Shipments'!H$29 -> 0 | AL28: ='National Shipments'!I28/'National Shipments'!I$29 -> 0 | AM28: ='National Shipments'!J28/'National Shipments'!J$29 -> 0 | AN28: ='National Shipments'!K28/'National Shipments'!K$29 -> 0 | AO28: ='National Shipments'!L28/'National Shipments'!L$29 -> 0 | AP28: ='National Shipments'!M28/'National Shipments'!M$29 -> 0 | AQ28: ='National Shipments'!N28/'National Shipments'!N$29 -> 0 | AR28: ='National Shipments'!O28/'National Shipments'!O$29 -> 0 | AS28: ='National Shipments'!P28/'National Shipments'!P$29 -> 0 | AT28: ='National Shipments'!Q28/'National Shipments'!Q$29 -> 0 | AU28: ='National Shipments'!R28/'National Shipments'!R$29 -> 0 | AV28: ='National Shipments'!S28/'National Shipments'!S$29 -> 0 | AW28: ='National Shipments'!T28/'National Shipments'!T$29 -> 0 | AX28: ='National Shipments'!U28/'National Shipments'!U$29 -> 0 | AY28: ='National Shipments'!V28/'National Shipments'!V$29 -> 0 | AZ28: ='National Shipments'!W28/'National Shipments'!W$29 -> 0 | BA28: ='National Shipments'!X28/'National Shipments'!X$29 -> 0 | BB28: ='National Shipments'!Y28/'National Shipments'!Y$29 -> 0 | BC28: ='National Shipments'!Z28/'National Shipments'!Z$29 -> 0 | BD28: ='National Shipments'!AA28/'National Shipments'!AA$29 -> 0 | BE28: ='National Shipments'!AB28/'National Shipments'!AB$29 -> 0 | BF28: ='National Shipments'!AC28/'National Shipments'!AC$29 -> 0 | BG28: ='National Shipments'!AD28/'National Shipments'!AD$29 -> 0 | BH28: ='National Shipments'!AE28/'National Shipments'!AE$29 -> 0
D29: TOTAL | G29: =H29 -> 1 | H29: 1 | I29: 1 | J29: 1 | K29: 1 | L29: 1 | M29: 1 | N29: 1 | O29: 1 | P29: 1 | Q29: 1 | R29: 1 | S29: 1 | T29: 1 | U29: 1 | V29: 1 | W29: 1 | X29: 1 | Y29: 1 | Z29: 1 | AA29: 1 | AB29: 1 | AC29: 1 | AD29: 1 | AE29: 1 | AF29: 1 | AG29: 1 | AH29: 1 | AI29: ='National Shipments'!F29/'National Shipments'!F$29 -> 1 | AJ29: ='National Shipments'!G29/'National Shipments'!G$29 -> 1 | AK29: ='National Shipments'!H29/'National Shipments'!H$29 -> 1 | AL29: ='National Shipments'!I29/'National Shipments'!I$29 -> 1 | AM29: ='National Shipments'!J29/'National Shipments'!J$29 -> 1 | AN29: ='National Shipments'!K29/'National Shipments'!K$29 -> 1 | AO29: ='National Shipments'!L29/'National Shipments'!L$29 -> 1 | AP29: ='National Shipments'!M29/'National Shipments'!M$29 -> 1 | AQ29: ='National Shipments'!N29/'National Shipments'!N$29 -> 1 | AR29: ='National Shipments'!O29/'National Shipments'!O$29 -> 1 | AS29: ='National Shipments'!P29/'National Shipments'!P$29 -> 1 | AT29: ='National Shipments'!Q29/'National Shipments'!Q$29 -> 1 | AU29: ='National Shipments'!R29/'National Shipments'!R$29 -> 1 | AV29: ='National Shipments'!S29/'National Shipments'!S$29 -> 1 | AW29: ='National Shipments'!T29/'National Shipments'!T$29 -> 1 | AX29: ='National Shipments'!U29/'National Shipments'!U$29 -> 1 | AY29: ='National Shipments'!V29/'National Shipments'!V$29 -> 1 | AZ29: ='National Shipments'!W29/'National Shipments'!W$29 -> 1 | BA29: ='National Shipments'!X29/'National Shipments'!X$29 -> 1 | BB29: ='National Shipments'!Y29/'National Shipments'!Y$29 -> 1 | BC29: ='National Shipments'!Z29/'National Shipments'!Z$29 -> 1 | BD29: ='National Shipments'!AA29/'National Shipments'!AA$29 -> 1 | BE29: ='National Shipments'!AB29/'National Shipments'!AB$29 -> 1 | BF29: ='National Shipments'!AC29/'National Shipments'!AC$29 -> 1 | BG29: ='National Shipments'!AD29/'National Shipments'!AD$29 -> 1 | BH29: ='National Shipments'!AE29/'National Shipments'!AE$29 -> 1
D31: Sources | E31: 2011 DOE Residential Room Air Conditioners Direct Final Rule Government Regulatory Impact Model 'Product Shipments (CALC)' tab.
D35: PC2 Without reverse cycle, with louvered sides, and 8,000 to 13,999 Btu/h
D37: PRE-Case
D38: Efficiency Level | E38: CEER | G38: 1981 | H38: 1982 | I38: 1983 | J38: 1984 | K38: 1985 | L38: 1986 | M38: 1987 | N38: 1988 | O38: 1989 | P38: 1990 | Q38: 1991 | R38: 1992 | S38: 1993 | T38: 1994 | U38: 1995 | V38: 1996 | W38: 1997 | X38: 1998 | Y38: 1999 | Z38: 2000 | AA38: 2001 | AB38: 2002 | AC38: 2003 | AD38: 2004 | AE38: 2005 | AF38: 2006 | AG38: 2007 | AH38: 2008 | AI38: 2009 | AJ38: 2010 | AK38: 2011 | AL38: 2012 | AM38: 2013 | AN38: 2014 | AO38: 2015 | AP38: 2016 | AQ38: 2017 | AR38: 2018 | AS38: 2019 | AT38: 2020 | AU38: 2021 | AV38: 2022 | AW38: 2023 | AX38: 2024 | AY38: 2025 | AZ38: 2026 | BA38: 2027 | BB38: 2028 | BC38: 2029 | BD38: 2030 | BE38: 2031 | BF38: 2032 | BG38: 2033 | BH38: 2034
D39: EL0 | E39: =INDEX(EFFICIENCY_LEVELS,RIGHT(D39,1)+1,MID($D$35,3,1)) -> 9.686701434 | G39: =H39 -> 0.3705 | H39: 0.3705 | I39: 0.3705 | J39: 0.3705 | K39: 0.3705 | L39: 0.3705 | M39: 0.3705 | N39: 0.3705 | O39: 0.3705 | P39: 0.3705 | Q39: 0.3705 | R39: 0.3705 | S39: 0.3705 | T39: 0.3705 | U39: 0.3705 | V39: 0.3705 | W39: 0.3705 | X39: 0.3705 | Y39: 0.3705 | Z39: 0.3705 | AA39: 0.3705 | AB39: 0.3705 | AC39: 0.3705 | AD39: 0.3705 | AE39: 0.3705 | AF39: 0.3705 | AG39: 0.3705 | AH39: =AI39 -> 0.3705 | AI39: ='National Shipments'!F39/'National Shipments'!F$45 -> 0.3705 | AJ39: ='National Shipments'!G39/'National Shipments'!G$45 -> 0.3705 | AK39: ='National Shipments'!H39/'National Shipments'!H$45 -> 0.3705 | AL39: ='National Shipments'!I39/'National Shipments'!I$45 -> 0.3705 | AM39: ='National Shipments'!J39/'National Shipments'!J$45 -> 0.3705 | AN39: ='National Shipments'!K39/'National Shipments'!K$45 -> 0.3705 | AO39: ='National Shipments'!L39/'National Shipments'!L$45 -> 0.3202203053 | AP39: ='National Shipments'!M39/'National Shipments'!M$45 -> 0.2698149114 | AQ39: ='National Shipments'!N39/'National Shipments'!N$45 -> 0.219283504 | AR39: ='National Shipments'!O39/'National Shipments'!O$45 -> 0.1686257681 | AS39: ='National Shipments'!P39/'National Shipments'!P$45 -> 0.1178413878 | AT39: ='National Shipments'!Q39/'National Shipments'!Q$45 -> 0.06693004664 | AU39: ='National Shipments'!R39/'National Shipments'!R$45 -> 0.01589142709 | AV39: ='National Shipments'!S39/'National Shipments'!S$45 -> 0 | AW39: ='National Shipments'!T39/'National Shipments'!T$45 -> 0 | AX39: ='National Shipments'!U39/'National Shipments'!U$45 -> 0 | AY39: ='National Shipments'!V39/'National Shipments'!V$45 -> 0 | AZ39: ='National Shipments'!W39/'National Shipments'!W$45 -> 0 | BA39: ='National Shipments'!X39/'National Shipments'!X$45 -> 0 | BB39: ='National Shipments'!Y39/'National Shipments'!Y$45 -> 0 | BC39: ='National Shipments'!Z39/'National Shipments'!Z$45 -> 0 | BD39: ='National Shipments'!AA39/'National Shipments'!AA$45 -> 0 | BE39: ='National Shipments'!AB39/'National Shipments'!AB$45 -> 0 | BF39: ='National Shipments'!AC39/'National Shipments'!AC$45 -> 0 | BG39: ='National Shipments'!AD39/'National Shipments'!AD$45 -> 0 | BH39: ='National Shipments'!AE39/'National Shipments'!AE$45 -> 0
D40: EL1 | E40: 10.2 | G40: 0.0246 | H40: 0.0246 | I40: 0.0246 | J40: 0.0246 | K40: 0.0246 | L40: 0.0246 | M40: 0.0246 | N40: 0.0246 | O40: 0.0246 | P40: 0.0246 | Q40: 0.0246 | R40: 0.0246 | S40: 0.0246 | T40: 0.0246 | U40: 0.0246 | V40: 0.0246 | W40: 0.0246 | X40: 0.0246 | Y40: 0.0246 | Z40: 0.0246 | AA40: 0.0246 | AB40: 0.0246 | AC40: 0.0246 | AD40: 0.0246 | AE40: 0.0246 | AF40: 0.0246 | AG40: 0.0246 | AH40: =AI40 -> 0.0246 | AI40: ='National Shipments'!F40/'National Shipments'!F$45 -> 0.0246 | AJ40: ='National Shipments'!G40/'National Shipments'!G$45 -> 0.0246 | AK40: ='National Shipments'!H40/'National Shipments'!H$45 -> 0.0246 | AL40: ='National Shipments'!I40/'National Shipments'!I$45 -> 0.0246 | AM40: ='National Shipments'!J40/'National Shipments'!J$45 -> 0.0246 | AN40: ='National Shipments'!K40/'National Shipments'!K$45 -> 0.0246 | AO40: ='National Shipments'!L40/'National Shipments'!L$45 -> 0.07487969467 | AP40: ='National Shipments'!M40/'National Shipments'!M$45 -> 0.1252850886 | AQ40: ='National Shipments'!N40/'National Shipments'!N$45 -> 0.175816496 | AR40: ='National Shipments'!O40/'National Shipments'!O$45 -> 0.2264742319 | AS40: ='National Shipments'!P40/'National Shipments'!P$45 -> 0.2772586122 | AT40: ='National Shipments'!Q40/'National Shipments'!Q$45 -> 0.3281699534 | AU40: ='National Shipments'!R40/'National Shipments'!R$45 -> 0.3792085729 | AV40: ='National Shipments'!S40/'National Shipments'!S$45 -> 0.3588870028 | AW40: ='National Shipments'!T40/'National Shipments'!T$45 -> 0.3062285943 | AX40: ='National Shipments'!U40/'National Shipments'!U$45 -> 0.2534385399 | AY40: ='National Shipments'!V40/'National Shipments'!V$45 -> 0.2005165103 | AZ40: ='National Shipments'!W40/'National Shipments'!W$45 -> 0.1474621756 | BA40: ='National Shipments'!X40/'National Shipments'!X$45 -> 0.09427520511 | BB40: ='National Shipments'!Y40/'National Shipments'!Y$45 -> 0.04095526718 | BC40: ='National Shipments'!Z40/'National Shipments'!Z$45 -> 0 | BD40: ='National Shipments'!AA40/'National Shipments'!AA$45 -> 0 | BE40: ='National Shipments'!AB40/'National Shipments'!AB$45 -> 0 | BF40: ='National Shipments'!AC40/'National Shipments'!AC$45 -> 0 | BG40: ='National Shipments'!AD40/'National Shipments'!AD$45 -> 0 | BH40: ='National Shipments'!AE40/'National Shipments'!AE$45 -> 0
D41: EL2 | E41: 10.7 | G41: 0.583 | H41: 0.583 | I41: 0.583 | J41: 0.583 | K41: 0.583 | L41: 0.583 | M41: 0.583 | N41: 0.583 | O41: 0.583 | P41: 0.583 | Q41: 0.583 | R41: 0.583 | S41: 0.583 | T41: 0.583 | U41: 0.583 | V41: 0.583 | W41: 0.583 | X41: 0.583 | Y41: 0.583 | Z41: 0.583 | AA41: 0.583 | AB41: 0.583 | AC41: 0.583 | AD41: 0.583 | AE41: 0.583 | AF41: 0.583 | AG41: 0.583 | AH41: 0.583 | AI41: ='National Shipments'!F41/'National Shipments'!F$45 -> 0.583 | AJ41: ='National Shipments'!G41/'National Shipments'!G$45 -> 0.583 | AK41: ='National Shipments'!H41/'National Shipments'!H$45 -> 0.583 | AL41: ='National Shipments'!I41/'National Shipments'!I$45 -> 0.583 | AM41: ='National Shipments'!J41/'National Shipments'!J$45 -> 0.583 | AN41: ='National Shipments'!K41/'National Shipments'!K$45 -> 0.583 | AO41: ='National Shipments'!L41/'National Shipments'!L$45 -> 0.583 | AP41: ='National Shipments'!M41/'National Shipments'!M$45 -> 0.583 | AQ41: ='National Shipments'!N41/'National Shipments'!N$45 -> 0.583 | AR41: ='National Shipments'!O41/'National Shipments'!O$45 -> 0.583 | AS41: ='National Shipments'!P41/'National Shipments'!P$45 -> 0.583 | AT41: ='National Shipments'!Q41/'National Shipments'!Q$45 -> 0.583 | AU41: ='National Shipments'!R41/'National Shipments'!R$45 -> 0.583 | AV41: ='National Shipments'!S41/'National Shipments'!S$45 -> 0.6192129972 | AW41: ='National Shipments'!T41/'National Shipments'!T$45 -> 0.6718714057 | AX41: ='National Shipments'!U41/'National Shipments'!U$45 -> 0.7246614601 | AY41: ='National Shipments'!V41/'National Shipments'!V$45 -> 0.7775834897 | AZ41: ='National Shipments'!W41/'National Shipments'!W$45 -> 0.8306378244 | BA41: ='National Shipments'!X41/'National Shipments'!X$45 -> 0.8838247949 | BB41: ='National Shipments'!Y41/'National Shipments'!Y$45 -> 0.9371447328 | BC41: ='National Shipments'!Z41/'National Shipments'!Z$45 -> 0.9468550735 | BD41: ='National Shipments'!AA41/'National Shipments'!AA$45 -> 0.8128878963 | BE41: ='National Shipments'!AB41/'National Shipments'!AB$45 -> 0.6785858012 | BF41: ='National Shipments'!AC41/'National Shipments'!AC$45 -> 0.5439479509 | BG41: ='National Shipments'!AD41/'National Shipments'!AD$45 -> 0.4089735059 | BH41: ='National Shipments'!AE41/'National Shipments'!AE$45 -> 0.2736616248
D42: EL3 | E42: 10.9 | G42: 0.0142 | H42: 0.0142 | I42: 0.0142 | J42: 0.0142 | K42: 0.0142 | L42: 0.0142 | M42: 0.0142 | N42: 0.0142 | O42: 0.0142 | P42: 0.0142 | Q42: 0.0142 | R42: 0.0142 | S42: 0.0142 | T42: 0.0142 | U42: 0.0142 | V42: 0.0142 | W42: 0.0142 | X42: 0.0142 | Y42: 0.0142 | Z42: 0.0142 | AA42: 0.0142 | AB42: 0.0142 | AC42: 0.0142 | AD42: 0.0142 | AE42: 0.0142 | AF42: 0.0142 | AG42: 0.0142 | AH42: 0.0142 | AI42: ='National Shipments'!F42/'National Shipments'!F$45 -> 0.0142 | AJ42: ='National Shipments'!G42/'National Shipments'!G$45 -> 0.0142 | AK42: ='National Shipments'!H42/'National Shipments'!H$45 -> 0.0142 | AL42: ='National Shipments'!I42/'National Shipments'!I$45 -> 0.0142 | AM42: ='National Shipments'!J42/'National Shipments'!J$45 -> 0.0142 | AN42: ='National Shipments'!K42/'National Shipments'!K$45 -> 0.0142 | AO42: ='National Shipments'!L42/'National Shipments'!L$45 -> 0.0142 | AP42: ='National Shipments'!M42/'National Shipments'!M$45 -> 0.0142 | AQ42: ='National Shipments'!N42/'National Shipments'!N$45 -> 0.0142 | AR42: ='National Shipments'!O42/'National Shipments'!O$45 -> 0.0142 | AS42: ='National Shipments'!P42/'National Shipments'!P$45 -> 0.0142 | AT42: ='National Shipments'!Q42/'National Shipments'!Q$45 -> 0.0142 | AU42: ='National Shipments'!R42/'National Shipments'!R$45 -> 0.0142 | AV42: ='National Shipments'!S42/'National Shipments'!S$45 -> 0.0142 | AW42: ='National Shipments'!T42/'National Shipments'!T$45 -> 0.0142 | AX42: ='National Shipments'!U42/'National Shipments'!U$45 -> 0.0142 | AY42: ='National Shipments'!V42/'National Shipments'!V$45 -> 0.0142 | AZ42: ='National Shipments'!W42/'National Shipments'!W$45 -> 0.0142 | BA42: ='National Shipments'!X42/'National Shipments'!X$45 -> 0.0142 | BB42: ='National Shipments'!Y42/'National Shipments'!Y$45 -> 0.0142 | BC42: ='National Shipments'!Z42/'National Shipments'!Z$45 -> 0.04544492649 | BD42: ='National Shipments'!AA42/'National Shipments'!AA$45 -> 0.1794121037 | BE42: ='National Shipments'!AB42/'National Shipments'!AB$45 -> 0.3137141988 | BF42: ='National Shipments'!AC42/'National Shipments'!AC$45 -> 0.4483520491 | BG42: ='National Shipments'!AD42/'National Shipments'!AD$45 -> 0.5833264941 | BH42: ='National Shipments'!AE42/'National Shipments'!AE$45 -> 0.7186383752
D43: EL4 | E43: 11.5 | G43: 0.0031 | H43: 0.0031 | I43: 0.0031 | J43: 0.0031 | K43: 0.0031 | L43: 0.0031 | M43: 0.0031 | N43: 0.0031 | O43: 0.0031 | P43: 0.0031 | Q43: 0.0031 | R43: 0.0031 | S43: 0.0031 | T43: 0.0031 | U43: 0.0031 | V43: 0.0031 | W43: 0.0031 | X43: 0.0031 | Y43: 0.0031 | Z43: 0.0031 | AA43: 0.0031 | AB43: 0.0031 | AC43: 0.0031 | AD43: 0.0031 | AE43: 0.0031 | AF43: 0.0031 | AG43: 0.0031 | AH43: 0.0031 | AI43: ='National Shipments'!F43/'National Shipments'!F$45 -> 0.0031 | AJ43: ='National Shipments'!G43/'National Shipments'!G$45 -> 0.0031 | AK43: ='National Shipments'!H43/'National Shipments'!H$45 -> 0.0031 | AL43: ='National Shipments'!I43/'National Shipments'!I$45 -> 0.0031 | AM43: ='National Shipments'!J43/'National Shipments'!J$45 -> 0.0031 | AN43: ='National Shipments'!K43/'National Shipments'!K$45 -> 0.0031 | AO43: ='National Shipments'!L43/'National Shipments'!L$45 -> 0.0031 | AP43: ='National Shipments'!M43/'National Shipments'!M$45 -> 0.0031 | AQ43: ='National Shipments'!N43/'National Shipments'!N$45 -> 0.0031 | AR43: ='National Shipments'!O43/'National Shipments'!O$45 -> 0.0031 | AS43: ='National Shipments'!P43/'National Shipments'!P$45 -> 0.0031 | AT43: ='National Shipments'!Q43/'National Shipments'!Q$45 -> 0.0031 | AU43: ='National Shipments'!R43/'National Shipments'!R$45 -> 0.0031 | AV43: ='National Shipments'!S43/'National Shipments'!S$45 -> 0.0031 | AW43: ='National Shipments'!T43/'National Shipments'!T$45 -> 0.0031 | AX43: ='National Shipments'!U43/'National Shipments'!U$45 -> 0.0031 | AY43: ='National Shipments'!V43/'National Shipments'!V$45 -> 0.0031 | AZ43: ='National Shipments'!W43/'National Shipments'!W$45 -> 0.0031 | BA43: ='National Shipments'!X43/'National Shipments'!X$45 -> 0.0031 | BB43: ='National Shipments'!Y43/'National Shipments'!Y$45 -> 0.0031 | BC43: ='National Shipments'!Z43/'National Shipments'!Z$45 -> 0.0031 | BD43: ='National Shipments'!AA43/'National Shipments'!AA$45 -> 0.0031 | BE43: ='National Shipments'!AB43/'National Shipments'!AB$45 -> 0.0031 | BF43: ='National Shipments'!AC43/'National Shipments'!AC$45 -> 0.0031 | BG43: ='National Shipments'!AD43/'National Shipments'!AD$45 -> 0.0031 | BH43: ='National Shipments'!AE43/'National Shipments'!AE$45 -> 0.0031
D44: EL5 | E44: 11.9619975 | G44: 0.0046 | H44: 0.0046 | I44: 0.0046 | J44: 0.0046 | K44: 0.0046 | L44: 0.0046 | M44: 0.0046 | N44: 0.0046 | O44: 0.0046 | P44: 0.0046 | Q44: 0.0046 | R44: 0.0046 | S44: 0.0046 | T44: 0.0046 | U44: 0.0046 | V44: 0.0046 | W44: 0.0046 | X44: 0.0046 | Y44: 0.0046 | Z44: 0.0046 | AA44: 0.0046 | AB44: 0.0046 | AC44: 0.0046 | AD44: 0.0046 | AE44: 0.0046 | AF44: 0.0046 | AG44: 0.0046 | AH44: 0.0046 | AI44: ='National Shipments'!F44/'National Shipments'!F$45 -> 0.0046 | AJ44: ='National Shipments'!G44/'National Shipments'!G$45 -> 0.0046 | AK44: ='National Shipments'!H44/'National Shipments'!H$45 -> 0.0046 | AL44: ='National Shipments'!I44/'National Shipments'!I$45 -> 0.0046 | AM44: ='National Shipments'!J44/'National Shipments'!J$45 -> 0.0046 | AN44: ='National Shipments'!K44/'National Shipments'!K$45 -> 0.0046 | AO44: ='National Shipments'!L44/'National Shipments'!L$45 -> 0.0046 | AP44: ='National Shipments'!M44/'National Shipments'!M$45 -> 0.0046 | AQ44: ='National Shipments'!N44/'National Shipments'!N$45 -> 0.0046 | AR44: ='National Shipments'!O44/'National Shipments'!O$45 -> 0.0046 | AS44: ='National Shipments'!P44/'National Shipments'!P$45 -> 0.0046 | AT44: ='National Shipments'!Q44/'National Shipments'!Q$45 -> 0.0046 | AU44: ='National Shipments'!R44/'National Shipments'!R$45 -> 0.0046 | AV44: ='National Shipments'!S44/'National Shipments'!S$45 -> 0.0046 | AW44: ='National Shipments'!T44/'National Shipments'!T$45 -> 0.0046 | AX44: ='National Shipments'!U44/'National Shipments'!U$45 -> 0.0046 | AY44: ='National Shipments'!V44/'National Shipments'!V$45 -> 0.0046 | AZ44: ='National Shipments'!W44/'National Shipments'!W$45 -> 0.0046 | BA44: ='National Shipments'!X44/'National Shipments'!X$45 -> 0.0046 | BB44: ='National Shipments'!Y44/'National Shipments'!Y$45 -> 0.0046 | BC44: ='National Shipments'!Z44/'National Shipments'!Z$45 -> 0.0046 | BD44: ='National Shipments'!AA44/'National Shipments'!AA$45 -> 0.0046 | BE44: ='National Shipments'!AB44/'National Shipments'!AB$45 -> 0.0046 | BF44: ='National Shipments'!AC44/'National Shipments'!AC$45 -> 0.0046 | BG44: ='National Shipments'!AD44/'National Shipments'!AD$45 -> 0.0046 | BH44: ='National Shipments'!AE44/'National Shipments'!AE$45 -> 0.0046
D45: TOTAL | G45: 1 | H45: 1 | I45: 1 | J45: 1 | K45: 1 | L45: 1 | M45: 1 | N45: 1 | O45: 1 | P45: 1 | Q45: 1 | R45: 1 | S45: 1 | T45: 1 | U45: 1 | V45: 1 | W45: 1 | X45: 1 | Y45: 1 | Z45: 1 | AA45: 1 | AB45: 1 | AC45: 1 | AD45: 1 | AE45: 1 | AF45: 1 | AG45: 1 | AH45: 1 | AI45: ='National Shipments'!F45/'National Shipments'!F$45 -> 1 | AJ45: ='National Shipments'!G45/'National Shipments'!G$45 -> 1 | AK45: ='National Shipments'!H45/'National Shipments'!H$45 -> 1 | AL45: ='National Shipments'!I45/'National Shipments'!I$45 -> 1 | AM45: ='National Shipments'!J45/'National Shipments'!J$45 -> 1 | AN45: ='National Shipments'!K45/'National Shipments'!K$45 -> 1 | AO45: ='National Shipments'!L45/'National Shipments'!L$45 -> 1 | AP45: ='National Shipments'!M45/'National Shipments'!M$45 -> 1 | AQ45: ='National Shipments'!N45/'National Shipments'!N$45 -> 1 | AR45: ='National Shipments'!O45/'National Shipments'!O$45 -> 1 | AS45: ='National Shipments'!P45/'National Shipments'!P$45 -> 1 | AT45: ='National Shipments'!Q45/'National Shipments'!Q$45 -> 1 | AU45: ='National Shipments'!R45/'National Shipments'!R$45 -> 1 | AV45: ='National Shipments'!S45/'National Shipments'!S$45 -> 1 | AW45: ='National Shipments'!T45/'National Shipments'!T$45 -> 1 | AX45: ='National Shipments'!U45/'National Shipments'!U$45 -> 1 | AY45: ='National Shipments'!V45/'National Shipments'!V$45 -> 1 | AZ45: ='National Shipments'!W45/'National Shipments'!W$45 -> 1 | BA45: ='National Shipments'!X45/'National Shipments'!X$45 -> 1 | BB45: ='National Shipments'!Y45/'National Shipments'!Y$45 -> 1 | BC45: ='National Shipments'!Z45/'National Shipments'!Z$45 -> 1 | BD45: ='National Shipments'!AA45/'National Shipments'!AA$45 -> 1 | BE45: ='National Shipments'!AB45/'National Shipments'!AB$45 -> 1 | BF45: ='National Shipments'!AC45/'National Shipments'!AC$45 -> 1 | BG45: ='National Shipments'!AD45/'National Shipments'!AD$45 -> 1 | BH45: ='National Shipments'!AE45/'National Shipments'!AE$45 -> 1
D47: POST-Case
D48: Efficiency Level | E48: CEER | G48: 1981 | H48: 1982 | I48: 1983 | J48: 1984 | K48: 1985 | L48: 1986 | M48: 1987 | N48: 1988 | O48: 1989 | P48: 1990 | Q48: 1991 | R48: 1992 | S48: 1993 | T48: 1994 | U48: 1995 | V48: 1996 | W48: 1997 | X48: 1998 | Y48: 1999 | Z48: 2000 | AA48: 2001 | AB48: 2002 | AC48: 2003 | AD48: 2004 | AE48: 2005 | AF48: 2006 | AG48: 2007 | AH48: 2008 | AI48: 2009 | AJ48: 2010 | AK48: 2011 | AL48: 2012 | AM48: 2013 | AN48: 2014 | AO48: 2015 | AP48: 2016 | AQ48: 2017 | AR48: 2018 | AS48: 2019 | AT48: 2020 | AU48: 2021 | AV48: 2022 | AW48: 2023 | AX48: 2024 | AY48: 2025 | AZ48: 2026 | BA48: 2027 | BB48: 2028 | BC48: 2029 | BD48: 2030 | BE48: 2031 | BF48: 2032 | BG48: 2033 | BH48: 2034
D49: EL0 | E49: =INDEX(EFFICIENCY_LEVELS,RIGHT(D49,1)+1,MID($D$35,3,1)) -> 9.686701434 | G49: =H49 -> 0.3705 | H49: 0.3705 | I49: 0.3705 | J49: 0.3705 | K49: 0.3705 | L49: 0.3705 | M49: 0.3705 | N49: 0.3705 | O49: 0.3705 | P49: 0.3705 | Q49: 0.3705 | R49: 0.3705 | S49: 0.3705 | T49: 0.3705 | U49: 0.3705 | V49: 0.3705 | W49: 0.3705 | X49: 0.3705 | Y49: 0.3705 | Z49: 0.3705 | AA49: 0.3705 | AB49: 0.3705 | AC49: 0.3705 | AD49: 0.3705 | AE49: 0.3705 | AF49: 0.3705 | AG49: 0.3705 | AH49: =AI49 -> 0.3705 | AI49: ='National Shipments'!F49/'National Shipments'!F$55 -> 0.3705 | AJ49: ='National Shipments'!G49/'National Shipments'!G$55 -> 0.3705 | AK49: ='National Shipments'!H49/'National Shipments'!H$55 -> 0.3705 | AL49: ='National Shipments'!I49/'National Shipments'!I$55 -> 0.3705 | AM49: ='National Shipments'!J49/'National Shipments'!J$55 -> 0.3705 | AN49: ='National Shipments'!K49/'National Shipments'!K$55 -> 0 | AO49: ='National Shipments'!L49/'National Shipments'!L$55 -> 0 | AP49: ='National Shipments'!M49/'National Shipments'!M$55 -> 0 | AQ49: ='National Shipments'!N49/'National Shipments'!N$55 -> 0 | AR49: ='National Shipments'!O49/'National Shipments'!O$55 -> 0 | AS49: ='National Shipments'!P49/'National Shipments'!P$55 -> 0 | AT49: ='National Shipments'!Q49/'National Shipments'!Q$55 -> 0 | AU49: ='National Shipments'!R49/'National Shipments'!R$55 -> 0 | AV49: ='National Shipments'!S49/'National Shipments'!S$55 -> 0 | AW49: ='National Shipments'!T49/'National Shipments'!T$55 -> 0 | AX49: ='National Shipments'!U49/'National Shipments'!U$55 -> 0 | AY49: ='National Shipments'!V49/'National Shipments'!V$55 -> 0 | AZ49: ='National Shipments'!W49/'National Shipments'!W$55 -> 0 | BA49: ='National Shipments'!X49/'National Shipments'!X$55 -> 0 | BB49: ='National Shipments'!Y49/'National Shipments'!Y$55 -> 0 | BC49: ='National Shipments'!Z49/'National Shipments'!Z$55 -> 0 | BD49: ='National Shipments'!AA49/'National Shipments'!AA$55 -> 0 | BE49: ='National Shipments'!AB49/'National Shipments'!AB$55 -> 0 | BF49: ='National Shipments'!AC49/'National Shipments'!AC$55 -> 0 | BG49: ='National Shipments'!AD49/'National Shipments'!AD$55 -> 0 | BH49: ='National Shipments'!AE49/'National Shipments'!AE$55 -> 0
D50: EL1 | E50: 10.2 | G50: =H50 -> 0.0246 | H50: 0.0246 | I50: 0.0246 | J50: 0.0246 | K50: 0.0246 | L50: 0.0246 | M50: 0.0246 | N50: 0.0246 | O50: 0.0246 | P50: 0.0246 | Q50: 0.0246 | R50: 0.0246 | S50: 0.0246 | T50: 0.0246 | U50: 0.0246 | V50: 0.0246 | W50: 0.0246 | X50: 0.0246 | Y50: 0.0246 | Z50: 0.0246 | AA50: 0.0246 | AB50: 0.0246 | AC50: 0.0246 | AD50: 0.0246 | AE50: 0.0246 | AF50: 0.0246 | AG50: 0.0246 | AH50: 0.0246 | AI50: ='National Shipments'!F50/'National Shipments'!F$55 -> 0.0246 | AJ50: ='National Shipments'!G50/'National Shipments'!G$55 -> 0.0246 | AK50: ='National Shipments'!H50/'National Shipments'!H$55 -> 0.0246 | AL50: ='National Shipments'!I50/'National Shipments'!I$55 -> 0.0246 | AM50: ='National Shipments'!J50/'National Shipments'!J$55 -> 0.0246 | AN50: ='National Shipments'!K50/'National Shipments'!K$55 -> 0 | AO50: ='National Shipments'!L50/'National Shipments'!L$55 -> 0 | AP50: ='National Shipments'!M50/'National Shipments'!M$55 -> 0 | AQ50: ='National Shipments'!N50/'National Shipments'!N$55 -> 0 | AR50: ='National Shipments'!O50/'National Shipments'!O$55 -> 0 | AS50: ='National Shipments'!P50/'National Shipments'!P$55 -> 0 | AT50: ='National Shipments'!Q50/'National Shipments'!Q$55 -> 0 | AU50: ='National Shipments'!R50/'National Shipments'!R$55 -> 0 | AV50: ='National Shipments'!S50/'National Shipments'!S$55 -> 0 | AW50: ='National Shipments'!T50/'National Shipments'!T$55 -> 0 | AX50: ='National Shipments'!U50/'National Shipments'!U$55 -> 0 | AY50: ='National Shipments'!V50/'National Shipments'!V$55 -> 0 | AZ50: ='National Shipments'!W50/'National Shipments'!W$55 -> 0 | BA50: ='National Shipments'!X50/'National Shipments'!X$55 -> 0 | BB50: ='National Shipments'!Y50/'National Shipments'!Y$55 -> 0 | BC50: ='National Shipments'!Z50/'National Shipments'!Z$55 -> 0 | BD50: ='National Shipments'!AA50/'National Shipments'!AA$55 -> 0 | BE50: ='National Shipments'!AB50/'National Shipments'!AB$55 -> 0 | BF50: ='National Shipments'!AC50/'National Shipments'!AC$55 -> 0 | BG50: ='National Shipments'!AD50/'National Shipments'!AD$55 -> 0 | BH50: ='National Shipments'!AE50/'National Shipments'!AE$55 -> 0
D51: EL2 | E51: 10.7 | G51: =H51 -> 0.583 | H51: 0.583 | I51: 0.583 | J51: 0.583 | K51: 0.583 | L51: 0.583 | M51: 0.583 | N51: 0.583 | O51: 0.583 | P51: 0.583 | Q51: 0.583 | R51: 0.583 | S51: 0.583 | T51: 0.583 | U51: 0.583 | V51: 0.583 | W51: 0.583 | X51: 0.583 | Y51: 0.583 | Z51: 0.583 | AA51: 0.583 | AB51: 0.583 | AC51: 0.583 | AD51: 0.583 | AE51: 0.583 | AF51: 0.583 | AG51: 0.583 | AH51: 0.583 | AI51: ='National Shipments'!F51/'National Shipments'!F$55 -> 0.583 | AJ51: ='National Shipments'!G51/'National Shipments'!G$55 -> 0.583 | AK51: ='National Shipments'!H51/'National Shipments'!H$55 -> 0.583 | AL51: ='National Shipments'!I51/'National Shipments'!I$55 -> 0.583 | AM51: ='National Shipments'!J51/'National Shipments'!J$55 -> 0.583 | AN51: ='National Shipments'!K51/'National Shipments'!K$55 -> 0 | AO51: ='National Shipments'!L51/'National Shipments'!L$55 -> 0 | AP51: ='National Shipments'!M51/'National Shipments'!M$55 -> 0 | AQ51: ='National Shipments'!N51/'National Shipments'!N$55 -> 0 | AR51: ='National Shipments'!O51/'National Shipments'!O$55 -> 0 | AS51: ='National Shipments'!P51/'National Shipments'!P$55 -> 0 | AT51: ='National Shipments'!Q51/'National Shipments'!Q$55 -> 0 | AU51: ='National Shipments'!R51/'National Shipments'!R$55 -> 0 | AV51: ='National Shipments'!S51/'National Shipments'!S$55 -> 0 | AW51: ='National Shipments'!T51/'National Shipments'!T$55 -> 0 | AX51: ='National Shipments'!U51/'National Shipments'!U$55 -> 0 | AY51: ='National Shipments'!V51/'National Shipments'!V$55 -> 0 | AZ51: ='National Shipments'!W51/'National Shipments'!W$55 -> 0 | BA51: ='National Shipments'!X51/'National Shipments'!X$55 -> 0 | BB51: ='National Shipments'!Y51/'National Shipments'!Y$55 -> 0 | BC51: ='National Shipments'!Z51/'National Shipments'!Z$55 -> 0 | BD51: ='National Shipments'!AA51/'National Shipments'!AA$55 -> 0 | BE51: ='National Shipments'!AB51/'National Shipments'!AB$55 -> 0 | BF51: ='National Shipments'!AC51/'National Shipments'!AC$55 -> 0 | BG51: ='National Shipments'!AD51/'National Shipments'!AD$55 -> 0 | BH51: ='National Shipments'!AE51/'National Shipments'!AE$55 -> 0
D52: EL3 | E52: 10.9 | G52: =H52 -> 0.0142 | H52: 0.0142 | I52: 0.0142 | J52: 0.0142 | K52: 0.0142 | L52: 0.0142 | M52: 0.0142 | N52: 0.0142 | O52: 0.0142 | P52: 0.0142 | Q52: 0.0142 | R52: 0.0142 | S52: 0.0142 | T52: 0.0142 | U52: 0.0142 | V52: 0.0142 | W52: 0.0142 | X52: 0.0142 | Y52: 0.0142 | Z52: 0.0142 | AA52: 0.0142 | AB52: 0.0142 | AC52: 0.0142 | AD52: 0.0142 | AE52: 0.0142 | AF52: 0.0142 | AG52: 0.0142 | AH52: 0.0142 | AI52: ='National Shipments'!F52/'National Shipments'!F$55 -> 0.0142 | AJ52: ='National Shipments'!G52/'National Shipments'!G$55 -> 0.0142 | AK52: ='National Shipments'!H52/'National Shipments'!H$55 -> 0.0142 | AL52: ='National Shipments'!I52/'National Shipments'!I$55 -> 0.0142 | AM52: ='National Shipments'!J52/'National Shipments'!J$55 -> 0.0142 | AN52: ='National Shipments'!K52/'National Shipments'!K$55 -> 0.9923 | AO52: ='National Shipments'!L52/'National Shipments'!L$55 -> 0.9733229111 | AP52: ='National Shipments'!M52/'National Shipments'!M$55 -> 0.9635079746 | AQ52: ='National Shipments'!N52/'National Shipments'!N$55 -> 0.9536685007 | AR52: ='National Shipments'!O52/'National Shipments'!O$55 -> 0.9438044282 | AS52: ='National Shipments'!P52/'National Shipments'!P$55 -> 0.9339156954 | AT52: ='National Shipments'!Q52/'National Shipments'!Q$55 -> 0.9240022409 | AU52: ='National Shipments'!R52/'National Shipments'!R$55 -> 0.9140640026 | AV52: ='National Shipments'!S52/'National Shipments'!S$55 -> 0.8980163626 | AW52: ='National Shipments'!T52/'National Shipments'!T$55 -> 0.8791806348 | AX52: ='National Shipments'!U52/'National Shipments'!U$55 -> 0.8602978178 | AY52: ='National Shipments'!V52/'National Shipments'!V$55 -> 0.8413677936 | AZ52: ='National Shipments'!W52/'National Shipments'!W$55 -> 0.8223904445 | BA52: ='National Shipments'!X52/'National Shipments'!X$55 -> 0.8033656519 | BB52: ='National Shipments'!Y52/'National Shipments'!Y$55 -> 0.7842932974 | BC52: ='National Shipments'!Z52/'National Shipments'!Z$55 -> 0.7649366732 | BD52: ='National Shipments'!AA52/'National Shipments'!AA$55 -> 0.7447544291 | BE52: ='National Shipments'!AB52/'National Shipments'!AB$55 -> 0.7245217293 | BF52: ='National Shipments'!AC52/'National Shipments'!AC$55 -> 0.7042384477 | BG52: ='National Shipments'!AD52/'National Shipments'!AD$55 -> 0.683904458 | BH52: ='National Shipments'!AE52/'National Shipments'!AE$55 -> 0.6635196333
D53: EL4 | E53: 11.5 | G53: =H53 -> 0.0031 | H53: 0.0031 | I53: 0.0031 | J53: 0.0031 | K53: 0.0031 | L53: 0.0031 | M53: 0.0031 | N53: 0.0031 | O53: 0.0031 | P53: 0.0031 | Q53: 0.0031 | R53: 0.0031 | S53: 0.0031 | T53: 0.0031 | U53: 0.0031 | V53: 0.0031 | W53: 0.0031 | X53: 0.0031 | Y53: 0.0031 | Z53: 0.0031 | AA53: 0.0031 | AB53: 0.0031 | AC53: 0.0031 | AD53: 0.0031 | AE53: 0.0031 | AF53: 0.0031 | AG53: 0.0031 | AH53: 0.0031 | AI53: ='National Shipments'!F53/'National Shipments'!F$55 -> 0.0031 | AJ53: ='National Shipments'!G53/'National Shipments'!G$55 -> 0.0031 | AK53: ='National Shipments'!H53/'National Shipments'!H$55 -> 0.0031 | AL53: ='National Shipments'!I53/'National Shipments'!I$55 -> 0.0031 | AM53: ='National Shipments'!J53/'National Shipments'!J$55 -> 0.0031 | AN53: ='National Shipments'!K53/'National Shipments'!K$55 -> 0.0031 | AO53: ='National Shipments'!L53/'National Shipments'!L$55 -> 0.02207708887 | AP53: ='National Shipments'!M53/'National Shipments'!M$55 -> 0.0318920254 | AQ53: ='National Shipments'!N53/'National Shipments'!N$55 -> 0.04173149927 | AR53: ='National Shipments'!O53/'National Shipments'!O$55 -> 0.05159557183 | AS53: ='National Shipments'!P53/'National Shipments'!P$55 -> 0.06148430458 | AT53: ='National Shipments'!Q53/'National Shipments'!Q$55 -> 0.07139775915 | AU53: ='National Shipments'!R53/'National Shipments'!R$55 -> 0.08133599736 | AV53: ='National Shipments'!S53/'National Shipments'!S$55 -> 0.09738363741 | AW53: ='National Shipments'!T53/'National Shipments'!T$55 -> 0.1162193652 | AX53: ='National Shipments'!U53/'National Shipments'!U$55 -> 0.1351021822 | AY53: ='National Shipments'!V53/'National Shipments'!V$55 -> 0.1540322064 | AZ53: ='National Shipments'!W53/'National Shipments'!W$55 -> 0.1730095555 | BA53: ='National Shipments'!X53/'National Shipments'!X$55 -> 0.1920343481 | BB53: ='National Shipments'!Y53/'National Shipments'!Y$55 -> 0.2111067026 | BC53: ='National Shipments'!Z53/'National Shipments'!Z$55 -> 0.2304633268 | BD53: ='National Shipments'!AA53/'National Shipments'!AA$55 -> 0.2506455709 | BE53: ='National Shipments'!AB53/'National Shipments'!AB$55 -> 0.2708782707 | BF53: ='National Shipments'!AC53/'National Shipments'!AC$55 -> 0.2911615523 | BG53: ='National Shipments'!AD53/'National Shipments'!AD$55 -> 0.311495542 | BH53: ='National Shipments'!AE53/'National Shipments'!AE$55 -> 0.3318803667
D54: EL5 | E54: 11.9619975 | G54: =H54 -> 0.0046 | H54: 0.0046 | I54: 0.0046 | J54: 0.0046 | K54: 0.0046 | L54: 0.0046 | M54: 0.0046 | N54: 0.0046 | O54: 0.0046 | P54: 0.0046 | Q54: 0.0046 | R54: 0.0046 | S54: 0.0046 | T54: 0.0046 | U54: 0.0046 | V54: 0.0046 | W54: 0.0046 | X54: 0.0046 | Y54: 0.0046 | Z54: 0.0046 | AA54: 0.0046 | AB54: 0.0046 | AC54: 0.0046 | AD54: 0.0046 | AE54: 0.0046 | AF54: 0.0046 | AG54: 0.0046 | AH54: 0.0046 | AI54: ='National Shipments'!F54/'National Shipments'!F$55 -> 0.0046 | AJ54: ='National Shipments'!G54/'National Shipments'!G$55 -> 0.0046 | AK54: ='National Shipments'!H54/'National Shipments'!H$55 -> 0.0046 | AL54: ='National Shipments'!I54/'National Shipments'!I$55 -> 0.0046 | AM54: ='National Shipments'!J54/'National Shipments'!J$55 -> 0.0046 | AN54: ='National Shipments'!K54/'National Shipments'!K$55 -> 0.0046 | AO54: ='National Shipments'!L54/'National Shipments'!L$55 -> 0.0046 | AP54: ='National Shipments'!M54/'National Shipments'!M$55 -> 0.0046 | AQ54: ='National Shipments'!N54/'National Shipments'!N$55 -> 0.0046 | AR54: ='National Shipments'!O54/'National Shipments'!O$55 -> 0.0046 | AS54: ='National Shipments'!P54/'National Shipments'!P$55 -> 0.0046 | AT54: ='National Shipments'!Q54/'National Shipments'!Q$55 -> 0.0046 | AU54: ='National Shipments'!R54/'National Shipments'!R$55 -> 0.0046 | AV54: ='National Shipments'!S54/'National Shipments'!S$55 -> 0.0046 | AW54: ='National Shipments'!T54/'National Shipments'!T$55 -> 0.0046 | AX54: ='National Shipments'!U54/'National Shipments'!U$55 -> 0.0046 | AY54: ='National Shipments'!V54/'National Shipments'!V$55 -> 0.0046 | AZ54: ='National Shipments'!W54/'National Shipments'!W$55 -> 0.0046 | BA54: ='National Shipments'!X54/'National Shipments'!X$55 -> 0.0046 | BB54: ='National Shipments'!Y54/'National Shipments'!Y$55 -> 0.0046 | BC54: ='National Shipments'!Z54/'National Shipments'!Z$55 -> 0.0046 | BD54: ='National Shipments'!AA54/'National Shipments'!AA$55 -> 0.0046 | BE54: ='National Shipments'!AB54/'National Shipments'!AB$55 -> 0.0046 | BF54: ='National Shipments'!AC54/'National Shipments'!AC$55 -> 0.0046 | BG54: ='National Shipments'!AD54/'National Shipments'!AD$55 -> 0.0046 | BH54: ='National Shipments'!AE54/'National Shipments'!AE$55 -> 0.0046
D55: TOTAL | G55: =H55 -> 1 | H55: 1 | I55: 1 | J55: 1 | K55: 1 | L55: 1 | M55: 1 | N55: 1 | O55: 1 | P55: 1 | Q55: 1 | R55: 1 | S55: 1 | T55: 1 | U55: 1 | V55: 1 | W55: 1 | X55: 1 | Y55: 1 | Z55: 1 | AA55: 1 | AB55: 1 | AC55: 1 | AD55: 1 | AE55: 1 | AF55: 1 | AG55: 1 | AH55: 1 | AI55: ='National Shipments'!F55/'National Shipments'!F$55 -> 1 | AJ55: ='National Shipments'!G55/'National Shipments'!G$55 -> 1 | AK55: ='National Shipments'!H55/'National Shipments'!H$55 -> 1 | AL55: ='National Shipments'!I55/'National Shipments'!I$55 -> 1 | AM55: ='National Shipments'!J55/'National Shipments'!J$55 -> 1 | AN55: ='National Shipments'!K55/'National Shipments'!K$55 -> 1 | AO55: ='National Shipments'!L55/'National Shipments'!L$55 -> 1 | AP55: ='National Shipments'!M55/'National Shipments'!M$55 -> 1 | AQ55: ='National Shipments'!N55/'National Shipments'!N$55 -> 1 | AR55: ='National Shipments'!O55/'National Shipments'!O$55 -> 1 | AS55: ='National Shipments'!P55/'National Shipments'!P$55 -> 1 | AT55: ='National Shipments'!Q55/'National Shipments'!Q$55 -> 1 | AU55: ='National Shipments'!R55/'National Shipments'!R$55 -> 1 | AV55: ='National Shipments'!S55/'National Shipments'!S$55 -> 1 | AW55: ='National Shipments'!T55/'National Shipments'!T$55 -> 1 | AX55: ='National Shipments'!U55/'National Shipments'!U$55 -> 1 | AY55: ='National Shipments'!V55/'National Shipments'!V$55 -> 1 | AZ55: ='National Shipments'!W55/'National Shipments'!W$55 -> 1 | BA55: ='National Shipments'!X55/'National Shipments'!X$55 -> 1 | BB55: ='National Shipments'!Y55/'National Shipments'!Y$55 -> 1 | BC55: ='National Shipments'!Z55/'National Shipments'!Z$55 -> 1 | BD55: ='National Shipments'!AA55/'National Shipments'!AA$55 -> 1 | BE55: ='National Shipments'!AB55/'National Shipments'!AB$55 -> 1 | BF55: ='National Shipments'!AC55/'National Shipments'!AC$55 -> 1 | BG55: ='National Shipments'!AD55/'National Shipments'!AD$55 -> 1 | BH55: ='National Shipments'!AE55/'National Shipments'!AE$55 -> 1
D57: Sources | E57: 2011 DOE Residential Room Air Conditioners Direct Final Rule Government Regulatory Impact Model 'Product Shipments (CALC)' tab.
D61: PC3 Without reverse cycle, with louvered sides, and 20,000 to 24,999 Btu/h
D63: PRE-Case
D64: Efficiency Level | E64: CEER | G64: 1981 | H64: 1982 | I64: 1983 | J64: 1984 | K64: 1985 | L64: 1986 | M64: 1987 | N64: 1988 | O64: 1989 | P64: 1990 | Q64: 1991 | R64: 1992 | S64: 1993 | T64: 1994 | U64: 1995 | V64: 1996 | W64: 1997 | X64: 1998 | Y64: 1999 | Z64: 2000 | AA64: 2001 | AB64: 2002 | AC64: 2003 | AD64: 2004 | AE64: 2005 | AF64: 2006 | AG64: 2007 | AH64: 2008 | AI64: 2009 | AJ64: 2010 | AK64: 2011 | AL64: 2012 | AM64: 2013 | AN64: 2014 | AO64: 2015 | AP64: 2016 | AQ64: 2017 | AR64: 2018 | AS64: 2019 | AT64: 2020 | AU64: 2021 | AV64: 2022 | AW64: 2023 | AX64: 2024 | AY64: 2025 | AZ64: 2026 | BA64: 2027 | BB64: 2028 | BC64: 2029 | BD64: 2030 | BE64: 2031 | BF64: 2032 | BG64: 2033 | BH64: 2034
D65: EL0 | E65: =INDEX(EFFICIENCY_LEVELS,RIGHT(D65,1)+1,MID($D$61,3,1)) -> 8.471353412 | G65: =H65 -> 0.1321 | H65: 0.1321 | I65: 0.1321 | J65: 0.1321 | K65: 0.1321 | L65: 0.1321 | M65: 0.1321 | N65: 0.1321 | O65: 0.1321 | P65: 0.1321 | Q65: 0.1321 | R65: 0.1321 | S65: 0.1321 | T65: 0.1321 | U65: 0.1321 | V65: 0.1321 | W65: 0.1321 | X65: 0.1321 | Y65: 0.1321 | Z65: 0.1321 | AA65: 0.1321 | AB65: 0.1321 | AC65: 0.1321 | AD65: 0.1321 | AE65: 0.1321 | AF65: 0.1321 | AG65: 0.1321 | AH65: =AI65 -> 0.1321 | AI65: ='National Shipments'!F65/'National Shipments'!F$70 -> 0.1321 | AJ65: ='National Shipments'!G65/'National Shipments'!G$70 -> 0.1321 | AK65: ='National Shipments'!H65/'National Shipments'!H$70 -> 0.1321 | AL65: ='National Shipments'!I65/'National Shipments'!I$70 -> 0.1321 | AM65: ='National Shipments'!J65/'National Shipments'!J$70 -> 0.1321 | AN65: ='National Shipments'!K65/'National Shipments'!K$70 -> 0.1321 | AO65: ='National Shipments'!L65/'National Shipments'!L$70 -> 0.08814410413 | AP65: ='National Shipments'!M65/'National Shipments'!M$70 -> 0.04407831852 | AQ65: ='National Shipments'!N65/'National Shipments'!N$70 -> 0 | AR65: ='National Shipments'!O65/'National Shipments'!O$70 -> 0 | AS65: ='National Shipments'!P65/'National Shipments'!P$70 -> 0 | AT65: ='National Shipments'!Q65/'National Shipments'!Q$70 -> 0 | AU65: ='National Shipments'!R65/'National Shipments'!R$70 -> 0 | AV65: ='National Shipments'!S65/'National Shipments'!S$70 -> 0 | AW65: ='National Shipments'!T65/'National Shipments'!T$70 -> 0 | AX65: ='National Shipments'!U65/'National Shipments'!U$70 -> 0 | AY65: ='National Shipments'!V65/'National Shipments'!V$70 -> 0 | AZ65: ='National Shipments'!W65/'National Shipments'!W$70 -> 0 | BA65: ='National Shipments'!X65/'National Shipments'!X$70 -> 0 | BB65: ='National Shipments'!Y65/'National Shipments'!Y$70 -> 0 | BC65: ='National Shipments'!Z65/'National Shipments'!Z$70 -> 0 | BD65: ='National Shipments'!AA65/'National Shipments'!AA$70 -> 0 | BE65: ='National Shipments'!AB65/'National Shipments'!AB$70 -> 0 | BF65: ='National Shipments'!AC65/'National Shipments'!AC$70 -> 0 | BG65: ='National Shipments'!AD65/'National Shipments'!AD$70 -> 0 | BH65: ='National Shipments'!AE65/'National Shipments'!AE$70 -> 0
D66: EL1 | E66: =INDEX(EFFICIENCY_LEVELS,RIGHT(D66,1)+1,MID($D$61,3,1)) -> 9 | G66: 0.015 | H66: 0.015 | I66: 0.015 | J66: 0.015 | K66: 0.015 | L66: 0.015 | M66: 0.015 | N66: 0.015 | O66: 0.015 | P66: 0.015 | Q66: 0.015 | R66: 0.015 | S66: 0.015 | T66: 0.015 | U66: 0.015 | V66: 0.015 | W66: 0.015 | X66: 0.015 | Y66: 0.015 | Z66: 0.015 | AA66: 0.015 | AB66: 0.015 | AC66: 0.015 | AD66: 0.015 | AE66: 0.015 | AF66: 0.015 | AG66: 0.015 | AH66: =AI66 -> 0.015 | AI66: ='National Shipments'!F66/'National Shipments'!F$70 -> 0.015 | AJ66: ='National Shipments'!G66/'National Shipments'!G$70 -> 0.015 | AK66: ='National Shipments'!H66/'National Shipments'!H$70 -> 0.015 | AL66: ='National Shipments'!I66/'National Shipments'!I$70 -> 0.015 | AM66: ='National Shipments'!J66/'National Shipments'!J$70 -> 0.015 | AN66: ='National Shipments'!K66/'National Shipments'!K$70 -> 0.015 | AO66: ='National Shipments'!L66/'National Shipments'!L$70 -> 0.05895589587 | AP66: ='National Shipments'!M66/'National Shipments'!M$70 -> 0.1030216815 | AQ66: ='National Shipments'!N66/'National Shipments'!N$70 -> 0.1469709685 | AR66: ='National Shipments'!O66/'National Shipments'!O$70 -> 0.08844134623 | AS66: ='National Shipments'!P66/'National Shipments'!P$70 -> 0.02976539987 | AT66: ='National Shipments'!Q66/'National Shipments'!Q$70 -> 0 | AU66: ='National Shipments'!R66/'National Shipments'!R$70 -> 0 | AV66: ='National Shipments'!S66/'National Shipments'!S$70 -> 0 | AW66: ='National Shipments'!T66/'National Shipments'!T$70 -> 0 | AX66: ='National Shipments'!U66/'National Shipments'!U$70 -> 0 | AY66: ='National Shipments'!V66/'National Shipments'!V$70 -> 0 | AZ66: ='National Shipments'!W66/'National Shipments'!W$70 -> 0 | BA66: ='National Shipments'!X66/'National Shipments'!X$70 -> 0 | BB66: ='National Shipments'!Y66/'National Shipments'!Y$70 -> 0 | BC66: ='National Shipments'!Z66/'National Shipments'!Z$70 -> 0 | BD66: ='National Shipments'!AA66/'National Shipments'!AA$70 -> 0 | BE66: ='National Shipments'!AB66/'National Shipments'!AB$70 -> 0 | BF66: ='National Shipments'!AC66/'National Shipments'!AC$70 -> 0 | BG66: ='National Shipments'!AD66/'National Shipments'!AD$70 -> 0 | BH66: ='National Shipments'!AE66/'National Shipments'!AE$70 -> 0
D67: EL2 | E67: =INDEX(EFFICIENCY_LEVELS,RIGHT(D67,1)+1,MID($D$61,3,1)) -> 9.4 | G67: 0.8126 | H67: 0.8126 | I67: 0.8126 | J67: 0.8126 | K67: 0.8126 | L67: 0.8126 | M67: 0.8126 | N67: 0.8126 | O67: 0.8126 | P67: 0.8126 | Q67: 0.8126 | R67: 0.8126 | S67: 0.8126 | T67: 0.8126 | U67: 0.8126 | V67: 0.8126 | W67: 0.8126 | X67: 0.8126 | Y67: 0.8126 | Z67: 0.8126 | AA67: 0.8126 | AB67: 0.8126 | AC67: 0.8126 | AD67: 0.8126 | AE67: 0.8126 | AF67: 0.8126 | AG67: 0.8126 | AH67: 0.8126 | AI67: ='National Shipments'!F67/'National Shipments'!F$70 -> 0.8126 | AJ67: ='National Shipments'!G67/'National Shipments'!G$70 -> 0.8126 | AK67: ='National Shipments'!H67/'National Shipments'!H$70 -> 0.8126 | AL67: ='National Shipments'!I67/'National Shipments'!I$70 -> 0.8126 | AM67: ='National Shipments'!J67/'National Shipments'!J$70 -> 0.8126 | AN67: ='National Shipments'!K67/'National Shipments'!K$70 -> 0.8126 | AO67: ='National Shipments'!L67/'National Shipments'!L$70 -> 0.8126 | AP67: ='National Shipments'!M67/'National Shipments'!M$70 -> 0.8126 | AQ67: ='National Shipments'!N67/'National Shipments'!N$70 -> 0.8127290315 | AR67: ='National Shipments'!O67/'National Shipments'!O$70 -> 0.8712586538 | AS67: ='National Shipments'!P67/'National Shipments'!P$70 -> 0.9299346001 | AT67: ='National Shipments'!Q67/'National Shipments'!Q$70 -> 0.9306427636 | AU67: ='National Shipments'!R67/'National Shipments'!R$70 -> 0.8716730708 | AV67: ='National Shipments'!S67/'National Shipments'!S$70 -> 0.8125559538 | AW67: ='National Shipments'!T67/'National Shipments'!T$70 -> 0.753291044 | AX67: ='National Shipments'!U67/'National Shipments'!U$70 -> 0.6938779718 | AY67: ='National Shipments'!V67/'National Shipments'!V$70 -> 0.634316367 | AZ67: ='National Shipments'!W67/'National Shipments'!W$70 -> 0.5746058582 | BA67: ='National Shipments'!X67/'National Shipments'!X$70 -> 0.5147460732 | BB67: ='National Shipments'!Y67/'National Shipments'!Y$70 -> 0.4547366386 | BC67: ='National Shipments'!Z67/'National Shipments'!Z$70 -> 0.3945771805 | BD67: ='National Shipments'!AA67/'National Shipments'!AA$70 -> 0.3342673237 | BE67: ='National Shipments'!AB67/'National Shipments'!AB$70 -> 0.2738066923 | BF67: ='National Shipments'!AC67/'National Shipments'!AC$70 -> 0.2131949093 | BG67: ='National Shipments'!AD67/'National Shipments'!AD$70 -> 0.1524315969 | BH67: ='National Shipments'!AE67/'National Shipments'!AE$70 -> 0.09151637615
D68: EL3 | E68: =INDEX(EFFICIENCY_LEVELS,RIGHT(D68,1)+1,MID($D$61,3,1)) -> 9.8 | G68: 0.0194 | H68: 0.0194 | I68: 0.0194 | J68: 0.0194 | K68: 0.0194 | L68: 0.0194 | M68: 0.0194 | N68: 0.0194 | O68: 0.0194 | P68: 0.0194 | Q68: 0.0194 | R68: 0.0194 | S68: 0.0194 | T68: 0.0194 | U68: 0.0194 | V68: 0.0194 | W68: 0.0194 | X68: 0.0194 | Y68: 0.0194 | Z68: 0.0194 | AA68: 0.0194 | AB68: 0.0194 | AC68: 0.0194 | AD68: 0.0194 | AE68: 0.0194 | AF68: 0.0194 | AG68: 0.0194 | AH68: 0.0194 | AI68: ='National Shipments'!F68/'National Shipments'!F$70 -> 0.0194 | AJ68: ='National Shipments'!G68/'National Shipments'!G$70 -> 0.0194 | AK68: ='National Shipments'!H68/'National Shipments'!H$70 -> 0.0194 | AL68: ='National Shipments'!I68/'National Shipments'!I$70 -> 0.0194 | AM68: ='National Shipments'!J68/'National Shipments'!J$70 -> 0.0194 | AN68: ='National Shipments'!K68/'National Shipments'!K$70 -> 0.0194 | AO68: ='National Shipments'!L68/'National Shipments'!L$70 -> 0.0194 | AP68: ='National Shipments'!M68/'National Shipments'!M$70 -> 0.0194 | AQ68: ='National Shipments'!N68/'National Shipments'!N$70 -> 0.0194 | AR68: ='National Shipments'!O68/'National Shipments'!O$70 -> 0.0194 | AS68: ='National Shipments'!P68/'National Shipments'!P$70 -> 0.0194 | AT68: ='National Shipments'!Q68/'National Shipments'!Q$70 -> 0.04845723635 | AU68: ='National Shipments'!R68/'National Shipments'!R$70 -> 0.1074269292 | AV68: ='National Shipments'!S68/'National Shipments'!S$70 -> 0.1665440462 | AW68: ='National Shipments'!T68/'National Shipments'!T$70 -> 0.225808956 | AX68: ='National Shipments'!U68/'National Shipments'!U$70 -> 0.2852220282 | AY68: ='National Shipments'!V68/'National Shipments'!V$70 -> 0.344783633 | AZ68: ='National Shipments'!W68/'National Shipments'!W$70 -> 0.4044941418 | BA68: ='National Shipments'!X68/'National Shipments'!X$70 -> 0.4643539268 | BB68: ='National Shipments'!Y68/'National Shipments'!Y$70 -> 0.5243633614 | BC68: ='National Shipments'!Z68/'National Shipments'!Z$70 -> 0.5845228195 | BD68: ='National Shipments'!AA68/'National Shipments'!AA$70 -> 0.6448326763 | BE68: ='National Shipments'!AB68/'National Shipments'!AB$70 -> 0.7052933077 | BF68: ='National Shipments'!AC68/'National Shipments'!AC$70 -> 0.7659050907 | BG68: ='National Shipments'!AD68/'National Shipments'!AD$70 -> 0.8266684031 | BH68: ='National Shipments'!AE68/'National Shipments'!AE$70 -> 0.8875836238
D69: EL4 | E69: =INDEX(EFFICIENCY_LEVELS,RIGHT(D69,1)+1,MID($D$61,3,1)) -> 10.15444763 | G69: 0.0209 | H69: 0.0209 | I69: 0.0209 | J69: 0.0209 | K69: 0.0209 | L69: 0.0209 | M69: 0.0209 | N69: 0.0209 | O69: 0.0209 | P69: 0.0209 | Q69: 0.0209 | R69: 0.0209 | S69: 0.0209 | T69: 0.0209 | U69: 0.0209 | V69: 0.0209 | W69: 0.0209 | X69: 0.0209 | Y69: 0.0209 | Z69: 0.0209 | AA69: 0.0209 | AB69: 0.0209 | AC69: 0.0209 | AD69: 0.0209 | AE69: 0.0209 | AF69: 0.0209 | AG69: 0.0209 | AH69: 0.0209 | AI69: ='National Shipments'!F69/'National Shipments'!F$70 -> 0.0209 | AJ69: ='National Shipments'!G69/'National Shipments'!G$70 -> 0.0209 | AK69: ='National Shipments'!H69/'National Shipments'!H$70 -> 0.0209 | AL69: ='National Shipments'!I69/'National Shipments'!I$70 -> 0.0209 | AM69: ='National Shipments'!J69/'National Shipments'!J$70 -> 0.0209 | AN69: ='National Shipments'!K69/'National Shipments'!K$70 -> 0.0209 | AO69: ='National Shipments'!L69/'National Shipments'!L$70 -> 0.0209 | AP69: ='National Shipments'!M69/'National Shipments'!M$70 -> 0.0209 | AQ69: ='National Shipments'!N69/'National Shipments'!N$70 -> 0.0209 | AR69: ='National Shipments'!O69/'National Shipments'!O$70 -> 0.0209 | AS69: ='National Shipments'!P69/'National Shipments'!P$70 -> 0.0209 | AT69: ='National Shipments'!Q69/'National Shipments'!Q$70 -> 0.0209 | AU69: ='National Shipments'!R69/'National Shipments'!R$70 -> 0.0209 | AV69: ='National Shipments'!S69/'National Shipments'!S$70 -> 0.0209 | AW69: ='National Shipments'!T69/'National Shipments'!T$70 -> 0.0209 | AX69: ='National Shipments'!U69/'National Shipments'!U$70 -> 0.0209 | AY69: ='National Shipments'!V69/'National Shipments'!V$70 -> 0.0209 | AZ69: ='National Shipments'!W69/'National Shipments'!W$70 -> 0.0209 | BA69: ='National Shipments'!X69/'National Shipments'!X$70 -> 0.0209 | BB69: ='National Shipments'!Y69/'National Shipments'!Y$70 -> 0.0209 | BC69: ='National Shipments'!Z69/'National Shipments'!Z$70 -> 0.0209 | BD69: ='National Shipments'!AA69/'National Shipments'!AA$70 -> 0.0209 | BE69: ='National Shipments'!AB69/'National Shipments'!AB$70 -> 0.0209 | BF69: ='National Shipments'!AC69/'National Shipments'!AC$70 -> 0.0209 | BG69: ='National Shipments'!AD69/'National Shipments'!AD$70 -> 0.0209 | BH69: ='National Shipments'!AE69/'National Shipments'!AE$70 -> 0.0209
D70: TOTAL | G70: 1 | H70: 1 | I70: 1 | J70: 1 | K70: 1 | L70: 1 | M70: 1 | N70: 1 | O70: 1 | P70: 1 | Q70: 1 | R70: 1 | S70: 1 | T70: 1 | U70: 1 | V70: 1 | W70: 1 | X70: 1 | Y70: 1 | Z70: 1 | AA70: 1 | AB70: 1 | AC70: 1 | AD70: 1 | AE70: 1 | AF70: 1 | AG70: 1 | AH70: 1 | AI70: ='National Shipments'!F70/'National Shipments'!F$70 -> 1 | AJ70: ='National Shipments'!G70/'National Shipments'!G$70 -> 1 | AK70: ='National Shipments'!H70/'National Shipments'!H$70 -> 1 | AL70: ='National Shipments'!I70/'National Shipments'!I$70 -> 1 | AM70: ='National Shipments'!J70/'National Shipments'!J$70 -> 1 | AN70: ='National Shipments'!K70/'National Shipments'!K$70 -> 1 | AO70: ='National Shipments'!L70/'National Shipments'!L$70 -> 1 | AP70: ='National Shipments'!M70/'National Shipments'!M$70 -> 1 | AQ70: ='National Shipments'!N70/'National Shipments'!N$70 -> 1 | AR70: ='National Shipments'!O70/'National Shipments'!O$70 -> 1 | AS70: ='National Shipments'!P70/'National Shipments'!P$70 -> 1 | AT70: ='National Shipments'!Q70/'National Shipments'!Q$70 -> 1 | AU70: ='National Shipments'!R70/'National Shipments'!R$70 -> 1 | AV70: ='National Shipments'!S70/'National Shipments'!S$70 -> 1 | AW70: ='National Shipments'!T70/'National Shipments'!T$70 -> 1 | AX70: ='National Shipments'!U70/'National Shipments'!U$70 -> 1 | AY70: ='National Shipments'!V70/'National Shipments'!V$70 -> 1 | AZ70: ='National Shipments'!W70/'National Shipments'!W$70 -> 1 | BA70: ='National Shipments'!X70/'National Shipments'!X$70 -> 1 | BB70: ='National Shipments'!Y70/'National Shipments'!Y$70 -> 1 | BC70: ='National Shipments'!Z70/'National Shipments'!Z$70 -> 1 | BD70: ='National Shipments'!AA70/'National Shipments'!AA$70 -> 1 | BE70: ='National Shipments'!AB70/'National Shipments'!AB$70 -> 1 | BF70: ='National Shipments'!AC70/'National Shipments'!AC$70 -> 1 | BG70: ='National Shipments'!AD70/'National Shipments'!AD$70 -> 1 | BH70: ='National Shipments'!AE70/'National Shipments'!AE$70 -> 1
D72: POST-Case
D73: Efficiency Level | E73: CEER | G73: 1981 | H73: 1982 | I73: 1983 | J73: 1984 | K73: 1985 | L73: 1986 | M73: 1987 | N73: 1988 | O73: 1989 | P73: 1990 | Q73: 1991 | R73: 1992 | S73: 1993 | T73: 1994 | U73: 1995 | V73: 1996 | W73: 1997 | X73: 1998 | Y73: 1999 | Z73: 2000 | AA73: 2001 | AB73: 2002 | AC73: 2003 | AD73: 2004 | AE73: 2005 | AF73: 2006 | AG73: 2007 | AH73: 2008 | AI73: 2009 | AJ73: 2010 | AK73: 2011 | AL73: 2012 | AM73: 2013 | AN73: 2014 | AO73: 2015 | AP73: 2016 | AQ73: 2017 | AR73: 2018 | AS73: 2019 | AT73: 2020 | AU73: 2021 | AV73: 2022 | AW73: 2023 | AX73: 2024 | AY73: 2025 | AZ73: 2026 | BA73: 2027 | BB73: 2028 | BC73: 2029 | BD73: 2030 | BE73: 2031 | BF73: 2032 | BG73: 2033 | BH73: 2034
D74: =D65 -> EL0 | E74: =E65 -> 8.471353412 | G74: =H74 -> 0.1321 | H74: 0.1321 | I74: 0.1321 | J74: 0.1321 | K74: 0.1321 | L74: 0.1321 | M74: 0.1321 | N74: 0.1321 | O74: 0.1321 | P74: 0.1321 | Q74: 0.1321 | R74: 0.1321 | S74: 0.1321 | T74: 0.1321 | U74: 0.1321 | V74: 0.1321 | W74: 0.1321 | X74: 0.1321 | Y74: 0.1321 | Z74: 0.1321 | AA74: 0.1321 | AB74: 0.1321 | AC74: 0.1321 | AD74: 0.1321 | AE74: 0.1321 | AF74: 0.1321 | AG74: 0.1321 | AH74: =AI74 -> 0.1321 | AI74: ='National Shipments'!F74/'National Shipments'!F$79 -> 0.1321 | AJ74: ='National Shipments'!G74/'National Shipments'!G$79 -> 0.1321 | AK74: ='National Shipments'!H74/'National Shipments'!H$79 -> 0.1321 | AL74: ='National Shipments'!I74/'National Shipments'!I$79 -> 0.1321 | AM74: ='National Shipments'!J74/'National Shipments'!J$79 -> 0.1321 | AN74: ='National Shipments'!K74/'National Shipments'!K$79 -> 0 | AO74: ='National Shipments'!L74/'National Shipments'!L$79 -> 0 | AP74: ='National Shipments'!M74/'National Shipments'!M$79 -> 0 | AQ74: ='National Shipments'!N74/'National Shipments'!N$79 -> 0 | AR74: ='National Shipments'!O74/'National Shipments'!O$79 -> 0 | AS74: ='National Shipments'!P74/'National Shipments'!P$79 -> 0 | AT74: ='National Shipments'!Q74/'National Shipments'!Q$79 -> 0 | AU74: ='National Shipments'!R74/'National Shipments'!R$79 -> 0 | AV74: ='National Shipments'!S74/'National Shipments'!S$79 -> 0 | AW74: ='National Shipments'!T74/'National Shipments'!T$79 -> 0 | AX74: ='National Shipments'!U74/'National Shipments'!U$79 -> 0 | AY74: ='National Shipments'!V74/'National Shipments'!V$79 -> 0 | AZ74: ='National Shipments'!W74/'National Shipments'!W$79 -> 0 | BA74: ='National Shipments'!X74/'National Shipments'!X$79 -> 0 | BB74: ='National Shipments'!Y74/'National Shipments'!Y$79 -> 0 | BC74: ='National Shipments'!Z74/'National Shipments'!Z$79 -> 0 | BD74: ='National Shipments'!AA74/'National Shipments'!AA$79 -> 0 | BE74: ='National Shipments'!AB74/'National Shipments'!AB$79 -> 0 | BF74: ='National Shipments'!AC74/'National Shipments'!AC$79 -> 0 | BG74: ='National Shipments'!AD74/'National Shipments'!AD$79 -> 0 | BH74: ='National Shipments'!AE74/'National Shipments'!AE$79 -> 0
D75: =D66 -> EL1 | E75: 9 | G75: =H75 -> 0.015 | H75: 0.015 | I75: 0.015 | J75: 0.015 | K75: 0.015 | L75: 0.015 | M75: 0.015 | N75: 0.015 | O75: 0.015 | P75: 0.015 | Q75: 0.015 | R75: 0.015 | S75: 0.015 | T75: 0.015 | U75: 0.015 | V75: 0.015 | W75: 0.015 | X75: 0.015 | Y75: 0.015 | Z75: 0.015 | AA75: 0.015 | AB75: 0.015 | AC75: 0.015 | AD75: 0.015 | AE75: 0.015 | AF75: 0.015 | AG75: 0.015 | AH75: 0.015 | AI75: ='National Shipments'!F75/'National Shipments'!F$79 -> 0.015 | AJ75: ='National Shipments'!G75/'National Shipments'!G$79 -> 0.015 | AK75: ='National Shipments'!H75/'National Shipments'!H$79 -> 0.015 | AL75: ='National Shipments'!I75/'National Shipments'!I$79 -> 0.015 | AM75: ='National Shipments'!J75/'National Shipments'!J$79 -> 0.015 | AN75: ='National Shipments'!K75/'National Shipments'!K$79 -> 0 | AO75: ='National Shipments'!L75/'National Shipments'!L$79 -> 0 | AP75: ='National Shipments'!M75/'National Shipments'!M$79 -> 0 | AQ75: ='National Shipments'!N75/'National Shipments'!N$79 -> 0 | AR75: ='National Shipments'!O75/'National Shipments'!O$79 -> 0 | AS75: ='National Shipments'!P75/'National Shipments'!P$79 -> 0 | AT75: ='National Shipments'!Q75/'National Shipments'!Q$79 -> 0 | AU75: ='National Shipments'!R75/'National Shipments'!R$79 -> 0 | AV75: ='National Shipments'!S75/'National Shipments'!S$79 -> 0 | AW75: ='National Shipments'!T75/'National Shipments'!T$79 -> 0 | AX75: ='National Shipments'!U75/'National Shipments'!U$79 -> 0 | AY75: ='National Shipments'!V75/'National Shipments'!V$79 -> 0 | AZ75: ='National Shipments'!W75/'National Shipments'!W$79 -> 0 | BA75: ='National Shipments'!X75/'National Shipments'!X$79 -> 0 | BB75: ='National Shipments'!Y75/'National Shipments'!Y$79 -> 0 | BC75: ='National Shipments'!Z75/'National Shipments'!Z$79 -> 0 | BD75: ='National Shipments'!AA75/'National Shipments'!AA$79 -> 0 | BE75: ='National Shipments'!AB75/'National Shipments'!AB$79 -> 0 | BF75: ='National Shipments'!AC75/'National Shipments'!AC$79 -> 0 | BG75: ='National Shipments'!AD75/'National Shipments'!AD$79 -> 0 | BH75: ='National Shipments'!AE75/'National Shipments'!AE$79 -> 0
D76: EL2 | E76: 9.4 | G76: =H76 -> 0.8126 | H76: 0.8126 | I76: 0.8126 | J76: 0.8126 | K76: 0.8126 | L76: 0.8126 | M76: 0.8126 | N76: 0.8126 | O76: 0.8126 | P76: 0.8126 | Q76: 0.8126 | R76: 0.8126 | S76: 0.8126 | T76: 0.8126 | U76: 0.8126 | V76: 0.8126 | W76: 0.8126 | X76: 0.8126 | Y76: 0.8126 | Z76: 0.8126 | AA76: 0.8126 | AB76: 0.8126 | AC76: 0.8126 | AD76: 0.8126 | AE76: 0.8126 | AF76: 0.8126 | AG76: 0.8126 | AH76: 0.8126 | AI76: ='National Shipments'!F76/'National Shipments'!F$79 -> 0.8126 | AJ76: ='National Shipments'!G76/'National Shipments'!G$79 -> 0.8126 | AK76: ='National Shipments'!H76/'National Shipments'!H$79 -> 0.8126 | AL76: ='National Shipments'!I76/'National Shipments'!I$79 -> 0.8126 | AM76: ='National Shipments'!J76/'National Shipments'!J$79 -> 0.8126 | AN76: ='National Shipments'!K76/'National Shipments'!K$79 -> 0.9597 | AO76: ='National Shipments'!L76/'National Shipments'!L$79 -> 0.8592815381 | AP76: ='National Shipments'!M76/'National Shipments'!M$79 -> 0.8448069954 | AQ76: ='National Shipments'!N76/'National Shipments'!N$79 -> 0.8302867685 | AR76: ='National Shipments'!O76/'National Shipments'!O$79 -> 0.8114314792 | AS76: ='National Shipments'!P76/'National Shipments'!P$79 -> 0.7925290517 | AT76: ='National Shipments'!Q76/'National Shipments'!Q$79 -> 0.7538829063 | AU76: ='National Shipments'!R76/'National Shipments'!R$79 -> 0.6949132135 | AV76: ='National Shipments'!S76/'National Shipments'!S$79 -> 0.6357960964 | AW76: ='National Shipments'!T76/'National Shipments'!T$79 -> 0.5765311866 | AX76: ='National Shipments'!U76/'National Shipments'!U$79 -> 0.5171181145 | AY76: ='National Shipments'!V76/'National Shipments'!V$79 -> 0.4575565097 | AZ76: ='National Shipments'!W76/'National Shipments'!W$79 -> 0.3978460009 | BA76: ='National Shipments'!X76/'National Shipments'!X$79 -> 0.3379862158 | BB76: ='National Shipments'!Y76/'National Shipments'!Y$79 -> 0.2779767813 | BC76: ='National Shipments'!Z76/'National Shipments'!Z$79 -> 0.2178173231 | BD76: ='National Shipments'!AA76/'National Shipments'!AA$79 -> 0.1575074664 | BE76: ='National Shipments'!AB76/'National Shipments'!AB$79 -> 0.09704683496 | BF76: ='National Shipments'!AC76/'National Shipments'!AC$79 -> 0.03643505196 | BG76: ='National Shipments'!AD76/'National Shipments'!AD$79 -> 0.01092616926 | BH76: ='National Shipments'!AE76/'National Shipments'!AE$79 -> 0.0001305315114
D77: EL3 | E77: 9.8 | G77: =H77 -> 0.0194 | H77: 0.0194 | I77: 0.0194 | J77: 0.0194 | K77: 0.0194 | L77: 0.0194 | M77: 0.0194 | N77: 0.0194 | O77: 0.0194 | P77: 0.0194 | Q77: 0.0194 | R77: 0.0194 | S77: 0.0194 | T77: 0.0194 | U77: 0.0194 | V77: 0.0194 | W77: 0.0194 | X77: 0.0194 | Y77: 0.0194 | Z77: 0.0194 | AA77: 0.0194 | AB77: 0.0194 | AC77: 0.0194 | AD77: 0.0194 | AE77: 0.0194 | AF77: 0.0194 | AG77: 0.0194 | AH77: 0.0194 | AI77: ='National Shipments'!F77/'National Shipments'!F$79 -> 0.0194 | AJ77: ='National Shipments'!G77/'National Shipments'!G$79 -> 0.0194 | AK77: ='National Shipments'!H77/'National Shipments'!H$79 -> 0.0194 | AL77: ='National Shipments'!I77/'National Shipments'!I$79 -> 0.0194 | AM77: ='National Shipments'!J77/'National Shipments'!J$79 -> 0.0194 | AN77: ='National Shipments'!K77/'National Shipments'!K$79 -> 0.0194 | AO77: ='National Shipments'!L77/'National Shipments'!L$79 -> 0.1198184619 | AP77: ='National Shipments'!M77/'National Shipments'!M$79 -> 0.1342930046 | AQ77: ='National Shipments'!N77/'National Shipments'!N$79 -> 0.1488132315 | AR77: ='National Shipments'!O77/'National Shipments'!O$79 -> 0.1676685208 | AS77: ='National Shipments'!P77/'National Shipments'!P$79 -> 0.1865709483 | AT77: ='National Shipments'!Q77/'National Shipments'!Q$79 -> 0.2252170937 | AU77: ='National Shipments'!R77/'National Shipments'!R$79 -> 0.2841867865 | AV77: ='National Shipments'!S77/'National Shipments'!S$79 -> 0.3433039036 | AW77: ='National Shipments'!T77/'National Shipments'!T$79 -> 0.4025688134 | AX77: ='National Shipments'!U77/'National Shipments'!U$79 -> 0.4619818855 | AY77: ='National Shipments'!V77/'National Shipments'!V$79 -> 0.5215434903 | AZ77: ='National Shipments'!W77/'National Shipments'!W$79 -> 0.5812539991 | BA77: ='National Shipments'!X77/'National Shipments'!X$79 -> 0.6411137842 | BB77: ='National Shipments'!Y77/'National Shipments'!Y$79 -> 0.7011232187 | BC77: ='National Shipments'!Z77/'National Shipments'!Z$79 -> 0.7612826769 | BD77: ='National Shipments'!AA77/'National Shipments'!AA$79 -> 0.8215925336 | BE77: ='National Shipments'!AB77/'National Shipments'!AB$79 -> 0.882053165 | BF77: ='National Shipments'!AC77/'National Shipments'!AC$79 -> 0.942664948 | BG77: ='National Shipments'!AD77/'National Shipments'!AD$79 -> 0.9681738307 | BH77: ='National Shipments'!AE77/'National Shipments'!AE$79 -> 0.9789694685
D78: EL4 | E78: 10.15444763 | G78: =H78 -> 0.0209 | H78: 0.0209 | I78: 0.0209 | J78: 0.0209 | K78: 0.0209 | L78: 0.0209 | M78: 0.0209 | N78: 0.0209 | O78: 0.0209 | P78: 0.0209 | Q78: 0.0209 | R78: 0.0209 | S78: 0.0209 | T78: 0.0209 | U78: 0.0209 | V78: 0.0209 | W78: 0.0209 | X78: 0.0209 | Y78: 0.0209 | Z78: 0.0209 | AA78: 0.0209 | AB78: 0.0209 | AC78: 0.0209 | AD78: 0.0209 | AE78: 0.0209 | AF78: 0.0209 | AG78: 0.0209 | AH78: 0.0209 | AI78: ='National Shipments'!F78/'National Shipments'!F$79 -> 0.0209 | AJ78: ='National Shipments'!G78/'National Shipments'!G$79 -> 0.0209 | AK78: ='National Shipments'!H78/'National Shipments'!H$79 -> 0.0209 | AL78: ='National Shipments'!I78/'National Shipments'!I$79 -> 0.0209 | AM78: ='National Shipments'!J78/'National Shipments'!J$79 -> 0.0209 | AN78: ='National Shipments'!K78/'National Shipments'!K$79 -> 0.0209 | AO78: ='National Shipments'!L78/'National Shipments'!L$79 -> 0.0209 | AP78: ='National Shipments'!M78/'National Shipments'!M$79 -> 0.0209 | AQ78: ='National Shipments'!N78/'National Shipments'!N$79 -> 0.0209 | AR78: ='National Shipments'!O78/'National Shipments'!O$79 -> 0.0209 | AS78: ='National Shipments'!P78/'National Shipments'!P$79 -> 0.0209 | AT78: ='National Shipments'!Q78/'National Shipments'!Q$79 -> 0.0209 | AU78: ='National Shipments'!R78/'National Shipments'!R$79 -> 0.0209 | AV78: ='National Shipments'!S78/'National Shipments'!S$79 -> 0.0209 | AW78: ='National Shipments'!T78/'National Shipments'!T$79 -> 0.0209 | AX78: ='National Shipments'!U78/'National Shipments'!U$79 -> 0.0209 | AY78: ='National Shipments'!V78/'National Shipments'!V$79 -> 0.0209 | AZ78: ='National Shipments'!W78/'National Shipments'!W$79 -> 0.0209 | BA78: ='National Shipments'!X78/'National Shipments'!X$79 -> 0.0209 | BB78: ='National Shipments'!Y78/'National Shipments'!Y$79 -> 0.0209 | BC78: ='National Shipments'!Z78/'National Shipments'!Z$79 -> 0.0209 | BD78: ='National Shipments'!AA78/'National Shipments'!AA$79 -> 0.0209 | BE78: ='National Shipments'!AB78/'National Shipments'!AB$79 -> 0.0209 | BF78: ='National Shipments'!AC78/'National Shipments'!AC$79 -> 0.0209 | BG78: ='National Shipments'!AD78/'National Shipments'!AD$79 -> 0.0209 | BH78: ='National Shipments'!AE78/'National Shipments'!AE$79 -> 0.0209
D79: TOTAL | G79: =H79 -> 1 | H79: 1 | I79: 1 | J79: 1 | K79: 1 | L79: 1 | M79: 1 | N79: 1 | O79: 1 | P79: 1 | Q79: 1 | R79: 1 | S79: 1 | T79: 1 | U79: 1 | V79: 1 | W79: 1 | X79: 1 | Y79: 1 | Z79: 1 | AA79: 1 | AB79: 1 | AC79: 1 | AD79: 1 | AE79: 1 | AF79: 1 | AG79: 1 | AH79: 1 | AI79: ='National Shipments'!F79/'National Shipments'!F$79 -> 1 | AJ79: ='National Shipments'!G79/'National Shipments'!G$79 -> 1 | AK79: ='National Shipments'!H79/'National Shipments'!H$79 -> 1 | AL79: ='National Shipments'!I79/'National Shipments'!I$79 -> 1 | AM79: ='National Shipments'!J79/'National Shipments'!J$79 -> 1 | AN79: ='National Shipments'!K79/'National Shipments'!K$79 -> 1 | AO79: ='National Shipments'!L79/'National Shipments'!L$79 -> 1 | AP79: ='National Shipments'!M79/'National Shipments'!M$79 -> 1 | AQ79: ='National Shipments'!N79/'National Shipments'!N$79 -> 1 | AR79: ='National Shipments'!O79/'National Shipments'!O$79 -> 1 | AS79: ='National Shipments'!P79/'National Shipments'!P$79 -> 1 | AT79: ='National Shipments'!Q79/'National Shipments'!Q$79 -> 1 | AU79: ='National Shipments'!R79/'National Shipments'!R$79 -> 1 | AV79: ='National Shipments'!S79/'National Shipments'!S$79 -> 1 | AW79: ='National Shipments'!T79/'National Shipments'!T$79 -> 1 | AX79: ='National Shipments'!U79/'National Shipments'!U$79 -> 1 | AY79: ='National Shipments'!V79/'National Shipments'!V$79 -> 1 | AZ79: ='National Shipments'!W79/'National Shipments'!W$79 -> 1 | BA79: ='National Shipments'!X79/'National Shipments'!X$79 -> 1 | BB79: ='National Shipments'!Y79/'National Shipments'!Y$79 -> 1 | BC79: ='National Shipments'!Z79/'National Shipments'!Z$79 -> 1 | BD79: ='National Shipments'!AA79/'National Shipments'!AA$79 -> 1 | BE79: ='National Shipments'!AB79/'National Shipments'!AB$79 -> 1 | BF79: ='National Shipments'!AC79/'National Shipments'!AC$79 -> 1 | BG79: ='National Shipments'!AD79/'National Shipments'!AD$79 -> 1 | BH79: ='National Shipments'!AE79/'National Shipments'!AE$79 -> 1
D81: Sources | E81: 2011 DOE Residential Room Air Conditioners Direct Final Rule Government Regulatory Impact Model 'Product Shipments (CALC)' tab.
D85: PC4 Without reverse cycle, with louvered sides, and 25,000 Btu/h or more
D87: PRE-Case
D88: Efficiency Level | E88: CEER | G88: 1981 | H88: 1982 | I88: 1983 | J88: 1984 | K88: 1985 | L88: 1986 | M88: 1987 | N88: 1988 | O88: 1989 | P88: 1990 | Q88: 1991 | R88: 1992 | S88: 1993 | T88: 1994 | U88: 1995 | V88: 1996 | W88: 1997 | X88: 1998 | Y88: 1999 | Z88: 2000 | AA88: 2001 | AB88: 2002 | AC88: 2003 | AD88: 2004 | AE88: 2005 | AF88: 2006 | AG88: 2007 | AH88: 2008 | AI88: 2009 | AJ88: 2010 | AK88: 2011 | AL88: 2012 | AM88: 2013 | AN88: 2014 | AO88: 2015 | AP88: 2016 | AQ88: 2017 | AR88: 2018 | AS88: 2019 | AT88: 2020 | AU88: 2021 | AV88: 2022 | AW88: 2023 | AX88: 2024 | AY88: 2025 | AZ88: 2026 | BA88: 2027 | BB88: 2028 | BC88: 2029 | BD88: 2030 | BE88: 2031 | BF88: 2032 | BG88: 2033 | BH88: 2034
D89: EL0 | E89: =INDEX(EFFICIENCY_LEVELS,RIGHT(D89,1)+1,MID($D$85,3,1)) -> 8.475433955 | G89: =H89 -> 0.1245 | H89: 0.1245 | I89: 0.1245 | J89: 0.1245 | K89: 0.1245 | L89: 0.1245 | M89: 0.1245 | N89: 0.1245 | O89: 0.1245 | P89: 0.1245 | Q89: 0.1245 | R89: 0.1245 | S89: 0.1245 | T89: 0.1245 | U89: 0.1245 | V89: 0.1245 | W89: 0.1245 | X89: 0.1245 | Y89: 0.1245 | Z89: 0.1245 | AA89: 0.1245 | AB89: 0.1245 | AC89: 0.1245 | AD89: 0.1245 | AE89: 0.1245 | AF89: 0.1245 | AG89: 0.1245 | AH89: 0.1245 | AI89: ='National Shipments'!F89/'National Shipments'!F$93 -> 0.1245 | AJ89: ='National Shipments'!G89/'National Shipments'!G$93 -> 0.1245 | AK89: ='National Shipments'!H89/'National Shipments'!H$93 -> 0.1245 | AL89: ='National Shipments'!I89/'National Shipments'!I$93 -> 0.1245 | AM89: ='National Shipments'!J89/'National Shipments'!J$93 -> 0.1245 | AN89: ='National Shipments'!K89/'National Shipments'!K$93 -> 0.1245 | AO89: ='National Shipments'!L89/'National Shipments'!L$93 -> 0.08031415323 | AP89: ='National Shipments'!M89/'National Shipments'!M$93 -> 0.03601784184 | AQ89: ='National Shipments'!N89/'National Shipments'!N$93 -> 0 | AR89: ='National Shipments'!O89/'National Shipments'!O$93 -> 0 | AS89: ='National Shipments'!P89/'National Shipments'!P$93 -> 0 | AT89: ='National Shipments'!Q89/'National Shipments'!Q$93 -> 0 | AU89: ='National Shipments'!R89/'National Shipments'!R$93 -> 0 | AV89: ='National Shipments'!S89/'National Shipments'!S$93 -> 0 | AW89: ='National Shipments'!T89/'National Shipments'!T$93 -> 0 | AX89: ='National Shipments'!U89/'National Shipments'!U$93 -> 0 | AY89: ='National Shipments'!V89/'National Shipments'!V$93 -> 0 | AZ89: ='National Shipments'!W89/'National Shipments'!W$93 -> 0 | BA89: ='National Shipments'!X89/'National Shipments'!X$93 -> 0 | BB89: ='National Shipments'!Y89/'National Shipments'!Y$93 -> 0 | BC89: ='National Shipments'!Z89/'National Shipments'!Z$93 -> 0 | BD89: ='National Shipments'!AA89/'National Shipments'!AA$93 -> 0 | BE89: ='National Shipments'!AB89/'National Shipments'!AB$93 -> 0 | BF89: ='National Shipments'!AC89/'National Shipments'!AC$93 -> 0 | BG89: ='National Shipments'!AD89/'National Shipments'!AD$93 -> 0 | BH89: ='National Shipments'!AE89/'National Shipments'!AE$93 -> 0
D90: EL1 | E90: =INDEX(EFFICIENCY_LEVELS,RIGHT(D90,1)+1,MID($D$85,3,1)) -> 9 | G90: =H90 -> 0.0226 | H90: 0.0226 | I90: 0.0226 | J90: 0.0226 | K90: 0.0226 | L90: 0.0226 | M90: 0.0226 | N90: 0.0226 | O90: 0.0226 | P90: 0.0226 | Q90: 0.0226 | R90: 0.0226 | S90: 0.0226 | T90: 0.0226 | U90: 0.0226 | V90: 0.0226 | W90: 0.0226 | X90: 0.0226 | Y90: 0.0226 | Z90: 0.0226 | AA90: 0.0226 | AB90: 0.0226 | AC90: 0.0226 | AD90: 0.0226 | AE90: 0.0226 | AF90: 0.0226 | AG90: 0.0226 | AH90: 0.0226 | AI90: ='National Shipments'!F90/'National Shipments'!F$93 -> 0.0226 | AJ90: ='National Shipments'!G90/'National Shipments'!G$93 -> 0.0226 | AK90: ='National Shipments'!H90/'National Shipments'!H$93 -> 0.0226 | AL90: ='National Shipments'!I90/'National Shipments'!I$93 -> 0.0226 | AM90: ='National Shipments'!J90/'National Shipments'!J$93 -> 0.0226 | AN90: ='National Shipments'!K90/'National Shipments'!K$93 -> 0.0226 | AO90: ='National Shipments'!L90/'National Shipments'!L$93 -> 0.06678584677 | AP90: ='National Shipments'!M90/'National Shipments'!M$93 -> 0.1110821582 | AQ90: ='National Shipments'!N90/'National Shipments'!N$93 -> 0.1360517043 | AR90: ='National Shipments'!O90/'National Shipments'!O$93 -> 0.07740858358 | AS90: ='National Shipments'!P90/'National Shipments'!P$93 -> 0.01861885509 | AT90: ='National Shipments'!Q90/'National Shipments'!Q$93 -> 0 | AU90: ='National Shipments'!R90/'National Shipments'!R$93 -> 0 | AV90: ='National Shipments'!S90/'National Shipments'!S$93 -> 0 | AW90: ='National Shipments'!T90/'National Shipments'!T$93 -> 0 | AX90: ='National Shipments'!U90/'National Shipments'!U$93 -> 0 | AY90: ='National Shipments'!V90/'National Shipments'!V$93 -> 0 | AZ90: ='National Shipments'!W90/'National Shipments'!W$93 -> 0 | BA90: ='National Shipments'!X90/'National Shipments'!X$93 -> 0 | BB90: ='National Shipments'!Y90/'National Shipments'!Y$93 -> 0 | BC90: ='National Shipments'!Z90/'National Shipments'!Z$93 -> 0 | BD90: ='National Shipments'!AA90/'National Shipments'!AA$93 -> 0 | BE90: ='National Shipments'!AB90/'National Shipments'!AB$93 -> 0 | BF90: ='National Shipments'!AC90/'National Shipments'!AC$93 -> 0 | BG90: ='National Shipments'!AD90/'National Shipments'!AD$93 -> 0 | BH90: ='National Shipments'!AE90/'National Shipments'!AE$93 -> 0
D91: EL2 | E91: =INDEX(EFFICIENCY_LEVELS,RIGHT(D91,1)+1,MID($D$85,3,1)) -> 9.4 | G91: =H91 -> 0.8529 | H91: 0.8529 | I91: 0.8529 | J91: 0.8529 | K91: 0.8529 | L91: 0.8529 | M91: 0.8529 | N91: 0.8529 | O91: 0.8529 | P91: 0.8529 | Q91: 0.8529 | R91: 0.8529 | S91: 0.8529 | T91: 0.8529 | U91: 0.8529 | V91: 0.8529 | W91: 0.8529 | X91: 0.8529 | Y91: 0.8529 | Z91: 0.8529 | AA91: 0.8529 | AB91: 0.8529 | AC91: 0.8529 | AD91: 0.8529 | AE91: 0.8529 | AF91: 0.8529 | AG91: 0.8529 | AH91: 0.8529 | AI91: ='National Shipments'!F91/'National Shipments'!F$93 -> 0.8529 | AJ91: ='National Shipments'!G91/'National Shipments'!G$93 -> 0.8529 | AK91: ='National Shipments'!H91/'National Shipments'!H$93 -> 0.8529 | AL91: ='National Shipments'!I91/'National Shipments'!I$93 -> 0.8529 | AM91: ='National Shipments'!J91/'National Shipments'!J$93 -> 0.8529 | AN91: ='National Shipments'!K91/'National Shipments'!K$93 -> 0.8529 | AO91: ='National Shipments'!L91/'National Shipments'!L$93 -> 0.8529 | AP91: ='National Shipments'!M91/'National Shipments'!M$93 -> 0.8529 | AQ91: ='National Shipments'!N91/'National Shipments'!N$93 -> 0.8639482957 | AR91: ='National Shipments'!O91/'National Shipments'!O$93 -> 0.9225914164 | AS91: ='National Shipments'!P91/'National Shipments'!P$93 -> 0.9813811449 | AT91: ='National Shipments'!Q91/'National Shipments'!Q$93 -> 0.9598648335 | AU91: ='National Shipments'!R91/'National Shipments'!R$93 -> 0.9010258828 | AV91: ='National Shipments'!S91/'National Shipments'!S$93 -> 0.8420398347 | AW91: ='National Shipments'!T91/'National Shipments'!T$93 -> 0.7829063214 | AX91: ='National Shipments'!U91/'National Shipments'!U$93 -> 0.7236249744 | AY91: ='National Shipments'!V91/'National Shipments'!V$93 -> 0.664195424 | AZ91: ='National Shipments'!W91/'National Shipments'!W$93 -> 0.6046172998 | BA91: ='National Shipments'!X91/'National Shipments'!X$93 -> 0.5448902302 | BB91: ='National Shipments'!Y91/'National Shipments'!Y$93 -> 0.485013843 | BC91: ='National Shipments'!Z91/'National Shipments'!Z$93 -> 0.4249877648 | BD91: ='National Shipments'!AA91/'National Shipments'!AA$93 -> 0.3648116213 | BE91: ='National Shipments'!AB91/'National Shipments'!AB$93 -> 0.3044850376 | BF91: ='National Shipments'!AC91/'National Shipments'!AC$93 -> 0.2440076374 | BG91: ='National Shipments'!AD91/'National Shipments'!AD$93 -> 0.1833790436 | BH91: ='National Shipments'!AE91/'National Shipments'!AE$93 -> 0.1225988784
D92: EL3 | E92: =INDEX(EFFICIENCY_LEVELS,RIGHT(D92,1)+1,MID($D$85,3,1)) -> 9.8 | G92: =H92 -> 0 | H92: 0 | I92: 0 | J92: 0 | K92: 0 | L92: 0 | M92: 0 | N92: 0 | O92: 0 | P92: 0 | Q92: 0 | R92: 0 | S92: 0 | T92: 0 | U92: 0 | V92: 0 | W92: 0 | X92: 0 | Y92: 0 | Z92: 0 | AA92: 0 | AB92: 0 | AC92: 0 | AD92: 0 | AE92: 0 | AF92: 0 | AG92: 0 | AH92: 0 | AI92: ='National Shipments'!F92/'National Shipments'!F$93 -> 0 | AJ92: ='National Shipments'!G92/'National Shipments'!G$93 -> 0 | AK92: ='National Shipments'!H92/'National Shipments'!H$93 -> 0 | AL92: ='National Shipments'!I92/'National Shipments'!I$93 -> 0 | AM92: ='National Shipments'!J92/'National Shipments'!J$93 -> 0 | AN92: ='National Shipments'!K92/'National Shipments'!K$93 -> 0 | AO92: ='National Shipments'!L92/'National Shipments'!L$93 -> 0 | AP92: ='National Shipments'!M92/'National Shipments'!M$93 -> 0 | AQ92: ='National Shipments'!N92/'National Shipments'!N$93 -> 0 | AR92: ='National Shipments'!O92/'National Shipments'!O$93 -> 0 | AS92: ='National Shipments'!P92/'National Shipments'!P$93 -> 0 | AT92: ='National Shipments'!Q92/'National Shipments'!Q$93 -> 0.04013516651 | AU92: ='National Shipments'!R92/'National Shipments'!R$93 -> 0.09897411724 | AV92: ='National Shipments'!S92/'National Shipments'!S$93 -> 0.1579601653 | AW92: ='National Shipments'!T92/'National Shipments'!T$93 -> 0.2170936786 | AX92: ='National Shipments'!U92/'National Shipments'!U$93 -> 0.2763750256 | AY92: ='National Shipments'!V92/'National Shipments'!V$93 -> 0.335804576 | AZ92: ='National Shipments'!W92/'National Shipments'!W$93 -> 0.3953827002 | BA92: ='National Shipments'!X92/'National Shipments'!X$93 -> 0.4551097698 | BB92: ='National Shipments'!Y92/'National Shipments'!Y$93 -> 0.514986157 | BC92: ='National Shipments'!Z92/'National Shipments'!Z$93 -> 0.5750122352 | BD92: ='National Shipments'!AA92/'National Shipments'!AA$93 -> 0.6351883787 | BE92: ='National Shipments'!AB92/'National Shipments'!AB$93 -> 0.6955149624 | BF92: ='National Shipments'!AC92/'National Shipments'!AC$93 -> 0.7559923626 | BG92: ='National Shipments'!AD92/'National Shipments'!AD$93 -> 0.8166209564 | BH92: ='National Shipments'!AE92/'National Shipments'!AE$93 -> 0.8774011216
D93: TOTAL | G93: =H93 -> 1 | H93: 1 | I93: 1 | J93: 1 | K93: 1 | L93: 1 | M93: 1 | N93: 1 | O93: 1 | P93: 1 | Q93: 1 | R93: 1 | S93: 1 | T93: 1 | U93: 1 | V93: 1 | W93: 1 | X93: 1 | Y93: 1 | Z93: 1 | AA93: 1 | AB93: 1 | AC93: 1 | AD93: 1 | AE93: 1 | AF93: 1 | AG93: 1 | AH93: 1 | AI93: ='National Shipments'!F93/'National Shipments'!F$93 -> 1 | AJ93: ='National Shipments'!G93/'National Shipments'!G$93 -> 1 | AK93: ='National Shipments'!H93/'National Shipments'!H$93 -> 1 | AL93: ='National Shipments'!I93/'National Shipments'!I$93 -> 1 | AM93: ='National Shipments'!J93/'National Shipments'!J$93 -> 1 | AN93: ='National Shipments'!K93/'National Shipments'!K$93 -> 1 | AO93: ='National Shipments'!L93/'National Shipments'!L$93 -> 1 | AP93: ='National Shipments'!M93/'National Shipments'!M$93 -> 1 | AQ93: ='National Shipments'!N93/'National Shipments'!N$93 -> 1 | AR93: ='National Shipments'!O93/'National Shipments'!O$93 -> 1 | AS93: ='National Shipments'!P93/'National Shipments'!P$93 -> 1 | AT93: ='National Shipments'!Q93/'National Shipments'!Q$93 -> 1 | AU93: ='National Shipments'!R93/'National Shipments'!R$93 -> 1 | AV93: ='National Shipments'!S93/'National Shipments'!S$93 -> 1 | AW93: ='National Shipments'!T93/'National Shipments'!T$93 -> 1 | AX93: ='National Shipments'!U93/'National Shipments'!U$93 -> 1 | AY93: ='National Shipments'!V93/'National Shipments'!V$93 -> 1 | AZ93: ='National Shipments'!W93/'National Shipments'!W$93 -> 1 | BA93: ='National Shipments'!X93/'National Shipments'!X$93 -> 1 | BB93: ='National Shipments'!Y93/'National Shipments'!Y$93 -> 1 | BC93: ='National Shipments'!Z93/'National Shipments'!Z$93 -> 1 | BD93: ='National Shipments'!AA93/'National Shipments'!AA$93 -> 1 | BE93: ='National Shipments'!AB93/'National Shipments'!AB$93 -> 1 | BF93: ='National Shipments'!AC93/'National Shipments'!AC$93 -> 1 | BG93: ='National Shipments'!AD93/'National Shipments'!AD$93 -> 1 | BH93: ='National Shipments'!AE93/'National Shipments'!AE$93 -> 1
D95: POST-Case
D96: Efficiency Level | E96: CEER | G96: 1981 | H96: 1982 | I96: 1983 | J96: 1984 | K96: 1985 | L96: 1986 | M96: 1987 | N96: 1988 | O96: 1989 | P96: 1990 | Q96: 1991 | R96: 1992 | S96: 1993 | T96: 1994 | U96: 1995 | V96: 1996 | W96: 1997 | X96: 1998 | Y96: 1999 | Z96: 2000 | AA96: 2001 | AB96: 2002 | AC96: 2003 | AD96: 2004 | AE96: 2005 | AF96: 2006 | AG96: 2007 | AH96: 2008 | AI96: 2009 | AJ96: 2010 | AK96: 2011 | AL96: 2012 | AM96: 2013 | AN96: 2014 | AO96: 2015 | AP96: 2016 | AQ96: 2017 | AR96: 2018 | AS96: 2019 | AT96: 2020 | AU96: 2021 | AV96: 2022 | AW96: 2023 | AX96: 2024 | AY96: 2025 | AZ96: 2026 | BA96: 2027 | BB96: 2028 | BC96: 2029 | BD96: 2030 | BE96: 2031 | BF96: 2032 | BG96: 2033 | BH96: 2034
D97: =D89 -> EL0 | E97: =E89 -> 8.475433955 | G97: =H97 -> 0.1245 | H97: 0.1245 | I97: 0.1245 | J97: 0.1245 | K97: 0.1245 | L97: 0.1245 | M97: 0.1245 | N97: 0.1245 | O97: 0.1245 | P97: 0.1245 | Q97: 0.1245 | R97: 0.1245 | S97: 0.1245 | T97: 0.1245 | U97: 0.1245 | V97: 0.1245 | W97: 0.1245 | X97: 0.1245 | Y97: 0.1245 | Z97: 0.1245 | AA97: 0.1245 | AB97: 0.1245 | AC97: 0.1245 | AD97: 0.1245 | AE97: 0.1245 | AF97: 0.1245 | AG97: 0.1245 | AH97: 0.1245 | AI97: ='National Shipments'!F97/'National Shipments'!F$101 -> 0.1245 | AJ97: ='National Shipments'!G97/'National Shipments'!G$101 -> 0.1245 | AK97: ='National Shipments'!H97/'National Shipments'!H$101 -> 0.1245 | AL97: ='National Shipments'!I97/'National Shipments'!I$101 -> 0.1245 | AM97: ='National Shipments'!J97/'National Shipments'!J$101 -> 0.1245 | AN97: ='National Shipments'!K97/'National Shipments'!K$101 -> 0 | AO97: ='National Shipments'!L97/'National Shipments'!L$101 -> 0 | AP97: ='National Shipments'!M97/'National Shipments'!M$101 -> 0 | AQ97: ='National Shipments'!N97/'National Shipments'!N$101 -> 0 | AR97: ='National Shipments'!O97/'National Shipments'!O$101 -> 0 | AS97: ='National Shipments'!P97/'National Shipments'!P$101 -> 0 | AT97: ='National Shipments'!Q97/'National Shipments'!Q$101 -> 0 | AU97: ='National Shipments'!R97/'National Shipments'!R$101 -> 0 | AV97: ='National Shipments'!S97/'National Shipments'!S$101 -> 0 | AW97: ='National Shipments'!T97/'National Shipments'!T$101 -> 0 | AX97: ='National Shipments'!U97/'National Shipments'!U$101 -> 0 | AY97: ='National Shipments'!V97/'National Shipments'!V$101 -> 0 | AZ97: ='National Shipments'!W97/'National Shipments'!W$101 -> 0 | BA97: ='National Shipments'!X97/'National Shipments'!X$101 -> 0 | BB97: ='National Shipments'!Y97/'National Shipments'!Y$101 -> 0 | BC97: ='National Shipments'!Z97/'National Shipments'!Z$101 -> 0 | BD97: ='National Shipments'!AA97/'National Shipments'!AA$101 -> 0 | BE97: ='National Shipments'!AB97/'National Shipments'!AB$101 -> 0 | BF97: ='National Shipments'!AC97/'National Shipments'!AC$101 -> 0 | BG97: ='National Shipments'!AD97/'National Shipments'!AD$101 -> 0 | BH97: ='National Shipments'!AE97/'National Shipments'!AE$101 -> 0
D98: =D90 -> EL1 | E98: 9 | G98: =H98 -> 0.0226 | H98: 0.0226 | I98: 0.0226 | J98: 0.0226 | K98: 0.0226 | L98: 0.0226 | M98: 0.0226 | N98: 0.0226 | O98: 0.0226 | P98: 0.0226 | Q98: 0.0226 | R98: 0.0226 | S98: 0.0226 | T98: 0.0226 | U98: 0.0226 | V98: 0.0226 | W98: 0.0226 | X98: 0.0226 | Y98: 0.0226 | Z98: 0.0226 | AA98: 0.0226 | AB98: 0.0226 | AC98: 0.0226 | AD98: 0.0226 | AE98: 0.0226 | AF98: 0.0226 | AG98: 0.0226 | AH98: 0.0226 | AI98: ='National Shipments'!F98/'National Shipments'!F$101 -> 0.0226 | AJ98: ='National Shipments'!G98/'National Shipments'!G$101 -> 0.0226 | AK98: ='National Shipments'!H98/'National Shipments'!H$101 -> 0.0226 | AL98: ='National Shipments'!I98/'National Shipments'!I$101 -> 0.0226 | AM98: ='National Shipments'!J98/'National Shipments'!J$101 -> 0.0226 | AN98: ='National Shipments'!K98/'National Shipments'!K$101 -> 0.1471 | AO98: ='National Shipments'!L98/'National Shipments'!L$101 -> 0.1203310436 | AP98: ='National Shipments'!M98/'National Shipments'!M$101 -> 0.0934951649 | AQ98: ='National Shipments'!N98/'National Shipments'!N$101 -> 0.06062629826 | AR98: ='National Shipments'!O98/'National Shipments'!O$101 -> 0.001983177572 | AS98: ='National Shipments'!P98/'National Shipments'!P$101 -> 0 | AT98: ='National Shipments'!Q98/'National Shipments'!Q$101 -> 0 | AU98: ='National Shipments'!R98/'National Shipments'!R$101 -> 0 | AV98: ='National Shipments'!S98/'National Shipments'!S$101 -> 0 | AW98: ='National Shipments'!T98/'National Shipments'!T$101 -> 0 | AX98: ='National Shipments'!U98/'National Shipments'!U$101 -> 0 | AY98: ='National Shipments'!V98/'National Shipments'!V$101 -> 0 | AZ98: ='National Shipments'!W98/'National Shipments'!W$101 -> 0 | BA98: ='National Shipments'!X98/'National Shipments'!X$101 -> 0 | BB98: ='National Shipments'!Y98/'National Shipments'!Y$101 -> 0 | BC98: ='National Shipments'!Z98/'National Shipments'!Z$101 -> 0 | BD98: ='National Shipments'!AA98/'National Shipments'!AA$101 -> 0 | BE98: ='National Shipments'!AB98/'National Shipments'!AB$101 -> 0 | BF98: ='National Shipments'!AC98/'National Shipments'!AC$101 -> 0 | BG98: ='National Shipments'!AD98/'National Shipments'!AD$101 -> 0 | BH98: ='National Shipments'!AE98/'National Shipments'!AE$101 -> 0
D99: EL2 | E99: 9.4 | G99: =H99 -> 0.8529 | H99: 0.8529 | I99: 0.8529 | J99: 0.8529 | K99: 0.8529 | L99: 0.8529 | M99: 0.8529 | N99: 0.8529 | O99: 0.8529 | P99: 0.8529 | Q99: 0.8529 | R99: 0.8529 | S99: 0.8529 | T99: 0.8529 | U99: 0.8529 | V99: 0.8529 | W99: 0.8529 | X99: 0.8529 | Y99: 0.8529 | Z99: 0.8529 | AA99: 0.8529 | AB99: 0.8529 | AC99: 0.8529 | AD99: 0.8529 | AE99: 0.8529 | AF99: 0.8529 | AG99: 0.8529 | AH99: 0.8529 | AI99: ='National Shipments'!F99/'National Shipments'!F$101 -> 0.8529 | AJ99: ='National Shipments'!G99/'National Shipments'!G$101 -> 0.8529 | AK99: ='National Shipments'!H99/'National Shipments'!H$101 -> 0.8529 | AL99: ='National Shipments'!I99/'National Shipments'!I$101 -> 0.8529 | AM99: ='National Shipments'!J99/'National Shipments'!J$101 -> 0.8529 | AN99: ='National Shipments'!K99/'National Shipments'!K$101 -> 0.8529 | AO99: ='National Shipments'!L99/'National Shipments'!L$101 -> 0.8796689564 | AP99: ='National Shipments'!M99/'National Shipments'!M$101 -> 0.9065048351 | AQ99: ='National Shipments'!N99/'National Shipments'!N$101 -> 0.9393737017 | AR99: ='National Shipments'!O99/'National Shipments'!O$101 -> 0.9980168224 | AS99: ='National Shipments'!P99/'National Shipments'!P$101 -> 0.9914362967 | AT99: ='National Shipments'!Q99/'National Shipments'!Q$101 -> 0.9484943006 | AU99: ='National Shipments'!R99/'National Shipments'!R$101 -> 0.8896553498 | AV99: ='National Shipments'!S99/'National Shipments'!S$101 -> 0.8306693017 | AW99: ='National Shipments'!T99/'National Shipments'!T$101 -> 0.7715357885 | AX99: ='National Shipments'!U99/'National Shipments'!U$101 -> 0.7122544415 | AY99: ='National Shipments'!V99/'National Shipments'!V$101 -> 0.6528248911 | AZ99: ='National Shipments'!W99/'National Shipments'!W$101 -> 0.5932467669 | BA99: ='National Shipments'!X99/'National Shipments'!X$101 -> 0.5335196973 | BB99: ='National Shipments'!Y99/'National Shipments'!Y$101 -> 0.4736433101 | BC99: ='National Shipments'!Z99/'National Shipments'!Z$101 -> 0.4136172318 | BD99: ='National Shipments'!AA99/'National Shipments'!AA$101 -> 0.3534410884 | BE99: ='National Shipments'!AB99/'National Shipments'!AB$101 -> 0.2931145047 | BF99: ='National Shipments'!AC99/'National Shipments'!AC$101 -> 0.2326371045 | BG99: ='National Shipments'!AD99/'National Shipments'!AD$101 -> 0.1720085107 | BH99: ='National Shipments'!AE99/'National Shipments'!AE$101 -> 0.1112283455
D100: EL3 | E100: 9.8 | G100: =H100 -> 0 | H100: 0 | I100: 0 | J100: 0 | K100: 0 | L100: 0 | M100: 0 | N100: 0 | O100: 0 | P100: 0 | Q100: 0 | R100: 0 | S100: 0 | T100: 0 | U100: 0 | V100: 0 | W100: 0 | X100: 0 | Y100: 0 | Z100: 0 | AA100: 0 | AB100: 0 | AC100: 0 | AD100: 0 | AE100: 0 | AF100: 0 | AG100: 0 | AH100: 0 | AI100: ='National Shipments'!F100/'National Shipments'!F$101 -> 0 | AJ100: ='National Shipments'!G100/'National Shipments'!G$101 -> 0 | AK100: ='National Shipments'!H100/'National Shipments'!H$101 -> 0 | AL100: ='National Shipments'!I100/'National Shipments'!I$101 -> 0 | AM100: ='National Shipments'!J100/'National Shipments'!J$101 -> 0 | AN100: ='National Shipments'!K100/'National Shipments'!K$101 -> 0 | AO100: ='National Shipments'!L100/'National Shipments'!L$101 -> 0 | AP100: ='National Shipments'!M100/'National Shipments'!M$101 -> 0 | AQ100: ='National Shipments'!N100/'National Shipments'!N$101 -> 0 | AR100: ='National Shipments'!O100/'National Shipments'!O$101 -> 0 | AS100: ='National Shipments'!P100/'National Shipments'!P$101 -> 0.008563703266 | AT100: ='National Shipments'!Q100/'National Shipments'!Q$101 -> 0.05150569942 | AU100: ='National Shipments'!R100/'National Shipments'!R$101 -> 0.1103446502 | AV100: ='National Shipments'!S100/'National Shipments'!S$101 -> 0.1693306983 | AW100: ='National Shipments'!T100/'National Shipments'!T$101 -> 0.2284642115 | AX100: ='National Shipments'!U100/'National Shipments'!U$101 -> 0.2877455585 | AY100: ='National Shipments'!V100/'National Shipments'!V$101 -> 0.3471751089 | AZ100: ='National Shipments'!W100/'National Shipments'!W$101 -> 0.4067532331 | BA100: ='National Shipments'!X100/'National Shipments'!X$101 -> 0.4664803027 | BB100: ='National Shipments'!Y100/'National Shipments'!Y$101 -> 0.5263566899 | BC100: ='National Shipments'!Z100/'National Shipments'!Z$101 -> 0.5863827682 | BD100: ='National Shipments'!AA100/'National Shipments'!AA$101 -> 0.6465589116 | BE100: ='National Shipments'!AB100/'National Shipments'!AB$101 -> 0.7068854953 | BF100: ='National Shipments'!AC100/'National Shipments'!AC$101 -> 0.7673628955 | BG100: ='National Shipments'!AD100/'National Shipments'!AD$101 -> 0.8279914893 | BH100: ='National Shipments'!AE100/'National Shipments'!AE$101 -> 0.8887716545
D101: TOTAL | G101: =H101 -> 1 | H101: 1 | I101: 1 | J101: 1 | K101: 1 | L101: 1 | M101: 1 | N101: 1 | O101: 1 | P101: 1 | Q101: 1 | R101: 1 | S101: 1 | T101: 1 | U101: 1 | V101: 1 | W101: 1 | X101: 1 | Y101: 1 | Z101: 1 | AA101: 1 | AB101: 1 | AC101: 1 | AD101: 1 | AE101: 1 | AF101: 1 | AG101: 1 | AH101: 1 | AI101: ='National Shipments'!F101/'National Shipments'!F$101 -> 1 | AJ101: ='National Shipments'!G101/'National Shipments'!G$101 -> 1 | AK101: ='National Shipments'!H101/'National Shipments'!H$101 -> 1 | AL101: ='National Shipments'!I101/'National Shipments'!I$101 -> 1 | AM101: ='National Shipments'!J101/'National Shipments'!J$101 -> 1 | AN101: ='National Shipments'!K101/'National Shipments'!K$101 -> 1 | AO101: ='National Shipments'!L101/'National Shipments'!L$101 -> 1 | AP101: ='National Shipments'!M101/'National Shipments'!M$101 -> 1 | AQ101: ='National Shipments'!N101/'National Shipments'!N$101 -> 1 | AR101: ='National Shipments'!O101/'National Shipments'!O$101 -> 1 | AS101: ='National Shipments'!P101/'National Shipments'!P$101 -> 1 | AT101: ='National Shipments'!Q101/'National Shipments'!Q$101 -> 1 | AU101: ='National Shipments'!R101/'National Shipments'!R$101 -> 1 | AV101: ='National Shipments'!S101/'National Shipments'!S$101 -> 1 | AW101: ='National Shipments'!T101/'National Shipments'!T$101 -> 1 | AX101: ='National Shipments'!U101/'National Shipments'!U$101 -> 1 | AY101: ='National Shipments'!V101/'National Shipments'!V$101 -> 1 | AZ101: ='National Shipments'!W101/'National Shipments'!W$101 -> 1 | BA101: ='National Shipments'!X101/'National Shipments'!X$101 -> 1 | BB101: ='National Shipments'!Y101/'National Shipments'!Y$101 -> 1 | BC101: ='National Shipments'!Z101/'National Shipments'!Z$101 -> 1 | BD101: ='National Shipments'!AA101/'National Shipments'!AA$101 -> 1 | BE101: ='National Shipments'!AB101/'National Shipments'!AB$101 -> 1 | BF101: ='National Shipments'!AC101/'National Shipments'!AC$101 -> 1 | BG101: ='National Shipments'!AD101/'National Shipments'!AD$101 -> 1 | BH101: ='National Shipments'!AE101/'National Shipments'!AE$101 -> 1
D103: Sources | E103: 2011 DOE Residential Room Air Conditioners Direct Final Rule Government Regulatory Impact Model 'Product Shipments (CALC)' tab.
D107: PC5 Without reverse cycle, without louvered sides, and 8,000 to 10,999 Btu/h
D109: PRE-Case
D110: Efficiency Level | E110: CEER | G110: 1981 | H110: 1982 | I110: 1983 | J110: 1984 | K110: 1985 | L110: 1986 | M110: 1987 | N110: 1988 | O110: 1989 | P110: 1990 | Q110: 1991 | R110: 1992 | S110: 1993 | T110: 1994 | U110: 1995 | V110: 1996 | W110: 1997 | X110: 1998 | Y110: 1999 | Z110: 2000 | AA110: 2001 | AB110: 2002 | AC110: 2003 | AD110: 2004 | AE110: 2005 | AF110: 2006 | AG110: 2007 | AH110: 2008 | AI110: 2009 | AJ110: 2010 | AK110: 2011 | AL110: 2012 | AM110: 2013 | AN110: 2014 | AO110: 2015 | AP110: 2016 | AQ110: 2017 | AR110: 2018 | AS110: 2019 | AT110: 2020 | AU110: 2021 | AV110: 2022 | AW110: 2023 | AX110: 2024 | AY110: 2025 | AZ110: 2026 | BA110: 2027 | BB110: 2028 | BC110: 2029 | BD110: 2030 | BE110: 2031 | BF110: 2032 | BG110: 2033 | BH110: 2034
D111: EL0 | E111: =INDEX(EFFICIENCY_LEVELS,RIGHT(D111,1)+1,MID($D$107,3,1)) -> 8.414635625 | G111: =H111 -> 0.1009 | H111: 0.1009 | I111: 0.1009 | J111: 0.1009 | K111: 0.1009 | L111: 0.1009 | M111: 0.1009 | N111: 0.1009 | O111: 0.1009 | P111: 0.1009 | Q111: 0.1009 | R111: 0.1009 | S111: 0.1009 | T111: 0.1009 | U111: 0.1009 | V111: 0.1009 | W111: 0.1009 | X111: 0.1009 | Y111: 0.1009 | Z111: 0.1009 | AA111: 0.1009 | AB111: 0.1009 | AC111: 0.1009 | AD111: 0.1009 | AE111: 0.1009 | AF111: 0.1009 | AG111: 0.1009 | AH111: =AI111 -> 0.1009 | AI111: ='National Shipments'!F111/'National Shipments'!F$116 -> 0.1009 | AJ111: ='National Shipments'!G111/'National Shipments'!G$116 -> 0.1009 | AK111: ='National Shipments'!H111/'National Shipments'!H$116 -> 0.1009 | AL111: ='National Shipments'!I111/'National Shipments'!I$116 -> 0.1009 | AM111: ='National Shipments'!J111/'National Shipments'!J$116 -> 0.1009 | AN111: ='National Shipments'!K111/'National Shipments'!K$116 -> 0.1009 | AO111: ='National Shipments'!L111/'National Shipments'!L$116 -> 0.07459572737 | AP111: ='National Shipments'!M111/'National Shipments'!M$116 -> 0.04822569405 | AQ111: ='National Shipments'!N111/'National Shipments'!N$116 -> 0.02178973565 | AR111: ='National Shipments'!O111/'National Shipments'!O$116 -> 0 | AS111: ='National Shipments'!P111/'National Shipments'!P$116 -> 0 | AT111: ='National Shipments'!Q111/'National Shipments'!Q$116 -> 0 | AU111: ='National Shipments'!R111/'National Shipments'!R$116 -> 0 | AV111: ='National Shipments'!S111/'National Shipments'!S$116 -> 0 | AW111: ='National Shipments'!T111/'National Shipments'!T$116 -> 0 | AX111: ='National Shipments'!U111/'National Shipments'!U$116 -> 0 | AY111: ='National Shipments'!V111/'National Shipments'!V$116 -> 0 | AZ111: ='National Shipments'!W111/'National Shipments'!W$116 -> 0 | BA111: ='National Shipments'!X111/'National Shipments'!X$116 -> 0 | BB111: ='National Shipments'!Y111/'National Shipments'!Y$116 -> 0 | BC111: ='National Shipments'!Z111/'National Shipments'!Z$116 -> 0 | BD111: ='National Shipments'!AA111/'National Shipments'!AA$116 -> 0 | BE111: ='National Shipments'!AB111/'National Shipments'!AB$116 -> 0 | BF111: ='National Shipments'!AC111/'National Shipments'!AC$116 -> 0 | BG111: ='National Shipments'!AD111/'National Shipments'!AD$116 -> 0 | BH111: ='National Shipments'!AE111/'National Shipments'!AE$116 -> 0
D112: EL1 | E112: =INDEX(EFFICIENCY_LEVELS,RIGHT(D112,1)+1,MID($D$107,3,1)) -> 9.3 | G112: 0.6475 | H112: 0.6475 | I112: 0.6475 | J112: 0.6475 | K112: 0.6475 | L112: 0.6475 | M112: 0.6475 | N112: 0.6475 | O112: 0.6475 | P112: 0.6475 | Q112: 0.6475 | R112: 0.6475 | S112: 0.6475 | T112: 0.6475 | U112: 0.6475 | V112: 0.6475 | W112: 0.6475 | X112: 0.6475 | Y112: 0.6475 | Z112: 0.6475 | AA112: 0.6475 | AB112: 0.6475 | AC112: 0.6475 | AD112: 0.6475 | AE112: 0.6475 | AF112: 0.6475 | AG112: 0.6475 | AH112: =AI112 -> 0.6475 | AI112: ='National Shipments'!F112/'National Shipments'!F$116 -> 0.6475 | AJ112: ='National Shipments'!G112/'National Shipments'!G$116 -> 0.6475 | AK112: ='National Shipments'!H112/'National Shipments'!H$116 -> 0.6475 | AL112: ='National Shipments'!I112/'National Shipments'!I$116 -> 0.6475 | AM112: ='National Shipments'!J112/'National Shipments'!J$116 -> 0.6475 | AN112: ='National Shipments'!K112/'National Shipments'!K$116 -> 0.6475 | AO112: ='National Shipments'!L112/'National Shipments'!L$116 -> 0.6738042726 | AP112: ='National Shipments'!M112/'National Shipments'!M$116 -> 0.700174306 | AQ112: ='National Shipments'!N112/'National Shipments'!N$116 -> 0.7266102644 | AR112: ='National Shipments'!O112/'National Shipments'!O$116 -> 0.7344929542 | AS112: ='National Shipments'!P112/'National Shipments'!P$116 -> 0.6560841897 | AT112: ='National Shipments'!Q112/'National Shipments'!Q$116 -> 0.5774794033 | AU112: ='National Shipments'!R112/'National Shipments'!R$116 -> 0.498678105 | AV112: ='National Shipments'!S112/'National Shipments'!S$116 -> 0.4196798034 | AW112: ='National Shipments'!T112/'National Shipments'!T$116 -> 0.340484006 | AX112: ='National Shipments'!U112/'National Shipments'!U$116 -> 0.2610902192 | AY112: ='National Shipments'!V112/'National Shipments'!V$116 -> 0.1814979479 | AZ112: ='National Shipments'!W112/'National Shipments'!W$116 -> 0.1017066959 | BA112: ='National Shipments'!X112/'National Shipments'!X$116 -> 0.02171596577 | BB112: ='National Shipments'!Y112/'National Shipments'!Y$116 -> 0 | BC112: ='National Shipments'!Z112/'National Shipments'!Z$116 -> 0 | BD112: ='National Shipments'!AA112/'National Shipments'!AA$116 -> 0 | BE112: ='National Shipments'!AB112/'National Shipments'!AB$116 -> 0 | BF112: ='National Shipments'!AC112/'National Shipments'!AC$116 -> 0 | BG112: ='National Shipments'!AD112/'National Shipments'!AD$116 -> 0 | BH112: ='National Shipments'!AE112/'National Shipments'!AE$116 -> 0
D113: EL2 | E113: =INDEX(EFFICIENCY_LEVELS,RIGHT(D113,1)+1,MID($D$107,3,1)) -> 9.6 | G113: 0.1953 | H113: 0.1953 | I113: 0.1953 | J113: 0.1953 | K113: 0.1953 | L113: 0.1953 | M113: 0.1953 | N113: 0.1953 | O113: 0.1953 | P113: 0.1953 | Q113: 0.1953 | R113: 0.1953 | S113: 0.1953 | T113: 0.1953 | U113: 0.1953 | V113: 0.1953 | W113: 0.1953 | X113: 0.1953 | Y113: 0.1953 | Z113: 0.1953 | AA113: 0.1953 | AB113: 0.1953 | AC113: 0.1953 | AD113: 0.1953 | AE113: 0.1953 | AF113: 0.1953 | AG113: 0.1953 | AH113: 0.1953 | AI113: ='National Shipments'!F113/'National Shipments'!F$116 -> 0.1953 | AJ113: ='National Shipments'!G113/'National Shipments'!G$116 -> 0.1953 | AK113: ='National Shipments'!H113/'National Shipments'!H$116 -> 0.1953 | AL113: ='National Shipments'!I113/'National Shipments'!I$116 -> 0.1953 | AM113: ='National Shipments'!J113/'National Shipments'!J$116 -> 0.1953 | AN113: ='National Shipments'!K113/'National Shipments'!K$116 -> 0.1953 | AO113: ='National Shipments'!L113/'National Shipments'!L$116 -> 0.1953 | AP113: ='National Shipments'!M113/'National Shipments'!M$116 -> 0.1953 | AQ113: ='National Shipments'!N113/'National Shipments'!N$116 -> 0.1953 | AR113: ='National Shipments'!O113/'National Shipments'!O$116 -> 0.2092070458 | AS113: ='National Shipments'!P113/'National Shipments'!P$116 -> 0.2876158103 | AT113: ='National Shipments'!Q113/'National Shipments'!Q$116 -> 0.3662205967 | AU113: ='National Shipments'!R113/'National Shipments'!R$116 -> 0.445021895 | AV113: ='National Shipments'!S113/'National Shipments'!S$116 -> 0.5240201966 | AW113: ='National Shipments'!T113/'National Shipments'!T$116 -> 0.603215994 | AX113: ='National Shipments'!U113/'National Shipments'!U$116 -> 0.6826097808 | AY113: ='National Shipments'!V113/'National Shipments'!V$116 -> 0.7622020521 | AZ113: ='National Shipments'!W113/'National Shipments'!W$116 -> 0.8419933041 | BA113: ='National Shipments'!X113/'National Shipments'!X$116 -> 0.9219840342 | BB113: ='National Shipments'!Y113/'National Shipments'!Y$116 -> 0.8998439441 | BC113: ='National Shipments'!Z113/'National Shipments'!Z$116 -> 0.8395505563 | BD113: ='National Shipments'!AA113/'National Shipments'!AA$116 -> 0.7791064351 | BE113: ='National Shipments'!AB113/'National Shipments'!AB$116 -> 0.7185112035 | BF113: ='National Shipments'!AC113/'National Shipments'!AC$116 -> 0.6577644839 | BG113: ='National Shipments'!AD113/'National Shipments'!AD$116 -> 0.5968658974 | BH113: ='National Shipments'!AE113/'National Shipments'!AE$116 -> 0.5358150645
D114: EL3 | E114: =INDEX(EFFICIENCY_LEVELS,RIGHT(D114,1)+1,MID($D$107,3,1)) -> 10 | G114: 0.0369 | H114: 0.0369 | I114: 0.0369 | J114: 0.0369 | K114: 0.0369 | L114: 0.0369 | M114: 0.0369 | N114: 0.0369 | O114: 0.0369 | P114: 0.0369 | Q114: 0.0369 | R114: 0.0369 | S114: 0.0369 | T114: 0.0369 | U114: 0.0369 | V114: 0.0369 | W114: 0.0369 | X114: 0.0369 | Y114: 0.0369 | Z114: 0.0369 | AA114: 0.0369 | AB114: 0.0369 | AC114: 0.0369 | AD114: 0.0369 | AE114: 0.0369 | AF114: 0.0369 | AG114: 0.0369 | AH114: 0.0369 | AI114: ='National Shipments'!F114/'National Shipments'!F$116 -> 0.0369 | AJ114: ='National Shipments'!G114/'National Shipments'!G$116 -> 0.0369 | AK114: ='National Shipments'!H114/'National Shipments'!H$116 -> 0.0369 | AL114: ='National Shipments'!I114/'National Shipments'!I$116 -> 0.0369 | AM114: ='National Shipments'!J114/'National Shipments'!J$116 -> 0.0369 | AN114: ='National Shipments'!K114/'National Shipments'!K$116 -> 0.0369 | AO114: ='National Shipments'!L114/'National Shipments'!L$116 -> 0.0369 | AP114: ='National Shipments'!M114/'National Shipments'!M$116 -> 0.0369 | AQ114: ='National Shipments'!N114/'National Shipments'!N$116 -> 0.0369 | AR114: ='National Shipments'!O114/'National Shipments'!O$116 -> 0.0369 | AS114: ='National Shipments'!P114/'National Shipments'!P$116 -> 0.0369 | AT114: ='National Shipments'!Q114/'National Shipments'!Q$116 -> 0.0369 | AU114: ='National Shipments'!R114/'National Shipments'!R$116 -> 0.0369 | AV114: ='National Shipments'!S114/'National Shipments'!S$116 -> 0.0369 | AW114: ='National Shipments'!T114/'National Shipments'!T$116 -> 0.0369 | AX114: ='National Shipments'!U114/'National Shipments'!U$116 -> 0.0369 | AY114: ='National Shipments'!V114/'National Shipments'!V$116 -> 0.0369 | AZ114: ='National Shipments'!W114/'National Shipments'!W$116 -> 0.0369 | BA114: ='National Shipments'!X114/'National Shipments'!X$116 -> 0.0369 | BB114: ='National Shipments'!Y114/'National Shipments'!Y$116 -> 0.08075605588 | BC114: ='National Shipments'!Z114/'National Shipments'!Z$116 -> 0.1410494437 | BD114: ='National Shipments'!AA114/'National Shipments'!AA$116 -> 0.2014935649 | BE114: ='National Shipments'!AB114/'National Shipments'!AB$116 -> 0.2620887965 | BF114: ='National Shipments'!AC114/'National Shipments'!AC$116 -> 0.3228355161 | BG114: ='National Shipments'!AD114/'National Shipments'!AD$116 -> 0.3837341026 | BH114: ='National Shipments'!AE114/'National Shipments'!AE$116 -> 0.4447849355
D115: EL4 | E115: =INDEX(EFFICIENCY_LEVELS,RIGHT(D115,1)+1,MID($D$107,3,1)) -> 10.35461976 | G115: 0.0194 | H115: 0.0194 | I115: 0.0194 | J115: 0.0194 | K115: 0.0194 | L115: 0.0194 | M115: 0.0194 | N115: 0.0194 | O115: 0.0194 | P115: 0.0194 | Q115: 0.0194 | R115: 0.0194 | S115: 0.0194 | T115: 0.0194 | U115: 0.0194 | V115: 0.0194 | W115: 0.0194 | X115: 0.0194 | Y115: 0.0194 | Z115: 0.0194 | AA115: 0.0194 | AB115: 0.0194 | AC115: 0.0194 | AD115: 0.0194 | AE115: 0.0194 | AF115: 0.0194 | AG115: 0.0194 | AH115: 0.0194 | AI115: ='National Shipments'!F115/'National Shipments'!F$116 -> 0.0194 | AJ115: ='National Shipments'!G115/'National Shipments'!G$116 -> 0.0194 | AK115: ='National Shipments'!H115/'National Shipments'!H$116 -> 0.0194 | AL115: ='National Shipments'!I115/'National Shipments'!I$116 -> 0.0194 | AM115: ='National Shipments'!J115/'National Shipments'!J$116 -> 0.0194 | AN115: ='National Shipments'!K115/'National Shipments'!K$116 -> 0.0194 | AO115: ='National Shipments'!L115/'National Shipments'!L$116 -> 0.0194 | AP115: ='National Shipments'!M115/'National Shipments'!M$116 -> 0.0194 | AQ115: ='National Shipments'!N115/'National Shipments'!N$116 -> 0.0194 | AR115: ='National Shipments'!O115/'National Shipments'!O$116 -> 0.0194 | AS115: ='National Shipments'!P115/'National Shipments'!P$116 -> 0.0194 | AT115: ='National Shipments'!Q115/'National Shipments'!Q$116 -> 0.0194 | AU115: ='National Shipments'!R115/'National Shipments'!R$116 -> 0.0194 | AV115: ='National Shipments'!S115/'National Shipments'!S$116 -> 0.0194 | AW115: ='National Shipments'!T115/'National Shipments'!T$116 -> 0.0194 | AX115: ='National Shipments'!U115/'National Shipments'!U$116 -> 0.0194 | AY115: ='National Shipments'!V115/'National Shipments'!V$116 -> 0.0194 | AZ115: ='National Shipments'!W115/'National Shipments'!W$116 -> 0.0194 | BA115: ='National Shipments'!X115/'National Shipments'!X$116 -> 0.0194 | BB115: ='National Shipments'!Y115/'National Shipments'!Y$116 -> 0.0194 | BC115: ='National Shipments'!Z115/'National Shipments'!Z$116 -> 0.0194 | BD115: ='National Shipments'!AA115/'National Shipments'!AA$116 -> 0.0194 | BE115: ='National Shipments'!AB115/'National Shipments'!AB$116 -> 0.0194 | BF115: ='National Shipments'!AC115/'National Shipments'!AC$116 -> 0.0194 | BG115: ='National Shipments'!AD115/'National Shipments'!AD$116 -> 0.0194 | BH115: ='National Shipments'!AE115/'National Shipments'!AE$116 -> 0.0194
D116: TOTAL | G116: 1 | H116: 1 | I116: 1 | J116: 1 | K116: 1 | L116: 1 | M116: 1 | N116: 1 | O116: 1 | P116: 1 | Q116: 1 | R116: 1 | S116: 1 | T116: 1 | U116: 1 | V116: 1 | W116: 1 | X116: 1 | Y116: 1 | Z116: 1 | AA116: 1 | AB116: 1 | AC116: 1 | AD116: 1 | AE116: 1 | AF116: 1 | AG116: 1 | AH116: 1 | AI116: ='National Shipments'!F116/'National Shipments'!F$116 -> 1 | AJ116: ='National Shipments'!G116/'National Shipments'!G$116 -> 1 | AK116: ='National Shipments'!H116/'National Shipments'!H$116 -> 1 | AL116: ='National Shipments'!I116/'National Shipments'!I$116 -> 1 | AM116: ='National Shipments'!J116/'National Shipments'!J$116 -> 1 | AN116: ='National Shipments'!K116/'National Shipments'!K$116 -> 1 | AO116: ='National Shipments'!L116/'National Shipments'!L$116 -> 1 | AP116: ='National Shipments'!M116/'National Shipments'!M$116 -> 1 | AQ116: ='National Shipments'!N116/'National Shipments'!N$116 -> 1 | AR116: ='National Shipments'!O116/'National Shipments'!O$116 -> 1 | AS116: ='National Shipments'!P116/'National Shipments'!P$116 -> 1 | AT116: ='National Shipments'!Q116/'National Shipments'!Q$116 -> 1 | AU116: ='National Shipments'!R116/'National Shipments'!R$116 -> 1 | AV116: ='National Shipments'!S116/'National Shipments'!S$116 -> 1 | AW116: ='National Shipments'!T116/'National Shipments'!T$116 -> 1 | AX116: ='National Shipments'!U116/'National Shipments'!U$116 -> 1 | AY116: ='National Shipments'!V116/'National Shipments'!V$116 -> 1 | AZ116: ='National Shipments'!W116/'National Shipments'!W$116 -> 1 | BA116: ='National Shipments'!X116/'National Shipments'!X$116 -> 1 | BB116: ='National Shipments'!Y116/'National Shipments'!Y$116 -> 1 | BC116: ='National Shipments'!Z116/'National Shipments'!Z$116 -> 1 | BD116: ='National Shipments'!AA116/'National Shipments'!AA$116 -> 1 | BE116: ='National Shipments'!AB116/'National Shipments'!AB$116 -> 1 | BF116: ='National Shipments'!AC116/'National Shipments'!AC$116 -> 1 | BG116: ='National Shipments'!AD116/'National Shipments'!AD$116 -> 1 | BH116: ='National Shipments'!AE116/'National Shipments'!AE$116 -> 1
D118: POST-Case
D119: Efficiency Level | E119: CEER | G119: 1981 | H119: 1982 | I119: 1983 | J119: 1984 | K119: 1985 | L119: 1986 | M119: 1987 | N119: 1988 | O119: 1989 | P119: 1990 | Q119: 1991 | R119: 1992 | S119: 1993 | T119: 1994 | U119: 1995 | V119: 1996 | W119: 1997 | X119: 1998 | Y119: 1999 | Z119: 2000 | AA119: 2001 | AB119: 2002 | AC119: 2003 | AD119: 2004 | AE119: 2005 | AF119: 2006 | AG119: 2007 | AH119: 2008 | AI119: 2009 | AJ119: 2010 | AK119: 2011 | AL119: 2012 | AM119: 2013 | AN119: 2014 | AO119: 2015 | AP119: 2016 | AQ119: 2017 | AR119: 2018 | AS119: 2019 | AT119: 2020 | AU119: 2021 | AV119: 2022 | AW119: 2023 | AX119: 2024 | AY119: 2025 | AZ119: 2026 | BA119: 2027 | BB119: 2028 | BC119: 2029 | BD119: 2030 | BE119: 2031 | BF119: 2032 | BG119: 2033 | BH119: 2034
D120: EL0 | E120: =INDEX(EFFICIENCY_LEVELS,RIGHT(D120,1)+1,MID($D$107,3,1)) -> 8.414635625 | G120: =H120 -> 0.1009 | H120: 0.1009 | I120: 0.1009 | J120: 0.1009 | K120: 0.1009 | L120: 0.1009 | M120: 0.1009 | N120: 0.1009 | O120: 0.1009 | P120: 0.1009 | Q120: 0.1009 | R120: 0.1009 | S120: 0.1009 | T120: 0.1009 | U120: 0.1009 | V120: 0.1009 | W120: 0.1009 | X120: 0.1009 | Y120: 0.1009 | Z120: 0.1009 | AA120: 0.1009 | AB120: 0.1009 | AC120: 0.1009 | AD120: 0.1009 | AE120: 0.1009 | AF120: 0.1009 | AG120: 0.1009 | AH120: =AI120 -> 0.1009 | AI120: ='National Shipments'!F120/'National Shipments'!F$125 -> 0.1009 | AJ120: ='National Shipments'!G120/'National Shipments'!G$125 -> 0.1009 | AK120: ='National Shipments'!H120/'National Shipments'!H$125 -> 0.1009 | AL120: ='National Shipments'!I120/'National Shipments'!I$125 -> 0.1009 | AM120: ='National Shipments'!J120/'National Shipments'!J$125 -> 0.1009 | AN120: ='National Shipments'!K120/'National Shipments'!K$125 -> 0 | AO120: ='National Shipments'!L120/'National Shipments'!L$125 -> 0 | AP120: ='National Shipments'!M120/'National Shipments'!M$125 -> 0 | AQ120: ='National Shipments'!N120/'National Shipments'!N$125 -> 0 | AR120: ='National Shipments'!O120/'National Shipments'!O$125 -> 0 | AS120: ='National Shipments'!P120/'National Shipments'!P$125 -> 0 | AT120: ='National Shipments'!Q120/'National Shipments'!Q$125 -> 0 | AU120: ='National Shipments'!R120/'National Shipments'!R$125 -> 0 | AV120: ='National Shipments'!S120/'National Shipments'!S$125 -> 0 | AW120: ='National Shipments'!T120/'National Shipments'!T$125 -> 0 | AX120: ='National Shipments'!U120/'National Shipments'!U$125 -> 0 | AY120: ='National Shipments'!V120/'National Shipments'!V$125 -> 0 | AZ120: ='National Shipments'!W120/'National Shipments'!W$125 -> 0 | BA120: ='National Shipments'!X120/'National Shipments'!X$125 -> 0 | BB120: ='National Shipments'!Y120/'National Shipments'!Y$125 -> 0 | BC120: ='National Shipments'!Z120/'National Shipments'!Z$125 -> 0 | BD120: ='National Shipments'!AA120/'National Shipments'!AA$125 -> 0 | BE120: ='National Shipments'!AB120/'National Shipments'!AB$125 -> 0 | BF120: ='National Shipments'!AC120/'National Shipments'!AC$125 -> 0 | BG120: ='National Shipments'!AD120/'National Shipments'!AD$125 -> 0 | BH120: ='National Shipments'!AE120/'National Shipments'!AE$125 -> 0
D121: EL1 | E121: =INDEX(EFFICIENCY_LEVELS,RIGHT(D121,1)+1,MID($D$107,3,1)) -> 9.3 | G121: =H121 -> 0.6475 | H121: 0.6475 | I121: 0.6475 | J121: 0.6475 | K121: 0.6475 | L121: 0.6475 | M121: 0.6475 | N121: 0.6475 | O121: 0.6475 | P121: 0.6475 | Q121: 0.6475 | R121: 0.6475 | S121: 0.6475 | T121: 0.6475 | U121: 0.6475 | V121: 0.6475 | W121: 0.6475 | X121: 0.6475 | Y121: 0.6475 | Z121: 0.6475 | AA121: 0.6475 | AB121: 0.6475 | AC121: 0.6475 | AD121: 0.6475 | AE121: 0.6475 | AF121: 0.6475 | AG121: 0.6475 | AH121: 0.6475 | AI121: ='National Shipments'!F121/'National Shipments'!F$125 -> 0.6475 | AJ121: ='National Shipments'!G121/'National Shipments'!G$125 -> 0.6475 | AK121: ='National Shipments'!H121/'National Shipments'!H$125 -> 0.6475 | AL121: ='National Shipments'!I121/'National Shipments'!I$125 -> 0.6475 | AM121: ='National Shipments'!J121/'National Shipments'!J$125 -> 0.6475 | AN121: ='National Shipments'!K121/'National Shipments'!K$125 -> 0 | AO121: ='National Shipments'!L121/'National Shipments'!L$125 -> 0 | AP121: ='National Shipments'!M121/'National Shipments'!M$125 -> 0 | AQ121: ='National Shipments'!N121/'National Shipments'!N$125 -> 0 | AR121: ='National Shipments'!O121/'National Shipments'!O$125 -> 0 | AS121: ='National Shipments'!P121/'National Shipments'!P$125 -> 0 | AT121: ='National Shipments'!Q121/'National Shipments'!Q$125 -> 0 | AU121: ='National Shipments'!R121/'National Shipments'!R$125 -> 0 | AV121: ='National Shipments'!S121/'National Shipments'!S$125 -> 0 | AW121: ='National Shipments'!T121/'National Shipments'!T$125 -> 0 | AX121: ='National Shipments'!U121/'National Shipments'!U$125 -> 0 | AY121: ='National Shipments'!V121/'National Shipments'!V$125 -> 0 | AZ121: ='National Shipments'!W121/'National Shipments'!W$125 -> 0 | BA121: ='National Shipments'!X121/'National Shipments'!X$125 -> 0 | BB121: ='National Shipments'!Y121/'National Shipments'!Y$125 -> 0 | BC121: ='National Shipments'!Z121/'National Shipments'!Z$125 -> 0 | BD121: ='National Shipments'!AA121/'National Shipments'!AA$125 -> 0 | BE121: ='National Shipments'!AB121/'National Shipments'!AB$125 -> 0 | BF121: ='National Shipments'!AC121/'National Shipments'!AC$125 -> 0 | BG121: ='National Shipments'!AD121/'National Shipments'!AD$125 -> 0 | BH121: ='National Shipments'!AE121/'National Shipments'!AE$125 -> 0
D122: EL2 | E122: =INDEX(EFFICIENCY_LEVELS,RIGHT(D122,1)+1,MID($D$107,3,1)) -> 9.6 | G122: =H122 -> 0.1953 | H122: 0.1953 | I122: 0.1953 | J122: 0.1953 | K122: 0.1953 | L122: 0.1953 | M122: 0.1953 | N122: 0.1953 | O122: 0.1953 | P122: 0.1953 | Q122: 0.1953 | R122: 0.1953 | S122: 0.1953 | T122: 0.1953 | U122: 0.1953 | V122: 0.1953 | W122: 0.1953 | X122: 0.1953 | Y122: 0.1953 | Z122: 0.1953 | AA122: 0.1953 | AB122: 0.1953 | AC122: 0.1953 | AD122: 0.1953 | AE122: 0.1953 | AF122: 0.1953 | AG122: 0.1953 | AH122: 0.1953 | AI122: ='National Shipments'!F122/'National Shipments'!F$125 -> 0.1953 | AJ122: ='National Shipments'!G122/'National Shipments'!G$125 -> 0.1953 | AK122: ='National Shipments'!H122/'National Shipments'!H$125 -> 0.1953 | AL122: ='National Shipments'!I122/'National Shipments'!I$125 -> 0.1953 | AM122: ='National Shipments'!J122/'National Shipments'!J$125 -> 0.1953 | AN122: ='National Shipments'!K122/'National Shipments'!K$125 -> 0.9437 | AO122: ='National Shipments'!L122/'National Shipments'!L$125 -> 0.8087259239 | AP122: ='National Shipments'!M122/'National Shipments'!M$125 -> 0.7965201794 | AQ122: ='National Shipments'!N122/'National Shipments'!N$125 -> 0.7842839205 | AR122: ='National Shipments'!O122/'National Shipments'!O$125 -> 0.7713008855 | AS122: ='National Shipments'!P122/'National Shipments'!P$125 -> 0.7549654721 | AT122: ='National Shipments'!Q122/'National Shipments'!Q$125 -> 0.7385892201 | AU122: ='National Shipments'!R122/'National Shipments'!R$125 -> 0.7221720275 | AV122: ='National Shipments'!S122/'National Shipments'!S$125 -> 0.705713792 | AW122: ='National Shipments'!T122/'National Shipments'!T$125 -> 0.6892144108 | AX122: ='National Shipments'!U122/'National Shipments'!U$125 -> 0.6726737812 | AY122: ='National Shipments'!V122/'National Shipments'!V$125 -> 0.6560918 | AZ122: ='National Shipments'!W122/'National Shipments'!W$125 -> 0.6394683639 | BA122: ='National Shipments'!X122/'National Shipments'!X$125 -> 0.6228033692 | BB122: ='National Shipments'!Y122/'National Shipments'!Y$125 -> 0.5744230834 | BC122: ='National Shipments'!Z122/'National Shipments'!Z$125 -> 0.5141296956 | BD122: ='National Shipments'!AA122/'National Shipments'!AA$125 -> 0.4536855743 | BE122: ='National Shipments'!AB122/'National Shipments'!AB$125 -> 0.3930903428 | BF122: ='National Shipments'!AC122/'National Shipments'!AC$125 -> 0.3323436231 | BG122: ='National Shipments'!AD122/'National Shipments'!AD$125 -> 0.2714450367 | BH122: ='National Shipments'!AE122/'National Shipments'!AE$125 -> 0.2103942038
D123: EL3 | E123: =INDEX(EFFICIENCY_LEVELS,RIGHT(D123,1)+1,MID($D$107,3,1)) -> 10 | G123: =H123 -> 0.0369 | H123: 0.0369 | I123: 0.0369 | J123: 0.0369 | K123: 0.0369 | L123: 0.0369 | M123: 0.0369 | N123: 0.0369 | O123: 0.0369 | P123: 0.0369 | Q123: 0.0369 | R123: 0.0369 | S123: 0.0369 | T123: 0.0369 | U123: 0.0369 | V123: 0.0369 | W123: 0.0369 | X123: 0.0369 | Y123: 0.0369 | Z123: 0.0369 | AA123: 0.0369 | AB123: 0.0369 | AC123: 0.0369 | AD123: 0.0369 | AE123: 0.0369 | AF123: 0.0369 | AG123: 0.0369 | AH123: 0.0369 | AI123: ='National Shipments'!F123/'National Shipments'!F$125 -> 0.0369 | AJ123: ='National Shipments'!G123/'National Shipments'!G$125 -> 0.0369 | AK123: ='National Shipments'!H123/'National Shipments'!H$125 -> 0.0369 | AL123: ='National Shipments'!I123/'National Shipments'!I$125 -> 0.0369 | AM123: ='National Shipments'!J123/'National Shipments'!J$125 -> 0.0369 | AN123: ='National Shipments'!K123/'National Shipments'!K$125 -> 0.0369 | AO123: ='National Shipments'!L123/'National Shipments'!L$125 -> 0.1718740761 | AP123: ='National Shipments'!M123/'National Shipments'!M$125 -> 0.1840798206 | AQ123: ='National Shipments'!N123/'National Shipments'!N$125 -> 0.1963160795 | AR123: ='National Shipments'!O123/'National Shipments'!O$125 -> 0.2092991145 | AS123: ='National Shipments'!P123/'National Shipments'!P$125 -> 0.2256345279 | AT123: ='National Shipments'!Q123/'National Shipments'!Q$125 -> 0.2420107799 | AU123: ='National Shipments'!R123/'National Shipments'!R$125 -> 0.2584279725 | AV123: ='National Shipments'!S123/'National Shipments'!S$125 -> 0.274886208 | AW123: ='National Shipments'!T123/'National Shipments'!T$125 -> 0.2913855892 | AX123: ='National Shipments'!U123/'National Shipments'!U$125 -> 0.3079262188 | AY123: ='National Shipments'!V123/'National Shipments'!V$125 -> 0.3245082 | AZ123: ='National Shipments'!W123/'National Shipments'!W$125 -> 0.3411316361 | BA123: ='National Shipments'!X123/'National Shipments'!X$125 -> 0.3577966308 | BB123: ='National Shipments'!Y123/'National Shipments'!Y$125 -> 0.4061769166 | BC123: ='National Shipments'!Z123/'National Shipments'!Z$125 -> 0.4664703044 | BD123: ='National Shipments'!AA123/'National Shipments'!AA$125 -> 0.5269144257 | BE123: ='National Shipments'!AB123/'National Shipments'!AB$125 -> 0.5875096572 | BF123: ='National Shipments'!AC123/'National Shipments'!AC$125 -> 0.6482563769 | BG123: ='National Shipments'!AD123/'National Shipments'!AD$125 -> 0.7091549633 | BH123: ='National Shipments'!AE123/'National Shipments'!AE$125 -> 0.7702057962
D124: EL4 | E124: =INDEX(EFFICIENCY_LEVELS,RIGHT(D124,1)+1,MID($D$107,3,1)) -> 10.35461976 | G124: =H124 -> 0.0194 | H124: 0.0194 | I124: 0.0194 | J124: 0.0194 | K124: 0.0194 | L124: 0.0194 | M124: 0.0194 | N124: 0.0194 | O124: 0.0194 | P124: 0.0194 | Q124: 0.0194 | R124: 0.0194 | S124: 0.0194 | T124: 0.0194 | U124: 0.0194 | V124: 0.0194 | W124: 0.0194 | X124: 0.0194 | Y124: 0.0194 | Z124: 0.0194 | AA124: 0.0194 | AB124: 0.0194 | AC124: 0.0194 | AD124: 0.0194 | AE124: 0.0194 | AF124: 0.0194 | AG124: 0.0194 | AH124: 0.0194 | AI124: ='National Shipments'!F124/'National Shipments'!F$125 -> 0.0194 | AJ124: ='National Shipments'!G124/'National Shipments'!G$125 -> 0.0194 | AK124: ='National Shipments'!H124/'National Shipments'!H$125 -> 0.0194 | AL124: ='National Shipments'!I124/'National Shipments'!I$125 -> 0.0194 | AM124: ='National Shipments'!J124/'National Shipments'!J$125 -> 0.0194 | AN124: ='National Shipments'!K124/'National Shipments'!K$125 -> 0.0194 | AO124: ='National Shipments'!L124/'National Shipments'!L$125 -> 0.0194 | AP124: ='National Shipments'!M124/'National Shipments'!M$125 -> 0.0194 | AQ124: ='National Shipments'!N124/'National Shipments'!N$125 -> 0.0194 | AR124: ='National Shipments'!O124/'National Shipments'!O$125 -> 0.0194 | AS124: ='National Shipments'!P124/'National Shipments'!P$125 -> 0.0194 | AT124: ='National Shipments'!Q124/'National Shipments'!Q$125 -> 0.0194 | AU124: ='National Shipments'!R124/'National Shipments'!R$125 -> 0.0194 | AV124: ='National Shipments'!S124/'National Shipments'!S$125 -> 0.0194 | AW124: ='National Shipments'!T124/'National Shipments'!T$125 -> 0.0194 | AX124: ='National Shipments'!U124/'National Shipments'!U$125 -> 0.0194 | AY124: ='National Shipments'!V124/'National Shipments'!V$125 -> 0.0194 | AZ124: ='National Shipments'!W124/'National Shipments'!W$125 -> 0.0194 | BA124: ='National Shipments'!X124/'National Shipments'!X$125 -> 0.0194 | BB124: ='National Shipments'!Y124/'National Shipments'!Y$125 -> 0.0194 | BC124: ='National Shipments'!Z124/'National Shipments'!Z$125 -> 0.0194 | BD124: ='National Shipments'!AA124/'National Shipments'!AA$125 -> 0.0194 | BE124: ='National Shipments'!AB124/'National Shipments'!AB$125 -> 0.0194 | BF124: ='National Shipments'!AC124/'National Shipments'!AC$125 -> 0.0194 | BG124: ='National Shipments'!AD124/'National Shipments'!AD$125 -> 0.0194 | BH124: ='National Shipments'!AE124/'National Shipments'!AE$125 -> 0.0194
D125: TOTAL | G125: =H125 -> 1 | H125: 1 | I125: 1 | J125: 1 | K125: 1 | L125: 1 | M125: 1 | N125: 1 | O125: 1 | P125: 1 | Q125: 1 | R125: 1 | S125: 1 | T125: 1 | U125: 1 | V125: 1 | W125: 1 | X125: 1 | Y125: 1 | Z125: 1 | AA125: 1 | AB125: 1 | AC125: 1 | AD125: 1 | AE125: 1 | AF125: 1 | AG125: 1 | AH125: 1 | AI125: ='National Shipments'!F125/'National Shipments'!F$125 -> 1 | AJ125: ='National Shipments'!G125/'National Shipments'!G$125 -> 1 | AK125: ='National Shipments'!H125/'National Shipments'!H$125 -> 1 | AL125: ='National Shipments'!I125/'National Shipments'!I$125 -> 1 | AM125: ='National Shipments'!J125/'National Shipments'!J$125 -> 1 | AN125: ='National Shipments'!K125/'National Shipments'!K$125 -> 1 | AO125: ='National Shipments'!L125/'National Shipments'!L$125 -> 1 | AP125: ='National Shipments'!M125/'National Shipments'!M$125 -> 1 | AQ125: ='National Shipments'!N125/'National Shipments'!N$125 -> 1 | AR125: ='National Shipments'!O125/'National Shipments'!O$125 -> 1 | AS125: ='National Shipments'!P125/'National Shipments'!P$125 -> 1 | AT125: ='National Shipments'!Q125/'National Shipments'!Q$125 -> 1 | AU125: ='National Shipments'!R125/'National Shipments'!R$125 -> 1 | AV125: ='National Shipments'!S125/'National Shipments'!S$125 -> 1 | AW125: ='National Shipments'!T125/'National Shipments'!T$125 -> 1 | AX125: ='National Shipments'!U125/'National Shipments'!U$125 -> 1 | AY125: ='National Shipments'!V125/'National Shipments'!V$125 -> 1 | AZ125: ='National Shipments'!W125/'National Shipments'!W$125 -> 1 | BA125: ='National Shipments'!X125/'National Shipments'!X$125 -> 1 | BB125: ='National Shipments'!Y125/'National Shipments'!Y$125 -> 1 | BC125: ='National Shipments'!Z125/'National Shipments'!Z$125 -> 1 | BD125: ='National Shipments'!AA125/'National Shipments'!AA$125 -> 1 | BE125: ='National Shipments'!AB125/'National Shipments'!AB$125 -> 1 | BF125: ='National Shipments'!AC125/'National Shipments'!AC$125 -> 1 | BG125: ='National Shipments'!AD125/'National Shipments'!AD$125 -> 1 | BH125: ='National Shipments'!AE125/'National Shipments'!AE$125 -> 1
D127: Sources | E127: 2011 DOE Residential Room Air Conditioners Direct Final Rule Government Regulatory Impact Model 'Product Shipments (CALC)' tab.
D131: PC6 Without reverse cycle, without louvered sides, and 11,000 to 13,999 Btu/h
D133: PRE-Case
D134: Efficiency Level | E134: CEER | G134: 1981 | H134: 1982 | I134: 1983 | J134: 1984 | K134: 1985 | L134: 1986 | M134: 1987 | N134: 1988 | O134: 1989 | P134: 1990 | Q134: 1991 | R134: 1992 | S134: 1993 | T134: 1994 | U134: 1995 | V134: 1996 | W134: 1997 | X134: 1998 | Y134: 1999 | Z134: 2000 | AA134: 2001 | AB134: 2002 | AC134: 2003 | AD134: 2004 | AE134: 2005 | AF134: 2006 | AG134: 2007 | AH134: 2008 | AI134: 2009 | AJ134: 2010 | AK134: 2011 | AL134: 2012 | AM134: 2013 | AN134: 2014 | AO134: 2015 | AP134: 2016 | AQ134: 2017 | AR134: 2018 | AS134: 2019 | AT134: 2020 | AU134: 2021 | AV134: 2022 | AW134: 2023 | AX134: 2024 | AY134: 2025 | AZ134: 2026 | BA134: 2027 | BB134: 2028 | BC134: 2029 | BD134: 2030 | BE134: 2031 | BF134: 2032 | BG134: 2033 | BH134: 2034
D135: EL0 | E135: =INDEX(EFFICIENCY_LEVELS,RIGHT(D135,1)+1,MID($D$131,3,1)) -> 8.442899265 | G135: =H135 -> 0.1009 | H135: 0.1009 | I135: 0.1009 | J135: 0.1009 | K135: 0.1009 | L135: 0.1009 | M135: 0.1009 | N135: 0.1009 | O135: 0.1009 | P135: 0.1009 | Q135: 0.1009 | R135: 0.1009 | S135: 0.1009 | T135: 0.1009 | U135: 0.1009 | V135: 0.1009 | W135: 0.1009 | X135: 0.1009 | Y135: 0.1009 | Z135: 0.1009 | AA135: 0.1009 | AB135: 0.1009 | AC135: 0.1009 | AD135: 0.1009 | AE135: 0.1009 | AF135: 0.1009 | AG135: 0.1009 | AH135: =AI135 -> 0.1009 | AI135: ='National Shipments'!F135/'National Shipments'!F$140 -> 0.1009 | AJ135: ='National Shipments'!G135/'National Shipments'!G$140 -> 0.1009 | AK135: ='National Shipments'!H135/'National Shipments'!H$140 -> 0.1009 | AL135: ='National Shipments'!I135/'National Shipments'!I$140 -> 0.1009 | AM135: ='National Shipments'!J135/'National Shipments'!J$140 -> 0.1009 | AN135: ='National Shipments'!K135/'National Shipments'!K$140 -> 0.1009 | AO135: ='National Shipments'!L135/'National Shipments'!L$140 -> 0.008548793121 | AP135: ='National Shipments'!M135/'National Shipments'!M$140 -> 0.04642497607 | AQ135: ='National Shipments'!N135/'National Shipments'!N$140 -> 0.01908528093 | AR135: ='National Shipments'!O135/'National Shipments'!O$140 -> 0 | AS135: ='National Shipments'!P135/'National Shipments'!P$140 -> 0 | AT135: ='National Shipments'!Q135/'National Shipments'!Q$140 -> 0 | AU135: ='National Shipments'!R135/'National Shipments'!R$140 -> 0 | AV135: ='National Shipments'!S135/'National Shipments'!S$140 -> 0 | AW135: ='National Shipments'!T135/'National Shipments'!T$140 -> 0 | AX135: ='National Shipments'!U135/'National Shipments'!U$140 -> 0 | AY135: ='National Shipments'!V135/'National Shipments'!V$140 -> 0 | AZ135: ='National Shipments'!W135/'National Shipments'!W$140 -> 0 | BA135: ='National Shipments'!X135/'National Shipments'!X$140 -> 0 | BB135: ='National Shipments'!Y135/'National Shipments'!Y$140 -> 0 | BC135: ='National Shipments'!Z135/'National Shipments'!Z$140 -> 0 | BD135: ='National Shipments'!AA135/'National Shipments'!AA$140 -> 0 | BE135: ='National Shipments'!AB135/'National Shipments'!AB$140 -> 0 | BF135: ='National Shipments'!AC135/'National Shipments'!AC$140 -> 0 | BG135: ='National Shipments'!AD135/'National Shipments'!AD$140 -> 0 | BH135: ='National Shipments'!AE135/'National Shipments'!AE$140 -> 0
D136: EL1 | E136: =INDEX(EFFICIENCY_LEVELS,RIGHT(D136,1)+1,MID($D$131,3,1)) -> 9.3 | G136: =H136 -> 0.5933 | H136: 0.5933 | I136: 0.5933 | J136: 0.5933 | K136: 0.5933 | L136: 0.5933 | M136: 0.5933 | N136: 0.5933 | O136: 0.5933 | P136: 0.5933 | Q136: 0.5933 | R136: 0.5933 | S136: 0.5933 | T136: 0.5933 | U136: 0.5933 | V136: 0.5933 | W136: 0.5933 | X136: 0.5933 | Y136: 0.5933 | Z136: 0.5933 | AA136: 0.5933 | AB136: 0.5933 | AC136: 0.5933 | AD136: 0.5933 | AE136: 0.5933 | AF136: 0.5933 | AG136: 0.5933 | AH136: 0.5933 | AI136: ='National Shipments'!F136/'National Shipments'!F$140 -> 0.5933 | AJ136: ='National Shipments'!G136/'National Shipments'!G$140 -> 0.5933 | AK136: ='National Shipments'!H136/'National Shipments'!H$140 -> 0.5933 | AL136: ='National Shipments'!I136/'National Shipments'!I$140 -> 0.5933 | AM136: ='National Shipments'!J136/'National Shipments'!J$140 -> 0.5933 | AN136: ='National Shipments'!K136/'National Shipments'!K$140 -> 0.5933 | AO136: ='National Shipments'!L136/'National Shipments'!L$140 -> 0.6856512069 | AP136: ='National Shipments'!M136/'National Shipments'!M$140 -> 0.6477750239 | AQ136: ='National Shipments'!N136/'National Shipments'!N$140 -> 0.6751147191 | AR136: ='National Shipments'!O136/'National Shipments'!O$140 -> 0.6585327666 | AS136: ='National Shipments'!P136/'National Shipments'!P$140 -> 0.5407818486 | AT136: ='National Shipments'!Q136/'National Shipments'!Q$140 -> 0.4227365532 | AU136: ='National Shipments'!R136/'National Shipments'!R$140 -> 0.3043961446 | AV136: ='National Shipments'!S136/'National Shipments'!S$140 -> 0.1857598849 | AW136: ='National Shipments'!T136/'National Shipments'!T$140 -> 0.06682703463 | AX136: ='National Shipments'!U136/'National Shipments'!U$140 -> 0 | AY136: ='National Shipments'!V136/'National Shipments'!V$140 -> 0 | AZ136: ='National Shipments'!W136/'National Shipments'!W$140 -> 0 | BA136: ='National Shipments'!X136/'National Shipments'!X$140 -> 0 | BB136: ='National Shipments'!Y136/'National Shipments'!Y$140 -> 0 | BC136: ='National Shipments'!Z136/'National Shipments'!Z$140 -> 0 | BD136: ='National Shipments'!AA136/'National Shipments'!AA$140 -> 0 | BE136: ='National Shipments'!AB136/'National Shipments'!AB$140 -> 0 | BF136: ='National Shipments'!AC136/'National Shipments'!AC$140 -> 0 | BG136: ='National Shipments'!AD136/'National Shipments'!AD$140 -> 0 | BH136: ='National Shipments'!AE136/'National Shipments'!AE$140 -> 0
D137: EL2 | E137: =INDEX(EFFICIENCY_LEVELS,RIGHT(D137,1)+1,MID($D$131,3,1)) -> 9.5 | G137: =H137 -> 0.1332 | H137: 0.1332 | I137: 0.1332 | J137: 0.1332 | K137: 0.1332 | L137: 0.1332 | M137: 0.1332 | N137: 0.1332 | O137: 0.1332 | P137: 0.1332 | Q137: 0.1332 | R137: 0.1332 | S137: 0.1332 | T137: 0.1332 | U137: 0.1332 | V137: 0.1332 | W137: 0.1332 | X137: 0.1332 | Y137: 0.1332 | Z137: 0.1332 | AA137: 0.1332 | AB137: 0.1332 | AC137: 0.1332 | AD137: 0.1332 | AE137: 0.1332 | AF137: 0.1332 | AG137: 0.1332 | AH137: 0.1332 | AI137: ='National Shipments'!F137/'National Shipments'!F$140 -> 0.1332 | AJ137: ='National Shipments'!G137/'National Shipments'!G$140 -> 0.1332 | AK137: ='National Shipments'!H137/'National Shipments'!H$140 -> 0.1332 | AL137: ='National Shipments'!I137/'National Shipments'!I$140 -> 0.1332 | AM137: ='National Shipments'!J137/'National Shipments'!J$140 -> 0.1332 | AN137: ='National Shipments'!K137/'National Shipments'!K$140 -> 0.1332 | AO137: ='National Shipments'!L137/'National Shipments'!L$140 -> 0.1332 | AP137: ='National Shipments'!M137/'National Shipments'!M$140 -> 0.1332 | AQ137: ='National Shipments'!N137/'National Shipments'!N$140 -> 0.1332 | AR137: ='National Shipments'!O137/'National Shipments'!O$140 -> 0.1688672334 | AS137: ='National Shipments'!P137/'National Shipments'!P$140 -> 0.2866181514 | AT137: ='National Shipments'!Q137/'National Shipments'!Q$140 -> 0.4046634468 | AU137: ='National Shipments'!R137/'National Shipments'!R$140 -> 0.5230038554 | AV137: ='National Shipments'!S137/'National Shipments'!S$140 -> 0.6416401151 | AW137: ='National Shipments'!T137/'National Shipments'!T$140 -> 0.7605729654 | AX137: ='National Shipments'!U137/'National Shipments'!U$140 -> 0.7924645681 | AY137: ='National Shipments'!V137/'National Shipments'!V$140 -> 0.7127790629 | AZ137: ='National Shipments'!W137/'National Shipments'!W$140 -> 0.6328943439 | BA137: ='National Shipments'!X137/'National Shipments'!X$140 -> 0.5528099131 | BB137: ='National Shipments'!Y137/'National Shipments'!Y$140 -> 0.4725252712 | BC137: ='National Shipments'!Z137/'National Shipments'!Z$140 -> 0.3920399177 | BD137: ='National Shipments'!AA137/'National Shipments'!AA$140 -> 0.3113533508 | BE137: ='National Shipments'!AB137/'National Shipments'!AB$140 -> 0.2304650675 | BF137: ='National Shipments'!AC137/'National Shipments'!AC$140 -> 0.1493745636 | BG137: ='National Shipments'!AD137/'National Shipments'!AD$140 -> 0.06808133329 | BH137: ='National Shipments'!AE137/'National Shipments'!AE$140 -> 0
D138: EL3 | E138: =INDEX(EFFICIENCY_LEVELS,RIGHT(D138,1)+1,MID($D$131,3,1)) -> 9.8 | G138: =H138 -> 0.1726 | H138: 0.1726 | I138: 0.1726 | J138: 0.1726 | K138: 0.1726 | L138: 0.1726 | M138: 0.1726 | N138: 0.1726 | O138: 0.1726 | P138: 0.1726 | Q138: 0.1726 | R138: 0.1726 | S138: 0.1726 | T138: 0.1726 | U138: 0.1726 | V138: 0.1726 | W138: 0.1726 | X138: 0.1726 | Y138: 0.1726 | Z138: 0.1726 | AA138: 0.1726 | AB138: 0.1726 | AC138: 0.1726 | AD138: 0.1726 | AE138: 0.1726 | AF138: 0.1726 | AG138: 0.1726 | AH138: 0.1726 | AI138: ='National Shipments'!F138/'National Shipments'!F$140 -> 0.1726 | AJ138: ='National Shipments'!G138/'National Shipments'!G$140 -> 0.1726 | AK138: ='National Shipments'!H138/'National Shipments'!H$140 -> 0.1726 | AL138: ='National Shipments'!I138/'National Shipments'!I$140 -> 0.1726 | AM138: ='National Shipments'!J138/'National Shipments'!J$140 -> 0.1726 | AN138: ='National Shipments'!K138/'National Shipments'!K$140 -> 0.1726 | AO138: ='National Shipments'!L138/'National Shipments'!L$140 -> 0.1726 | AP138: ='National Shipments'!M138/'National Shipments'!M$140 -> 0.1726 | AQ138: ='National Shipments'!N138/'National Shipments'!N$140 -> 0.1726 | AR138: ='National Shipments'!O138/'National Shipments'!O$140 -> 0.1726 | AS138: ='National Shipments'!P138/'National Shipments'!P$140 -> 0.1726 | AT138: ='National Shipments'!Q138/'National Shipments'!Q$140 -> 0.1726 | AU138: ='National Shipments'!R138/'National Shipments'!R$140 -> 0.1726 | AV138: ='National Shipments'!S138/'National Shipments'!S$140 -> 0.1726 | AW138: ='National Shipments'!T138/'National Shipments'!T$140 -> 0.1726 | AX138: ='National Shipments'!U138/'National Shipments'!U$140 -> 0.2075354319 | AY138: ='National Shipments'!V138/'National Shipments'!V$140 -> 0.2872209371 | AZ138: ='National Shipments'!W138/'National Shipments'!W$140 -> 0.3671056561 | BA138: ='National Shipments'!X138/'National Shipments'!X$140 -> 0.4471900869 | BB138: ='National Shipments'!Y138/'National Shipments'!Y$140 -> 0.5274747288 | BC138: ='National Shipments'!Z138/'National Shipments'!Z$140 -> 0.6079600823 | BD138: ='National Shipments'!AA138/'National Shipments'!AA$140 -> 0.6886466492 | BE138: ='National Shipments'!AB138/'National Shipments'!AB$140 -> 0.7695349325 | BF138: ='National Shipments'!AC138/'National Shipments'!AC$140 -> 0.8506254364 | BG138: ='National Shipments'!AD138/'National Shipments'!AD$140 -> 0.9319186667 | BH138: ='National Shipments'!AE138/'National Shipments'!AE$140 -> 0.9817803784
D139: EL4 | E139: =INDEX(EFFICIENCY_LEVELS,RIGHT(D139,1)+1,MID($D$131,3,1)) -> 10.02089037 | G139: =H139 -> 0 | H139: 0 | I139: 0 | J139: 0 | K139: 0 | L139: 0 | M139: 0 | N139: 0 | O139: 0 | P139: 0 | Q139: 0 | R139: 0 | S139: 0 | T139: 0 | U139: 0 | V139: 0 | W139: 0 | X139: 0 | Y139: 0 | Z139: 0 | AA139: 0 | AB139: 0 | AC139: 0 | AD139: 0 | AE139: 0 | AF139: 0 | AG139: 0 | AH139: 0 | AI139: ='National Shipments'!F139/'National Shipments'!F$140 -> 0 | AJ139: ='National Shipments'!G139/'National Shipments'!G$140 -> 0 | AK139: ='National Shipments'!H139/'National Shipments'!H$140 -> 0 | AL139: ='National Shipments'!I139/'National Shipments'!I$140 -> 0 | AM139: ='National Shipments'!J139/'National Shipments'!J$140 -> 0 | AN139: ='National Shipments'!K139/'National Shipments'!K$140 -> 0 | AO139: ='National Shipments'!L139/'National Shipments'!L$140 -> 0 | AP139: ='National Shipments'!M139/'National Shipments'!M$140 -> 0 | AQ139: ='National Shipments'!N139/'National Shipments'!N$140 -> 0 | AR139: ='National Shipments'!O139/'National Shipments'!O$140 -> 0 | AS139: ='National Shipments'!P139/'National Shipments'!P$140 -> 0 | AT139: ='National Shipments'!Q139/'National Shipments'!Q$140 -> 0 | AU139: ='National Shipments'!R139/'National Shipments'!R$140 -> 0 | AV139: ='National Shipments'!S139/'National Shipments'!S$140 -> 0 | AW139: ='National Shipments'!T139/'National Shipments'!T$140 -> 0 | AX139: ='National Shipments'!U139/'National Shipments'!U$140 -> 0 | AY139: ='National Shipments'!V139/'National Shipments'!V$140 -> 0 | AZ139: ='National Shipments'!W139/'National Shipments'!W$140 -> 0 | BA139: ='National Shipments'!X139/'National Shipments'!X$140 -> 0 | BB139: ='National Shipments'!Y139/'National Shipments'!Y$140 -> 0 | BC139: ='National Shipments'!Z139/'National Shipments'!Z$140 -> 0 | BD139: ='National Shipments'!AA139/'National Shipments'!AA$140 -> 0 | BE139: ='National Shipments'!AB139/'National Shipments'!AB$140 -> 0 | BF139: ='National Shipments'!AC139/'National Shipments'!AC$140 -> 0 | BG139: ='National Shipments'!AD139/'National Shipments'!AD$140 -> 0 | BH139: ='National Shipments'!AE139/'National Shipments'!AE$140 -> 0.01821962164
D140: TOTAL | G140: =H140 -> 1 | H140: 1 | I140: 1 | J140: 1 | K140: 1 | L140: 1 | M140: 1 | N140: 1 | O140: 1 | P140: 1 | Q140: 1 | R140: 1 | S140: 1 | T140: 1 | U140: 1 | V140: 1 | W140: 1 | X140: 1 | Y140: 1 | Z140: 1 | AA140: 1 | AB140: 1 | AC140: 1 | AD140: 1 | AE140: 1 | AF140: 1 | AG140: 1 | AH140: 1 | AI140: ='National Shipments'!F140/'National Shipments'!F$140 -> 1 | AJ140: ='National Shipments'!G140/'National Shipments'!G$140 -> 1 | AK140: ='National Shipments'!H140/'National Shipments'!H$140 -> 1 | AL140: ='National Shipments'!I140/'National Shipments'!I$140 -> 1 | AM140: ='National Shipments'!J140/'National Shipments'!J$140 -> 1 | AN140: ='National Shipments'!K140/'National Shipments'!K$140 -> 1 | AO140: ='National Shipments'!L140/'National Shipments'!L$140 -> 1 | AP140: ='National Shipments'!M140/'National Shipments'!M$140 -> 1 | AQ140: ='National Shipments'!N140/'National Shipments'!N$140 -> 1 | AR140: ='National Shipments'!O140/'National Shipments'!O$140 -> 1 | AS140: ='National Shipments'!P140/'National Shipments'!P$140 -> 1 | AT140: ='National Shipments'!Q140/'National Shipments'!Q$140 -> 1 | AU140: ='National Shipments'!R140/'National Shipments'!R$140 -> 1 | AV140: ='National Shipments'!S140/'National Shipments'!S$140 -> 1 | AW140: ='National Shipments'!T140/'National Shipments'!T$140 -> 1 | AX140: ='National Shipments'!U140/'National Shipments'!U$140 -> 1 | AY140: ='National Shipments'!V140/'National Shipments'!V$140 -> 1 | AZ140: ='National Shipments'!W140/'National Shipments'!W$140 -> 1 | BA140: ='National Shipments'!X140/'National Shipments'!X$140 -> 1 | BB140: ='National Shipments'!Y140/'National Shipments'!Y$140 -> 1 | BC140: ='National Shipments'!Z140/'National Shipments'!Z$140 -> 1 | BD140: ='National Shipments'!AA140/'National Shipments'!AA$140 -> 1 | BE140: ='National Shipments'!AB140/'National Shipments'!AB$140 -> 1 | BF140: ='National Shipments'!AC140/'National Shipments'!AC$140 -> 1 | BG140: ='National Shipments'!AD140/'National Shipments'!AD$140 -> 1 | BH140: ='National Shipments'!AE140/'National Shipments'!AE$140 -> 1
D142: POST-Case
D143: Efficiency Level | E143: CEER | G143: 1981 | H143: 1982 | I143: 1983 | J143: 1984 | K143: 1985 | L143: 1986 | M143: 1987 | N143: 1988 | O143: 1989 | P143: 1990 | Q143: 1991 | R143: 1992 | S143: 1993 | T143: 1994 | U143: 1995 | V143: 1996 | W143: 1997 | X143: 1998 | Y143: 1999 | Z143: 2000 | AA143: 2001 | AB143: 2002 | AC143: 2003 | AD143: 2004 | AE143: 2005 | AF143: 2006 | AG143: 2007 | AH143: 2008 | AI143: 2009 | AJ143: 2010 | AK143: 2011 | AL143: 2012 | AM143: 2013 | AN143: 2014 | AO143: 2015 | AP143: 2016 | AQ143: 2017 | AR143: 2018 | AS143: 2019 | AT143: 2020 | AU143: 2021 | AV143: 2022 | AW143: 2023 | AX143: 2024 | AY143: 2025 | AZ143: 2026 | BA143: 2027 | BB143: 2028 | BC143: 2029 | BD143: 2030 | BE143: 2031 | BF143: 2032 | BG143: 2033 | BH143: 2034
D144: =D135 -> EL0 | E144: =E135 -> 8.442899265 | G144: =H144 -> 0.1009 | H144: 0.1009 | I144: 0.1009 | J144: 0.1009 | K144: 0.1009 | L144: 0.1009 | M144: 0.1009 | N144: 0.1009 | O144: 0.1009 | P144: 0.1009 | Q144: 0.1009 | R144: 0.1009 | S144: 0.1009 | T144: 0.1009 | U144: 0.1009 | V144: 0.1009 | W144: 0.1009 | X144: 0.1009 | Y144: 0.1009 | Z144: 0.1009 | AA144: 0.1009 | AB144: 0.1009 | AC144: 0.1009 | AD144: 0.1009 | AE144: 0.1009 | AF144: 0.1009 | AG144: 0.1009 | AH144: =AI144 -> 0.1009 | AI144: ='National Shipments'!F144/'National Shipments'!F$149 -> 0.1009 | AJ144: ='National Shipments'!G144/'National Shipments'!G$149 -> 0.1009 | AK144: ='National Shipments'!H144/'National Shipments'!H$149 -> 0.1009 | AL144: ='National Shipments'!I144/'National Shipments'!I$149 -> 0.1009 | AM144: ='National Shipments'!J144/'National Shipments'!J$149 -> 0.1009 | AN144: ='National Shipments'!K144/'National Shipments'!K$149 -> 0 | AO144: ='National Shipments'!L144/'National Shipments'!L$149 -> 0 | AP144: ='National Shipments'!M144/'National Shipments'!M$149 -> 0 | AQ144: ='National Shipments'!N144/'National Shipments'!N$149 -> 0 | AR144: ='National Shipments'!O144/'National Shipments'!O$149 -> 0 | AS144: ='National Shipments'!P144/'National Shipments'!P$149 -> 0 | AT144: ='National Shipments'!Q144/'National Shipments'!Q$149 -> 0 | AU144: ='National Shipments'!R144/'National Shipments'!R$149 -> 0 | AV144: ='National Shipments'!S144/'National Shipments'!S$149 -> 0 | AW144: ='National Shipments'!T144/'National Shipments'!T$149 -> 0 | AX144: ='National Shipments'!U144/'National Shipments'!U$149 -> 0 | AY144: ='National Shipments'!V144/'National Shipments'!V$149 -> 0 | AZ144: ='National Shipments'!W144/'National Shipments'!W$149 -> 0 | BA144: ='National Shipments'!X144/'National Shipments'!X$149 -> 0 | BB144: ='National Shipments'!Y144/'National Shipments'!Y$149 -> 0 | BC144: ='National Shipments'!Z144/'National Shipments'!Z$149 -> 0 | BD144: ='National Shipments'!AA144/'National Shipments'!AA$149 -> 0 | BE144: ='National Shipments'!AB144/'National Shipments'!AB$149 -> 0 | BF144: ='National Shipments'!AC144/'National Shipments'!AC$149 -> 0 | BG144: ='National Shipments'!AD144/'National Shipments'!AD$149 -> 0 | BH144: ='National Shipments'!AE144/'National Shipments'!AE$149 -> 0
D145: =D136 -> EL1 | E145: 9.3 | G145: =H145 -> 0.5933 | H145: 0.5933 | I145: 0.5933 | J145: 0.5933 | K145: 0.5933 | L145: 0.5933 | M145: 0.5933 | N145: 0.5933 | O145: 0.5933 | P145: 0.5933 | Q145: 0.5933 | R145: 0.5933 | S145: 0.5933 | T145: 0.5933 | U145: 0.5933 | V145: 0.5933 | W145: 0.5933 | X145: 0.5933 | Y145: 0.5933 | Z145: 0.5933 | AA145: 0.5933 | AB145: 0.5933 | AC145: 0.5933 | AD145: 0.5933 | AE145: 0.5933 | AF145: 0.5933 | AG145: 0.5933 | AH145: 0.5933 | AI145: ='National Shipments'!F145/'National Shipments'!F$149 -> 0.5933 | AJ145: ='National Shipments'!G145/'National Shipments'!G$149 -> 0.5933 | AK145: ='National Shipments'!H145/'National Shipments'!H$149 -> 0.5933 | AL145: ='National Shipments'!I145/'National Shipments'!I$149 -> 0.5933 | AM145: ='National Shipments'!J145/'National Shipments'!J$149 -> 0.5933 | AN145: ='National Shipments'!K145/'National Shipments'!K$149 -> 0 | AO145: ='National Shipments'!L145/'National Shipments'!L$149 -> 0 | AP145: ='National Shipments'!M145/'National Shipments'!M$149 -> 0 | AQ145: ='National Shipments'!N145/'National Shipments'!N$149 -> 0 | AR145: ='National Shipments'!O145/'National Shipments'!O$149 -> 0 | AS145: ='National Shipments'!P145/'National Shipments'!P$149 -> 0 | AT145: ='National Shipments'!Q145/'National Shipments'!Q$149 -> 0 | AU145: ='National Shipments'!R145/'National Shipments'!R$149 -> 0 | AV145: ='National Shipments'!S145/'National Shipments'!S$149 -> 0 | AW145: ='National Shipments'!T145/'National Shipments'!T$149 -> 0 | AX145: ='National Shipments'!U145/'National Shipments'!U$149 -> 0 | AY145: ='National Shipments'!V145/'National Shipments'!V$149 -> 0 | AZ145: ='National Shipments'!W145/'National Shipments'!W$149 -> 0 | BA145: ='National Shipments'!X145/'National Shipments'!X$149 -> 0 | BB145: ='National Shipments'!Y145/'National Shipments'!Y$149 -> 0 | BC145: ='National Shipments'!Z145/'National Shipments'!Z$149 -> 0 | BD145: ='National Shipments'!AA145/'National Shipments'!AA$149 -> 0 | BE145: ='National Shipments'!AB145/'National Shipments'!AB$149 -> 0 | BF145: ='National Shipments'!AC145/'National Shipments'!AC$149 -> 0 | BG145: ='National Shipments'!AD145/'National Shipments'!AD$149 -> 0 | BH145: ='National Shipments'!AE145/'National Shipments'!AE$149 -> 0
D146: EL2 | E146: 9.5 | G146: =H146 -> 0.1332 | H146: 0.1332 | I146: 0.1332 | J146: 0.1332 | K146: 0.1332 | L146: 0.1332 | M146: 0.1332 | N146: 0.1332 | O146: 0.1332 | P146: 0.1332 | Q146: 0.1332 | R146: 0.1332 | S146: 0.1332 | T146: 0.1332 | U146: 0.1332 | V146: 0.1332 | W146: 0.1332 | X146: 0.1332 | Y146: 0.1332 | Z146: 0.1332 | AA146: 0.1332 | AB146: 0.1332 | AC146: 0.1332 | AD146: 0.1332 | AE146: 0.1332 | AF146: 0.1332 | AG146: 0.1332 | AH146: 0.1332 | AI146: ='National Shipments'!F146/'National Shipments'!F$149 -> 0.1332 | AJ146: ='National Shipments'!G146/'National Shipments'!G$149 -> 0.1332 | AK146: ='National Shipments'!H146/'National Shipments'!H$149 -> 0.1332 | AL146: ='National Shipments'!I146/'National Shipments'!I$149 -> 0.1332 | AM146: ='National Shipments'!J146/'National Shipments'!J$149 -> 0.1332 | AN146: ='National Shipments'!K146/'National Shipments'!K$149 -> 0.8274 | AO146: ='National Shipments'!L146/'National Shipments'!L$149 -> 0.7802403509 | AP146: ='National Shipments'!M146/'National Shipments'!M$149 -> 0.799582046 | AQ146: ='National Shipments'!N146/'National Shipments'!N$149 -> 0.7856208887 | AR146: ='National Shipments'!O146/'National Shipments'!O$149 -> 0.7636037737 | AS146: ='National Shipments'!P146/'National Shipments'!P$149 -> 0.7230922126 | AT146: ='National Shipments'!Q146/'National Shipments'!Q$149 -> 0.6824793726 | AU146: ='National Shipments'!R146/'National Shipments'!R$149 -> 0.6417650005 | AV146: ='National Shipments'!S146/'National Shipments'!S$149 -> 0.6009488425 | AW146: ='National Shipments'!T146/'National Shipments'!T$149 -> 0.560030644 | AX146: ='National Shipments'!U146/'National Shipments'!U$149 -> 0.5021037354 | AY146: ='National Shipments'!V146/'National Shipments'!V$149 -> 0.4224182302 | AZ146: ='National Shipments'!W146/'National Shipments'!W$149 -> 0.3425335112 | BA146: ='National Shipments'!X146/'National Shipments'!X$149 -> 0.2624490804 | BB146: ='National Shipments'!Y146/'National Shipments'!Y$149 -> 0.1821644385 | BC146: ='National Shipments'!Z146/'National Shipments'!Z$149 -> 0.101679085 | BD146: ='National Shipments'!AA146/'National Shipments'!AA$149 -> 0.02099251811 | BE146: ='National Shipments'!AB146/'National Shipments'!AB$149 -> 0 | BF146: ='National Shipments'!AC146/'National Shipments'!AC$149 -> 0 | BG146: ='National Shipments'!AD146/'National Shipments'!AD$149 -> 0 | BH146: ='National Shipments'!AE146/'National Shipments'!AE$149 -> 0
D147: EL3 | E147: 9.8 | G147: =H147 -> 0.1726 | H147: 0.1726 | I147: 0.1726 | J147: 0.1726 | K147: 0.1726 | L147: 0.1726 | M147: 0.1726 | N147: 0.1726 | O147: 0.1726 | P147: 0.1726 | Q147: 0.1726 | R147: 0.1726 | S147: 0.1726 | T147: 0.1726 | U147: 0.1726 | V147: 0.1726 | W147: 0.1726 | X147: 0.1726 | Y147: 0.1726 | Z147: 0.1726 | AA147: 0.1726 | AB147: 0.1726 | AC147: 0.1726 | AD147: 0.1726 | AE147: 0.1726 | AF147: 0.1726 | AG147: 0.1726 | AH147: 0.1726 | AI147: ='National Shipments'!F147/'National Shipments'!F$149 -> 0.1726 | AJ147: ='National Shipments'!G147/'National Shipments'!G$149 -> 0.1726 | AK147: ='National Shipments'!H147/'National Shipments'!H$149 -> 0.1726 | AL147: ='National Shipments'!I147/'National Shipments'!I$149 -> 0.1726 | AM147: ='National Shipments'!J147/'National Shipments'!J$149 -> 0.1726 | AN147: ='National Shipments'!K147/'National Shipments'!K$149 -> 0.1726 | AO147: ='National Shipments'!L147/'National Shipments'!L$149 -> 0.2197596491 | AP147: ='National Shipments'!M147/'National Shipments'!M$149 -> 0.200417954 | AQ147: ='National Shipments'!N147/'National Shipments'!N$149 -> 0.2143791113 | AR147: ='National Shipments'!O147/'National Shipments'!O$149 -> 0.2363962263 | AS147: ='National Shipments'!P147/'National Shipments'!P$149 -> 0.2769077874 | AT147: ='National Shipments'!Q147/'National Shipments'!Q$149 -> 0.3175206274 | AU147: ='National Shipments'!R147/'National Shipments'!R$149 -> 0.3582349995 | AV147: ='National Shipments'!S147/'National Shipments'!S$149 -> 0.3990511575 | AW147: ='National Shipments'!T147/'National Shipments'!T$149 -> 0.439969356 | AX147: ='National Shipments'!U147/'National Shipments'!U$149 -> 0.4978962646 | AY147: ='National Shipments'!V147/'National Shipments'!V$149 -> 0.5775817698 | AZ147: ='National Shipments'!W147/'National Shipments'!W$149 -> 0.6574664888 | BA147: ='National Shipments'!X147/'National Shipments'!X$149 -> 0.7375509196 | BB147: ='National Shipments'!Y147/'National Shipments'!Y$149 -> 0.8178355615 | BC147: ='National Shipments'!Z147/'National Shipments'!Z$149 -> 0.898320915 | BD147: ='National Shipments'!AA147/'National Shipments'!AA$149 -> 0.9790074819 | BE147: ='National Shipments'!AB147/'National Shipments'!AB$149 -> 0.9905056517 | BF147: ='National Shipments'!AC147/'National Shipments'!AC$149 -> 0.9776516296 | BG147: ='National Shipments'!AD147/'National Shipments'!AD$149 -> 0.9647654725 | BH147: ='National Shipments'!AE147/'National Shipments'!AE$149 -> 0.9357539712
D148: EL4 | E148: 10.02089037 | G148: =H148 -> 0 | H148: 0 | I148: 0 | J148: 0 | K148: 0 | L148: 0 | M148: 0 | N148: 0 | O148: 0 | P148: 0 | Q148: 0 | R148: 0 | S148: 0 | T148: 0 | U148: 0 | V148: 0 | W148: 0 | X148: 0 | Y148: 0 | Z148: 0 | AA148: 0 | AB148: 0 | AC148: 0 | AD148: 0 | AE148: 0 | AF148: 0 | AG148: 0 | AH148: 0 | AI148: ='National Shipments'!F148/'National Shipments'!F$149 -> 0 | AJ148: ='National Shipments'!G148/'National Shipments'!G$149 -> 0 | AK148: ='National Shipments'!H148/'National Shipments'!H$149 -> 0 | AL148: ='National Shipments'!I148/'National Shipments'!I$149 -> 0 | AM148: ='National Shipments'!J148/'National Shipments'!J$149 -> 0 | AN148: ='National Shipments'!K148/'National Shipments'!K$149 -> 0 | AO148: ='National Shipments'!L148/'National Shipments'!L$149 -> 0 | AP148: ='National Shipments'!M148/'National Shipments'!M$149 -> 0 | AQ148: ='National Shipments'!N148/'National Shipments'!N$149 -> 0 | AR148: ='National Shipments'!O148/'National Shipments'!O$149 -> 0 | AS148: ='National Shipments'!P148/'National Shipments'!P$149 -> 0 | AT148: ='National Shipments'!Q148/'National Shipments'!Q$149 -> 0 | AU148: ='National Shipments'!R148/'National Shipments'!R$149 -> 0 | AV148: ='National Shipments'!S148/'National Shipments'!S$149 -> 0 | AW148: ='National Shipments'!T148/'National Shipments'!T$149 -> 0 | AX148: ='National Shipments'!U148/'National Shipments'!U$149 -> 0 | AY148: ='National Shipments'!V148/'National Shipments'!V$149 -> 0 | AZ148: ='National Shipments'!W148/'National Shipments'!W$149 -> 0 | BA148: ='National Shipments'!X148/'National Shipments'!X$149 -> 0 | BB148: ='National Shipments'!Y148/'National Shipments'!Y$149 -> 0 | BC148: ='National Shipments'!Z148/'National Shipments'!Z$149 -> 0 | BD148: ='National Shipments'!AA148/'National Shipments'!AA$149 -> 0 | BE148: ='National Shipments'!AB148/'National Shipments'!AB$149 -> 0.009494348289 | BF148: ='National Shipments'!AC148/'National Shipments'!AC$149 -> 0.02234837037 | BG148: ='National Shipments'!AD148/'National Shipments'!AD$149 -> 0.0352345275 | BH148: ='National Shipments'!AE148/'National Shipments'!AE$149 -> 0.06424602881
D149: TOTAL | G149: =H149 -> 1 | H149: 1 | I149: 1 | J149: 1 | K149: 1 | L149: 1 | M149: 1 | N149: 1 | O149: 1 | P149: 1 | Q149: 1 | R149: 1 | S149: 1 | T149: 1 | U149: 1 | V149: 1 | W149: 1 | X149: 1 | Y149: 1 | Z149: 1 | AA149: 1 | AB149: 1 | AC149: 1 | AD149: 1 | AE149: 1 | AF149: 1 | AG149: 1 | AH149: 1 | AI149: ='National Shipments'!F149/'National Shipments'!F$149 -> 1 | AJ149: ='National Shipments'!G149/'National Shipments'!G$149 -> 1 | AK149: ='National Shipments'!H149/'National Shipments'!H$149 -> 1 | AL149: ='National Shipments'!I149/'National Shipments'!I$149 -> 1 | AM149: ='National Shipments'!J149/'National Shipments'!J$149 -> 1 | AN149: ='National Shipments'!K149/'National Shipments'!K$149 -> 1 | AO149: ='National Shipments'!L149/'National Shipments'!L$149 -> 1 | AP149: ='National Shipments'!M149/'National Shipments'!M$149 -> 1 | AQ149: ='National Shipments'!N149/'National Shipments'!N$149 -> 1 | AR149: ='National Shipments'!O149/'National Shipments'!O$149 -> 1 | AS149: ='National Shipments'!P149/'National Shipments'!P$149 -> 1 | AT149: ='National Shipments'!Q149/'National Shipments'!Q$149 -> 1 | AU149: ='National Shipments'!R149/'National Shipments'!R$149 -> 1 | AV149: ='National Shipments'!S149/'National Shipments'!S$149 -> 1 | AW149: ='National Shipments'!T149/'National Shipments'!T$149 -> 1 | AX149: ='National Shipments'!U149/'National Shipments'!U$149 -> 1 | AY149: ='National Shipments'!V149/'National Shipments'!V$149 -> 1 | AZ149: ='National Shipments'!W149/'National Shipments'!W$149 -> 1 | BA149: ='National Shipments'!X149/'National Shipments'!X$149 -> 1 | BB149: ='National Shipments'!Y149/'National Shipments'!Y$149 -> 1 | BC149: ='National Shipments'!Z149/'National Shipments'!Z$149 -> 1 | BD149: ='National Shipments'!AA149/'National Shipments'!AA$149 -> 1 | BE149: ='National Shipments'!AB149/'National Shipments'!AB$149 -> 1 | BF149: ='National Shipments'!AC149/'National Shipments'!AC$149 -> 1 | BG149: ='National Shipments'!AD149/'National Shipments'!AD$149 -> 1 | BH149: ='National Shipments'!AE149/'National Shipments'!AE$149 -> 1
D151: Sources | E151: 2011 DOE Residential Room Air Conditioners Direct Final Rule Government Regulatory Impact Model 'Product Shipments (CALC)' tab.

Sheet Efficiency Dist - MF
C2: Efficiency Distributions by Product Class - Multi-Family
C4: NAVIGATION
C6: COMMENTS
D9: PC1 Without reverse cycle, with louvered sides, and less than 6,000 Btu/h
D11: PRE-Case
D12: Efficiency Level | E12: CEER | G12: 1981 | H12: 1982 | I12: 1983 | J12: 1984 | K12: 1985 | L12: 1986 | M12: 1987 | N12: 1988 | O12: 1989 | P12: 1990 | Q12: 1991 | R12: 1992 | S12: 1993 | T12: 1994 | U12: 1995 | V12: 1996 | W12: 1997 | X12: 1998 | Y12: 1999 | Z12: 2000 | AA12: 2001 | AB12: 2002 | AC12: 2003 | AD12: 2004 | AE12: 2005 | AF12: 2006 | AG12: 2007 | AH12: 2008 | AI12: 2009 | AJ12: 2010 | AK12: 2011 | AL12: 2012 | AM12: 2013 | AN12: 2014 | AO12: 2015 | AP12: 2016 | AQ12: 2017 | AR12: 2018 | AS12: 2019 | AT12: 2020 | AU12: 2021 | AV12: 2022 | AW12: 2023 | AX12: 2024 | AY12: 2025 | AZ12: 2026 | BA12: 2027 | BB12: 2028 | BC12: 2029 | BD12: 2030 | BE12: 2031 | BF12: 2032 | BG12: 2033 | BH12: 2034
D13: EL0 | E13: =INDEX(EFFICIENCY_LEVELS,RIGHT(D13,1)+1,MID($D$9,3,1)) -> 9.523593338 | G13: =H13 -> 0.6933 | H13: 0.6933 | I13: 0.6933 | J13: 0.6933 | K13: 0.6933 | L13: 0.6933 | M13: 0.6933 | N13: 0.6933 | O13: 0.6933 | P13: 0.6933 | Q13: 0.6933 | R13: 0.6933 | S13: 0.6933 | T13: 0.6933 | U13: 0.6933 | V13: 0.6933 | W13: =X13 -> 0.6933 | X13: 0.6933 | Y13: 0.6933 | Z13: 0.6933 | AA13: 0.6933 | AB13: 0.6933 | AC13: 0.6933 | AD13: 0.6933 | AE13: 0.6933 | AF13: 0.6933 | AG13: 0.6933 | AH13: =AI13 -> 0.6933 | AI13: ='National Shipments'!F13/'National Shipments'!F$19 -> 0.6933 | AJ13: ='National Shipments'!G13/'National Shipments'!G$19 -> 0.6933 | AK13: ='National Shipments'!H13/'National Shipments'!H$19 -> 0.6933 | AL13: ='National Shipments'!I13/'National Shipments'!I$19 -> 0.6933 | AM13: ='National Shipments'!J13/'National Shipments'!J$19 -> 0.6933 | AN13: ='National Shipments'!K13/'National Shipments'!K$19 -> 0.6933 | AO13: ='National Shipments'!L13/'National Shipments'!L$19 -> 0.650537104 | AP13: ='National Shipments'!M13/'National Shipments'!M$19 -> 0.6076673008 | AQ13: ='National Shipments'!N13/'National Shipments'!N$19 -> 0.564690323 | AR13: ='National Shipments'!O13/'National Shipments'!O$19 -> 0.5216059028 | AS13: ='National Shipments'!P13/'National Shipments'!P$19 -> 0.4784137716 | AT13: ='National Shipments'!Q13/'National Shipments'!Q$19 -> 0.43511366 | AU13: ='National Shipments'!R13/'National Shipments'!R$19 -> 0.3917052981 | AV13: ='National Shipments'!S13/'National Shipments'!S$19 -> 0.3481884154 | AW13: ='National Shipments'!T13/'National Shipments'!T$19 -> 0.3045627404 | AX13: ='National Shipments'!U13/'National Shipments'!U$19 -> 0.2608280013 | AY13: ='National Shipments'!V13/'National Shipments'!V$19 -> 0.2169839253 | AZ13: ='National Shipments'!W13/'National Shipments'!W$19 -> 0.1730302391 | BA13: ='National Shipments'!X13/'National Shipments'!X$19 -> 0.1289666687 | BB13: ='National Shipments'!Y13/'National Shipments'!Y$19 -> 0.08479293932 | BC13: ='National Shipments'!Z13/'National Shipments'!Z$19 -> 0.04050877567 | BD13: ='National Shipments'!AA13/'National Shipments'!AA$19 -> 0 | BE13: ='National Shipments'!AB13/'National Shipments'!AB$19 -> 0 | BF13: ='National Shipments'!AC13/'National Shipments'!AC$19 -> 0 | BG13: ='National Shipments'!AD13/'National Shipments'!AD$19 -> 0 | BH13: ='National Shipments'!AE13/'National Shipments'!AE$19 -> 0
D14: EL1 | E14: 10.1 | G14: 0 | H14: 0 | I14: 0 | J14: 0 | K14: 0 | L14: 0 | M14: 0 | N14: 0 | O14: 0 | P14: 0 | Q14: 0 | R14: 0 | S14: 0 | T14: 0 | U14: 0 | V14: 0 | W14: 0 | X14: 0 | Y14: 0 | Z14: 0 | AA14: 0 | AB14: 0 | AC14: 0 | AD14: 0 | AE14: 0 | AF14: 0 | AG14: 0 | AH14: 0 | AI14: ='National Shipments'!F14/'National Shipments'!F$19 -> 0 | AJ14: ='National Shipments'!G14/'National Shipments'!G$19 -> 0 | AK14: ='National Shipments'!H14/'National Shipments'!H$19 -> 0 | AL14: ='National Shipments'!I14/'National Shipments'!I$19 -> 0 | AM14: ='National Shipments'!J14/'National Shipments'!J$19 -> 0 | AN14: ='National Shipments'!K14/'National Shipments'!K$19 -> 0 | AO14: ='National Shipments'!L14/'National Shipments'!L$19 -> 0.042762896 | AP14: ='National Shipments'!M14/'National Shipments'!M$19 -> 0.08563269925 | AQ14: ='National Shipments'!N14/'National Shipments'!N$19 -> 0.128609677 | AR14: ='National Shipments'!O14/'National Shipments'!O$19 -> 0.1716940972 | AS14: ='National Shipments'!P14/'National Shipments'!P$19 -> 0.2148862284 | AT14: ='National Shipments'!Q14/'National Shipments'!Q$19 -> 0.25818634 | AU14: ='National Shipments'!R14/'National Shipments'!R$19 -> 0.3015947019 | AV14: ='National Shipments'!S14/'National Shipments'!S$19 -> 0.3451115846 | AW14: ='National Shipments'!T14/'National Shipments'!T$19 -> 0.3887372596 | AX14: ='National Shipments'!U14/'National Shipments'!U$19 -> 0.4324719987 | AY14: ='National Shipments'!V14/'National Shipments'!V$19 -> 0.4763160747 | AZ14: ='National Shipments'!W14/'National Shipments'!W$19 -> 0.5202697609 | BA14: ='National Shipments'!X14/'National Shipments'!X$19 -> 0.5643333313 | BB14: ='National Shipments'!Y14/'National Shipments'!Y$19 -> 0.6085070607 | BC14: ='National Shipments'!Z14/'National Shipments'!Z$19 -> 0.6527912243 | BD14: ='National Shipments'!AA14/'National Shipments'!AA$19 -> 0.688820054 | BE14: ='National Shipments'!AB14/'National Shipments'!AB$19 -> 0.6375131041 | BF14: ='National Shipments'!AC14/'National Shipments'!AC$19 -> 0.5860778869 | BG14: ='National Shipments'!AD14/'National Shipments'!AD$19 -> 0.5345140816 | BH14: ='National Shipments'!AE14/'National Shipments'!AE$19 -> 0.4828213668
D15: EL2 | E15: 10.6 | G15: 0.2951 | H15: 0.2951 | I15: 0.2951 | J15: 0.2951 | K15: 0.2951 | L15: 0.2951 | M15: 0.2951 | N15: 0.2951 | O15: 0.2951 | P15: 0.2951 | Q15: 0.2951 | R15: 0.2951 | S15: 0.2951 | T15: 0.2951 | U15: 0.2951 | V15: 0.2951 | W15: 0.2951 | X15: 0.2951 | Y15: 0.2951 | Z15: 0.2951 | AA15: 0.2951 | AB15: 0.2951 | AC15: 0.2951 | AD15: 0.2951 | AE15: 0.2951 | AF15: 0.2951 | AG15: 0.2951 | AH15: 0.2951 | AI15: ='National Shipments'!F15/'National Shipments'!F$19 -> 0.2951 | AJ15: ='National Shipments'!G15/'National Shipments'!G$19 -> 0.2951 | AK15: ='National Shipments'!H15/'National Shipments'!H$19 -> 0.2951 | AL15: ='National Shipments'!I15/'National Shipments'!I$19 -> 0.2951 | AM15: ='National Shipments'!J15/'National Shipments'!J$19 -> 0.2951 | AN15: ='National Shipments'!K15/'National Shipments'!K$19 -> 0.2951 | AO15: ='National Shipments'!L15/'National Shipments'!L$19 -> 0.2951 | AP15: ='National Shipments'!M15/'National Shipments'!M$19 -> 0.2951 | AQ15: ='National Shipments'!N15/'National Shipments'!N$19 -> 0.2951 | AR15: ='National Shipments'!O15/'National Shipments'!O$19 -> 0.2951 | AS15: ='National Shipments'!P15/'National Shipments'!P$19 -> 0.2951 | AT15: ='National Shipments'!Q15/'National Shipments'!Q$19 -> 0.2951 | AU15: ='National Shipments'!R15/'National Shipments'!R$19 -> 0.2951 | AV15: ='National Shipments'!S15/'National Shipments'!S$19 -> 0.2951 | AW15: ='National Shipments'!T15/'National Shipments'!T$19 -> 0.2951 | AX15: ='National Shipments'!U15/'National Shipments'!U$19 -> 0.2951 | AY15: ='National Shipments'!V15/'National Shipments'!V$19 -> 0.2951 | AZ15: ='National Shipments'!W15/'National Shipments'!W$19 -> 0.2951 | BA15: ='National Shipments'!X15/'National Shipments'!X$19 -> 0.2951 | BB15: ='National Shipments'!Y15/'National Shipments'!Y$19 -> 0.2951 | BC15: ='National Shipments'!Z15/'National Shipments'!Z$19 -> 0.2951 | BD15: ='National Shipments'!AA15/'National Shipments'!AA$19 -> 0.299579946 | BE15: ='National Shipments'!AB15/'National Shipments'!AB$19 -> 0.3508868959 | BF15: ='National Shipments'!AC15/'National Shipments'!AC$19 -> 0.4023221131 | BG15: ='National Shipments'!AD15/'National Shipments'!AD$19 -> 0.4538859184 | BH15: ='National Shipments'!AE15/'National Shipments'!AE$19 -> 0.5055786332
D16: EL3 | E16: 11.1 | G16: 0.0116 | H16: 0.0116 | I16: 0.0116 | J16: 0.0116 | K16: 0.0116 | L16: 0.0116 | M16: 0.0116 | N16: 0.0116 | O16: 0.0116 | P16: 0.0116 | Q16: 0.0116 | R16: 0.0116 | S16: 0.0116 | T16: 0.0116 | U16: 0.0116 | V16: 0.0116 | W16: 0.0116 | X16: 0.0116 | Y16: 0.0116 | Z16: 0.0116 | AA16: 0.0116 | AB16: 0.0116 | AC16: 0.0116 | AD16: 0.0116 | AE16: 0.0116 | AF16: 0.0116 | AG16: 0.0116 | AH16: 0.0116 | AI16: ='National Shipments'!F16/'National Shipments'!F$19 -> 0.0116 | AJ16: ='National Shipments'!G16/'National Shipments'!G$19 -> 0.0116 | AK16: ='National Shipments'!H16/'National Shipments'!H$19 -> 0.0116 | AL16: ='National Shipments'!I16/'National Shipments'!I$19 -> 0.0116 | AM16: ='National Shipments'!J16/'National Shipments'!J$19 -> 0.0116 | AN16: ='National Shipments'!K16/'National Shipments'!K$19 -> 0.0116 | AO16: ='National Shipments'!L16/'National Shipments'!L$19 -> 0.0116 | AP16: ='National Shipments'!M16/'National Shipments'!M$19 -> 0.0116 | AQ16: ='National Shipments'!N16/'National Shipments'!N$19 -> 0.0116 | AR16: ='National Shipments'!O16/'National Shipments'!O$19 -> 0.0116 | AS16: ='National Shipments'!P16/'National Shipments'!P$19 -> 0.0116 | AT16: ='National Shipments'!Q16/'National Shipments'!Q$19 -> 0.0116 | AU16: ='National Shipments'!R16/'National Shipments'!R$19 -> 0.0116 | AV16: ='National Shipments'!S16/'National Shipments'!S$19 -> 0.0116 | AW16: ='National Shipments'!T16/'National Shipments'!T$19 -> 0.0116 | AX16: ='National Shipments'!U16/'National Shipments'!U$19 -> 0.0116 | AY16: ='National Shipments'!V16/'National Shipments'!V$19 -> 0.0116 | AZ16: ='National Shipments'!W16/'National Shipments'!W$19 -> 0.0116 | BA16: ='National Shipments'!X16/'National Shipments'!X$19 -> 0.0116 | BB16: ='National Shipments'!Y16/'National Shipments'!Y$19 -> 0.0116 | BC16: ='National Shipments'!Z16/'National Shipments'!Z$19 -> 0.0116 | BD16: ='National Shipments'!AA16/'National Shipments'!AA$19 -> 0.0116 | BE16: ='National Shipments'!AB16/'National Shipments'!AB$19 -> 0.0116 | BF16: ='National Shipments'!AC16/'National Shipments'!AC$19 -> 0.0116 | BG16: ='National Shipments'!AD16/'National Shipments'!AD$19 -> 0.0116 | BH16: ='National Shipments'!AE16/'National Shipments'!AE$19 -> 0.0116
D17: EL4 | E17: 11.384883 | G17: 0 | H17: 0 | I17: 0 | J17: 0 | K17: 0 | L17: 0 | M17: 0 | N17: 0 | O17: 0 | P17: 0 | Q17: 0 | R17: 0 | S17: 0 | T17: 0 | U17: 0 | V17: 0 | W17: 0 | X17: 0 | Y17: 0 | Z17: 0 | AA17: 0 | AB17: 0 | AC17: 0 | AD17: 0 | AE17: 0 | AF17: 0 | AG17: 0 | AH17: 0 | AI17: ='National Shipments'!F17/'National Shipments'!F$19 -> 0 | AJ17: ='National Shipments'!G17/'National Shipments'!G$19 -> 0 | AK17: ='National Shipments'!H17/'National Shipments'!H$19 -> 0 | AL17: ='National Shipments'!I17/'National Shipments'!I$19 -> 0 | AM17: ='National Shipments'!J17/'National Shipments'!J$19 -> 0 | AN17: ='National Shipments'!K17/'National Shipments'!K$19 -> 0 | AO17: ='National Shipments'!L17/'National Shipments'!L$19 -> 0 | AP17: ='National Shipments'!M17/'National Shipments'!M$19 -> 0 | AQ17: ='National Shipments'!N17/'National Shipments'!N$19 -> 0 | AR17: ='National Shipments'!O17/'National Shipments'!O$19 -> 0 | AS17: ='National Shipments'!P17/'National Shipments'!P$19 -> 0 | AT17: ='National Shipments'!Q17/'National Shipments'!Q$19 -> 0 | AU17: ='National Shipments'!R17/'National Shipments'!R$19 -> 0 | AV17: ='National Shipments'!S17/'National Shipments'!S$19 -> 0 | AW17: ='National Shipments'!T17/'National Shipments'!T$19 -> 0 | AX17: ='National Shipments'!U17/'National Shipments'!U$19 -> 0 | AY17: ='National Shipments'!V17/'National Shipments'!V$19 -> 0 | AZ17: ='National Shipments'!W17/'National Shipments'!W$19 -> 0 | BA17: ='National Shipments'!X17/'National Shipments'!X$19 -> 0 | BB17: ='National Shipments'!Y17/'National Shipments'!Y$19 -> 0 | BC17: ='National Shipments'!Z17/'National Shipments'!Z$19 -> 0 | BD17: ='National Shipments'!AA17/'National Shipments'!AA$19 -> 0 | BE17: ='National Shipments'!AB17/'National Shipments'!AB$19 -> 0 | BF17: ='National Shipments'!AC17/'National Shipments'!AC$19 -> 0 | BG17: ='National Shipments'!AD17/'National Shipments'!AD$19 -> 0 | BH17: ='National Shipments'!AE17/'National Shipments'!AE$19 -> 0
D18: EL5 | E18: 11.66560128 | G18: 0 | H18: 0 | I18: 0 | J18: 0 | K18: 0 | L18: 0 | M18: 0 | N18: 0 | O18: 0 | P18: 0 | Q18: 0 | R18: 0 | S18: 0 | T18: 0 | U18: 0 | V18: 0 | W18: 0 | X18: 0 | Y18: 0 | Z18: 0 | AA18: 0 | AB18: 0 | AC18: 0 | AD18: 0 | AE18: 0 | AF18: 0 | AG18: 0 | AH18: 0 | AI18: ='National Shipments'!F18/'National Shipments'!F$19 -> 0 | AJ18: ='National Shipments'!G18/'National Shipments'!G$19 -> 0 | AK18: ='National Shipments'!H18/'National Shipments'!H$19 -> 0 | AL18: ='National Shipments'!I18/'National Shipments'!I$19 -> 0 | AM18: ='National Shipments'!J18/'National Shipments'!J$19 -> 0 | AN18: ='National Shipments'!K18/'National Shipments'!K$19 -> 0 | AO18: ='National Shipments'!L18/'National Shipments'!L$19 -> 0 | AP18: ='National Shipments'!M18/'National Shipments'!M$19 -> 0 | AQ18: ='National Shipments'!N18/'National Shipments'!N$19 -> 0 | AR18: ='National Shipments'!O18/'National Shipments'!O$19 -> 0 | AS18: ='National Shipments'!P18/'National Shipments'!P$19 -> 0 | AT18: ='National Shipments'!Q18/'National Shipments'!Q$19 -> 0 | AU18: ='National Shipments'!R18/'National Shipments'!R$19 -> 0 | AV18: ='National Shipments'!S18/'National Shipments'!S$19 -> 0 | AW18: ='National Shipments'!T18/'National Shipments'!T$19 -> 0 | AX18: ='National Shipments'!U18/'National Shipments'!U$19 -> 0 | AY18: ='National Shipments'!V18/'National Shipments'!V$19 -> 0 | AZ18: ='National Shipments'!W18/'National Shipments'!W$19 -> 0 | BA18: ='National Shipments'!X18/'National Shipments'!X$19 -> 0 | BB18: ='National Shipments'!Y18/'National Shipments'!Y$19 -> 0 | BC18: ='National Shipments'!Z18/'National Shipments'!Z$19 -> 0 | BD18: ='National Shipments'!AA18/'National Shipments'!AA$19 -> 0 | BE18: ='National Shipments'!AB18/'National Shipments'!AB$19 -> 0 | BF18: ='National Shipments'!AC18/'National Shipments'!AC$19 -> 0 | BG18: ='National Shipments'!AD18/'National Shipments'!AD$19 -> 0 | BH18: ='National Shipments'!AE18/'National Shipments'!AE$19 -> 0
D19: TOTAL | G19: 1 | H19: 1 | I19: 1 | J19: 1 | K19: 1 | L19: 1 | M19: 1 | N19: 1 | O19: 1 | P19: 1 | Q19: 1 | R19: 1 | S19: 1 | T19: 1 | U19: 1 | V19: 1 | W19: 1 | X19: 1 | Y19: 1 | Z19: 1 | AA19: 1 | AB19: 1 | AC19: 1 | AD19: 1 | AE19: 1 | AF19: 1 | AG19: 1 | AH19: 1 | AI19: ='National Shipments'!F19/'National Shipments'!F$19 -> 1 | AJ19: ='National Shipments'!G19/'National Shipments'!G$19 -> 1 | AK19: ='National Shipments'!H19/'National Shipments'!H$19 -> 1 | AL19: ='National Shipments'!I19/'National Shipments'!I$19 -> 1 | AM19: ='National Shipments'!J19/'National Shipments'!J$19 -> 1 | AN19: ='National Shipments'!K19/'National Shipments'!K$19 -> 1 | AO19: ='National Shipments'!L19/'National Shipments'!L$19 -> 1 | AP19: ='National Shipments'!M19/'National Shipments'!M$19 -> 1 | AQ19: ='National Shipments'!N19/'National Shipments'!N$19 -> 1 | AR19: ='National Shipments'!O19/'National Shipments'!O$19 -> 1 | AS19: ='National Shipments'!P19/'National Shipments'!P$19 -> 1 | AT19: ='National Shipments'!Q19/'National Shipments'!Q$19 -> 1 | AU19: ='National Shipments'!R19/'National Shipments'!R$19 -> 1 | AV19: ='National Shipments'!S19/'National Shipments'!S$19 -> 1 | AW19: ='National Shipments'!T19/'National Shipments'!T$19 -> 1 | AX19: ='National Shipments'!U19/'National Shipments'!U$19 -> 1 | AY19: ='National Shipments'!V19/'National Shipments'!V$19 -> 1 | AZ19: ='National Shipments'!W19/'National Shipments'!W$19 -> 1 | BA19: ='National Shipments'!X19/'National Shipments'!X$19 -> 1 | BB19: ='National Shipments'!Y19/'National Shipments'!Y$19 -> 1 | BC19: ='National Shipments'!Z19/'National Shipments'!Z$19 -> 1 | BD19: ='National Shipments'!AA19/'National Shipments'!AA$19 -> 1 | BE19: ='National Shipments'!AB19/'National Shipments'!AB$19 -> 1 | BF19: ='National Shipments'!AC19/'National Shipments'!AC$19 -> 1 | BG19: ='National Shipments'!AD19/'National Shipments'!AD$19 -> 1 | BH19: ='National Shipments'!AE19/'National Shipments'!AE$19 -> 1
D21: POST-Case
D22: Efficiency Level | E22: CEER | G22: 1981 | H22: 1982 | I22: 1983 | J22: 1984 | K22: 1985 | L22: 1986 | M22: 1987 | N22: 1988 | O22: 1989 | P22: 1990 | Q22: 1991 | R22: 1992 | S22: 1993 | T22: 1994 | U22: 1995 | V22: 1996 | W22: 1997 | X22: 1998 | Y22: 1999 | Z22: 2000 | AA22: 2001 | AB22: 2002 | AC22: 2003 | AD22: 2004 | AE22: 2005 | AF22: 2006 | AG22: 2007 | AH22: 2008 | AI22: 2009 | AJ22: 2010 | AK22: 2011 | AL22: 2012 | AM22: 2013 | AN22: 2014 | AO22: 2015 | AP22: 2016 | AQ22: 2017 | AR22: 2018 | AS22: 2019 | AT22: 2020 | AU22: 2021 | AV22: 2022 | AW22: 2023 | AX22: 2024 | AY22: 2025 | AZ22: 2026 | BA22: 2027 | BB22: 2028 | BC22: 2029 | BD22: 2030 | BE22: 2031 | BF22: 2032 | BG22: 2033 | BH22: 2034
D23: EL0 | E23: =INDEX(EFFICIENCY_LEVELS,RIGHT(D23,1)+1,MID($D$9,3,1)) -> 9.523593338 | G23: =H23 -> 0.6933 | H23: 0.6933 | I23: 0.6933 | J23: 0.6933 | K23: 0.6933 | L23: 0.6933 | M23: 0.6933 | N23: 0.6933 | O23: 0.6933 | P23: 0.6933 | Q23: 0.6933 | R23: 0.6933 | S23: 0.6933 | T23: 0.6933 | U23: 0.6933 | V23: 0.6933 | W23: 0.6933 | X23: 0.6933 | Y23: 0.6933 | Z23: 0.6933 | AA23: 0.6933 | AB23: 0.6933 | AC23: 0.6933 | AD23: 0.6933 | AE23: 0.6933 | AF23: 0.6933 | AG23: 0.6933 | AH23: =AI23 -> 0.6933 | AI23: ='National Shipments'!F23/'National Shipments'!F$29 -> 0.6933 | AJ23: ='National Shipments'!G23/'National Shipments'!G$29 -> 0.6933 | AK23: ='National Shipments'!H23/'National Shipments'!H$29 -> 0.6933 | AL23: ='National Shipments'!I23/'National Shipments'!I$29 -> 0.6933 | AM23: ='National Shipments'!J23/'National Shipments'!J$29 -> 0.6933 | AN23: ='National Shipments'!K23/'National Shipments'!K$29 -> 0 | AO23: ='National Shipments'!L23/'National Shipments'!L$29 -> 0 | AP23: ='National Shipments'!M23/'National Shipments'!M$29 -> 0 | AQ23: ='National Shipments'!N23/'National Shipments'!N$29 -> 0 | AR23: ='National Shipments'!O23/'National Shipments'!O$29 -> 0 | AS23: ='National Shipments'!P23/'National Shipments'!P$29 -> 0 | AT23: ='National Shipments'!Q23/'National Shipments'!Q$29 -> 0 | AU23: ='National Shipments'!R23/'National Shipments'!R$29 -> 0 | AV23: ='National Shipments'!S23/'National Shipments'!S$29 -> 0 | AW23: ='National Shipments'!T23/'National Shipments'!T$29 -> 0 | AX23: ='National Shipments'!U23/'National Shipments'!U$29 -> 0 | AY23: ='National Shipments'!V23/'National Shipments'!V$29 -> 0 | AZ23: ='National Shipments'!W23/'National Shipments'!W$29 -> 0 | BA23: ='National Shipments'!X23/'National Shipments'!X$29 -> 0 | BB23: ='National Shipments'!Y23/'National Shipments'!Y$29 -> 0 | BC23: ='National Shipments'!Z23/'National Shipments'!Z$29 -> 0 | BD23: ='National Shipments'!AA23/'National Shipments'!AA$29 -> 0 | BE23: ='National Shipments'!AB23/'National Shipments'!AB$29 -> 0 | BF23: ='National Shipments'!AC23/'National Shipments'!AC$29 -> 0 | BG23: ='National Shipments'!AD23/'National Shipments'!AD$29 -> 0 | BH23: ='National Shipments'!AE23/'National Shipments'!AE$29 -> 0
D24: EL1 | E24: 10.1 | G24: 0 | H24: 0 | I24: 0 | J24: 0 | K24: 0 | L24: 0 | M24: 0 | N24: 0 | O24: 0 | P24: 0 | Q24: 0 | R24: 0 | S24: 0 | T24: 0 | U24: 0 | V24: 0 | W24: 0 | X24: 0 | Y24: 0 | Z24: 0 | AA24: 0 | AB24: 0 | AC24: 0 | AD24: 0 | AE24: 0 | AF24: 0 | AG24: 0 | AH24: =AI24 -> 0 | AI24: ='National Shipments'!F24/'National Shipments'!F$29 -> 0 | AJ24: ='National Shipments'!G24/'National Shipments'!G$29 -> 0 | AK24: ='National Shipments'!H24/'National Shipments'!H$29 -> 0 | AL24: ='National Shipments'!I24/'National Shipments'!I$29 -> 0 | AM24: ='National Shipments'!J24/'National Shipments'!J$29 -> 0 | AN24: ='National Shipments'!K24/'National Shipments'!K$29 -> 0 | AO24: ='National Shipments'!L24/'National Shipments'!L$29 -> 0 | AP24: ='National Shipments'!M24/'National Shipments'!M$29 -> 0 | AQ24: ='National Shipments'!N24/'National Shipments'!N$29 -> 0 | AR24: ='National Shipments'!O24/'National Shipments'!O$29 -> 0 | AS24: ='National Shipments'!P24/'National Shipments'!P$29 -> 0 | AT24: ='National Shipments'!Q24/'National Shipments'!Q$29 -> 0 | AU24: ='National Shipments'!R24/'National Shipments'!R$29 -> 0 | AV24: ='National Shipments'!S24/'National Shipments'!S$29 -> 0 | AW24: ='National Shipments'!T24/'National Shipments'!T$29 -> 0 | AX24: ='National Shipments'!U24/'National Shipments'!U$29 -> 0 | AY24: ='National Shipments'!V24/'National Shipments'!V$29 -> 0 | AZ24: ='National Shipments'!W24/'National Shipments'!W$29 -> 0 | BA24: ='National Shipments'!X24/'National Shipments'!X$29 -> 0 | BB24: ='National Shipments'!Y24/'National Shipments'!Y$29 -> 0 | BC24: ='National Shipments'!Z24/'National Shipments'!Z$29 -> 0 | BD24: ='National Shipments'!AA24/'National Shipments'!AA$29 -> 0 | BE24: ='National Shipments'!AB24/'National Shipments'!AB$29 -> 0 | BF24: ='National Shipments'!AC24/'National Shipments'!AC$29 -> 0 | BG24: ='National Shipments'!AD24/'National Shipments'!AD$29 -> 0 | BH24: ='National Shipments'!AE24/'National Shipments'!AE$29 -> 0
D25: EL2 | E25: 10.6 | G25: 0.2951 | H25: 0.2951 | I25: 0.2951 | J25: 0.2951 | K25: 0.2951 | L25: 0.2951 | M25: 0.2951 | N25: 0.2951 | O25: 0.2951 | P25: 0.2951 | Q25: 0.2951 | R25: 0.2951 | S25: 0.2951 | T25: 0.2951 | U25: 0.2951 | V25: 0.2951 | W25: 0.2951 | X25: 0.2951 | Y25: 0.2951 | Z25: 0.2951 | AA25: 0.2951 | AB25: 0.2951 | AC25: 0.2951 | AD25: 0.2951 | AE25: 0.2951 | AF25: 0.2951 | AG25: 0.2951 | AH25: 0.2951 | AI25: ='National Shipments'!F25/'National Shipments'!F$29 -> 0.2951 | AJ25: ='National Shipments'!G25/'National Shipments'!G$29 -> 0.2951 | AK25: ='National Shipments'!H25/'National Shipments'!H$29 -> 0.2951 | AL25: ='National Shipments'!I25/'National Shipments'!I$29 -> 0.2951 | AM25: ='National Shipments'!J25/'National Shipments'!J$29 -> 0.2951 | AN25: ='National Shipments'!K25/'National Shipments'!K$29 -> 0 | AO25: ='National Shipments'!L25/'National Shipments'!L$29 -> 0 | AP25: ='National Shipments'!M25/'National Shipments'!M$29 -> 0 | AQ25: ='National Shipments'!N25/'National Shipments'!N$29 -> 0 | AR25: ='National Shipments'!O25/'National Shipments'!O$29 -> 0 | AS25: ='National Shipments'!P25/'National Shipments'!P$29 -> 0 | AT25: ='National Shipments'!Q25/'National Shipments'!Q$29 -> 0 | AU25: ='National Shipments'!R25/'National Shipments'!R$29 -> 0 | AV25: ='National Shipments'!S25/'National Shipments'!S$29 -> 0 | AW25: ='National Shipments'!T25/'National Shipments'!T$29 -> 0 | AX25: ='National Shipments'!U25/'National Shipments'!U$29 -> 0 | AY25: ='National Shipments'!V25/'National Shipments'!V$29 -> 0 | AZ25: ='National Shipments'!W25/'National Shipments'!W$29 -> 0 | BA25: ='National Shipments'!X25/'National Shipments'!X$29 -> 0 | BB25: ='National Shipments'!Y25/'National Shipments'!Y$29 -> 0 | BC25: ='National Shipments'!Z25/'National Shipments'!Z$29 -> 0 | BD25: ='National Shipments'!AA25/'National Shipments'!AA$29 -> 0 | BE25: ='National Shipments'!AB25/'National Shipments'!AB$29 -> 0 | BF25: ='National Shipments'!AC25/'National Shipments'!AC$29 -> 0 | BG25: ='National Shipments'!AD25/'National Shipments'!AD$29 -> 0 | BH25: ='National Shipments'!AE25/'National Shipments'!AE$29 -> 0
D26: EL3 | E26: 11.1 | G26: 0.0116 | H26: 0.0116 | I26: 0.0116 | J26: 0.0116 | K26: 0.0116 | L26: 0.0116 | M26: 0.0116 | N26: 0.0116 | O26: 0.0116 | P26: 0.0116 | Q26: 0.0116 | R26: 0.0116 | S26: 0.0116 | T26: 0.0116 | U26: 0.0116 | V26: 0.0116 | W26: 0.0116 | X26: 0.0116 | Y26: 0.0116 | Z26: 0.0116 | AA26: 0.0116 | AB26: 0.0116 | AC26: 0.0116 | AD26: 0.0116 | AE26: 0.0116 | AF26: 0.0116 | AG26: 0.0116 | AH26: 0.0116 | AI26: ='National Shipments'!F26/'National Shipments'!F$29 -> 0.0116 | AJ26: ='National Shipments'!G26/'National Shipments'!G$29 -> 0.0116 | AK26: ='National Shipments'!H26/'National Shipments'!H$29 -> 0.0116 | AL26: ='National Shipments'!I26/'National Shipments'!I$29 -> 0.0116 | AM26: ='National Shipments'!J26/'National Shipments'!J$29 -> 0.0116 | AN26: ='National Shipments'!K26/'National Shipments'!K$29 -> 1 | AO26: ='National Shipments'!L26/'National Shipments'!L$29 -> 0.9756556397 | AP26: ='National Shipments'!M26/'National Shipments'!M$29 -> 0.9500524118 | AQ26: ='National Shipments'!N26/'National Shipments'!N$29 -> 0.9255844902 | AR26: ='National Shipments'!O26/'National Shipments'!O$29 -> 0.9010553989 | AS26: ='National Shipments'!P26/'National Shipments'!P$29 -> 0.8764649848 | AT26: ='National Shipments'!Q26/'National Shipments'!Q$29 -> 0.8518130946 | AU26: ='National Shipments'!R26/'National Shipments'!R$29 -> 0.8270995748 | AV26: ='National Shipments'!S26/'National Shipments'!S$29 -> 0.8023242711 | AW26: ='National Shipments'!T26/'National Shipments'!T$29 -> 0.7774870292 | AX26: ='National Shipments'!U26/'National Shipments'!U$29 -> 0.7525876942 | AY26: ='National Shipments'!V26/'National Shipments'!V$29 -> 0.7276261108 | AZ26: ='National Shipments'!W26/'National Shipments'!W$29 -> 0.7026021235 | BA26: ='National Shipments'!X26/'National Shipments'!X$29 -> 0.6775155762 | BB26: ='National Shipments'!Y26/'National Shipments'!Y$29 -> 0.6523663125 | BC26: ='National Shipments'!Z26/'National Shipments'!Z$29 -> 0.6271541757 | BD26: ='National Shipments'!AA26/'National Shipments'!AA$29 -> 0.6007919668 | BE26: ='National Shipments'!AB26/'National Shipments'!AB$29 -> 0.5630041765 | BF26: ='National Shipments'!AC26/'National Shipments'!AC$29 -> 0.5251219168 | BG26: ='National Shipments'!AD26/'National Shipments'!AD$29 -> 0.4871449514 | BH26: ='National Shipments'!AE26/'National Shipments'!AE$29 -> 0.4490730436
D27: EL4 | E27: 11.384883 | G27: 0 | H27: 0 | I27: 0 | J27: 0 | K27: 0 | L27: 0 | M27: 0 | N27: 0 | O27: 0 | P27: 0 | Q27: 0 | R27: 0 | S27: 0 | T27: 0 | U27: 0 | V27: 0 | W27: 0 | X27: 0 | Y27: 0 | Z27: 0 | AA27: 0 | AB27: 0 | AC27: 0 | AD27: 0 | AE27: 0 | AF27: 0 | AG27: 0 | AH27: 0 | AI27: ='National Shipments'!F27/'National Shipments'!F$29 -> 0 | AJ27: ='National Shipments'!G27/'National Shipments'!G$29 -> 0 | AK27: ='National Shipments'!H27/'National Shipments'!H$29 -> 0 | AL27: ='National Shipments'!I27/'National Shipments'!I$29 -> 0 | AM27: ='National Shipments'!J27/'National Shipments'!J$29 -> 0 | AN27: ='National Shipments'!K27/'National Shipments'!K$29 -> 0 | AO27: ='National Shipments'!L27/'National Shipments'!L$29 -> 0.0243443603 | AP27: ='National Shipments'!M27/'National Shipments'!M$29 -> 0.04994758819 | AQ27: ='National Shipments'!N27/'National Shipments'!N$29 -> 0.07441550976 | AR27: ='National Shipments'!O27/'National Shipments'!O$29 -> 0.09894460113 | AS27: ='National Shipments'!P27/'National Shipments'!P$29 -> 0.1235350152 | AT27: ='National Shipments'!Q27/'National Shipments'!Q$29 -> 0.1481869054 | AU27: ='National Shipments'!R27/'National Shipments'!R$29 -> 0.1729004252 | AV27: ='National Shipments'!S27/'National Shipments'!S$29 -> 0.1976757289 | AW27: ='National Shipments'!T27/'National Shipments'!T$29 -> 0.2225129708 | AX27: ='National Shipments'!U27/'National Shipments'!U$29 -> 0.2474123058 | AY27: ='National Shipments'!V27/'National Shipments'!V$29 -> 0.2723738892 | AZ27: ='National Shipments'!W27/'National Shipments'!W$29 -> 0.2973978765 | BA27: ='National Shipments'!X27/'National Shipments'!X$29 -> 0.3224844238 | BB27: ='National Shipments'!Y27/'National Shipments'!Y$29 -> 0.3476336875 | BC27: ='National Shipments'!Z27/'National Shipments'!Z$29 -> 0.3728458243 | BD27: ='National Shipments'!AA27/'National Shipments'!AA$29 -> 0.3992080332 | BE27: ='National Shipments'!AB27/'National Shipments'!AB$29 -> 0.4369958235 | BF27: ='National Shipments'!AC27/'National Shipments'!AC$29 -> 0.4748780832 | BG27: ='National Shipments'!AD27/'National Shipments'!AD$29 -> 0.5128550486 | BH27: ='National Shipments'!AE27/'National Shipments'!AE$29 -> 0.5509269564
D28: EL5 | E28: 11.66560128 | G28: 0 | H28: 0 | I28: 0 | J28: 0 | K28: 0 | L28: 0 | M28: 0 | N28: 0 | O28: 0 | P28: 0 | Q28: 0 | R28: 0 | S28: 0 | T28: 0 | U28: 0 | V28: 0 | W28: 0 | X28: 0 | Y28: 0 | Z28: 0 | AA28: 0 | AB28: 0 | AC28: 0 | AD28: 0 | AE28: 0 | AF28: 0 | AG28: 0 | AH28: 0 | AI28: ='National Shipments'!F28/'National Shipments'!F$29 -> 0 | AJ28: ='National Shipments'!G28/'National Shipments'!G$29 -> 0 | AK28: ='National Shipments'!H28/'National Shipments'!H$29 -> 0 | AL28: ='National Shipments'!I28/'National Shipments'!I$29 -> 0 | AM28: ='National Shipments'!J28/'National Shipments'!J$29 -> 0 | AN28: ='National Shipments'!K28/'National Shipments'!K$29 -> 0 | AO28: ='National Shipments'!L28/'National Shipments'!L$29 -> 0 | AP28: ='National Shipments'!M28/'National Shipments'!M$29 -> 0 | AQ28: ='National Shipments'!N28/'National Shipments'!N$29 -> 0 | AR28: ='National Shipments'!O28/'National Shipments'!O$29 -> 0 | AS28: ='National Shipments'!P28/'National Shipments'!P$29 -> 0 | AT28: ='National Shipments'!Q28/'National Shipments'!Q$29 -> 0 | AU28: ='National Shipments'!R28/'National Shipments'!R$29 -> 0 | AV28: ='National Shipments'!S28/'National Shipments'!S$29 -> 0 | AW28: ='National Shipments'!T28/'National Shipments'!T$29 -> 0 | AX28: ='National Shipments'!U28/'National Shipments'!U$29 -> 0 | AY28: ='National Shipments'!V28/'National Shipments'!V$29 -> 0 | AZ28: ='National Shipments'!W28/'National Shipments'!W$29 -> 0 | BA28: ='National Shipments'!X28/'National Shipments'!X$29 -> 0 | BB28: ='National Shipments'!Y28/'National Shipments'!Y$29 -> 0 | BC28: ='National Shipments'!Z28/'National Shipments'!Z$29 -> 0 | BD28: ='National Shipments'!AA28/'National Shipments'!AA$29 -> 0 | BE28: ='National Shipments'!AB28/'National Shipments'!AB$29 -> 0 | BF28: ='National Shipments'!AC28/'National Shipments'!AC$29 -> 0 | BG28: ='National Shipments'!AD28/'National Shipments'!AD$29 -> 0 | BH28: ='National Shipments'!AE28/'National Shipments'!AE$29 -> 0
D29: TOTAL | G29: 1 | H29: 1 | I29: 1 | J29: 1 | K29: 1 | L29: 1 | M29: 1 | N29: 1 | O29: 1 | P29: 1 | Q29: 1 | R29: 1 | S29: 1 | T29: 1 | U29: 1 | V29: 1 | W29: 1 | X29: 1 | Y29: 1 | Z29: 1 | AA29: 1 | AB29: 1 | AC29: 1 | AD29: 1 | AE29: 1 | AF29: 1 | AG29: 1 | AH29: 1 | AI29: ='National Shipments'!F29/'National Shipments'!F$29 -> 1 | AJ29: ='National Shipments'!G29/'National Shipments'!G$29 -> 1 | AK29: ='National Shipments'!H29/'National Shipments'!H$29 -> 1 | AL29: ='National Shipments'!I29/'National Shipments'!I$29 -> 1 | AM29: ='National Shipments'!J29/'National Shipments'!J$29 -> 1 | AN29: ='National Shipments'!K29/'National Shipments'!K$29 -> 1 | AO29: ='National Shipments'!L29/'National Shipments'!L$29 -> 1 | AP29: ='National Shipments'!M29/'National Shipments'!M$29 -> 1 | AQ29: ='National Shipments'!N29/'National Shipments'!N$29 -> 1 | AR29: ='National Shipments'!O29/'National Shipments'!O$29 -> 1 | AS29: ='National Shipments'!P29/'National Shipments'!P$29 -> 1 | AT29: ='National Shipments'!Q29/'National Shipments'!Q$29 -> 1 | AU29: ='National Shipments'!R29/'National Shipments'!R$29 -> 1 | AV29: ='National Shipments'!S29/'National Shipments'!S$29 -> 1 | AW29: ='National Shipments'!T29/'National Shipments'!T$29 -> 1 | AX29: ='National Shipments'!U29/'National Shipments'!U$29 -> 1 | AY29: ='National Shipments'!V29/'National Shipments'!V$29 -> 1 | AZ29: ='National Shipments'!W29/'National Shipments'!W$29 -> 1 | BA29: ='National Shipments'!X29/'National Shipments'!X$29 -> 1 | BB29: ='National Shipments'!Y29/'National Shipments'!Y$29 -> 1 | BC29: ='National Shipments'!Z29/'National Shipments'!Z$29 -> 1 | BD29: ='National Shipments'!AA29/'National Shipments'!AA$29 -> 1 | BE29: ='National Shipments'!AB29/'National Shipments'!AB$29 -> 1 | BF29: ='National Shipments'!AC29/'National Shipments'!AC$29 -> 1 | BG29: ='National Shipments'!AD29/'National Shipments'!AD$29 -> 1 | BH29: ='National Shipments'!AE29/'National Shipments'!AE$29 -> 1
D31: Sources | E31: 2011 DOE Residential Room Air Conditioners Direct Final Rule Government Regulatory Impact Model 'Product Shipments (CALC)' tab.
D35: PC2 Without reverse cycle, with louvered sides, and 8,000 to 13,999 Btu/h
D37: PRE-Case
D38: Efficiency Level | E38: CEER | G38: 1981 | H38: 1982 | I38: 1983 | J38: 1984 | K38: 1985 | L38: 1986 | M38: 1987 | N38: 1988 | O38: 1989 | P38: 1990 | Q38: 1991 | R38: 1992 | S38: 1993 | T38: 1994 | U38: 1995 | V38: 1996 | W38: 1997 | X38: 1998 | Y38: 1999 | Z38: 2000 | AA38: 2001 | AB38: 2002 | AC38: 2003 | AD38: 2004 | AE38: 2005 | AF38: 2006 | AG38: 2007 | AH38: 2008 | AI38: 2009 | AJ38: 2010 | AK38: 2011 | AL38: 2012 | AM38: 2013 | AN38: 2014 | AO38: 2015 | AP38: 2016 | AQ38: 2017 | AR38: 2018 | AS38: 2019 | AT38: 2020 | AU38: 2021 | AV38: 2022 | AW38: 2023 | AX38: 2024 | AY38: 2025 | AZ38: 2026 | BA38: 2027 | BB38: 2028 | BC38: 2029 | BD38: 2030 | BE38: 2031 | BF38: 2032 | BG38: 2033 | BH38: 2034
D39: EL0 | E39: =INDEX(EFFICIENCY_LEVELS,RIGHT(D39,1)+1,MID($D$35,3,1)) -> 9.686701434 | G39: =H39 -> 0.3705 | H39: 0.3705 | I39: 0.3705 | J39: 0.3705 | K39: 0.3705 | L39: 0.3705 | M39: 0.3705 | N39: 0.3705 | O39: 0.3705 | P39: 0.3705 | Q39: 0.3705 | R39: 0.3705 | S39: 0.3705 | T39: 0.3705 | U39: 0.3705 | V39: 0.3705 | W39: =X39 -> 0.3705 | X39: 0.3705 | Y39: 0.3705 | Z39: 0.3705 | AA39: 0.3705 | AB39: 0.3705 | AC39: 0.3705 | AD39: 0.3705 | AE39: 0.3705 | AF39: 0.3705 | AG39: 0.3705 | AH39: =AI39 -> 0.3705 | AI39: ='National Shipments'!F39/'National Shipments'!F$45 -> 0.3705 | AJ39: ='National Shipments'!G39/'National Shipments'!G$45 -> 0.3705 | AK39: ='National Shipments'!H39/'National Shipments'!H$45 -> 0.3705 | AL39: ='National Shipments'!I39/'National Shipments'!I$45 -> 0.3705 | AM39: ='National Shipments'!J39/'National Shipments'!J$45 -> 0.3705 | AN39: ='National Shipments'!K39/'National Shipments'!K$45 -> 0.3705 | AO39: ='National Shipments'!L39/'National Shipments'!L$45 -> 0.3202203053 | AP39: ='National Shipments'!M39/'National Shipments'!M$45 -> 0.2698149114 | AQ39: ='National Shipments'!N39/'National Shipments'!N$45 -> 0.219283504 | AR39: ='National Shipments'!O39/'National Shipments'!O$45 -> 0.1686257681 | AS39: ='National Shipments'!P39/'National Shipments'!P$45 -> 0.1178413878 | AT39: ='National Shipments'!Q39/'National Shipments'!Q$45 -> 0.06693004664 | AU39: ='National Shipments'!R39/'National Shipments'!R$45 -> 0.01589142709 | AV39: ='National Shipments'!S39/'National Shipments'!S$45 -> 0 | AW39: ='National Shipments'!T39/'National Shipments'!T$45 -> 0 | AX39: ='National Shipments'!U39/'National Shipments'!U$45 -> 0 | AY39: ='National Shipments'!V39/'National Shipments'!V$45 -> 0 | AZ39: ='National Shipments'!W39/'National Shipments'!W$45 -> 0 | BA39: ='National Shipments'!X39/'National Shipments'!X$45 -> 0 | BB39: ='National Shipments'!Y39/'National Shipments'!Y$45 -> 0 | BC39: ='National Shipments'!Z39/'National Shipments'!Z$45 -> 0 | BD39: ='National Shipments'!AA39/'National Shipments'!AA$45 -> 0 | BE39: ='National Shipments'!AB39/'National Shipments'!AB$45 -> 0 | BF39: ='National Shipments'!AC39/'National Shipments'!AC$45 -> 0 | BG39: ='National Shipments'!AD39/'National Shipments'!AD$45 -> 0 | BH39: ='National Shipments'!AE39/'National Shipments'!AE$45 -> 0
D40: EL1 | E40: 10.2 | G40: 0.0246 | H40: 0.0246 | I40: 0.0246 | J40: 0.0246 | K40: 0.0246 | L40: 0.0246 | M40: 0.0246 | N40: 0.0246 | O40: 0.0246 | P40: 0.0246 | Q40: 0.0246 | R40: 0.0246 | S40: 0.0246 | T40: 0.0246 | U40: 0.0246 | V40: 0.0246 | W40: 0.0246 | X40: 0.0246 | Y40: 0.0246 | Z40: 0.0246 | AA40: 0.0246 | AB40: 0.0246 | AC40: 0.0246 | AD40: 0.0246 | AE40: 0.0246 | AF40: 0.0246 | AG40: 0.0246 | AH40: 0.0246 | AI40: ='National Shipments'!F40/'National Shipments'!F$45 -> 0.0246 | AJ40: ='National Shipments'!G40/'National Shipments'!G$45 -> 0.0246 | AK40: ='National Shipments'!H40/'National Shipments'!H$45 -> 0.0246 | AL40: ='National Shipments'!I40/'National Shipments'!I$45 -> 0.0246 | AM40: ='National Shipments'!J40/'National Shipments'!J$45 -> 0.0246 | AN40: ='National Shipments'!K40/'National Shipments'!K$45 -> 0.0246 | AO40: ='National Shipments'!L40/'National Shipments'!L$45 -> 0.07487969467 | AP40: ='National Shipments'!M40/'National Shipments'!M$45 -> 0.1252850886 | AQ40: ='National Shipments'!N40/'National Shipments'!N$45 -> 0.175816496 | AR40: ='National Shipments'!O40/'National Shipments'!O$45 -> 0.2264742319 | AS40: ='National Shipments'!P40/'National Shipments'!P$45 -> 0.2772586122 | AT40: ='National Shipments'!Q40/'National Shipments'!Q$45 -> 0.3281699534 | AU40: ='National Shipments'!R40/'National Shipments'!R$45 -> 0.3792085729 | AV40: ='National Shipments'!S40/'National Shipments'!S$45 -> 0.3588870028 | AW40: ='National Shipments'!T40/'National Shipments'!T$45 -> 0.3062285943 | AX40: ='National Shipments'!U40/'National Shipments'!U$45 -> 0.2534385399 | AY40: ='National Shipments'!V40/'National Shipments'!V$45 -> 0.2005165103 | AZ40: ='National Shipments'!W40/'National Shipments'!W$45 -> 0.1474621756 | BA40: ='National Shipments'!X40/'National Shipments'!X$45 -> 0.09427520511 | BB40: ='National Shipments'!Y40/'National Shipments'!Y$45 -> 0.04095526718 | BC40: ='National Shipments'!Z40/'National Shipments'!Z$45 -> 0 | BD40: ='National Shipments'!AA40/'National Shipments'!AA$45 -> 0 | BE40: ='National Shipments'!AB40/'National Shipments'!AB$45 -> 0 | BF40: ='National Shipments'!AC40/'National Shipments'!AC$45 -> 0 | BG40: ='National Shipments'!AD40/'National Shipments'!AD$45 -> 0 | BH40: ='National Shipments'!AE40/'National Shipments'!AE$45 -> 0
D41: EL2 | E41: 10.7 | G41: 0.583 | H41: 0.583 | I41: 0.583 | J41: 0.583 | K41: 0.583 | L41: 0.583 | M41: 0.583 | N41: 0.583 | O41: 0.583 | P41: 0.583 | Q41: 0.583 | R41: 0.583 | S41: 0.583 | T41: 0.583 | U41: 0.583 | V41: 0.583 | W41: 0.583 | X41: 0.583 | Y41: 0.583 | Z41: 0.583 | AA41: 0.583 | AB41: 0.583 | AC41: 0.583 | AD41: 0.583 | AE41: 0.583 | AF41: 0.583 | AG41: 0.583 | AH41: 0.583 | AI41: ='National Shipments'!F41/'National Shipments'!F$45 -> 0.583 | AJ41: ='National Shipments'!G41/'National Shipments'!G$45 -> 0.583 | AK41: ='National Shipments'!H41/'National Shipments'!H$45 -> 0.583 | AL41: ='National Shipments'!I41/'National Shipments'!I$45 -> 0.583 | AM41: ='National Shipments'!J41/'National Shipments'!J$45 -> 0.583 | AN41: ='National Shipments'!K41/'National Shipments'!K$45 -> 0.583 | AO41: ='National Shipments'!L41/'National Shipments'!L$45 -> 0.583 | AP41: ='National Shipments'!M41/'National Shipments'!M$45 -> 0.583 | AQ41: ='National Shipments'!N41/'National Shipments'!N$45 -> 0.583 | AR41: ='National Shipments'!O41/'National Shipments'!O$45 -> 0.583 | AS41: ='National Shipments'!P41/'National Shipments'!P$45 -> 0.583 | AT41: ='National Shipments'!Q41/'National Shipments'!Q$45 -> 0.583 | AU41: ='National Shipments'!R41/'National Shipments'!R$45 -> 0.583 | AV41: ='National Shipments'!S41/'National Shipments'!S$45 -> 0.6192129972 | AW41: ='National Shipments'!T41/'National Shipments'!T$45 -> 0.6718714057 | AX41: ='National Shipments'!U41/'National Shipments'!U$45 -> 0.7246614601 | AY41: ='National Shipments'!V41/'National Shipments'!V$45 -> 0.7775834897 | AZ41: ='National Shipments'!W41/'National Shipments'!W$45 -> 0.8306378244 | BA41: ='National Shipments'!X41/'National Shipments'!X$45 -> 0.8838247949 | BB41: ='National Shipments'!Y41/'National Shipments'!Y$45 -> 0.9371447328 | BC41: ='National Shipments'!Z41/'National Shipments'!Z$45 -> 0.9468550735 | BD41: ='National Shipments'!AA41/'National Shipments'!AA$45 -> 0.8128878963 | BE41: ='National Shipments'!AB41/'National Shipments'!AB$45 -> 0.6785858012 | BF41: ='National Shipments'!AC41/'National Shipments'!AC$45 -> 0.5439479509 | BG41: ='National Shipments'!AD41/'National Shipments'!AD$45 -> 0.4089735059 | BH41: ='National Shipments'!AE41/'National Shipments'!AE$45 -> 0.2736616248
D42: EL3 | E42: 10.9 | G42: 0.0142 | H42: 0.0142 | I42: 0.0142 | J42: 0.0142 | K42: 0.0142 | L42: 0.0142 | M42: 0.0142 | N42: 0.0142 | O42: 0.0142 | P42: 0.0142 | Q42: 0.0142 | R42: 0.0142 | S42: 0.0142 | T42: 0.0142 | U42: 0.0142 | V42: 0.0142 | W42: 0.0142 | X42: 0.0142 | Y42: 0.0142 | Z42: 0.0142 | AA42: 0.0142 | AB42: 0.0142 | AC42: 0.0142 | AD42: 0.0142 | AE42: 0.0142 | AF42: 0.0142 | AG42: 0.0142 | AH42: 0.0142 | AI42: ='National Shipments'!F42/'National Shipments'!F$45 -> 0.0142 | AJ42: ='National Shipments'!G42/'National Shipments'!G$45 -> 0.0142 | AK42: ='National Shipments'!H42/'National Shipments'!H$45 -> 0.0142 | AL42: ='National Shipments'!I42/'National Shipments'!I$45 -> 0.0142 | AM42: ='National Shipments'!J42/'National Shipments'!J$45 -> 0.0142 | AN42: ='National Shipments'!K42/'National Shipments'!K$45 -> 0.0142 | AO42: ='National Shipments'!L42/'National Shipments'!L$45 -> 0.0142 | AP42: ='National Shipments'!M42/'National Shipments'!M$45 -> 0.0142 | AQ42: ='National Shipments'!N42/'National Shipments'!N$45 -> 0.0142 | AR42: ='National Shipments'!O42/'National Shipments'!O$45 -> 0.0142 | AS42: ='National Shipments'!P42/'National Shipments'!P$45 -> 0.0142 | AT42: ='National Shipments'!Q42/'National Shipments'!Q$45 -> 0.0142 | AU42: ='National Shipments'!R42/'National Shipments'!R$45 -> 0.0142 | AV42: ='National Shipments'!S42/'National Shipments'!S$45 -> 0.0142 | AW42: ='National Shipments'!T42/'National Shipments'!T$45 -> 0.0142 | AX42: ='National Shipments'!U42/'National Shipments'!U$45 -> 0.0142 | AY42: ='National Shipments'!V42/'National Shipments'!V$45 -> 0.0142 | AZ42: ='National Shipments'!W42/'National Shipments'!W$45 -> 0.0142 | BA42: ='National Shipments'!X42/'National Shipments'!X$45 -> 0.0142 | BB42: ='National Shipments'!Y42/'National Shipments'!Y$45 -> 0.0142 | BC42: ='National Shipments'!Z42/'National Shipments'!Z$45 -> 0.04544492649 | BD42: ='National Shipments'!AA42/'National Shipments'!AA$45 -> 0.1794121037 | BE42: ='National Shipments'!AB42/'National Shipments'!AB$45 -> 0.3137141988 | BF42: ='National Shipments'!AC42/'National Shipments'!AC$45 -> 0.4483520491 | BG42: ='National Shipments'!AD42/'National Shipments'!AD$45 -> 0.5833264941 | BH42: ='National Shipments'!AE42/'National Shipments'!AE$45 -> 0.7186383752
D43: EL4 | E43: 11.5 | G43: 0.0031 | H43: 0.0031 | I43: 0.0031 | J43: 0.0031 | K43: 0.0031 | L43: 0.0031 | M43: 0.0031 | N43: 0.0031 | O43: 0.0031 | P43: 0.0031 | Q43: 0.0031 | R43: 0.0031 | S43: 0.0031 | T43: 0.0031 | U43: 0.0031 | V43: 0.0031 | W43: 0.0031 | X43: 0.0031 | Y43: 0.0031 | Z43: 0.0031 | AA43: 0.0031 | AB43: 0.0031 | AC43: 0.0031 | AD43: 0.0031 | AE43: 0.0031 | AF43: 0.0031 | AG43: 0.0031 | AH43: 0.0031 | AI43: ='National Shipments'!F43/'National Shipments'!F$45 -> 0.0031 | AJ43: ='National Shipments'!G43/'National Shipments'!G$45 -> 0.0031 | AK43: ='National Shipments'!H43/'National Shipments'!H$45 -> 0.0031 | AL43: ='National Shipments'!I43/'National Shipments'!I$45 -> 0.0031 | AM43: ='National Shipments'!J43/'National Shipments'!J$45 -> 0.0031 | AN43: ='National Shipments'!K43/'National Shipments'!K$45 -> 0.0031 | AO43: ='National Shipments'!L43/'National Shipments'!L$45 -> 0.0031 | AP43: ='National Shipments'!M43/'National Shipments'!M$45 -> 0.0031 | AQ43: ='National Shipments'!N43/'National Shipments'!N$45 -> 0.0031 | AR43: ='National Shipments'!O43/'National Shipments'!O$45 -> 0.0031 | AS43: ='National Shipments'!P43/'National Shipments'!P$45 -> 0.0031 | AT43: ='National Shipments'!Q43/'National Shipments'!Q$45 -> 0.0031 | AU43: ='National Shipments'!R43/'National Shipments'!R$45 -> 0.0031 | AV43: ='National Shipments'!S43/'National Shipments'!S$45 -> 0.0031 | AW43: ='National Shipments'!T43/'National Shipments'!T$45 -> 0.0031 | AX43: ='National Shipments'!U43/'National Shipments'!U$45 -> 0.0031 | AY43: ='National Shipments'!V43/'National Shipments'!V$45 -> 0.0031 | AZ43: ='National Shipments'!W43/'National Shipments'!W$45 -> 0.0031 | BA43: ='National Shipments'!X43/'National Shipments'!X$45 -> 0.0031 | BB43: ='National Shipments'!Y43/'National Shipments'!Y$45 -> 0.0031 | BC43: ='National Shipments'!Z43/'National Shipments'!Z$45 -> 0.0031 | BD43: ='National Shipments'!AA43/'National Shipments'!AA$45 -> 0.0031 | BE43: ='National Shipments'!AB43/'National Shipments'!AB$45 -> 0.0031 | BF43: ='National Shipments'!AC43/'National Shipments'!AC$45 -> 0.0031 | BG43: ='National Shipments'!AD43/'National Shipments'!AD$45 -> 0.0031 | BH43: ='National Shipments'!AE43/'National Shipments'!AE$45 -> 0.0031
D44: EL5 | E44: 11.9619975 | G44: 0.0046 | H44: 0.0046 | I44: 0.0046 | J44: 0.0046 | K44: 0.0046 | L44: 0.0046 | M44: 0.0046 | N44: 0.0046 | O44: 0.0046 | P44: 0.0046 | Q44: 0.0046 | R44: 0.0046 | S44: 0.0046 | T44: 0.0046 | U44: 0.0046 | V44: 0.0046 | W44: 0.0046 | X44: 0.0046 | Y44: 0.0046 | Z44: 0.0046 | AA44: 0.0046 | AB44: 0.0046 | AC44: 0.0046 | AD44: 0.0046 | AE44: 0.0046 | AF44: 0.0046 | AG44: 0.0046 | AH44: 0.0046 | AI44: ='National Shipments'!F44/'National Shipments'!F$45 -> 0.0046 | AJ44: ='National Shipments'!G44/'National Shipments'!G$45 -> 0.0046 | AK44: ='National Shipments'!H44/'National Shipments'!H$45 -> 0.0046 | AL44: ='National Shipments'!I44/'National Shipments'!I$45 -> 0.0046 | AM44: ='National Shipments'!J44/'National Shipments'!J$45 -> 0.0046 | AN44: ='National Shipments'!K44/'National Shipments'!K$45 -> 0.0046 | AO44: ='National Shipments'!L44/'National Shipments'!L$45 -> 0.0046 | AP44: ='National Shipments'!M44/'National Shipments'!M$45 -> 0.0046 | AQ44: ='National Shipments'!N44/'National Shipments'!N$45 -> 0.0046 | AR44: ='National Shipments'!O44/'National Shipments'!O$45 -> 0.0046 | AS44: ='National Shipments'!P44/'National Shipments'!P$45 -> 0.0046 | AT44: ='National Shipments'!Q44/'National Shipments'!Q$45 -> 0.0046 | AU44: ='National Shipments'!R44/'National Shipments'!R$45 -> 0.0046 | AV44: ='National Shipments'!S44/'National Shipments'!S$45 -> 0.0046 | AW44: ='National Shipments'!T44/'National Shipments'!T$45 -> 0.0046 | AX44: ='National Shipments'!U44/'National Shipments'!U$45 -> 0.0046 | AY44: ='National Shipments'!V44/'National Shipments'!V$45 -> 0.0046 | AZ44: ='National Shipments'!W44/'National Shipments'!W$45 -> 0.0046 | BA44: ='National Shipments'!X44/'National Shipments'!X$45 -> 0.0046 | BB44: ='National Shipments'!Y44/'National Shipments'!Y$45 -> 0.0046 | BC44: ='National Shipments'!Z44/'National Shipments'!Z$45 -> 0.0046 | BD44: ='National Shipments'!AA44/'National Shipments'!AA$45 -> 0.0046 | BE44: ='National Shipments'!AB44/'National Shipments'!AB$45 -> 0.0046 | BF44: ='National Shipments'!AC44/'National Shipments'!AC$45 -> 0.0046 | BG44: ='National Shipments'!AD44/'National Shipments'!AD$45 -> 0.0046 | BH44: ='National Shipments'!AE44/'National Shipments'!AE$45 -> 0.0046
D45: TOTAL | G45: 1 | H45: 1 | I45: 1 | J45: 1 | K45: 1 | L45: 1 | M45: 1 | N45: 1 | O45: 1 | P45: 1 | Q45: 1 | R45: 1 | S45: 1 | T45: 1 | U45: 1 | V45: 1 | W45: 1 | X45: 1 | Y45: 1 | Z45: 1 | AA45: 1 | AB45: 1 | AC45: 1 | AD45: 1 | AE45: 1 | AF45: 1 | AG45: 1 | AH45: 1 | AI45: ='National Shipments'!F45/'National Shipments'!F$45 -> 1 | AJ45: ='National Shipments'!G45/'National Shipments'!G$45 -> 1 | AK45: ='National Shipments'!H45/'National Shipments'!H$45 -> 1 | AL45: ='National Shipments'!I45/'National Shipments'!I$45 -> 1 | AM45: ='National Shipments'!J45/'National Shipments'!J$45 -> 1 | AN45: ='National Shipments'!K45/'National Shipments'!K$45 -> 1 | AO45: ='National Shipments'!L45/'National Shipments'!L$45 -> 1 | AP45: ='National Shipments'!M45/'National Shipments'!M$45 -> 1 | AQ45: ='National Shipments'!N45/'National Shipments'!N$45 -> 1 | AR45: ='National Shipments'!O45/'National Shipments'!O$45 -> 1 | AS45: ='National Shipments'!P45/'National Shipments'!P$45 -> 1 | AT45: ='National Shipments'!Q45/'National Shipments'!Q$45 -> 1 | AU45: ='National Shipments'!R45/'National Shipments'!R$45 -> 1 | AV45: ='National Shipments'!S45/'National Shipments'!S$45 -> 1 | AW45: ='National Shipments'!T45/'National Shipments'!T$45 -> 1 | AX45: ='National Shipments'!U45/'National Shipments'!U$45 -> 1 | AY45: ='National Shipments'!V45/'National Shipments'!V$45 -> 1 | AZ45: ='National Shipments'!W45/'National Shipments'!W$45 -> 1 | BA45: ='National Shipments'!X45/'National Shipments'!X$45 -> 1 | BB45: ='National Shipments'!Y45/'National Shipments'!Y$45 -> 1 | BC45: ='National Shipments'!Z45/'National Shipments'!Z$45 -> 1 | BD45: ='National Shipments'!AA45/'National Shipments'!AA$45 -> 1 | BE45: ='National Shipments'!AB45/'National Shipments'!AB$45 -> 1 | BF45: ='National Shipments'!AC45/'National Shipments'!AC$45 -> 1 | BG45: ='National Shipments'!AD45/'National Shipments'!AD$45 -> 1 | BH45: ='National Shipments'!AE45/'National Shipments'!AE$45 -> 1
D47: POST-Case
D48: Efficiency Level | E48: CEER | G48: 1981 | H48: 1982 | I48: 1983 | J48: 1984 | K48: 1985 | L48: 1986 | M48: 1987 | N48: 1988 | O48: 1989 | P48: 1990 | Q48: 1991 | R48: 1992 | S48: 1993 | T48: 1994 | U48: 1995 | V48: 1996 | W48: 1997 | X48: 1998 | Y48: 1999 | Z48: 2000 | AA48: 2001 | AB48: 2002 | AC48: 2003 | AD48: 2004 | AE48: 2005 | AF48: 2006 | AG48: 2007 | AH48: 2008 | AI48: 2009 | AJ48: 2010 | AK48: 2011 | AL48: 2012 | AM48: 2013 | AN48: 2014 | AO48: 2015 | AP48: 2016 | AQ48: 2017 | AR48: 2018 | AS48: 2019 | AT48: 2020 | AU48: 2021 | AV48: 2022 | AW48: 2023 | AX48: 2024 | AY48: 2025 | AZ48: 2026 | BA48: 2027 | BB48: 2028 | BC48: 2029 | BD48: 2030 | BE48: 2031 | BF48: 2032 | BG48: 2033 | BH48: 2034
D49: EL0 | E49: =INDEX(EFFICIENCY_LEVELS,RIGHT(D49,1)+1,MID($D$35,3,1)) -> 9.686701434 | G49: =H49 -> 0.3705 | H49: 0.3705 | I49: 0.3705 | J49: 0.3705 | K49: 0.3705 | L49: 0.3705 | M49: 0.3705 | N49: 0.3705 | O49: 0.3705 | P49: 0.3705 | Q49: 0.3705 | R49: 0.3705 | S49: 0.3705 | T49: 0.3705 | U49: 0.3705 | V49: 0.3705 | W49: 0.3705 | X49: 0.3705 | Y49: 0.3705 | Z49: 0.3705 | AA49: 0.3705 | AB49: 0.3705 | AC49: 0.3705 | AD49: 0.3705 | AE49: 0.3705 | AF49: 0.3705 | AG49: 0.3705 | AH49: =AI49 -> 0.3705 | AI49: ='National Shipments'!F49/'National Shipments'!F$55 -> 0.3705 | AJ49: ='National Shipments'!G49/'National Shipments'!G$55 -> 0.3705 | AK49: ='National Shipments'!H49/'National Shipments'!H$55 -> 0.3705 | AL49: ='National Shipments'!I49/'National Shipments'!I$55 -> 0.3705 | AM49: ='National Shipments'!J49/'National Shipments'!J$55 -> 0.3705 | AN49: ='National Shipments'!K49/'National Shipments'!K$55 -> 0 | AO49: ='National Shipments'!L49/'National Shipments'!L$55 -> 0 | AP49: ='National Shipments'!M49/'National Shipments'!M$55 -> 0 | AQ49: ='National Shipments'!N49/'National Shipments'!N$55 -> 0 | AR49: ='National Shipments'!O49/'National Shipments'!O$55 -> 0 | AS49: ='National Shipments'!P49/'National Shipments'!P$55 -> 0 | AT49: ='National Shipments'!Q49/'National Shipments'!Q$55 -> 0 | AU49: ='National Shipments'!R49/'National Shipments'!R$55 -> 0 | AV49: ='National Shipments'!S49/'National Shipments'!S$55 -> 0 | AW49: ='National Shipments'!T49/'National Shipments'!T$55 -> 0 | AX49: ='National Shipments'!U49/'National Shipments'!U$55 -> 0 | AY49: ='National Shipments'!V49/'National Shipments'!V$55 -> 0 | AZ49: ='National Shipments'!W49/'National Shipments'!W$55 -> 0 | BA49: ='National Shipments'!X49/'National Shipments'!X$55 -> 0 | BB49: ='National Shipments'!Y49/'National Shipments'!Y$55 -> 0 | BC49: ='National Shipments'!Z49/'National Shipments'!Z$55 -> 0 | BD49: ='National Shipments'!AA49/'National Shipments'!AA$55 -> 0 | BE49: ='National Shipments'!AB49/'National Shipments'!AB$55 -> 0 | BF49: ='National Shipments'!AC49/'National Shipments'!AC$55 -> 0 | BG49: ='National Shipments'!AD49/'National Shipments'!AD$55 -> 0 | BH49: ='National Shipments'!AE49/'National Shipments'!AE$55 -> 0
D50: EL1 | E50: 10.2 | G50: 0.0246 | H50: 0.0246 | I50: 0.0246 | J50: 0.0246 | K50: 0.0246 | L50: 0.0246 | M50: 0.0246 | N50: 0.0246 | O50: 0.0246 | P50: 0.0246 | Q50: 0.0246 | R50: 0.0246 | S50: 0.0246 | T50: 0.0246 | U50: 0.0246 | V50: 0.0246 | W50: 0.0246 | X50: 0.0246 | Y50: 0.0246 | Z50: 0.0246 | AA50: 0.0246 | AB50: 0.0246 | AC50: 0.0246 | AD50: 0.0246 | AE50: 0.0246 | AF50: 0.0246 | AG50: 0.0246 | AH50: =AI50 -> 0.0246 | AI50: ='National Shipments'!F50/'National Shipments'!F$55 -> 0.0246 | AJ50: ='National Shipments'!G50/'National Shipments'!G$55 -> 0.0246 | AK50: ='National Shipments'!H50/'National Shipments'!H$55 -> 0.0246 | AL50: ='National Shipments'!I50/'National Shipments'!I$55 -> 0.0246 | AM50: ='National Shipments'!J50/'National Shipments'!J$55 -> 0.0246 | AN50: ='National Shipments'!K50/'National Shipments'!K$55 -> 0 | AO50: ='National Shipments'!L50/'National Shipments'!L$55 -> 0 | AP50: ='National Shipments'!M50/'National Shipments'!M$55 -> 0 | AQ50: ='National Shipments'!N50/'National Shipments'!N$55 -> 0 | AR50: ='National Shipments'!O50/'National Shipments'!O$55 -> 0 | AS50: ='National Shipments'!P50/'National Shipments'!P$55 -> 0 | AT50: ='National Shipments'!Q50/'National Shipments'!Q$55 -> 0 | AU50: ='National Shipments'!R50/'National Shipments'!R$55 -> 0 | AV50: ='National Shipments'!S50/'National Shipments'!S$55 -> 0 | AW50: ='National Shipments'!T50/'National Shipments'!T$55 -> 0 | AX50: ='National Shipments'!U50/'National Shipments'!U$55 -> 0 | AY50: ='National Shipments'!V50/'National Shipments'!V$55 -> 0 | AZ50: ='National Shipments'!W50/'National Shipments'!W$55 -> 0 | BA50: ='National Shipments'!X50/'National Shipments'!X$55 -> 0 | BB50: ='National Shipments'!Y50/'National Shipments'!Y$55 -> 0 | BC50: ='National Shipments'!Z50/'National Shipments'!Z$55 -> 0 | BD50: ='National Shipments'!AA50/'National Shipments'!AA$55 -> 0 | BE50: ='National Shipments'!AB50/'National Shipments'!AB$55 -> 0 | BF50: ='National Shipments'!AC50/'National Shipments'!AC$55 -> 0 | BG50: ='National Shipments'!AD50/'National Shipments'!AD$55 -> 0 | BH50: ='National Shipments'!AE50/'National Shipments'!AE$55 -> 0
D51: EL2 | E51: 10.7 | G51: 0.583 | H51: 0.583 | I51: 0.583 | J51: 0.583 | K51: 0.583 | L51: 0.583 | M51: 0.583 | N51: 0.583 | O51: 0.583 | P51: 0.583 | Q51: 0.583 | R51: 0.583 | S51: 0.583 | T51: 0.583 | U51: 0.583 | V51: 0.583 | W51: 0.583 | X51: 0.583 | Y51: 0.583 | Z51: 0.583 | AA51: 0.583 | AB51: 0.583 | AC51: 0.583 | AD51: 0.583 | AE51: 0.583 | AF51: 0.583 | AG51: 0.583 | AH51: 0.583 | AI51: ='National Shipments'!F51/'National Shipments'!F$55 -> 0.583 | AJ51: ='National Shipments'!G51/'National Shipments'!G$55 -> 0.583 | AK51: ='National Shipments'!H51/'National Shipments'!H$55 -> 0.583 | AL51: ='National Shipments'!I51/'National Shipments'!I$55 -> 0.583 | AM51: ='National Shipments'!J51/'National Shipments'!J$55 -> 0.583 | AN51: ='National Shipments'!K51/'National Shipments'!K$55 -> 0 | AO51: ='National Shipments'!L51/'National Shipments'!L$55 -> 0 | AP51: ='National Shipments'!M51/'National Shipments'!M$55 -> 0 | AQ51: ='National Shipments'!N51/'National Shipments'!N$55 -> 0 | AR51: ='National Shipments'!O51/'National Shipments'!O$55 -> 0 | AS51: ='National Shipments'!P51/'National Shipments'!P$55 -> 0 | AT51: ='National Shipments'!Q51/'National Shipments'!Q$55 -> 0 | AU51: ='National Shipments'!R51/'National Shipments'!R$55 -> 0 | AV51: ='National Shipments'!S51/'National Shipments'!S$55 -> 0 | AW51: ='National Shipments'!T51/'National Shipments'!T$55 -> 0 | AX51: ='National Shipments'!U51/'National Shipments'!U$55 -> 0 | AY51: ='National Shipments'!V51/'National Shipments'!V$55 -> 0 | AZ51: ='National Shipments'!W51/'National Shipments'!W$55 -> 0 | BA51: ='National Shipments'!X51/'National Shipments'!X$55 -> 0 | BB51: ='National Shipments'!Y51/'National Shipments'!Y$55 -> 0 | BC51: ='National Shipments'!Z51/'National Shipments'!Z$55 -> 0 | BD51: ='National Shipments'!AA51/'National Shipments'!AA$55 -> 0 | BE51: ='National Shipments'!AB51/'National Shipments'!AB$55 -> 0 | BF51: ='National Shipments'!AC51/'National Shipments'!AC$55 -> 0 | BG51: ='National Shipments'!AD51/'National Shipments'!AD$55 -> 0 | BH51: ='National Shipments'!AE51/'National Shipments'!AE$55 -> 0
D52: EL3 | E52: 10.9 | G52: 0.0142 | H52: 0.0142 | I52: 0.0142 | J52: 0.0142 | K52: 0.0142 | L52: 0.0142 | M52: 0.0142 | N52: 0.0142 | O52: 0.0142 | P52: 0.0142 | Q52: 0.0142 | R52: 0.0142 | S52: 0.0142 | T52: 0.0142 | U52: 0.0142 | V52: 0.0142 | W52: 0.0142 | X52: 0.0142 | Y52: 0.0142 | Z52: 0.0142 | AA52: 0.0142 | AB52: 0.0142 | AC52: 0.0142 | AD52: 0.0142 | AE52: 0.0142 | AF52: 0.0142 | AG52: 0.0142 | AH52: 0.0142 | AI52: ='National Shipments'!F52/'National Shipments'!F$55 -> 0.0142 | AJ52: ='National Shipments'!G52/'National Shipments'!G$55 -> 0.0142 | AK52: ='National Shipments'!H52/'National Shipments'!H$55 -> 0.0142 | AL52: ='National Shipments'!I52/'National Shipments'!I$55 -> 0.0142 | AM52: ='National Shipments'!J52/'National Shipments'!J$55 -> 0.0142 | AN52: ='National Shipments'!K52/'National Shipments'!K$55 -> 0.9923 | AO52: ='National Shipments'!L52/'National Shipments'!L$55 -> 0.9733229111 | AP52: ='National Shipments'!M52/'National Shipments'!M$55 -> 0.9635079746 | AQ52: ='National Shipments'!N52/'National Shipments'!N$55 -> 0.9536685007 | AR52: ='National Shipments'!O52/'National Shipments'!O$55 -> 0.9438044282 | AS52: ='National Shipments'!P52/'National Shipments'!P$55 -> 0.9339156954 | AT52: ='National Shipments'!Q52/'National Shipments'!Q$55 -> 0.9240022409 | AU52: ='National Shipments'!R52/'National Shipments'!R$55 -> 0.9140640026 | AV52: ='National Shipments'!S52/'National Shipments'!S$55 -> 0.8980163626 | AW52: ='National Shipments'!T52/'National Shipments'!T$55 -> 0.8791806348 | AX52: ='National Shipments'!U52/'National Shipments'!U$55 -> 0.8602978178 | AY52: ='National Shipments'!V52/'National Shipments'!V$55 -> 0.8413677936 | AZ52: ='National Shipments'!W52/'National Shipments'!W$55 -> 0.8223904445 | BA52: ='National Shipments'!X52/'National Shipments'!X$55 -> 0.8033656519 | BB52: ='National Shipments'!Y52/'National Shipments'!Y$55 -> 0.7842932974 | BC52: ='National Shipments'!Z52/'National Shipments'!Z$55 -> 0.7649366732 | BD52: ='National Shipments'!AA52/'National Shipments'!AA$55 -> 0.7447544291 | BE52: ='National Shipments'!AB52/'National Shipments'!AB$55 -> 0.7245217293 | BF52: ='National Shipments'!AC52/'National Shipments'!AC$55 -> 0.7042384477 | BG52: ='National Shipments'!AD52/'National Shipments'!AD$55 -> 0.683904458 | BH52: ='National Shipments'!AE52/'National Shipments'!AE$55 -> 0.6635196333
D53: EL4 | E53: 11.5 | G53: 0.0031 | H53: 0.0031 | I53: 0.0031 | J53: 0.0031 | K53: 0.0031 | L53: 0.0031 | M53: 0.0031 | N53: 0.0031 | O53: 0.0031 | P53: 0.0031 | Q53: 0.0031 | R53: 0.0031 | S53: 0.0031 | T53: 0.0031 | U53: 0.0031 | V53: 0.0031 | W53: 0.0031 | X53: 0.0031 | Y53: 0.0031 | Z53: 0.0031 | AA53: 0.0031 | AB53: 0.0031 | AC53: 0.0031 | AD53: 0.0031 | AE53: 0.0031 | AF53: 0.0031 | AG53: 0.0031 | AH53: 0.0031 | AI53: ='National Shipments'!F53/'National Shipments'!F$55 -> 0.0031 | AJ53: ='National Shipments'!G53/'National Shipments'!G$55 -> 0.0031 | AK53: ='National Shipments'!H53/'National Shipments'!H$55 -> 0.0031 | AL53: ='National Shipments'!I53/'National Shipments'!I$55 -> 0.0031 | AM53: ='National Shipments'!J53/'National Shipments'!J$55 -> 0.0031 | AN53: ='National Shipments'!K53/'National Shipments'!K$55 -> 0.0031 | AO53: ='National Shipments'!L53/'National Shipments'!L$55 -> 0.02207708887 | AP53: ='National Shipments'!M53/'National Shipments'!M$55 -> 0.0318920254 | AQ53: ='National Shipments'!N53/'National Shipments'!N$55 -> 0.04173149927 | AR53: ='National Shipments'!O53/'National Shipments'!O$55 -> 0.05159557183 | AS53: ='National Shipments'!P53/'National Shipments'!P$55 -> 0.06148430458 | AT53: ='National Shipments'!Q53/'National Shipments'!Q$55 -> 0.07139775915 | AU53: ='National Shipments'!R53/'National Shipments'!R$55 -> 0.08133599736 | AV53: ='National Shipments'!S53/'National Shipments'!S$55 -> 0.09738363741 | AW53: ='National Shipments'!T53/'National Shipments'!T$55 -> 0.1162193652 | AX53: ='National Shipments'!U53/'National Shipments'!U$55 -> 0.1351021822 | AY53: ='National Shipments'!V53/'National Shipments'!V$55 -> 0.1540322064 | AZ53: ='National Shipments'!W53/'National Shipments'!W$55 -> 0.1730095555 | BA53: ='National Shipments'!X53/'National Shipments'!X$55 -> 0.1920343481 | BB53: ='National Shipments'!Y53/'National Shipments'!Y$55 -> 0.2111067026 | BC53: ='National Shipments'!Z53/'National Shipments'!Z$55 -> 0.2304633268 | BD53: ='National Shipments'!AA53/'National Shipments'!AA$55 -> 0.2506455709 | BE53: ='National Shipments'!AB53/'National Shipments'!AB$55 -> 0.2708782707 | BF53: ='National Shipments'!AC53/'National Shipments'!AC$55 -> 0.2911615523 | BG53: ='National Shipments'!AD53/'National Shipments'!AD$55 -> 0.311495542 | BH53: ='National Shipments'!AE53/'National Shipments'!AE$55 -> 0.3318803667
D54: EL5 | E54: 11.9619975 | G54: 0.0046 | H54: 0.0046 | I54: 0.0046 | J54: 0.0046 | K54: 0.0046 | L54: 0.0046 | M54: 0.0046 | N54: 0.0046 | O54: 0.0046 | P54: 0.0046 | Q54: 0.0046 | R54: 0.0046 | S54: 0.0046 | T54: 0.0046 | U54: 0.0046 | V54: 0.0046 | W54: 0.0046 | X54: 0.0046 | Y54: 0.0046 | Z54: 0.0046 | AA54: 0.0046 | AB54: 0.0046 | AC54: 0.0046 | AD54: 0.0046 | AE54: 0.0046 | AF54: 0.0046 | AG54: 0.0046 | AH54: 0.0046 | AI54: ='National Shipments'!F54/'National Shipments'!F$55 -> 0.0046 | AJ54: ='National Shipments'!G54/'National Shipments'!G$55 -> 0.0046 | AK54: ='National Shipments'!H54/'National Shipments'!H$55 -> 0.0046 | AL54: ='National Shipments'!I54/'National Shipments'!I$55 -> 0.0046 | AM54: ='National Shipments'!J54/'National Shipments'!J$55 -> 0.0046 | AN54: ='National Shipments'!K54/'National Shipments'!K$55 -> 0.0046 | AO54: ='National Shipments'!L54/'National Shipments'!L$55 -> 0.0046 | AP54: ='National Shipments'!M54/'National Shipments'!M$55 -> 0.0046 | AQ54: ='National Shipments'!N54/'National Shipments'!N$55 -> 0.0046 | AR54: ='National Shipments'!O54/'National Shipments'!O$55 -> 0.0046 | AS54: ='National Shipments'!P54/'National Shipments'!P$55 -> 0.0046 | AT54: ='National Shipments'!Q54/'National Shipments'!Q$55 -> 0.0046 | AU54: ='National Shipments'!R54/'National Shipments'!R$55 -> 0.0046 | AV54: ='National Shipments'!S54/'National Shipments'!S$55 -> 0.0046 | AW54: ='National Shipments'!T54/'National Shipments'!T$55 -> 0.0046 | AX54: ='National Shipments'!U54/'National Shipments'!U$55 -> 0.0046 | AY54: ='National Shipments'!V54/'National Shipments'!V$55 -> 0.0046 | AZ54: ='National Shipments'!W54/'National Shipments'!W$55 -> 0.0046 | BA54: ='National Shipments'!X54/'National Shipments'!X$55 -> 0.0046 | BB54: ='National Shipments'!Y54/'National Shipments'!Y$55 -> 0.0046 | BC54: ='National Shipments'!Z54/'National Shipments'!Z$55 -> 0.0046 | BD54: ='National Shipments'!AA54/'National Shipments'!AA$55 -> 0.0046 | BE54: ='National Shipments'!AB54/'National Shipments'!AB$55 -> 0.0046 | BF54: ='National Shipments'!AC54/'National Shipments'!AC$55 -> 0.0046 | BG54: ='National Shipments'!AD54/'National Shipments'!AD$55 -> 0.0046 | BH54: ='National Shipments'!AE54/'National Shipments'!AE$55 -> 0.0046
D55: TOTAL | G55: 1 | H55: 1 | I55: 1 | J55: 1 | K55: 1 | L55: 1 | M55: 1 | N55: 1 | O55: 1 | P55: 1 | Q55: 1 | R55: 1 | S55: 1 | T55: 1 | U55: 1 | V55: 1 | W55: 1 | X55: 1 | Y55: 1 | Z55: 1 | AA55: 1 | AB55: 1 | AC55: 1 | AD55: 1 | AE55: 1 | AF55: 1 | AG55: 1 | AH55: 1 | AI55: ='National Shipments'!F55/'National Shipments'!F$55 -> 1 | AJ55: ='National Shipments'!G55/'National Shipments'!G$55 -> 1 | AK55: ='National Shipments'!H55/'National Shipments'!H$55 -> 1 | AL55: ='National Shipments'!I55/'National Shipments'!I$55 -> 1 | AM55: ='National Shipments'!J55/'National Shipments'!J$55 -> 1 | AN55: ='National Shipments'!K55/'National Shipments'!K$55 -> 1 | AO55: ='National Shipments'!L55/'National Shipments'!L$55 -> 1 | AP55: ='National Shipments'!M55/'National Shipments'!M$55 -> 1 | AQ55: ='National Shipments'!N55/'National Shipments'!N$55 -> 1 | AR55: ='National Shipments'!O55/'National Shipments'!O$55 -> 1 | AS55: ='National Shipments'!P55/'National Shipments'!P$55 -> 1 | AT55: ='National Shipments'!Q55/'National Shipments'!Q$55 -> 1 | AU55: ='National Shipments'!R55/'National Shipments'!R$55 -> 1 | AV55: ='National Shipments'!S55/'National Shipments'!S$55 -> 1 | AW55: ='National Shipments'!T55/'National Shipments'!T$55 -> 1 | AX55: ='National Shipments'!U55/'National Shipments'!U$55 -> 1 | AY55: ='National Shipments'!V55/'National Shipments'!V$55 -> 1 | AZ55: ='National Shipments'!W55/'National Shipments'!W$55 -> 1 | BA55: ='National Shipments'!X55/'National Shipments'!X$55 -> 1 | BB55: ='National Shipments'!Y55/'National Shipments'!Y$55 -> 1 | BC55: ='National Shipments'!Z55/'National Shipments'!Z$55 -> 1 | BD55: ='National Shipments'!AA55/'National Shipments'!AA$55 -> 1 | BE55: ='National Shipments'!AB55/'National Shipments'!AB$55 -> 1 | BF55: ='National Shipments'!AC55/'National Shipments'!AC$55 -> 1 | BG55: ='National Shipments'!AD55/'National Shipments'!AD$55 -> 1 | BH55: ='National Shipments'!AE55/'National Shipments'!AE$55 -> 1
D57: Sources | E57: 2011 DOE Residential Room Air Conditioners Direct Final Rule Government Regulatory Impact Model 'Product Shipments (CALC)' tab.
D61: PC3 Without reverse cycle, with louvered sides, and 20,000 to 24,999 Btu/h
D63: PRE-Case
D64: Efficiency Level | E64: CEER | G64: 1981 | H64: 1982 | I64: 1983 | J64: 1984 | K64: 1985 | L64: 1986 | M64: 1987 | N64: 1988 | O64: 1989 | P64: 1990 | Q64: 1991 | R64: 1992 | S64: 1993 | T64: 1994 | U64: 1995 | V64: 1996 | W64: 1997 | X64: 1998 | Y64: 1999 | Z64: 2000 | AA64: 2001 | AB64: 2002 | AC64: 2003 | AD64: 2004 | AE64: 2005 | AF64: 2006 | AG64: 2007 | AH64: 2008 | AI64: 2009 | AJ64: 2010 | AK64: 2011 | AL64: 2012 | AM64: 2013 | AN64: 2014 | AO64: 2015 | AP64: 2016 | AQ64: 2017 | AR64: 2018 | AS64: 2019 | AT64: 2020 | AU64: 2021 | AV64: 2022 | AW64: 2023 | AX64: 2024 | AY64: 2025 | AZ64: 2026 | BA64: 2027 | BB64: 2028 | BC64: 2029 | BD64: 2030 | BE64: 2031 | BF64: 2032 | BG64: 2033 | BH64: 2034
